Workbook

Sheet Home
B1: ='Match Day'!I4 -> Northern T&F League | K1: =CONCATENATE('Match Day'!I8," ",'Match Day'!I10," - ",'Match Day'!I12) -> Division 4W Match 1 - Litherland | AG1: ='Match Day'!I6 -> 2014-05-04
B2: DECLARATIONS | K2: START LISTS, FIELD CARDS AND RESULTS | AG2: POINTS AT A GLANCE
B3: Select from the list below | K3: To PRINT out START LISTS or FIELD CARDS click on a YELLOW or ORANGE coloured box | AG3: Click coloured box
B4: the club whose athletes | K4: To VIEW START LISTS, FIELD CARDS or RESULTS click on the appropriate BLUE box | AG4: below to
B5: you wish to DECLARE | K5: To process RESULTS click on X to access the Results Area or Field Card | AG5: sort Clubs in
B6: or AMEND | K6: EVENT | O6: Start Lists | S6: Start Lists | W6: Process | Y6: Print | Z6: View | AB6: Process | AD6: Print | AE6: View | AG6: descending order
B7: Teams | O7: Field Cards | S7: Field Cards | W7: Results | AB7: Results | AG7: of points
O8: Men's Match | S8: Women's Match | W8: Men | AB8: Women | AG8: 1 | AH8: =Scores!B6 ->  | AK8: =Scores!C6 -> 
B9: MALE TEAMS | K9: 100m | W9: X | X9: =IF(OR(Results!G4<>"",Results!D4<>""),"þ","") ->  | AB9: X | AC9: =IF(OR(ResultsF!G4<>"",ResultsF!D4<>""),"þ","") ->  | AG9: 2 | AH9: =Scores!B7 ->  | AK9: =Scores!C7 -> 
B10: ='Match Day'!C4 -> Altrincham & District AC | K10: 200m | W10: X | X10: =IF(OR(Results!G14<>"",Results!D14<>""),"þ","") ->  | AB10: X | AC10: =IF(OR(ResultsF!G14<>"",ResultsF!D14<>""),"þ","") ->  | AG10: 3 | AH10: =Scores!B8 ->  | AK10: =Scores!C8 -> 
B11: ='Match Day'!C6 -> Crewe & Nantwich AC | K11: 400m | W11: X | X11: =IF(OR(Results!G24<>"",Results!D24<>""),"þ","") ->  | AB11: X | AC11: =IF(OR(ResultsF!G24<>"",ResultsF!D24<>""),"þ","") ->  | AG11: 4 | AH11: =Scores!B9 ->  | AK11: =Scores!C9 -> 
B12: ='Match Day'!C8 -> Isle of Man "B" | K12: 800m | W12: X | X12: =IF(OR(Results!G34<>"",Results!D34<>""),"þ","") ->  | AB12: X | AC12: =IF(OR(ResultsF!G34<>"",ResultsF!D34<>""),"þ","") ->  | AG12: 5 | AH12: =Scores!B10 ->  | AK12: =Scores!C10 -> 
B13: ='Match Day'!C10 -> Salford Metropolitan AC | K13: 1500m | W13: X | X13: =IF(OR(Results!G44<>"",Results!D44<>""),"þ","") ->  | AB13: X | AC13: =IF(OR(ResultsF!G44<>"",ResultsF!D44<>""),"þ","") ->  | AG13: 6 | AH13: =Scores!B11 ->  | AK13: =Scores!C11 -> 
B14: ='Match Day'!C12 -> Southport Waterloo AC | K14: 3000m S/Chase | W14: X | X14: =IF(OR(Results!G54<>"",Results!D54<>""),"þ","") ->  | AG14: 7 | AH14: =Scores!B12 ->  | AK14: =Scores!C12 -> 
B15: ='Match Day'!C14 -> Warrington AC | K15: 5000m/3000m | W15: X | X15: =IF(OR(Results!G64<>"",Results!D64<>""),"þ","") ->  | AB15: X | AC15: =IF(OR(ResultsF!G64<>"",ResultsF!D64<>""),"þ","") ->  | AG15: 8 | AH15: =Scores!B13 ->  | AK15: =Scores!C13 -> 
B16: ='Match Day'!C16 -> Wrexham AAC | K16: 400m Hurdles | W16: X | X16: =IF(OR(Results!G74<>"",Results!D74<>""),"þ","") ->  | AB16: X | AC16: =IF(OR(ResultsF!G74<>"",ResultsF!D74<>""),"þ","") ->  | AH16: Unused Team | AK16: =Points!$S$48 -> 0
B17: ='Match Day'!C18 ->  | K17: 110m/100m Hurdles | W17: X | X17: =IF(OR(Results!G84<>"",Results!D84<>""),"þ","") ->  | AB17: X | AC17: =IF(OR(ResultsF!G84<>"",ResultsF!D84<>""),"þ","") ->  | AH17: Officials Points | AK17: =Points!$S$49 -> 0
K18: Hammer | W18: X | X18: =IF(OR(Results!G94<>"",Results!D94<>""),"þ","") ->  | AB18: X | AC18: =IF(OR(ResultsF!G94<>"",ResultsF!D94<>""),"þ","") ->  | AH18: TOTAL | AK18: =Points!$U$50 -> 0
B19: FEMALE TEAMS | K19: Discus | W19: X | X19: =IF(OR(Results!G104<>"",Results!D104<>""),"þ","") ->  | AB19: X | AC19: =IF(OR(ResultsF!G104<>"",ResultsF!D104<>""),"þ","") -> 
B20: ='Match Day'!C4 -> Altrincham & District AC | K20: Javelin | W20: X | X20: =IF(OR(Results!G114<>"",Results!D114<>""),"þ","") ->  | AB20: X | AC20: =IF(OR(ResultsF!G114<>"",ResultsF!D114<>""),"þ","") -> 
B21: ='Match Day'!C6 -> Crewe & Nantwich AC | K21: Shot | W21: X | X21: =IF(OR(Results!G124<>"",Results!D124<>""),"þ","") ->  | AB21: X | AC21: =IF(OR(ResultsF!G124<>"",ResultsF!D124<>""),"þ","") ->  | AG21: EVENTS
B22: ='Match Day'!C8 -> Isle of Man "B" | K22: Long Jump | W22: X | X22: =IF(OR(Results!G134<>"",Results!D134<>""),"þ","") ->  | AB22: X | AC22: =IF(OR(ResultsF!G134<>"",ResultsF!D134<>""),"þ","") ->  | AG22: Scored
B23: ='Match Day'!C10 -> Salford Metropolitan AC | K23: Triple Jump | W23: X | X23: =IF(OR(Results!G144<>"",Results!D144<>""),"þ","") ->  | AB23: X | AC23: =IF(OR(ResultsF!G144<>"",ResultsF!D144<>""),"þ","") ->  | AG23: =Points!$X$24+Points!$X$45 -> 0
B24: ='Match Day'!C12 -> Southport Waterloo AC | K24: High Jump | W24: X | X24: =IF(OR(Results!G154<>"",Results!D154<>""),"þ","") ->  | AB24: X | AC24: =IF(OR(ResultsF!G154<>"",ResultsF!D154<>""),"þ","") ->  | AG24: Events Left
B25: ='Match Day'!C14 -> Warrington AC | K25: Pole Vault | W25: X | X25: =IF(OR(Results!G164<>"",Results!D164<>""),"þ","") ->  | AB25: X | AC25: =IF(OR(ResultsF!G164<>"",ResultsF!D164<>""),"þ","") ->  | AG25: =19+18-AG23 -> 37
B26: ='Match Day'!C16 -> Wrexham AAC | K26: 4x 100m Relay | W26: X | X26: =IF(OR(Results!G174<>"",Results!D174<>""),"þ","") ->  | AB26: X | AC26: =IF(OR(ResultsF!G174<>"",ResultsF!D174<>""),"þ","") -> 
B27: ='Match Day'!C18 ->  | K27: 4x 400m Relay | W27: X | X27: =IF(OR(Results!G184<>"",Results!D184<>""),"þ","") ->  | AB27: X | AC27: =IF(OR(ResultsF!G184<>"",ResultsF!D184<>""),"þ","") -> 
K28: ALL
B29: IN CASE OF EMERGENCY
B30: 07920 056324 / 07507 853112 | K30: Completed Results Pages (Composite Sheets for Result Packs)
B31: Click box below to enter | K31: Results Page 1M | O31: =IF(OR(Results!F4="",Results!F14="",Results!F24="",Results!F34="",Results!F44="",Results!F54=""),"","þ") ->  | X31: Results Page 1F | AC31: =IF(OR(ResultsF!F4="",ResultsF!F14="",ResultsF!F24="",ResultsF!F34="",ResultsF!F44="",ResultsF!F64=""),"","þ") -> 
K32: Results Page 2M | O32: =IF(OR(Results!F64="",Results!F74="",Results!F84="",Results!F94="",Results!F104="",Results!F114=""),"","þ") ->  | X32: Results Page 2F | AC32: =IF(OR(ResultsF!F74="",ResultsF!F84="",ResultsF!F94="",ResultsF!F104="",ResultsF!F114="",ResultsF!F124=""),"","þ") -> 
K33: Results Page 3M | O33: =IF(OR(Results!F124="",Results!F134="",Results!F144="",Results!F154="",Results!F164="",Results!F174=""),"","þ") ->  | X33: Results Page 3F | AC33: =IF(OR(ResultsF!F134="",ResultsF!F144="",ResultsF!F154="",ResultsF!F164="",ResultsF!F174="",ResultsF!F184=""),"","þ") -> 
K34: Results Page 4M | O34: =IF(OR(Results!F184=""),"","þ") ->  | X34: Results Page 4F | AC34: =IF(OR(ResultsF!F194=""),"","þ") -> 
K35: Results Men's | O35: =IF(OR(Results!F4="",Results!F14="",Results!F24="",Results!F34="",Results!F44="",Results!F54="",Results!F64="",Results!F74="",Results!F84="",Results!F94="",Results!F104="",Results!F114="",Results!F124="",Results!F134="",Results!F144="",Results!F154="",Results!F164="",Results!F174="",Results!F184=""),"","þ") ->  | X35: Results Women's | AC35: =IF(OR(ResultsF!F4="",ResultsF!F14="",ResultsF!F24="",ResultsF!F34="",ResultsF!F44="",ResultsF!F64="",ResultsF!F74="",ResultsF!F84="",ResultsF!F94="",ResultsF!F104="",ResultsF!F114="",ResultsF!F124="",ResultsF!F134="",ResultsF!F144="",ResultsF!F154="",ResultsF!F164="",ResultsF!F174="",ResultsF!F184=""),"","þ") -> 
K36: Scorecard | O36: =IF(OR(Results!F4="",Results!F14="",Results!F24="",Results!F34="",Results!F44="",Results!F54="",Results!F64="",Results!F74="",Results!F84="",Results!F94="",Results!F104="",Results!F114="",Results!F124="",Results!F134="",Results!F144="",Results!F154="",Results!F164="",Results!F174="",Results!F184=""),"","þ") ->  | AC36: =IF(OR(Results!S175="",Results!S185=""),"","þ") -> 

Sheet Results
E1: Home | H1: ='Match Day'!I4 -> Northern T&F League | Q1: Home | AB1: Grades | AF1: Points | AM1: Enter Club Letter, Performance and any Wind Readings in the Yellow Boxes. Times for 800m and above should be entered as mm:ss.0 Otherwise use ss.0
E2: =CONCATENATE('Match Day'!I8," ",'Match Day'!I10," - ",'Match Day'!I12) -> Division 4W Match 1 - Litherland | I2: Perf | J2: Record | K2: Wind | L2: AW | O2: ='Match Day'!I6 -> 2014-05-04 | R2: Perf | S2: Wind | T2: AW | U2: Prints | V2: Record | W2: Division | X2: Grade 1 | Y2: Grade 2 | Z2: Grade 3 | AA2: T/F | AB2: A String | AD2: B String | AF2: A String | AH2: B String | AJ2: Row | AL2: Validation | AQ2: Points
E3: =CONCATENATE(VLOOKUP(A4,mens_handbook,3,FALSE)," A") -> Men's 100m A | H3: =IF(A4="","",IF(VLOOKUP(A4,Handbook!$A$4:$AI$24,35,FALSE)="Y","Wind=","")) -> Wind= | O3: =CONCATENATE(VLOOKUP(A4,mens_handbook,3,FALSE)," B") -> Men's 100m B | P3: =CONCATENATE(VLOOKUP(M4,Handbook!$A$4:$C$24,3,FALSE)," A") ->  | Q3: =H3 -> Wind= | V3: =IF($A4="","",VLOOKUP($A4,Handbook!$A$4:$V$24,21,FALSE)) -> 10.6 | W3: =IF($A4="","",VLOOKUP($A4,Handbook!$A$4:$V$24,22,FALSE)) -> 10.6 | X3: =IF($A4="","",VLOOKUP($A4,Handbook!$A$4:$W$24,23,FALSE)) -> 11.5 | Y3: =IF($A4="","",VLOOKUP($A4,Handbook!$A$4:$X$24,24,FALSE)) -> 11.3 | Z3: =IF($A4="","",VLOOKUP($A4,Handbook!$A$4:$Y$24,25,FALSE)) -> 11.3 | AA3: =IF($A4="","",VLOOKUP($A4,Handbook!$A$4:$AH$24,34,FALSE)) -> T | AJ3: 3 | AR3: A | AS3: B
A4: 3 | C4: =IF(F4="","",IF(F4>10,F4/11,F4)) ->  | D4: =IF(O4="","",IF(O4>10,O4/11,O4)) ->  | E4: 1 | G4: =IF($F4="","",IF($F4>90,VLOOKUP(F4,eventcodes,2,FALSE),HLOOKUP(F4,mens_declare,B6,FALSE))) ->  | H4: =IF($F4="","",IF($F4>90,"",VLOOKUP(C4,matchday,2,FALSE))) ->  | J4: =IF(I4="","",IF(AA3="T",V4,V5)) ->  | L4: =IF(AA3="T",AB4,AC4) ->  | N4: 1 | P4: =IF($O4="","",HLOOKUP(O4,mens_declare,B6,FALSE)) ->  | Q4: =IF($O4="","",VLOOKUP(D4,matchday,2,FALSE)) ->  | T4: =IF(AA3="T",AD4,AE4) ->  | V4: =IF(AA3="F","",IF(I4<V3,"LR",IF(I4=V3,"=LR",IF(I4<W3,"DR",IF(I4=W3,"=DR",""))))) -> LR | AB4: =IF(I4="","",IF(AA3="F","",IF(AA3="T",IF(I4<=X3,"þ",IF(I4<=Y3,"G2",IF(I4<=Z3,"G3","")))))) ->  | AC4: =IF(I4="","",IF(AA3="T","",IF(AA3="F",IF(I4>=X3,"þ",IF(I4>=Y3,"G2",IF(I4>=Z3,"G3","")))))) ->  | AD4: =IF(R4="","",IF(AA3="F","",IF(AA3="T",IF(R4<=X3,"þ",IF(R4<=Y3,"G2",IF(R4<=Z3,"G3","")))))) ->  | AE4: =IF(R4="","",IF(AA3="T","",IF(AA3="F",IF(R4>=X3,"þ",IF(R4>=Y3,"G2",IF(R4>=Z3,"G3","")))))) ->  | AF4: =C4 ->  | AG4: =IF(F4="","",IF(LEFT(I4,1)="D",0,VLOOKUP(E4,$AQ$4:$AR$40,2,FALSE))) ->  | AH4: =D4 ->  | AI4: =IF(O4="","",IF(LEFT(R4,1)="D",0,VLOOKUP(N4,$AQ$4:$AS$40,3,FALSE))) ->  | AJ4: 4 | AL4: ='Match Day'!B4 -> 1 | AQ4: Posn | AR4: Points | AS4: Points
B5: =VLOOKUP(A4,Handbook!$A$4:$AK$24,37,FALSE) -> 4 | C5: =IF(F5="","",IF(F5>10,F5/11,F5)) ->  | D5: =IF(O5="","",IF(O5>10,O5/11,O5)) ->  | E5: 2 | G5: =IF($F5="","",HLOOKUP(F5,mens_declare,B6,FALSE)) ->  | H5: =IF($F5="","",VLOOKUP(C5,matchday,2,FALSE)) ->  | J5: =IF(I5="","",IF(AND(AA3="T",I5<I4),"X",IF(AND(AA3="F",I5>I4),"X",""))) ->  | L5: =IF(AA3="T",AB5,AC5) ->  | N5: 2 | P5: =IF($O5="","",HLOOKUP(O5,mens_declare,B6,FALSE)) ->  | S5: =IF(R5="","",IF(AND(AA3="T",R5<R4),"X",IF(AND(AA3="F",R5>R4),"X",""))) ->  | T5: =IF(AA3="T",AD5,AE5) ->  | V5: =IF(AA3="T","",IF(I4>V3,"LR",IF(I4=V3,"=LR",IF(I4>W3,"DR",IF(I4=W3,"=DR",""))))) ->  | AB5: =IF(I5="","",IF(AA3="F","",IF(AA3="T",IF(I5<=X3,"þ",IF(I5<=Y3,"G2",IF(I5<=Z3,"G3","")))))) ->  | AC5: =IF(I5="","",IF(AA3="T","",IF(AA3="F",IF(I5>=X3,"þ",IF(I5>=Y3,"G2",IF(I5>=Z3,"G3","")))))) ->  | AD5: =IF(R5="","",IF(AA3="F","",IF(AA3="T",IF(R5<=X3,"þ",IF(R5<=Y3,"G2",IF(R5<=Z3,"G3","")))))) ->  | AE5: =IF(R5="","",IF(AA3="T","",IF(AA3="F",IF(R5>=X3,"þ",IF(R5>=Y3,"G2",IF(R5>=Z3,"G3","")))))) ->  | AF5: =C5 ->  | AH5: =D5 ->  | AJ5: 5 | AL5: ='Match Day'!B6 -> 2 | AQ5: 1 | AR5: ='Match Day'!C23 -> 10 | AS5: ='Match Day'!D23 -> 8
B6: =VLOOKUP(A4,mens_declare,20,FALSE) -> 3 | E6: 3 | G6: =IF($F6="","",HLOOKUP(F6,mens_declare,B6,FALSE)) ->  | J6: =IF(I6="","",IF(AND(AA3="T",I6<I5),"X",IF(AND(AA3="F",I6>I5),"X",""))) ->  | L6: =IF(AA3="T",AB6,AC6) ->  | N6: 3 | P6: =IF($O6="","",HLOOKUP(O6,mens_declare,B6,FALSE)) ->  | S6: =IF(R6="","",IF(AND(AA3="T",R6<R5),"X",IF(AND(AA3="F",R6>R5),"X",""))) ->  | T6: =IF(AA3="T",AD6,AE6) ->  | AB6: =IF(I6="","",IF(AA3="F","",IF(AA3="T",IF(I6<=X3,"þ",IF(I6<=Y3,"G2",IF(I6<=Z3,"G3","")))))) ->  | AC6: =IF(I6="","",IF(AA3="T","",IF(AA3="F",IF(I6>=X3,"þ",IF(I6>=Y3,"G2",IF(I6>=Z3,"G3","")))))) ->  | AD6: =IF(R6="","",IF(AA3="F","",IF(AA3="T",IF(R6<=X3,"þ",IF(R6<=Y3,"G2",IF(R6<=Z3,"G3","")))))) ->  | AE6: =IF(R6="","",IF(AA3="T","",IF(AA3="F",IF(R6>=X3,"þ",IF(R6>=Y3,"G2",IF(R6>=Z3,"G3","")))))) ->  | AJ6: 6 | AL6: ='Match Day'!B8 -> 3 | AQ6: 2 | AR6: ='Match Day'!C24 -> 8 | AS6: ='Match Day'!D24 -> 6
E7: 4 | G7: =IF($F7="","",HLOOKUP(F7,mens_declare,B6,FALSE)) ->  | J7: =IF(I7="","",IF(AND(AA3="T",I7<I6),"X",IF(AND(AA3="F",I7>I6),"X",""))) ->  | L7: =IF(AA3="T",AB7,AC7) ->  | N7: 4 | P7: =IF($O7="","",HLOOKUP(O7,mens_declare,B6,FALSE)) ->  | S7: =IF(R7="","",IF(AND(AA3="T",R7<R6),"X",IF(AND(AA3="F",R7>R6),"X",""))) ->  | T7: =IF(AA3="T",AD7,AE7) ->  | AB7: =IF(I7="","",IF(AA3="F","",IF(AA3="T",IF(I7<=X3,"þ",IF(I7<=Y3,"G2",IF(I7<=Z3,"G3","")))))) ->  | AC7: =IF(I7="","",IF(AA3="T","",IF(AA3="F",IF(I7>=X3,"þ",IF(I7>=Y3,"G2",IF(I7>=Z3,"G3","")))))) ->  | AD7: =IF(R7="","",IF(AA3="F","",IF(AA3="T",IF(R7<=X3,"þ",IF(R7<=Y3,"G2",IF(R7<=Z3,"G3","")))))) ->  | AE7: =IF(R7="","",IF(AA3="T","",IF(AA3="F",IF(R7>=X3,"þ",IF(R7>=Y3,"G2",IF(R7>=Z3,"G3","")))))) ->  | AJ7: 7 | AL7: ='Match Day'!B10 -> 4 | AQ7: 3 | AR7: ='Match Day'!C25 -> 7 | AS7: ='Match Day'!D25 -> 5
E8: 5 | G8: =IF($F8="","",HLOOKUP(F8,mens_declare,B6,FALSE)) ->  | J8: =IF(I8="","",IF(AND(AA3="T",I8<I7),"X",IF(AND(AA3="F",I8>I7),"X",""))) ->  | L8: =IF(AA3="T",AB8,AC8) ->  | N8: 5 | P8: =IF($O8="","",HLOOKUP(O8,mens_declare,B6,FALSE)) ->  | S8: =IF(R8="","",IF(AND(AA3="T",R8<R7),"X",IF(AND(AA3="F",R8>R7),"X",""))) ->  | T8: =IF(AA3="T",AD8,AE8) ->  | AB8: =IF(I8="","",IF(AA3="F","",IF(AA3="T",IF(I8<=X3,"þ",IF(I8<=Y3,"G2",IF(I8<=Z3,"G3","")))))) ->  | AC8: =IF(I8="","",IF(AA3="T","",IF(AA3="F",IF(I8>=X3,"þ",IF(I8>=Y3,"G2",IF(I8>=Z3,"G3","")))))) ->  | AD8: =IF(R8="","",IF(AA3="F","",IF(AA3="T",IF(R8<=X3,"þ",IF(R8<=Y3,"G2",IF(R8<=Z3,"G3","")))))) ->  | AE8: =IF(R8="","",IF(AA3="T","",IF(AA3="F",IF(R8>=X3,"þ",IF(R8>=Y3,"G2",IF(R8>=Z3,"G3","")))))) ->  | AJ8: 8 | AL8: ='Match Day'!B12 -> 5 | AQ8: 4 | AR8: ='Match Day'!C26 -> 6 | AS8: ='Match Day'!D26 -> 4
E9: 6 | G9: =IF($F9="","",HLOOKUP(F9,mens_declare,B6,FALSE)) ->  | J9: =IF(I9="","",IF(AND(AA3="T",I9<I8),"X",IF(AND(AA3="F",I9>I8),"X",""))) ->  | L9: =IF(AA3="T",AB9,AC9) ->  | N9: 6 | P9: =IF($O9="","",HLOOKUP(O9,mens_declare,B6,FALSE)) ->  | S9: =IF(R9="","",IF(AND(AA3="T",R9<R8),"X",IF(AND(AA3="F",R9>R8),"X",""))) ->  | T9: =IF(AA3="T",AD9,AE9) ->  | AB9: =IF(I9="","",IF(AA3="F","",IF(AA3="T",IF(I9<=X3,"þ",IF(I9<=Y3,"G2",IF(I9<=Z3,"G3","")))))) ->  | AC9: =IF(I9="","",IF(AA3="T","",IF(AA3="F",IF(I9>=X3,"þ",IF(I9>=Y3,"G2",IF(I9>=Z3,"G3","")))))) ->  | AD9: =IF(R9="","",IF(AA3="F","",IF(AA3="T",IF(R9<=X3,"þ",IF(R9<=Y3,"G2",IF(R9<=Z3,"G3","")))))) ->  | AE9: =IF(R9="","",IF(AA3="T","",IF(AA3="F",IF(R9>=X3,"þ",IF(R9>=Y3,"G2",IF(R9>=Z3,"G3","")))))) ->  | AJ9: 9 | AL9: ='Match Day'!B14 -> 6 | AQ9: 5 | AR9: ='Match Day'!C27 -> 5 | AS9: ='Match Day'!D27 -> 3
E10: 7 | G10: =IF($F10="","",HLOOKUP(F10,mens_declare,B6,FALSE)) ->  | J10: =IF(I10="","",IF(AND(AA3="T",I10<I9),"X",IF(AND(AA3="F",I10>I9),"X",""))) ->  | L10: =IF(AA3="T",AB10,AC10) ->  | N10: 7 | P10: =IF($O10="","",HLOOKUP(O10,mens_declare,B6,FALSE)) ->  | S10: =IF(R10="","",IF(AND(AA3="T",R10<R9),"X",IF(AND(AA3="F",R10>R9),"X",""))) ->  | T10: =IF(AA3="T",AD10,AE10) ->  | AB10: =IF(I10="","",IF(AA3="F","",IF(AA3="T",IF(I10<=X3,"þ",IF(I10<=Y3,"G2",IF(I10<=Z3,"G3","")))))) ->  | AC10: =IF(I10="","",IF(AA3="T","",IF(AA3="F",IF(I10>=X3,"þ",IF(I10>=Y3,"G2",IF(I10>=Z3,"G3","")))))) ->  | AD10: =IF(R10="","",IF(AA3="F","",IF(AA3="T",IF(R10<=X3,"þ",IF(R10<=Y3,"G2",IF(R10<=Z3,"G3","")))))) ->  | AE10: =IF(R10="","",IF(AA3="T","",IF(AA3="F",IF(R10>=X3,"þ",IF(R10>=Y3,"G2",IF(R10>=Z3,"G3","")))))) ->  | AJ10: 10 | AL10: ='Match Day'!B16 -> 7 | AQ10: 6 | AR10: ='Match Day'!C28 -> 4 | AS10: ='Match Day'!D28 -> 2
E11: 8 | G11: =IF($F11="","",HLOOKUP(F11,mens_declare,B6,FALSE)) ->  | J11: =IF(I11="","",IF(AND(AA3="T",I11<I10),"X",IF(AND(AA3="F",I11>I10),"X",""))) ->  | L11: =IF(AA3="T",AB11,AC11) ->  | N11: 8 | P11: =IF($O11="","",HLOOKUP(O11,mens_declare,B6,FALSE)) ->  | S11: =IF(R11="","",IF(AND(AA3="T",R11<R10),"X",IF(AND(AA3="F",R11>R10),"X",""))) ->  | T11: =IF(AA3="T",AD11,AE11) ->  | AB11: =IF(I11="","",IF(AA3="F","",IF(AA3="T",IF(I11<=X3,"þ",IF(I11<=Y3,"G2",IF(I11<=Z3,"G3","")))))) ->  | AC11: =IF(I11="","",IF(AA3="T","",IF(AA3="F",IF(I11>=X3,"þ",IF(I11>=Y3,"G2",IF(I11>=Z3,"G3","")))))) ->  | AD11: =IF(R11="","",IF(AA3="F","",IF(AA3="T",IF(R11<=X3,"þ",IF(R11<=Y3,"G2",IF(R11<=Z3,"G3","")))))) ->  | AE11: =IF(R11="","",IF(AA3="T","",IF(AA3="F",IF(R11>=X3,"þ",IF(R11>=Y3,"G2",IF(R11>=Z3,"G3","")))))) ->  | AJ11: 11 | AL11: ='Match Day'!B18 -> 8 | AQ11: 7 | AR11: ='Match Day'!C29 -> 3 | AS11: ='Match Day'!D29 -> 1
AJ12: 12 | AL12: =AL4*11 -> 11 | AQ12: 8 | AR12: ='Match Day'!C30 -> 0 | AS12: ='Match Day'!D30 -> 0 | AT12: =SUM(AR5:AR12) -> 43 | AU12: =SUM(AS5:AS12) -> 29
E13: =CONCATENATE(VLOOKUP(A14,mens_handbook,3,FALSE)," A") -> Men's 200m A | H13: =IF(A14="","",IF(VLOOKUP(A14,Handbook!$A$4:$AI$24,35,FALSE)="Y","Wind=","")) -> Wind= | O13: =CONCATENATE(VLOOKUP(A14,mens_handbook,3,FALSE)," B") -> Men's 200m B | P13: =CONCATENATE(VLOOKUP(M14,Handbook!$A$4:$C$24,3,FALSE)," A") ->  | Q13: =H13 -> Wind= | V13: =IF($A14="","",VLOOKUP($A14,Handbook!$A$4:$V$24,21,FALSE)) -> 21 | W13: =IF($A14="","",VLOOKUP($A14,Handbook!$A$4:$V$24,22,FALSE)) -> 21 | X13: =IF($A14="","",VLOOKUP($A14,Handbook!$A$4:$W$24,23,FALSE)) -> 23.4 | Y13: =IF($A14="","",VLOOKUP($A14,Handbook!$A$4:$X$24,24,FALSE)) -> 23 | Z13: =IF($A14="","",VLOOKUP($A14,Handbook!$A$4:$Y$24,25,FALSE)) -> 23 | AA13: =IF($A14="","",VLOOKUP($A14,Handbook!$A$4:$AH$24,34,FALSE)) -> T | AJ13: 13 | AL13: =AL5*11 -> 22 | AQ13: 1= | AR13: =SUM($AR$5:AR6)/2 -> 9 | AS13: =SUM($AS$5:AS6)/2 -> 7
A14: 7 | C14: =IF(F14="","",IF(F14>10,F14/11,F14)) ->  | D14: =IF(O14="","",IF(O14>10,O14/11,O14)) ->  | E14: 1 | G14: =IF($F14="","",IF($F14>90,VLOOKUP(F14,eventcodes,2,FALSE),HLOOKUP(F14,mens_declare,B16,FALSE))) ->  | H14: =IF($F14="","",IF($F14>90,"",VLOOKUP(C14,matchday,2,FALSE))) ->  | J14: =IF(I14="","",IF(AA13="T",V14,V15)) ->  | L14: =IF(AA13="T",AB14,AC14) ->  | N14: 1 | P14: =IF($O14="","",HLOOKUP(O14,mens_declare,B16,FALSE)) ->  | Q14: =IF($O14="","",VLOOKUP(D14,matchday,2,FALSE)) ->  | T14: =IF(AA13="T",AD14,AE14) ->  | V14: =IF(AA13="F","",IF(I14<V13,"LR",IF(I14=V13,"=LR",IF(I14<W13,"DR",IF(I14=W13,"=DR",""))))) -> LR | AB14: =IF(I14="","",IF(AA13="F","",IF(AA13="T",IF(I14<=X13,"þ",IF(I14<=Y13,"G2",IF(I14<=Z13,"G3","")))))) ->  | AC14: =IF(I14="","",IF(AA13="T","",IF(AA13="F",IF(I14>=X13,"þ",IF(I14>=Y13,"G2",IF(I14>=Z13,"G3","")))))) ->  | AD14: =IF(R14="","",IF(AA13="F","",IF(AA13="T",IF(R14<=X13,"þ",IF(R14<=Y13,"G2",IF(R14<=Z13,"G3","")))))) ->  | AE14: =IF(R14="","",IF(AA13="T","",IF(AA13="F",IF(R14>=X13,"þ",IF(R14>=Y13,"G2",IF(R14>=Z13,"G3","")))))) ->  | AF14: =C14 ->  | AG14: =IF(F14="","",IF(LEFT(I14,1)="D",0,VLOOKUP(E14,$AQ$4:$AR$40,2,FALSE))) ->  | AH14: =D14 ->  | AI14: =IF(O14="","",IF(LEFT(R14,1)="D",0,VLOOKUP(N14,$AQ$4:$AS$40,3,FALSE))) ->  | AJ14: 14 | AL14: 33 | AQ14: 1== | AR14: =SUM($AR$5:AR7)/3 -> 8.333333333 | AS14: =SUM($AS$5:AS7)/3 -> 6.333333333
B15: =VLOOKUP(A14,Handbook!$A$4:$AK$24,37,FALSE) -> 8 | C15: =IF(F15="","",IF(F15>10,F15/11,F15)) ->  | D15: =IF(O15="","",IF(O15>10,O15/11,O15)) ->  | E15: 2 | G15: =IF($F15="","",HLOOKUP(F15,mens_declare,B16,FALSE)) ->  | H15: =IF($F15="","",VLOOKUP(C15,matchday,2,FALSE)) ->  | J15: =IF(I15="","",IF(AND(AA13="T",I15<I14),"X",IF(AND(AA13="F",I15>I14),"X",""))) ->  | L15: =IF(AA13="T",AB15,AC15) ->  | N15: 2 | P15: =IF($O15="","",HLOOKUP(O15,mens_declare,B16,FALSE)) ->  | S15: =IF(R15="","",IF(AND(AA13="T",R15<R14),"X",IF(AND(AA13="F",R15>R14),"X",""))) ->  | T15: =IF(AA13="T",AD15,AE15) ->  | V15: =IF(AA13="T","",IF(I14>V13,"LR",IF(I14=V13,"=LR",IF(I14>W13,"DR",IF(I14=W13,"=DR",""))))) ->  | AB15: =IF(I15="","",IF(AA13="F","",IF(AA13="T",IF(I15<=X13,"þ",IF(I15<=Y13,"G2",IF(I15<=Z13,"G3","")))))) ->  | AC15: =IF(I15="","",IF(AA13="T","",IF(AA13="F",IF(I15>=X13,"þ",IF(I15>=Y13,"G2",IF(I15>=Z13,"G3","")))))) ->  | AD15: =IF(R15="","",IF(AA13="F","",IF(AA13="T",IF(R15<=X13,"þ",IF(R15<=Y13,"G2",IF(R15<=Z13,"G3","")))))) ->  | AE15: =IF(R15="","",IF(AA13="T","",IF(AA13="F",IF(R15>=X13,"þ",IF(R15>=Y13,"G2",IF(R15>=Z13,"G3","")))))) ->  | AF15: =C15 ->  | AH15: =D15 ->  | AJ15: 15 | AL15: 44 | AQ15: 1=== | AR15: =SUM($AR$5:AR8)/4 -> 7.75 | AS15: =SUM($AS$5:AS8)/4 -> 5.75
B16: =VLOOKUP(A14,mens_declare,20,FALSE) -> 4 | E16: 3 | G16: =IF($F16="","",HLOOKUP(F16,mens_declare,B16,FALSE)) ->  | J16: =IF(I16="","",IF(AND(AA13="T",I16<I15),"X",IF(AND(AA13="F",I16>I15),"X",""))) ->  | L16: =IF(AA13="T",AB16,AC16) ->  | N16: 3 | P16: =IF($O16="","",HLOOKUP(O16,mens_declare,B16,FALSE)) ->  | S16: =IF(R16="","",IF(AND(AA13="T",R16<R15),"X",IF(AND(AA13="F",R16>R15),"X",""))) ->  | T16: =IF(AA13="T",AD16,AE16) ->  | AB16: =IF(I16="","",IF(AA13="F","",IF(AA13="T",IF(I16<=X13,"þ",IF(I16<=Y13,"G2",IF(I16<=Z13,"G3","")))))) ->  | AC16: =IF(I16="","",IF(AA13="T","",IF(AA13="F",IF(I16>=X13,"þ",IF(I16>=Y13,"G2",IF(I16>=Z13,"G3","")))))) ->  | AD16: =IF(R16="","",IF(AA13="F","",IF(AA13="T",IF(R16<=X13,"þ",IF(R16<=Y13,"G2",IF(R16<=Z13,"G3","")))))) ->  | AE16: =IF(R16="","",IF(AA13="T","",IF(AA13="F",IF(R16>=X13,"þ",IF(R16>=Y13,"G2",IF(R16>=Z13,"G3","")))))) ->  | AJ16: 16 | AL16: 55 | AQ16: 1==== | AR16: =SUM($AR$5:AR9)/5 -> 7.2 | AS16: =SUM($AS$5:AS9)/5 -> 5.2
E17: 4 | G17: =IF($F17="","",HLOOKUP(F17,mens_declare,B16,FALSE)) ->  | J17: =IF(I17="","",IF(AND(AA13="T",I17<I16),"X",IF(AND(AA13="F",I17>I16),"X",""))) ->  | L17: =IF(AA13="T",AB17,AC17) ->  | N17: 4 | P17: =IF($O17="","",HLOOKUP(O17,mens_declare,B16,FALSE)) ->  | S17: =IF(R17="","",IF(AND(AA13="T",R17<R16),"X",IF(AND(AA13="F",R17>R16),"X",""))) ->  | T17: =IF(AA13="T",AD17,AE17) ->  | AB17: =IF(I17="","",IF(AA13="F","",IF(AA13="T",IF(I17<=X13,"þ",IF(I17<=Y13,"G2",IF(I17<=Z13,"G3","")))))) ->  | AC17: =IF(I17="","",IF(AA13="T","",IF(AA13="F",IF(I17>=X13,"þ",IF(I17>=Y13,"G2",IF(I17>=Z13,"G3","")))))) ->  | AD17: =IF(R17="","",IF(AA13="F","",IF(AA13="T",IF(R17<=X13,"þ",IF(R17<=Y13,"G2",IF(R17<=Z13,"G3","")))))) ->  | AE17: =IF(R17="","",IF(AA13="T","",IF(AA13="F",IF(R17>=X13,"þ",IF(R17>=Y13,"G2",IF(R17>=Z13,"G3","")))))) ->  | AJ17: 17 | AL17: 66 | AQ17: 1===== | AR17: =SUM($AR$5:AR10)/6 -> 6.666666667 | AS17: =SUM($AS$5:AS10)/6 -> 4.666666667
E18: 5 | G18: =IF($F18="","",HLOOKUP(F18,mens_declare,B16,FALSE)) ->  | J18: =IF(I18="","",IF(AND(AA13="T",I18<I17),"X",IF(AND(AA13="F",I18>I17),"X",""))) ->  | L18: =IF(AA13="T",AB18,AC18) ->  | N18: 5 | P18: =IF($O18="","",HLOOKUP(O18,mens_declare,B16,FALSE)) ->  | S18: =IF(R18="","",IF(AND(AA13="T",R18<R17),"X",IF(AND(AA13="F",R18>R17),"X",""))) ->  | T18: =IF(AA13="T",AD18,AE18) ->  | AB18: =IF(I18="","",IF(AA13="F","",IF(AA13="T",IF(I18<=X13,"þ",IF(I18<=Y13,"G2",IF(I18<=Z13,"G3","")))))) ->  | AC18: =IF(I18="","",IF(AA13="T","",IF(AA13="F",IF(I18>=X13,"þ",IF(I18>=Y13,"G2",IF(I18>=Z13,"G3","")))))) ->  | AD18: =IF(R18="","",IF(AA13="F","",IF(AA13="T",IF(R18<=X13,"þ",IF(R18<=Y13,"G2",IF(R18<=Z13,"G3","")))))) ->  | AE18: =IF(R18="","",IF(AA13="T","",IF(AA13="F",IF(R18>=X13,"þ",IF(R18>=Y13,"G2",IF(R18>=Z13,"G3","")))))) ->  | AJ18: 18 | AL18: 77 | AQ18: 1====== | AR18: =SUM($AR$5:AR11)/7 -> 6.142857143 | AS18: =SUM($AS$5:AS11)/7 -> 4.142857143
E19: 6 | G19: =IF($F19="","",HLOOKUP(F19,mens_declare,B16,FALSE)) ->  | J19: =IF(I19="","",IF(AND(AA13="T",I19<I18),"X",IF(AND(AA13="F",I19>I18),"X",""))) ->  | L19: =IF(AA13="T",AB19,AC19) ->  | N19: 6 | P19: =IF($O19="","",HLOOKUP(O19,mens_declare,B16,FALSE)) ->  | S19: =IF(R19="","",IF(AND(AA13="T",R19<R18),"X",IF(AND(AA13="F",R19>R18),"X",""))) ->  | T19: =IF(AA13="T",AD19,AE19) ->  | AB19: =IF(I19="","",IF(AA13="F","",IF(AA13="T",IF(I19<=X13,"þ",IF(I19<=Y13,"G2",IF(I19<=Z13,"G3","")))))) ->  | AC19: =IF(I19="","",IF(AA13="T","",IF(AA13="F",IF(I19>=X13,"þ",IF(I19>=Y13,"G2",IF(I19>=Z13,"G3","")))))) ->  | AD19: =IF(R19="","",IF(AA13="F","",IF(AA13="T",IF(R19<=X13,"þ",IF(R19<=Y13,"G2",IF(R19<=Z13,"G3","")))))) ->  | AE19: =IF(R19="","",IF(AA13="T","",IF(AA13="F",IF(R19>=X13,"þ",IF(R19>=Y13,"G2",IF(R19>=Z13,"G3","")))))) ->  | AJ19: 19 | AL19: 88 | AQ19: 1======= | AR19: =SUM($AR$5:AR12)/8 -> 5.375 | AS19: =SUM($AS$5:AS12)/8 -> 3.625
E20: 7 | G20: =IF($F20="","",HLOOKUP(F20,mens_declare,B16,FALSE)) ->  | J20: =IF(I20="","",IF(AND(AA13="T",I20<I19),"X",IF(AND(AA13="F",I20>I19),"X",""))) ->  | L20: =IF(AA13="T",AB20,AC20) ->  | N20: 7 | P20: =IF($O20="","",HLOOKUP(O20,mens_declare,B16,FALSE)) ->  | S20: =IF(R20="","",IF(AND(AA13="T",R20<R19),"X",IF(AND(AA13="F",R20>R19),"X",""))) ->  | T20: =IF(AA13="T",AD20,AE20) ->  | AB20: =IF(I20="","",IF(AA13="F","",IF(AA13="T",IF(I20<=X13,"þ",IF(I20<=Y13,"G2",IF(I20<=Z13,"G3","")))))) ->  | AC20: =IF(I20="","",IF(AA13="T","",IF(AA13="F",IF(I20>=X13,"þ",IF(I20>=Y13,"G2",IF(I20>=Z13,"G3","")))))) ->  | AD20: =IF(R20="","",IF(AA13="F","",IF(AA13="T",IF(R20<=X13,"þ",IF(R20<=Y13,"G2",IF(R20<=Z13,"G3","")))))) ->  | AE20: =IF(R20="","",IF(AA13="T","",IF(AA13="F",IF(R20>=X13,"þ",IF(R20>=Y13,"G2",IF(R20>=Z13,"G3","")))))) ->  | AJ20: 20 | AL20: 99 | AQ20: 2= | AR20: =SUM($AR$6:AR7)/2 -> 7.5 | AS20: =SUM($AS$6:AS7)/2 -> 5.5
E21: 8 | G21: =IF($F21="","",HLOOKUP(F21,mens_declare,B16,FALSE)) ->  | J21: =IF(I21="","",IF(AND(AA13="T",I21<I20),"X",IF(AND(AA13="F",I21>I20),"X",""))) ->  | L21: =IF(AA13="T",AB21,AC21) ->  | N21: 8 | P21: =IF($O21="","",HLOOKUP(O21,mens_declare,B16,FALSE)) ->  | S21: =IF(R21="","",IF(AND(AA13="T",R21<R20),"X",IF(AND(AA13="F",R21>R20),"X",""))) ->  | T21: =IF(AA13="T",AD21,AE21) ->  | AB21: =IF(I21="","",IF(AA13="F","",IF(AA13="T",IF(I21<=X13,"þ",IF(I21<=Y13,"G2",IF(I21<=Z13,"G3","")))))) ->  | AC21: =IF(I21="","",IF(AA13="T","",IF(AA13="F",IF(I21>=X13,"þ",IF(I21>=Y13,"G2",IF(I21>=Z13,"G3","")))))) ->  | AD21: =IF(R21="","",IF(AA13="F","",IF(AA13="T",IF(R21<=X13,"þ",IF(R21<=Y13,"G2",IF(R21<=Z13,"G3","")))))) ->  | AE21: =IF(R21="","",IF(AA13="T","",IF(AA13="F",IF(R21>=X13,"þ",IF(R21>=Y13,"G2",IF(R21>=Z13,"G3","")))))) ->  | AJ21: 21 | AL21: 97 | AQ21: 2== | AR21: =SUM($AR$6:AR8)/3 -> 7 | AS21: =SUM($AS$6:AS8)/3 -> 5
AJ22: 22 | AL22: 98 | AQ22: 2=== | AR22: =SUM($AR$6:AR9)/4 -> 6.5 | AS22: =SUM($AS$6:AS9)/4 -> 4.5
E23: =CONCATENATE(VLOOKUP(A24,mens_handbook,3,FALSE)," A") -> Men's 400m A | H23: =IF(A24="","",IF(VLOOKUP(A24,Handbook!$A$4:$AI$24,35,FALSE)="Y","Wind=","")) ->  | O23: =CONCATENATE(VLOOKUP(A24,mens_handbook,3,FALSE)," B") -> Men's 400m B | Q23: =H23 ->  | V23: =IF($A24="","",VLOOKUP($A24,Handbook!$A$4:$V$24,21,FALSE)) -> 46.7 | W23: =IF($A24="","",VLOOKUP($A24,Handbook!$A$4:$V$24,22,FALSE)) -> 46.7 | X23: =IF($A24="","",VLOOKUP($A24,Handbook!$A$4:$W$24,23,FALSE)) -> 53 | Y23: =IF($A24="","",VLOOKUP($A24,Handbook!$A$4:$X$24,24,FALSE)) -> 51 | Z23: =IF($A24="","",VLOOKUP($A24,Handbook!$A$4:$Y$24,25,FALSE)) -> 51 | AA23: =IF($A24="","",VLOOKUP($A24,Handbook!$A$4:$AH$24,34,FALSE)) -> T | AJ23: 23 | AL23: 96 | AQ23: 2==== | AR23: =SUM($AR$6:AR10)/5 -> 6 | AS23: =SUM($AS$6:AS10)/5 -> 4
A24: 4 | C24: =IF(F24="","",IF(F24>10,F24/11,F24)) ->  | D24: =IF(O24="","",IF(O24>10,O24/11,O24)) ->  | E24: 1 | G24: =IF($F24="","",IF($F24>90,VLOOKUP(F24,eventcodes,2,FALSE),HLOOKUP(F24,mens_declare,B26,FALSE))) ->  | H24: =IF($F24="","",IF($F24>90,"",VLOOKUP(C24,matchday,2,FALSE))) ->  | J24: =IF(I24="","",IF(AA23="T",V24,V25)) ->  | L24: =IF(AA23="T",AB24,AC24) ->  | N24: 1 | P24: =IF($O24="","",HLOOKUP(O24,mens_declare,B26,FALSE)) ->  | Q24: =IF($O24="","",VLOOKUP(D24,matchday,2,FALSE)) ->  | T24: =IF(AA23="T",AD24,AE24) ->  | V24: =IF(AA23="F","",IF(I24<V23,"LR",IF(I24=V23,"=LR",IF(I24<W23,"DR",IF(I24=W23,"=DR",""))))) -> LR | AB24: =IF(I24="","",IF(AA23="F","",IF(AA23="T",IF(I24<=X23,"þ",IF(I24<=Y23,"G2",IF(I24<=Z23,"G3","")))))) ->  | AC24: =IF(I24="","",IF(AA23="T","",IF(AA23="F",IF(I24>=X23,"þ",IF(I24>=Y23,"G2",IF(I24>=Z23,"G3","")))))) ->  | AD24: =IF(R24="","",IF(AA23="F","",IF(AA23="T",IF(R24<=X23,"þ",IF(R24<=Y23,"G2",IF(R24<=Z23,"G3","")))))) ->  | AE24: =IF(R24="","",IF(AA23="T","",IF(AA23="F",IF(R24>=X23,"þ",IF(R24>=Y23,"G2",IF(R24>=Z23,"G3","")))))) ->  | AF24: =C24 ->  | AG24: =IF(F24="","",IF(LEFT(I24,1)="D",0,VLOOKUP(E24,$AQ$4:$AR$40,2,FALSE))) ->  | AH24: =D24 ->  | AI24: =IF(O24="","",IF(LEFT(R24,1)="D",0,VLOOKUP(N24,$AQ$4:$AS$40,3,FALSE))) ->  | AJ24: 24 | AL24: Events Not Held Codes | AQ24: 2===== | AR24: =SUM($AR$6:AR11)/6 -> 5.5 | AS24: =SUM($AS$6:AS11)/6 -> 3.5
B25: =VLOOKUP(A24,Handbook!$A$4:$AK$24,37,FALSE) -> 5 | C25: =IF(F25="","",IF(F25>10,F25/11,F25)) ->  | D25: =IF(O25="","",IF(O25>10,O25/11,O25)) ->  | E25: 2 | G25: =IF($F25="","",HLOOKUP(F25,mens_declare,B26,FALSE)) ->  | H25: =IF($F25="","",VLOOKUP(C25,matchday,2,FALSE)) ->  | J25: =IF(I25="","",IF(AND(AA23="T",I25<I24),"X",IF(AND(AA23="F",I25>I24),"X",""))) ->  | L25: =IF(AA23="T",AB25,AC25) ->  | N25: 2 | P25: =IF($O25="","",HLOOKUP(O25,mens_declare,B26,FALSE)) ->  | S25: =IF(R25="","",IF(AND(AA23="T",R25<R24),"X",IF(AND(AA23="F",R25>R24),"X",""))) ->  | T25: =IF(AA23="T",AD25,AE25) ->  | V25: =IF(AA23="T","",IF(I24>V23,"LR",IF(I24=V23,"=LR",IF(I24>W23,"DR",IF(I24=W23,"=DR",""))))) ->  | AB25: =IF(I25="","",IF(AA23="F","",IF(AA23="T",IF(I25<=X23,"þ",IF(I25<=Y23,"G2",IF(I25<=Z23,"G3","")))))) ->  | AC25: =IF(I25="","",IF(AA23="T","",IF(AA23="F",IF(I25>=X23,"þ",IF(I25>=Y23,"G2",IF(I25>=Z23,"G3","")))))) ->  | AD25: =IF(R25="","",IF(AA23="F","",IF(AA23="T",IF(R25<=X23,"þ",IF(R25<=Y23,"G2",IF(R25<=Z23,"G3","")))))) ->  | AE25: =IF(R25="","",IF(AA23="T","",IF(AA23="F",IF(R25>=X23,"þ",IF(R25>=Y23,"G2",IF(R25>=Z23,"G3","")))))) ->  | AF25: =C25 ->  | AH25: =D25 ->  | AJ25: 25 | AK25: 97 | AL25: Open Heights Not Cleared | AQ25: 2====== | AR25: =SUM($AR$6:AR12)/7 -> 4.714285714 | AS25: =SUM($AS$6:AS12)/7 -> 3
B26: =VLOOKUP(A24,mens_declare,20,FALSE) -> 5 | E26: 3 | G26: =IF($F26="","",HLOOKUP(F26,mens_declare,B26,FALSE)) ->  | J26: =IF(I26="","",IF(AND(AA23="T",I26<I25),"X",IF(AND(AA23="F",I26>I25),"X",""))) ->  | L26: =IF(AA23="T",AB26,AC26) ->  | N26: 3 | P26: =IF($O26="","",HLOOKUP(O26,mens_declare,B26,FALSE)) ->  | S26: =IF(R26="","",IF(AND(AA23="T",R26<R25),"X",IF(AND(AA23="F",R26>R25),"X",""))) ->  | T26: =IF(AA23="T",AD26,AE26) ->  | AB26: =IF(I26="","",IF(AA23="F","",IF(AA23="T",IF(I26<=X23,"þ",IF(I26<=Y23,"G2",IF(I26<=Z23,"G3","")))))) ->  | AC26: =IF(I26="","",IF(AA23="T","",IF(AA23="F",IF(I26>=X23,"þ",IF(I26>=Y23,"G2",IF(I26>=Z23,"G3","")))))) ->  | AD26: =IF(R26="","",IF(AA23="F","",IF(AA23="T",IF(R26<=X23,"þ",IF(R26<=Y23,"G2",IF(R26<=Z23,"G3","")))))) ->  | AE26: =IF(R26="","",IF(AA23="T","",IF(AA23="F",IF(R26>=X23,"þ",IF(R26>=Y23,"G2",IF(R26>=Z23,"G3","")))))) ->  | AJ26: 26 | AK26: 98 | AL26: No Valid Performances | AQ26: 3= | AR26: =SUM($AR$7:AR8)/2 -> 6.5 | AS26: =SUM($AS$7:AS8)/2 -> 4.5
E27: 4 | G27: =IF($F27="","",HLOOKUP(F27,mens_declare,B26,FALSE)) ->  | J27: =IF(I27="","",IF(AND(AA23="T",I27<I26),"X",IF(AND(AA23="F",I27>I26),"X",""))) ->  | L27: =IF(AA23="T",AB27,AC27) ->  | N27: 4 | P27: =IF($O27="","",HLOOKUP(O27,mens_declare,B26,FALSE)) ->  | S27: =IF(R27="","",IF(AND(AA23="T",R27<R26),"X",IF(AND(AA23="F",R27>R26),"X",""))) ->  | T27: =IF(AA23="T",AD27,AE27) ->  | AB27: =IF(I27="","",IF(AA23="F","",IF(AA23="T",IF(I27<=X23,"þ",IF(I27<=Y23,"G2",IF(I27<=Z23,"G3","")))))) ->  | AC27: =IF(I27="","",IF(AA23="T","",IF(AA23="F",IF(I27>=X23,"þ",IF(I27>=Y23,"G2",IF(I27>=Z23,"G3","")))))) ->  | AD27: =IF(R27="","",IF(AA23="F","",IF(AA23="T",IF(R27<=X23,"þ",IF(R27<=Y23,"G2",IF(R27<=Z23,"G3","")))))) ->  | AE27: =IF(R27="","",IF(AA23="T","",IF(AA23="F",IF(R27>=X23,"þ",IF(R27>=Y23,"G2",IF(R27>=Z23,"G3","")))))) ->  | AJ27: 27 | AK27: 99 | AL27: Event Cancelled | AQ27: 3== | AR27: =SUM($AR$7:AR9)/3 -> 6 | AS27: =SUM($AS$7:AS9)/3 -> 4
E28: 5 | G28: =IF($F28="","",HLOOKUP(F28,mens_declare,B26,FALSE)) ->  | J28: =IF(I28="","",IF(AND(AA23="T",I28<I27),"X",IF(AND(AA23="F",I28>I27),"X",""))) ->  | L28: =IF(AA23="T",AB28,AC28) ->  | N28: 5 | P28: =IF($O28="","",HLOOKUP(O28,mens_declare,B26,FALSE)) ->  | S28: =IF(R28="","",IF(AND(AA23="T",R28<R27),"X",IF(AND(AA23="F",R28>R27),"X",""))) ->  | T28: =IF(AA23="T",AD28,AE28) ->  | AB28: =IF(I28="","",IF(AA23="F","",IF(AA23="T",IF(I28<=X23,"þ",IF(I28<=Y23,"G2",IF(I28<=Z23,"G3","")))))) ->  | AC28: =IF(I28="","",IF(AA23="T","",IF(AA23="F",IF(I28>=X23,"þ",IF(I28>=Y23,"G2",IF(I28>=Z23,"G3","")))))) ->  | AD28: =IF(R28="","",IF(AA23="F","",IF(AA23="T",IF(R28<=X23,"þ",IF(R28<=Y23,"G2",IF(R28<=Z23,"G3","")))))) ->  | AE28: =IF(R28="","",IF(AA23="T","",IF(AA23="F",IF(R28>=X23,"þ",IF(R28>=Y23,"G2",IF(R28>=Z23,"G3","")))))) ->  | AJ28: 28 | AK28: 96 | AL28: No Competitors Entered | AQ28: 3=== | AR28: =SUM($AR$7:AR10)/4 -> 5.5 | AS28: =SUM($AS$7:AS10)/4 -> 3.5
E29: 6 | G29: =IF($F29="","",HLOOKUP(F29,mens_declare,B26,FALSE)) ->  | J29: =IF(I29="","",IF(AND(AA23="T",I29<I28),"X",IF(AND(AA23="F",I29>I28),"X",""))) ->  | L29: =IF(AA23="T",AB29,AC29) ->  | N29: 6 | P29: =IF($O29="","",HLOOKUP(O29,mens_declare,B26,FALSE)) ->  | S29: =IF(R29="","",IF(AND(AA23="T",R29<R28),"X",IF(AND(AA23="F",R29>R28),"X",""))) ->  | T29: =IF(AA23="T",AD29,AE29) ->  | AB29: =IF(I29="","",IF(AA23="F","",IF(AA23="T",IF(I29<=X23,"þ",IF(I29<=Y23,"G2",IF(I29<=Z23,"G3","")))))) ->  | AC29: =IF(I29="","",IF(AA23="T","",IF(AA23="F",IF(I29>=X23,"þ",IF(I29>=Y23,"G2",IF(I29>=Z23,"G3","")))))) ->  | AD29: =IF(R29="","",IF(AA23="F","",IF(AA23="T",IF(R29<=X23,"þ",IF(R29<=Y23,"G2",IF(R29<=Z23,"G3","")))))) ->  | AE29: =IF(R29="","",IF(AA23="T","",IF(AA23="F",IF(R29>=X23,"þ",IF(R29>=Y23,"G2",IF(R29>=Z23,"G3","")))))) ->  | AJ29: 29 | AQ29: 3==== | AR29: =SUM($AR$7:AR11)/5 -> 5 | AS29: =SUM($AS$7:AS11)/5 -> 3
E30: 7 | G30: =IF($F30="","",HLOOKUP(F30,mens_declare,B26,FALSE)) ->  | J30: =IF(I30="","",IF(AND(AA23="T",I30<I29),"X",IF(AND(AA23="F",I30>I29),"X",""))) ->  | L30: =IF(AA23="T",AB30,AC30) ->  | N30: 7 | P30: =IF($O30="","",HLOOKUP(O30,mens_declare,B26,FALSE)) ->  | S30: =IF(R30="","",IF(AND(AA23="T",R30<R29),"X",IF(AND(AA23="F",R30>R29),"X",""))) ->  | T30: =IF(AA23="T",AD30,AE30) ->  | AB30: =IF(I30="","",IF(AA23="F","",IF(AA23="T",IF(I30<=X23,"þ",IF(I30<=Y23,"G2",IF(I30<=Z23,"G3","")))))) ->  | AC30: =IF(I30="","",IF(AA23="T","",IF(AA23="F",IF(I30>=X23,"þ",IF(I30>=Y23,"G2",IF(I30>=Z23,"G3","")))))) ->  | AD30: =IF(R30="","",IF(AA23="F","",IF(AA23="T",IF(R30<=X23,"þ",IF(R30<=Y23,"G2",IF(R30<=Z23,"G3","")))))) ->  | AE30: =IF(R30="","",IF(AA23="T","",IF(AA23="F",IF(R30>=X23,"þ",IF(R30>=Y23,"G2",IF(R30>=Z23,"G3","")))))) ->  | AJ30: 30 | AQ30: 3===== | AR30: =SUM($AR$7:AR12)/6 -> 4.166666667 | AS30: =SUM($AS$7:AS12)/6 -> 2.5
E31: 8 | G31: =IF($F31="","",HLOOKUP(F31,mens_declare,B26,FALSE)) ->  | J31: =IF(I31="","",IF(AND(AA23="T",I31<I30),"X",IF(AND(AA23="F",I31>I30),"X",""))) ->  | L31: =IF(AA23="T",AB31,AC31) ->  | N31: 8 | P31: =IF($O31="","",HLOOKUP(O31,mens_declare,B26,FALSE)) ->  | S31: =IF(R31="","",IF(AND(AA23="T",R31<R30),"X",IF(AND(AA23="F",R31>R30),"X",""))) ->  | T31: =IF(AA23="T",AD31,AE31) ->  | AB31: =IF(I31="","",IF(AA23="F","",IF(AA23="T",IF(I31<=X23,"þ",IF(I31<=Y23,"G2",IF(I31<=Z23,"G3","")))))) ->  | AC31: =IF(I31="","",IF(AA23="T","",IF(AA23="F",IF(I31>=X23,"þ",IF(I31>=Y23,"G2",IF(I31>=Z23,"G3","")))))) ->  | AD31: =IF(R31="","",IF(AA23="F","",IF(AA23="T",IF(R31<=X23,"þ",IF(R31<=Y23,"G2",IF(R31<=Z23,"G3","")))))) ->  | AE31: =IF(R31="","",IF(AA23="T","",IF(AA23="F",IF(R31>=X23,"þ",IF(R31>=Y23,"G2",IF(R31>=Z23,"G3","")))))) ->  | AJ31: 31 | AQ31: 4= | AR31: =SUM($AR$8:AR9)/2 -> 5.5 | AS31: =SUM($AS$8:AS9)/2 -> 3.5
AJ32: 32 | AQ32: 4== | AR32: =SUM($AR$8:AR10)/3 -> 5 | AS32: =SUM($AS$8:AS10)/3 -> 3
E33: =CONCATENATE(VLOOKUP(A34,mens_handbook,3,FALSE)," A") -> Men's 800m A | H33: =IF(A34="","",IF(VLOOKUP(A34,Handbook!$A$4:$AI$24,35,FALSE)="Y","Wind=","")) ->  | O33: =CONCATENATE(VLOOKUP(A34,mens_handbook,3,FALSE)," B") -> Men's 800m B | P33: =CONCATENATE(VLOOKUP(M34,Handbook!$A$4:$C$24,3,FALSE)," A") ->  | Q33: =H33 ->  | V33: =IF($A34="","",VLOOKUP($A34,Handbook!$A$4:$V$24,21,FALSE)) -> 00:01:46.100 | W33: =IF($A34="","",VLOOKUP($A34,Handbook!$A$4:$V$24,22,FALSE)) -> 00:01:46.100 | X33: =IF($A34="","",VLOOKUP($A34,Handbook!$A$4:$W$24,23,FALSE)) -> 00:02:04 | Y33: =IF($A34="","",VLOOKUP($A34,Handbook!$A$4:$X$24,24,FALSE)) -> 00:02:00 | Z33: =IF($A34="","",VLOOKUP($A34,Handbook!$A$4:$Y$24,25,FALSE)) -> 00:02:00 | AA33: =IF($A34="","",VLOOKUP($A34,Handbook!$A$4:$AH$24,34,FALSE)) -> T | AJ33: 33 | AQ33: 4=== | AR33: =SUM($AR$8:AR11)/4 -> 4.5 | AS33: =SUM($AS$8:AS11)/4 -> 2.5
A34: 2 | C34: =IF(F34="","",IF(F34>10,F34/11,F34)) ->  | D34: =IF(O34="","",IF(O34>10,O34/11,O34)) ->  | E34: 1 | G34: =IF($F34="","",IF($F34>90,VLOOKUP(F34,eventcodes,2,FALSE),HLOOKUP(F34,mens_declare,B36,FALSE))) ->  | H34: =IF($F34="","",IF($F34>90,"",VLOOKUP(C34,matchday,2,FALSE))) ->  | J34: =IF(I34="","",IF(AA33="T",V34,V35)) ->  | L34: =IF(AA33="T",AB34,AC34) ->  | N34: 1 | P34: =IF($O34="","",HLOOKUP(O34,mens_declare,B36,FALSE)) ->  | Q34: =IF($O34="","",VLOOKUP(D34,matchday,2,FALSE)) ->  | T34: =IF(AA33="T",AD34,AE34) ->  | V34: =IF(AA33="F","",IF(I34<V33,"LR",IF(I34=V33,"=LR",IF(I34<W33,"DR",IF(I34=W33,"=DR",""))))) -> LR | AB34: =IF(I34="","",IF(AA33="F","",IF(AA33="T",IF(I34<=X33,"þ",IF(I34<=Y33,"G2",IF(I34<=Z33,"G3","")))))) ->  | AC34: =IF(I34="","",IF(AA33="T","",IF(AA33="F",IF(I34>=X33,"þ",IF(I34>=Y33,"G2",IF(I34>=Z33,"G3","")))))) ->  | AD34: =IF(R34="","",IF(AA33="F","",IF(AA33="T",IF(R34<=X33,"þ",IF(R34<=Y33,"G2",IF(R34<=Z33,"G3","")))))) ->  | AE34: =IF(R34="","",IF(AA33="T","",IF(AA33="F",IF(R34>=X33,"þ",IF(R34>=Y33,"G2",IF(R34>=Z33,"G3","")))))) ->  | AF34: =C34 ->  | AG34: =IF(F34="","",IF(LEFT(I34,1)="D",0,VLOOKUP(E34,$AQ$4:$AR$40,2,FALSE))) ->  | AH34: =D34 ->  | AI34: =IF(O34="","",IF(LEFT(R34,1)="D",0,VLOOKUP(N34,$AQ$4:$AS$40,3,FALSE))) ->  | AJ34: 34 | AQ34: 4==== | AR34: =SUM($AR$8:AR12)/5 -> 3.6 | AS34: =SUM($AS$8:AS12)/5 -> 2
B35: =VLOOKUP(A34,Handbook!$A$4:$AK$24,37,FALSE) -> 3 | C35: =IF(F35="","",IF(F35>10,F35/11,F35)) ->  | D35: =IF(O35="","",IF(O35>10,O35/11,O35)) ->  | E35: 2 | G35: =IF($F35="","",HLOOKUP(F35,mens_declare,B36,FALSE)) ->  | H35: =IF($F35="","",VLOOKUP(C35,matchday,2,FALSE)) ->  | J35: =IF(I35="","",IF(AND(AA33="T",I35<I34),"X",IF(AND(AA33="F",I35>I34),"X",""))) ->  | L35: =IF(AA33="T",AB35,AC35) ->  | N35: 2 | P35: =IF($O35="","",HLOOKUP(O35,mens_declare,B36,FALSE)) ->  | S35: =IF(R35="","",IF(AND(AA33="T",R35<R34),"X",IF(AND(AA33="F",R35>R34),"X",""))) ->  | T35: =IF(AA33="T",AD35,AE35) ->  | V35: =IF(AA33="T","",IF(I34>V33,"LR",IF(I34=V33,"=LR",IF(I34>W33,"DR",IF(I34=W33,"=DR",""))))) ->  | AB35: =IF(I35="","",IF(AA33="F","",IF(AA33="T",IF(I35<=X33,"þ",IF(I35<=Y33,"G2",IF(I35<=Z33,"G3","")))))) ->  | AC35: =IF(I35="","",IF(AA33="T","",IF(AA33="F",IF(I35>=X33,"þ",IF(I35>=Y33,"G2",IF(I35>=Z33,"G3","")))))) ->  | AD35: =IF(R35="","",IF(AA33="F","",IF(AA33="T",IF(R35<=X33,"þ",IF(R35<=Y33,"G2",IF(R35<=Z33,"G3","")))))) ->  | AE35: =IF(R35="","",IF(AA33="T","",IF(AA33="F",IF(R35>=X33,"þ",IF(R35>=Y33,"G2",IF(R35>=Z33,"G3","")))))) ->  | AF35: =C35 ->  | AH35: =D35 ->  | AJ35: 35 | AQ35: 5= | AR35: =SUM($AR$9:AR10)/2 -> 4.5 | AS35: =SUM($AS$9:AS10)/2 -> 2.5
B36: =VLOOKUP(A34,mens_declare,20,FALSE) -> 6 | E36: 3 | G36: =IF($F36="","",HLOOKUP(F36,mens_declare,B36,FALSE)) ->  | J36: =IF(I36="","",IF(AND(AA33="T",I36<I35),"X",IF(AND(AA33="F",I36>I35),"X",""))) ->  | L36: =IF(AA33="T",AB36,AC36) ->  | N36: 3 | P36: =IF($O36="","",HLOOKUP(O36,mens_declare,B36,FALSE)) ->  | S36: =IF(R36="","",IF(AND(AA33="T",R36<R35),"X",IF(AND(AA33="F",R36>R35),"X",""))) ->  | T36: =IF(AA33="T",AD36,AE36) ->  | AB36: =IF(I36="","",IF(AA33="F","",IF(AA33="T",IF(I36<=X33,"þ",IF(I36<=Y33,"G2",IF(I36<=Z33,"G3","")))))) ->  | AC36: =IF(I36="","",IF(AA33="T","",IF(AA33="F",IF(I36>=X33,"þ",IF(I36>=Y33,"G2",IF(I36>=Z33,"G3","")))))) ->  | AD36: =IF(R36="","",IF(AA33="F","",IF(AA33="T",IF(R36<=X33,"þ",IF(R36<=Y33,"G2",IF(R36<=Z33,"G3","")))))) ->  | AE36: =IF(R36="","",IF(AA33="T","",IF(AA33="F",IF(R36>=X33,"þ",IF(R36>=Y33,"G2",IF(R36>=Z33,"G3","")))))) ->  | AJ36: 36 | AQ36: 5== | AR36: =SUM($AR$9:AR11)/3 -> 4 | AS36: =SUM($AS$9:AS11)/3 -> 2
E37: 4 | G37: =IF($F37="","",HLOOKUP(F37,mens_declare,B36,FALSE)) ->  | J37: =IF(I37="","",IF(AND(AA33="T",I37<I36),"X",IF(AND(AA33="F",I37>I36),"X",""))) ->  | L37: =IF(AA33="T",AB37,AC37) ->  | N37: 4 | P37: =IF($O37="","",HLOOKUP(O37,mens_declare,B36,FALSE)) ->  | S37: =IF(R37="","",IF(AND(AA33="T",R37<R36),"X",IF(AND(AA33="F",R37>R36),"X",""))) ->  | T37: =IF(AA33="T",AD37,AE37) ->  | AB37: =IF(I37="","",IF(AA33="F","",IF(AA33="T",IF(I37<=X33,"þ",IF(I37<=Y33,"G2",IF(I37<=Z33,"G3","")))))) ->  | AC37: =IF(I37="","",IF(AA33="T","",IF(AA33="F",IF(I37>=X33,"þ",IF(I37>=Y33,"G2",IF(I37>=Z33,"G3","")))))) ->  | AD37: =IF(R37="","",IF(AA33="F","",IF(AA33="T",IF(R37<=X33,"þ",IF(R37<=Y33,"G2",IF(R37<=Z33,"G3","")))))) ->  | AE37: =IF(R37="","",IF(AA33="T","",IF(AA33="F",IF(R37>=X33,"þ",IF(R37>=Y33,"G2",IF(R37>=Z33,"G3","")))))) ->  | AJ37: 37 | AQ37: 5=== | AR37: =SUM($AR$9:AR12)/4 -> 3 | AS37: =SUM($AS$9:AS12)/4 -> 1.5
E38: 5 | G38: =IF($F38="","",HLOOKUP(F38,mens_declare,B36,FALSE)) ->  | J38: =IF(I38="","",IF(AND(AA33="T",I38<I37),"X",IF(AND(AA33="F",I38>I37),"X",""))) ->  | L38: =IF(AA33="T",AB38,AC38) ->  | N38: 5 | P38: =IF($O38="","",HLOOKUP(O38,mens_declare,B36,FALSE)) ->  | S38: =IF(R38="","",IF(AND(AA33="T",R38<R37),"X",IF(AND(AA33="F",R38>R37),"X",""))) ->  | T38: =IF(AA33="T",AD38,AE38) ->  | AB38: =IF(I38="","",IF(AA33="F","",IF(AA33="T",IF(I38<=X33,"þ",IF(I38<=Y33,"G2",IF(I38<=Z33,"G3","")))))) ->  | AC38: =IF(I38="","",IF(AA33="T","",IF(AA33="F",IF(I38>=X33,"þ",IF(I38>=Y33,"G2",IF(I38>=Z33,"G3","")))))) ->  | AD38: =IF(R38="","",IF(AA33="F","",IF(AA33="T",IF(R38<=X33,"þ",IF(R38<=Y33,"G2",IF(R38<=Z33,"G3","")))))) ->  | AE38: =IF(R38="","",IF(AA33="T","",IF(AA33="F",IF(R38>=X33,"þ",IF(R38>=Y33,"G2",IF(R38>=Z33,"G3","")))))) ->  | AJ38: 38 | AQ38: 6= | AR38: =SUM($AR$10:AR11)/2 -> 3.5 | AS38: =SUM($AS$10:AS11)/2 -> 1.5
E39: 6 | G39: =IF($F39="","",HLOOKUP(F39,mens_declare,B36,FALSE)) ->  | J39: =IF(I39="","",IF(AND(AA33="T",I39<I38),"X",IF(AND(AA33="F",I39>I38),"X",""))) ->  | L39: =IF(AA33="T",AB39,AC39) ->  | N39: 6 | P39: =IF($O39="","",HLOOKUP(O39,mens_declare,B36,FALSE)) ->  | S39: =IF(R39="","",IF(AND(AA33="T",R39<R38),"X",IF(AND(AA33="F",R39>R38),"X",""))) ->  | T39: =IF(AA33="T",AD39,AE39) ->  | AB39: =IF(I39="","",IF(AA33="F","",IF(AA33="T",IF(I39<=X33,"þ",IF(I39<=Y33,"G2",IF(I39<=Z33,"G3","")))))) ->  | AC39: =IF(I39="","",IF(AA33="T","",IF(AA33="F",IF(I39>=X33,"þ",IF(I39>=Y33,"G2",IF(I39>=Z33,"G3","")))))) ->  | AD39: =IF(R39="","",IF(AA33="F","",IF(AA33="T",IF(R39<=X33,"þ",IF(R39<=Y33,"G2",IF(R39<=Z33,"G3","")))))) ->  | AE39: =IF(R39="","",IF(AA33="T","",IF(AA33="F",IF(R39>=X33,"þ",IF(R39>=Y33,"G2",IF(R39>=Z33,"G3","")))))) ->  | AJ39: 39 | AQ39: 6== | AR39: =SUM($AR$10:AR12)/3 -> 2.333333333 | AS39: =SUM($AS$10:AS12)/3 -> 1
E40: 7 | G40: =IF($F40="","",HLOOKUP(F40,mens_declare,B36,FALSE)) ->  | J40: =IF(I40="","",IF(AND(AA33="T",I40<I39),"X",IF(AND(AA33="F",I40>I39),"X",""))) ->  | L40: =IF(AA33="T",AB40,AC40) ->  | N40: 7 | P40: =IF($O40="","",HLOOKUP(O40,mens_declare,B36,FALSE)) ->  | S40: =IF(R40="","",IF(AND(AA33="T",R40<R39),"X",IF(AND(AA33="F",R40>R39),"X",""))) ->  | T40: =IF(AA33="T",AD40,AE40) ->  | AB40: =IF(I40="","",IF(AA33="F","",IF(AA33="T",IF(I40<=X33,"þ",IF(I40<=Y33,"G2",IF(I40<=Z33,"G3","")))))) ->  | AC40: =IF(I40="","",IF(AA33="T","",IF(AA33="F",IF(I40>=X33,"þ",IF(I40>=Y33,"G2",IF(I40>=Z33,"G3","")))))) ->  | AD40: =IF(R40="","",IF(AA33="F","",IF(AA33="T",IF(R40<=X33,"þ",IF(R40<=Y33,"G2",IF(R40<=Z33,"G3","")))))) ->  | AE40: =IF(R40="","",IF(AA33="T","",IF(AA33="F",IF(R40>=X33,"þ",IF(R40>=Y33,"G2",IF(R40>=Z33,"G3","")))))) ->  | AJ40: 40 | AQ40: 7= | AR40: =SUM($AR$11:AR12)/2 -> 1.5 | AS40: =SUM($AS$11:AS12)/2 -> 0.5
E41: 8 | G41: =IF($F41="","",HLOOKUP(F41,mens_declare,B36,FALSE)) ->  | J41: =IF(I41="","",IF(AND(AA33="T",I41<I40),"X",IF(AND(AA33="F",I41>I40),"X",""))) ->  | L41: =IF(AA33="T",AB41,AC41) ->  | N41: 8 | P41: =IF($O41="","",HLOOKUP(O41,mens_declare,B36,FALSE)) ->  | S41: =IF(R41="","",IF(AND(AA33="T",R41<R40),"X",IF(AND(AA33="F",R41>R40),"X",""))) ->  | T41: =IF(AA33="T",AD41,AE41) ->  | AB41: =IF(I41="","",IF(AA33="F","",IF(AA33="T",IF(I41<=X33,"þ",IF(I41<=Y33,"G2",IF(I41<=Z33,"G3","")))))) ->  | AC41: =IF(I41="","",IF(AA33="T","",IF(AA33="F",IF(I41>=X33,"þ",IF(I41>=Y33,"G2",IF(I41>=Z33,"G3","")))))) ->  | AD41: =IF(R41="","",IF(AA33="F","",IF(AA33="T",IF(R41<=X33,"þ",IF(R41<=Y33,"G2",IF(R41<=Z33,"G3","")))))) ->  | AE41: =IF(R41="","",IF(AA33="T","",IF(AA33="F",IF(R41>=X33,"þ",IF(R41>=Y33,"G2",IF(R41>=Z33,"G3","")))))) ->  | AJ41: 41
AJ42: 42
E43: =CONCATENATE(VLOOKUP(A44,mens_handbook,3,FALSE)," A") -> Men's 1500m A | H43: =IF(A44="","",IF(VLOOKUP(A44,Handbook!$A$4:$AI$24,35,FALSE)="Y","Wind=","")) ->  | O43: =CONCATENATE(VLOOKUP(A44,mens_handbook,3,FALSE)," B") -> Men's 1500m B | P43: =CONCATENATE(VLOOKUP(M44,Handbook!$A$4:$C$24,3,FALSE)," A") ->  | Q43: =H43 ->  | V43: =IF($A44="","",VLOOKUP($A44,Handbook!$A$4:$V$24,21,FALSE)) -> 00:03:42 | W43: =IF($A44="","",VLOOKUP($A44,Handbook!$A$4:$V$24,22,FALSE)) -> 00:03:42 | X43: =IF($A44="","",VLOOKUP($A44,Handbook!$A$4:$W$24,23,FALSE)) -> 04:20:00 | Y43: =IF($A44="","",VLOOKUP($A44,Handbook!$A$4:$X$24,24,FALSE)) -> 00:04:08 | Z43: =IF($A44="","",VLOOKUP($A44,Handbook!$A$4:$Y$24,25,FALSE)) -> 00:04:08 | AA43: =IF($A44="","",VLOOKUP($A44,Handbook!$A$4:$AH$24,34,FALSE)) -> T | AJ43: 43
A44: 8 | C44: =IF(F44="","",IF(F44>10,F44/11,F44)) ->  | D44: =IF(O44="","",IF(O44>10,O44/11,O44)) ->  | E44: 1 | F44: =IF(OR(M_1500m!D20=0,M_1500m!D20=""),"",M_1500m!D20) ->  | G44: =IF(OR($F44="",$F44=0),"",IF($F44>90,VLOOKUP(F44,eventcodes,2,FALSE),HLOOKUP(F44,mens_declare,B46,FALSE))) ->  | H44: =IF(OR($F44="",$F44=0),"",IF($F44>90,"",VLOOKUP(C44,matchday,2,FALSE))) ->  | I44: =IF(OR(M_1500m!G20=0,M_1500m!G20=""),"",M_1500m!G20) ->  | J44: =IF(OR(I44="",I44=0),"",IF(AA43="T",V44,V45)) ->  | L44: =IF(AA43="T",AB44,AC44) ->  | N44: 1 | O44: =IF(OR(M_1500m!D29=0,M_1500m!D29=""),"",M_1500m!D29) ->  | P44: =IF(OR($O44="",$O44=0),"",IF($O44>90,VLOOKUP(O44,eventcodes,2,FALSE),HLOOKUP(O44,mens_declare,B46,FALSE))) ->  | Q44: =IF(OR($O44="",$O44=0),"",IF($O44>90,"",VLOOKUP(D44,matchday,2,FALSE))) ->  | R44: =IF(OR(M_1500m!G29=0,M_1500m!G29=""),"",M_1500m!G29) ->  | T44: =IF(AA43="T",AD44,AE44) ->  | V44: =IF(AA43="F","",IF(I44<V43,"LR",IF(I44=V43,"=LR",IF(I44<W43,"DR",IF(I44=W43,"=DR",""))))) ->  | AB44: =IF(OR(I44="",I44=0),"",IF(AA43="F","",IF(AA43="T",IF(I44<=X43,"þ",IF(I44<=Y43,"G2",IF(I44<=Z43,"G3","")))))) ->  | AC44: =IF(OR(I44="",I44=0),"",IF(AA43="T","",IF(AA43="F",IF(I44>=X43,"þ",IF(I44>=Y43,"G2",IF(I44>=Z43,"G3","")))))) ->  | AD44: =IF(OR(R44="",R44=0),"",IF(AA43="F","",IF(AA43="T",IF(R44<=X43,"þ",IF(R44<=Y43,"G2",IF(R44<=Z43,"G3","")))))) ->  | AE44: =IF(R44="","",IF(AA43="T","",IF(AA43="F",IF(R44>=X43,"þ",IF(R44>=Y43,"G2",IF(R44>=Z43,"G3","")))))) ->  | AF44: =C44 ->  | AG44: =IF(F44="","",IF(LEFT(I44,1)="D",0,VLOOKUP(E44,$AQ$4:$AR$40,2,FALSE))) ->  | AH44: =D44 ->  | AI44: =IF(O44="","",IF(LEFT(R44,1)="D",0,VLOOKUP(N44,$AQ$4:$AS$40,3,FALSE))) ->  | AJ44: 44
B45: =VLOOKUP(A44,Handbook!$A$4:$AK$24,37,FALSE) -> 9 | C45: =IF(F45="","",IF(F45>10,F45/11,F45)) ->  | D45: =IF(O45="","",IF(O45>10,O45/11,O45)) ->  | E45: 2 | F45: =IF(OR(M_1500m!D21=0,M_1500m!D21=""),"",M_1500m!D21) ->  | G45: =IF(OR($F45="",$F45=0),"",IF($F45>90,VLOOKUP(F45,eventcodes,2,FALSE),HLOOKUP(F45,mens_declare,B46,FALSE))) ->  | I45: =IF(OR(M_1500m!G21=0,M_1500m!G21=""),"",M_1500m!G21) ->  | J45: =IF(OR(I45="",I45=0),"",IF(AND(AA43="T",I45<I44),"X",IF(AND(AA43="F",I45>I44),"X",""))) ->  | L45: =IF(AA43="T",AB45,AC45) ->  | N45: 2 | O45: =IF(OR(M_1500m!D30=0,M_1500m!D30=""),"",M_1500m!D30) ->  | P45: =IF(OR($O45="",$O45=0),"",IF($O45>90,VLOOKUP(O45,eventcodes,2,FALSE),HLOOKUP(O45,mens_declare,B46,FALSE))) ->  | R45: =IF(OR(M_1500m!G30=0,M_1500m!G30=""),"",M_1500m!G30) ->  | S45: =IF(OR(R45="",R45=0),"",IF(AND(AA43="T",R45<R44),"X",IF(AND(AA43="F",R45>R44),"X",""))) ->  | T45: =IF(AA43="T",AD45,AE45) ->  | V45: =IF(AA43="T","",IF(I44>V43,"LR",IF(I44=V43,"=LR",IF(I44>W43,"DR",IF(I44=W43,"=DR",""))))) ->  | AB45: =IF(OR(I45="",I45=0),"",IF(AA43="F","",IF(AA43="T",IF(I45<=X43,"þ",IF(I45<=Y43,"G2",IF(I45<=Z43,"G3","")))))) ->  | AC45: =IF(OR(I45="",I45=0),"",IF(AA43="T","",IF(AA43="F",IF(I45>=X43,"þ",IF(I45>=Y43,"G2",IF(I45>=Z43,"G3","")))))) ->  | AD45: =IF(OR(R45="",R45=0),"",IF(AA43="F","",IF(AA43="T",IF(R45<=X43,"þ",IF(R45<=Y43,"G2",IF(R45<=Z43,"G3","")))))) ->  | AE45: =IF(R45="","",IF(AA43="T","",IF(AA43="F",IF(R45>=X43,"þ",IF(R45>=Y43,"G2",IF(R45>=Z43,"G3","")))))) ->  | AF45: =C45 ->  | AH45: =D45 ->  | AJ45: 45
B46: =VLOOKUP(A44,mens_declare,20,FALSE) -> 7 | E46: 3 | F46: =IF(OR(M_1500m!D22=0,M_1500m!D22=""),"",M_1500m!D22) ->  | G46: =IF(OR($F46="",$F46=0),"",IF($F46>90,VLOOKUP(F46,eventcodes,2,FALSE),HLOOKUP(F46,mens_declare,B46,FALSE))) ->  | I46: =IF(OR(M_1500m!G22=0,M_1500m!G22=""),"",M_1500m!G22) ->  | J46: =IF(OR(I46="",I46=0),"",IF(AND(AA43="T",I46<I45),"X",IF(AND(AA43="F",I46>I45),"X",""))) ->  | L46: =IF(AA43="T",AB46,AC46) ->  | N46: 3 | O46: =IF(OR(M_1500m!D31=0,M_1500m!D31=""),"",M_1500m!D31) ->  | P46: =IF(OR($O46="",$O46=0),"",IF($O46>90,VLOOKUP(O46,eventcodes,2,FALSE),HLOOKUP(O46,mens_declare,B46,FALSE))) ->  | R46: =IF(OR(M_1500m!G31=0,M_1500m!G31=""),"",M_1500m!G31) ->  | S46: =IF(OR(R46="",R46=0),"",IF(AND(AA44="T",R46<R45),"X",IF(AND(AA44="F",R46>R45),"X",""))) ->  | T46: =IF(AA43="T",AD46,AE46) ->  | AB46: =IF(OR(I46="",I46=0),"",IF(AA43="F","",IF(AA43="T",IF(I46<=X43,"þ",IF(I46<=Y43,"G2",IF(I46<=Z43,"G3","")))))) ->  | AC46: =IF(OR(I46="",I46=0),"",IF(AA43="T","",IF(AA43="F",IF(I46>=X43,"þ",IF(I46>=Y43,"G2",IF(I46>=Z43,"G3","")))))) ->  | AD46: =IF(OR(R46="",R46=0),"",IF(AA43="F","",IF(AA43="T",IF(R46<=X43,"þ",IF(R46<=Y43,"G2",IF(R46<=Z43,"G3","")))))) ->  | AE46: =IF(R46="","",IF(AA43="T","",IF(AA43="F",IF(R46>=X43,"þ",IF(R46>=Y43,"G2",IF(R46>=Z43,"G3","")))))) ->  | AJ46: 46
E47: 4 | F47: =IF(OR(M_1500m!D23=0,M_1500m!D23=""),"",M_1500m!D23) ->  | G47: =IF(OR($F47="",$F47=0),"",IF($F47>90,VLOOKUP(F47,eventcodes,2,FALSE),HLOOKUP(F47,mens_declare,B46,FALSE))) ->  | I47: =IF(OR(M_1500m!G23=0,M_1500m!G23=""),"",M_1500m!G23) ->  | J47: =IF(OR(I47="",I47=0),"",IF(AND(AA43="T",I47<I46),"X",IF(AND(AA43="F",I47>I46),"X",""))) ->  | L47: =IF(AA43="T",AB47,AC47) ->  | N47: 4 | O47: =IF(OR(M_1500m!D32=0,M_1500m!D32=""),"",M_1500m!D32) ->  | P47: =IF(OR($O47="",$O47=0),"",IF($O47>90,VLOOKUP(O47,eventcodes,2,FALSE),HLOOKUP(O47,mens_declare,B46,FALSE))) ->  | R47: =IF(OR(M_1500m!G32=0,M_1500m!G32=""),"",M_1500m!G32) ->  | T47: =IF(AA43="T",AD47,AE47) ->  | AB47: =IF(OR(I47="",I47=0),"",IF(AA43="F","",IF(AA43="T",IF(I47<=X43,"þ",IF(I47<=Y43,"G2",IF(I47<=Z43,"G3","")))))) ->  | AC47: =IF(OR(I47="",I47=0),"",IF(AA43="T","",IF(AA43="F",IF(I47>=X43,"þ",IF(I47>=Y43,"G2",IF(I47>=Z43,"G3","")))))) ->  | AD47: =IF(OR(R47="",R47=0),"",IF(AA43="F","",IF(AA43="T",IF(R47<=X43,"þ",IF(R47<=Y43,"G2",IF(R47<=Z43,"G3","")))))) ->  | AE47: =IF(R47="","",IF(AA43="T","",IF(AA43="F",IF(R47>=X43,"þ",IF(R47>=Y43,"G2",IF(R47>=Z43,"G3","")))))) ->  | AJ47: 47
E48: 5 | F48: =IF(OR(M_1500m!D24=0,M_1500m!D24=""),"",M_1500m!D24) ->  | G48: =IF(OR($F48="",$F48=0),"",IF($F48>90,VLOOKUP(F48,eventcodes,2,FALSE),HLOOKUP(F48,mens_declare,B46,FALSE))) ->  | I48: =IF(OR(M_1500m!G24=0,M_1500m!G24=""),"",M_1500m!G24) ->  | J48: =IF(OR(I48="",I48=0),"",IF(AND(AA43="T",I48<I47),"X",IF(AND(AA43="F",I48>I47),"X",""))) ->  | L48: =IF(AA43="T",AB48,AC48) ->  | N48: 5 | O48: =IF(OR(M_1500m!D33=0,M_1500m!D33=""),"",M_1500m!D33) ->  | P48: =IF(OR($O48="",$O48=0),"",IF($O48>90,VLOOKUP(O48,eventcodes,2,FALSE),HLOOKUP(O48,mens_declare,B46,FALSE))) ->  | R48: =IF(OR(M_1500m!G33=0,M_1500m!G33=""),"",M_1500m!G33) ->  | T48: =IF(AA43="T",AD48,AE48) ->  | AB48: =IF(OR(I48="",I48=0),"",IF(AA43="F","",IF(AA43="T",IF(I48<=X43,"þ",IF(I48<=Y43,"G2",IF(I48<=Z43,"G3","")))))) ->  | AC48: =IF(OR(I48="",I48=0),"",IF(AA43="T","",IF(AA43="F",IF(I48>=X43,"þ",IF(I48>=Y43,"G2",IF(I48>=Z43,"G3","")))))) ->  | AD48: =IF(OR(R48="",R48=0),"",IF(AA43="F","",IF(AA43="T",IF(R48<=X43,"þ",IF(R48<=Y43,"G2",IF(R48<=Z43,"G3","")))))) ->  | AE48: =IF(R48="","",IF(AA43="T","",IF(AA43="F",IF(R48>=X43,"þ",IF(R48>=Y43,"G2",IF(R48>=Z43,"G3","")))))) ->  | AJ48: 48
E49: 6 | F49: =IF(OR(M_1500m!D25=0,M_1500m!D25=""),"",M_1500m!D25) ->  | G49: =IF(OR($F49="",$F49=0),"",IF($F49>90,VLOOKUP(F49,eventcodes,2,FALSE),HLOOKUP(F49,mens_declare,B46,FALSE))) ->  | I49: =IF(OR(M_1500m!G25=0,M_1500m!G25=""),"",M_1500m!G25) ->  | J49: =IF(OR(I49="",I49=0),"",IF(AND(AA43="T",I49<I48),"X",IF(AND(AA43="F",I49>I48),"X",""))) ->  | L49: =IF(AA43="T",AB49,AC49) ->  | N49: 6 | O49: =IF(OR(M_1500m!D34=0,M_1500m!D34=""),"",M_1500m!D34) ->  | P49: =IF(OR($O49="",$O49=0),"",IF($O49>90,VLOOKUP(O49,eventcodes,2,FALSE),HLOOKUP(O49,mens_declare,B46,FALSE))) ->  | R49: =IF(OR(M_1500m!G34=0,M_1500m!G34=""),"",M_1500m!G34) ->  | T49: =IF(AA43="T",AD49,AE49) ->  | AB49: =IF(OR(I49="",I49=0),"",IF(AA43="F","",IF(AA43="T",IF(I49<=X43,"þ",IF(I49<=Y43,"G2",IF(I49<=Z43,"G3","")))))) ->  | AC49: =IF(OR(I49="",I49=0),"",IF(AA43="T","",IF(AA43="F",IF(I49>=X43,"þ",IF(I49>=Y43,"G2",IF(I49>=Z43,"G3","")))))) ->  | AD49: =IF(OR(R49="",R49=0),"",IF(AA43="F","",IF(AA43="T",IF(R49<=X43,"þ",IF(R49<=Y43,"G2",IF(R49<=Z43,"G3","")))))) ->  | AE49: =IF(R49="","",IF(AA43="T","",IF(AA43="F",IF(R49>=X43,"þ",IF(R49>=Y43,"G2",IF(R49>=Z43,"G3","")))))) ->  | AJ49: 49
E50: 7 | F50: =IF(OR(M_1500m!D26=0,M_1500m!D26=""),"",M_1500m!D26) ->  | G50: =IF(OR($F50="",$F50=0),"",IF($F50>90,VLOOKUP(F50,eventcodes,2,FALSE),HLOOKUP(F50,mens_declare,B46,FALSE))) ->  | I50: =IF(OR(M_1500m!G26=0,M_1500m!G26=""),"",M_1500m!G26) ->  | J50: =IF(OR(I50="",I50=0),"",IF(AND(AA43="T",I50<I49),"X",IF(AND(AA43="F",I50>I49),"X",""))) ->  | L50: =IF(AA43="T",AB50,AC50) ->  | N50: 7 | O50: =IF(OR(M_1500m!D35=0,M_1500m!D35=""),"",M_1500m!D35) ->  | P50: =IF(OR($O50="",$O50=0),"",IF($O50>90,VLOOKUP(O50,eventcodes,2,FALSE),HLOOKUP(O50,mens_declare,B46,FALSE))) ->  | R50: =IF(OR(M_1500m!G35=0,M_1500m!G35=""),"",M_1500m!G35) ->  | T50: =IF(AA43="T",AD50,AE50) ->  | AB50: =IF(OR(I50="",I50=0),"",IF(AA43="F","",IF(AA43="T",IF(I50<=X43,"þ",IF(I50<=Y43,"G2",IF(I50<=Z43,"G3","")))))) ->  | AC50: =IF(OR(I50="",I50=0),"",IF(AA43="T","",IF(AA43="F",IF(I50>=X43,"þ",IF(I50>=Y43,"G2",IF(I50>=Z43,"G3","")))))) ->  | AD50: =IF(OR(R50="",R50=0),"",IF(AA43="F","",IF(AA43="T",IF(R50<=X43,"þ",IF(R50<=Y43,"G2",IF(R50<=Z43,"G3","")))))) ->  | AE50: =IF(R50="","",IF(AA43="T","",IF(AA43="F",IF(R50>=X43,"þ",IF(R50>=Y43,"G2",IF(R50>=Z43,"G3","")))))) ->  | AJ50: 50
E51: 8 | F51: =IF(OR(M_1500m!D27=0,M_1500m!D27=""),"",M_1500m!D27) ->  | G51: =IF(OR($F51="",$F51=0),"",IF($F51>90,VLOOKUP(F51,eventcodes,2,FALSE),HLOOKUP(F51,mens_declare,B46,FALSE))) ->  | I51: =IF(OR(M_1500m!G27=0,M_1500m!G27=""),"",M_1500m!G27) ->  | J51: =IF(OR(I51="",I51=0),"",IF(AND(AA43="T",I51<I50),"X",IF(AND(AA43="F",I51>I50),"X",""))) ->  | L51: =IF(AA43="T",AB51,AC51) ->  | N51: 8 | O51: =IF(OR(M_1500m!D36=0,M_1500m!D36=""),"",M_1500m!D36) ->  | P51: =IF(OR($O51="",$O51=0),"",IF($O51>90,VLOOKUP(O51,eventcodes,2,FALSE),HLOOKUP(O51,mens_declare,B46,FALSE))) ->  | R51: =IF(OR(M_1500m!G36=0,M_1500m!G36=""),"",M_1500m!G36) ->  | T51: =IF(AA43="T",AD51,AE51) ->  | AB51: =IF(OR(I51="",I51=0),"",IF(AA43="F","",IF(AA43="T",IF(I51<=X43,"þ",IF(I51<=Y43,"G2",IF(I51<=Z43,"G3","")))))) ->  | AC51: =IF(OR(I51="",I51=0),"",IF(AA43="T","",IF(AA43="F",IF(I51>=X43,"þ",IF(I51>=Y43,"G2",IF(I51>=Z43,"G3","")))))) ->  | AD51: =IF(OR(R51="",R51=0),"",IF(AA43="F","",IF(AA43="T",IF(R51<=X43,"þ",IF(R51<=Y43,"G2",IF(R51<=Z43,"G3","")))))) ->  | AE51: =IF(R51="","",IF(AA43="T","",IF(AA43="F",IF(R51>=X43,"þ",IF(R51>=Y43,"G2",IF(R51>=Z43,"G3","")))))) ->  | AJ51: 51
AJ52: 52
E53: =CONCATENATE(VLOOKUP(A54,mens_handbook,3,FALSE)," A") -> Men's 3000m S/Chase A | H53: =IF(A54="","",IF(VLOOKUP(A54,Handbook!$A$4:$AI$24,35,FALSE)="Y","Wind=","")) ->  | O53: =CONCATENATE(VLOOKUP(A54,mens_handbook,3,FALSE)," B") -> Men's 3000m S/Chase B | Q53: =H53 ->  | V53: =IF($A54="","",VLOOKUP($A54,Handbook!$A$4:$V$24,21,FALSE)) -> 00:08:32.700 | W53: =IF($A54="","",VLOOKUP($A54,Handbook!$A$4:$V$24,22,FALSE)) -> 00:08:32.700 | X53: =IF($A54="","",VLOOKUP($A54,Handbook!$A$4:$W$24,23,FALSE)) -> 11:00:00 | Y53: =IF($A54="","",VLOOKUP($A54,Handbook!$A$4:$X$24,24,FALSE)) -> 00:10:00 | Z53: =IF($A54="","",VLOOKUP($A54,Handbook!$A$4:$Y$24,25,FALSE)) -> 00:10:00 | AA53: =IF($A54="","",VLOOKUP($A54,Handbook!$A$4:$AH$24,34,FALSE)) -> T | AJ53: 53
A54: 5 | C54: =IF(F54="","",IF(F54>10,F54/11,F54)) ->  | D54: =IF(O54="","",IF(O54>10,O54/11,O54)) ->  | E54: 1 | F54: =IF(OR(M_3000sc!D20=0,M_3000sc!D20=""),"",M_3000sc!D20) ->  | G54: =IF(OR($F54="",$F54=0),"",IF($F54>90,VLOOKUP(F54,eventcodes,2,FALSE),HLOOKUP(F54,mens_declare,B56,FALSE))) ->  | H54: =IF(OR($F54="",$F54=0),"",IF($F54>90,"",VLOOKUP(C54,matchday,2,FALSE))) ->  | I54: =IF(OR(M_3000sc!G20=0,M_3000sc!G20=""),"",M_3000sc!G20) ->  | J54: =IF(I54="","",IF(AA53="T",V54,V55)) ->  | L54: =IF(AA53="T",AB54,AC54) ->  | N54: 1 | O54: =IF(OR(M_3000sc!D29=0,M_3000sc!D29=""),"",M_3000sc!D29) ->  | P54: =IF(OR($O54="",$O54=0),"",IF($O54>90,VLOOKUP(O54,eventcodes,2,FALSE),HLOOKUP(O54,mens_declare,B56,FALSE))) ->  | Q54: =IF(OR($O54="",$O54=0),"",IF($O54>90,"",VLOOKUP(D54,matchday,2,FALSE))) ->  | R54: =IF(OR(M_3000sc!G29=0,M_3000sc!G29=""),"",M_3000sc!G29) ->  | T54: =IF(AA53="T",AD54,AE54) ->  | V54: =IF(AA53="F","",IF(I54<V53,"LR",IF(I54=V53,"=LR",IF(I54<W53,"DR",IF(I54=W53,"=DR",""))))) ->  | AB54: =IF(OR(I54="",I54=0),"",IF(AA53="F","",IF(AA53="T",IF(I54<=X53,"þ",IF(I54<=Y53,"G2",IF(I54<=Z53,"G3","")))))) ->  | AC54: =IF(OR(I54="",I54=0),"",IF(AA53="T","",IF(AA53="F",IF(I54>=X53,"þ",IF(I54>=Y53,"G2",IF(I54>=Z53,"G3","")))))) ->  | AD54: =IF(OR(R54="",R54=0),"",IF(AA53="F","",IF(AA53="T",IF(R54<=X53,"þ",IF(R54<=Y53,"G2",IF(R54<=Z53,"G3","")))))) ->  | AE54: =IF(R54="","",IF(AA53="T","",IF(AA53="F",IF(R54>=X53,"þ",IF(R54>=Y53,"G2",IF(R54>=Z53,"G3","")))))) ->  | AF54: =C54 ->  | AG54: =IF(F54="","",IF(LEFT(I54,1)="D",0,VLOOKUP(E54,$AQ$4:$AR$40,2,FALSE))) ->  | AH54: =D54 ->  | AI54: =IF(O54="","",IF(LEFT(R54,1)="D",0,VLOOKUP(N54,$AQ$4:$AS$40,3,FALSE))) ->  | AJ54: 54
B55: =VLOOKUP(A54,Handbook!$A$4:$AK$24,37,FALSE) -> 6 | C55: =IF(F55="","",IF(F55>10,F55/11,F55)) ->  | D55: =IF(O55="","",IF(O55>10,O55/11,O55)) ->  | E55: 2 | F55: =IF(OR(M_3000sc!D21=0,M_3000sc!D21=""),"",M_3000sc!D21) ->  | G55: =IF(OR($F55="",$F55=0),"",IF($F55>90,VLOOKUP(F55,eventcodes,2,FALSE),HLOOKUP(F55,mens_declare,B56,FALSE))) ->  | I55: =IF(OR(M_3000sc!G21=0,M_3000sc!G21=""),"",M_3000sc!G21) ->  | J55: =IF(OR(I55="",I55=0),"",IF(AND(AA53="T",I55<I54),"X",IF(AND(AA53="F",I55>I54),"X",""))) ->  | L55: =IF(AA53="T",AB55,AC55) ->  | N55: 2 | O55: =IF(OR(M_3000sc!D30=0,M_3000sc!D30=""),"",M_3000sc!D30) ->  | P55: =IF(OR($O55="",$O55=0),"",IF($O55>90,VLOOKUP(O55,eventcodes,2,FALSE),HLOOKUP(O55,mens_declare,B56,FALSE))) ->  | R55: =IF(OR(M_3000sc!G30=0,M_3000sc!G30=""),"",M_3000sc!G30) ->  | S55: =IF(OR(R55="",R55=0),"",IF(AND(AA53="T",R55<R54),"X",IF(AND(AA53="F",R55>R54),"X",""))) ->  | T55: =IF(AA53="T",AD55,AE55) ->  | V55: =IF(AA53="T","",IF(I54>V53,"LR",IF(I54=V53,"=LR",IF(I54>W53,"DR",IF(I54=W53,"=DR",""))))) ->  | AB55: =IF(OR(I55="",I55=0),"",IF(AA53="F","",IF(AA53="T",IF(I55<=X53,"þ",IF(I55<=Y53,"G2",IF(I55<=Z53,"G3","")))))) ->  | AC55: =IF(OR(I55="",I55=0),"",IF(AA53="T","",IF(AA53="F",IF(I55>=X53,"þ",IF(I55>=Y53,"G2",IF(I55>=Z53,"G3","")))))) ->  | AD55: =IF(OR(R55="",R55=0),"",IF(AA53="F","",IF(AA53="T",IF(R55<=X53,"þ",IF(R55<=Y53,"G2",IF(R55<=Z53,"G3","")))))) ->  | AE55: =IF(R55="","",IF(AA53="T","",IF(AA53="F",IF(R55>=X53,"þ",IF(R55>=Y53,"G2",IF(R55>=Z53,"G3","")))))) ->  | AF55: =C55 ->  | AH55: =D55 ->  | AJ55: 55
B56: =VLOOKUP(A54,mens_declare,20,FALSE) -> 8 | E56: 3 | F56: =IF(OR(M_3000sc!D22=0,M_3000sc!D22=""),"",M_3000sc!D22) ->  | G56: =IF(OR($F56="",$F56=0),"",IF($F56>90,VLOOKUP(F56,eventcodes,2,FALSE),HLOOKUP(F56,mens_declare,B56,FALSE))) ->  | I56: =IF(OR(M_3000sc!G22=0,M_3000sc!G22=""),"",M_3000sc!G22) ->  | J56: =IF(OR(I56="",I56=0),"",IF(AND(AA53="T",I56<I55),"X",IF(AND(AA53="F",I56>I55),"X",""))) ->  | L56: =IF(AA53="T",AB56,AC56) ->  | N56: 3 | O56: =IF(OR(M_3000sc!D31=0,M_3000sc!D31=""),"",M_3000sc!D31) ->  | P56: =IF(OR($O56="",$O56=0),"",IF($O56>90,VLOOKUP(O56,eventcodes,2,FALSE),HLOOKUP(O56,mens_declare,B56,FALSE))) ->  | R56: =IF(OR(M_3000sc!G31=0,M_3000sc!G31=""),"",M_3000sc!G31) ->  | S56: =IF(OR(R56="",R56=0),"",IF(AND(AA54="T",R56<R55),"X",IF(AND(AA54="F",R56>R55),"X",""))) ->  | T56: =IF(AA53="T",AD56,AE56) ->  | AB56: =IF(OR(I56="",I56=0),"",IF(AA53="F","",IF(AA53="T",IF(I56<=X53,"þ",IF(I56<=Y53,"G2",IF(I56<=Z53,"G3","")))))) ->  | AC56: =IF(OR(I56="",I56=0),"",IF(AA53="T","",IF(AA53="F",IF(I56>=X53,"þ",IF(I56>=Y53,"G2",IF(I56>=Z53,"G3","")))))) ->  | AD56: =IF(OR(R56="",R56=0),"",IF(AA53="F","",IF(AA53="T",IF(R56<=X53,"þ",IF(R56<=Y53,"G2",IF(R56<=Z53,"G3","")))))) ->  | AE56: =IF(R56="","",IF(AA53="T","",IF(AA53="F",IF(R56>=X53,"þ",IF(R56>=Y53,"G2",IF(R56>=Z53,"G3","")))))) ->  | AJ56: 56
E57: 4 | F57: =IF(OR(M_3000sc!D23=0,M_3000sc!D23=""),"",M_3000sc!D23) ->  | G57: =IF(OR($F57="",$F57=0),"",IF($F57>90,VLOOKUP(F57,eventcodes,2,FALSE),HLOOKUP(F57,mens_declare,B56,FALSE))) ->  | I57: =IF(OR(M_3000sc!G23=0,M_3000sc!G23=""),"",M_3000sc!G23) ->  | J57: =IF(OR(I57="",I57=0),"",IF(AND(AA53="T",I57<I56),"X",IF(AND(AA53="F",I57>I56),"X",""))) ->  | L57: =IF(AA53="T",AB57,AC57) ->  | N57: 4 | O57: =IF(OR(M_3000sc!D32=0,M_3000sc!D32=""),"",M_3000sc!D32) ->  | P57: =IF(OR($O57="",$O57=0),"",IF($O57>90,VLOOKUP(O57,eventcodes,2,FALSE),HLOOKUP(O57,mens_declare,B56,FALSE))) ->  | R57: =IF(OR(M_3000sc!G32=0,M_3000sc!G32=""),"",M_3000sc!G32) ->  | T57: =IF(AA53="T",AD57,AE57) ->  | AB57: =IF(OR(I57="",I57=0),"",IF(AA53="F","",IF(AA53="T",IF(I57<=X53,"þ",IF(I57<=Y53,"G2",IF(I57<=Z53,"G3","")))))) ->  | AC57: =IF(OR(I57="",I57=0),"",IF(AA53="T","",IF(AA53="F",IF(I57>=X53,"þ",IF(I57>=Y53,"G2",IF(I57>=Z53,"G3","")))))) ->  | AD57: =IF(OR(R57="",R57=0),"",IF(AA53="F","",IF(AA53="T",IF(R57<=X53,"þ",IF(R57<=Y53,"G2",IF(R57<=Z53,"G3","")))))) ->  | AE57: =IF(R57="","",IF(AA53="T","",IF(AA53="F",IF(R57>=X53,"þ",IF(R57>=Y53,"G2",IF(R57>=Z53,"G3","")))))) ->  | AJ57: 57
E58: 5 | F58: =IF(OR(M_3000sc!D24=0,M_3000sc!D24=""),"",M_3000sc!D24) ->  | G58: =IF(OR($F58="",$F58=0),"",IF($F58>90,VLOOKUP(F58,eventcodes,2,FALSE),HLOOKUP(F58,mens_declare,B56,FALSE))) ->  | I58: =IF(OR(M_3000sc!G24=0,M_3000sc!G24=""),"",M_3000sc!G24) ->  | J58: =IF(OR(I58="",I58=0),"",IF(AND(AA53="T",I58<I57),"X",IF(AND(AA53="F",I58>I57),"X",""))) ->  | L58: =IF(AA53="T",AB58,AC58) ->  | N58: 5 | O58: =IF(OR(M_3000sc!D33=0,M_3000sc!D33=""),"",M_3000sc!D33) ->  | P58: =IF(OR($O58="",$O58=0),"",IF($O58>90,VLOOKUP(O58,eventcodes,2,FALSE),HLOOKUP(O58,mens_declare,B56,FALSE))) ->  | R58: =IF(OR(M_3000sc!G33=0,M_3000sc!G33=""),"",M_3000sc!G33) ->  | T58: =IF(AA53="T",AD58,AE58) ->  | AB58: =IF(OR(I58="",I58=0),"",IF(AA53="F","",IF(AA53="T",IF(I58<=X53,"þ",IF(I58<=Y53,"G2",IF(I58<=Z53,"G3","")))))) ->  | AC58: =IF(OR(I58="",I58=0),"",IF(AA53="T","",IF(AA53="F",IF(I58>=X53,"þ",IF(I58>=Y53,"G2",IF(I58>=Z53,"G3","")))))) ->  | AD58: =IF(OR(R58="",R58=0),"",IF(AA53="F","",IF(AA53="T",IF(R58<=X53,"þ",IF(R58<=Y53,"G2",IF(R58<=Z53,"G3","")))))) ->  | AE58: =IF(R58="","",IF(AA53="T","",IF(AA53="F",IF(R58>=X53,"þ",IF(R58>=Y53,"G2",IF(R58>=Z53,"G3","")))))) ->  | AJ58: 58
E59: 6 | F59: =IF(OR(M_3000sc!D25=0,M_3000sc!D25=""),"",M_3000sc!D25) ->  | G59: =IF(OR($F59="",$F59=0),"",IF($F59>90,VLOOKUP(F59,eventcodes,2,FALSE),HLOOKUP(F59,mens_declare,B56,FALSE))) ->  | I59: =IF(OR(M_3000sc!G25=0,M_3000sc!G25=""),"",M_3000sc!G25) ->  | J59: =IF(OR(I59="",I59=0),"",IF(AND(AA53="T",I59<I58),"X",IF(AND(AA53="F",I59>I58),"X",""))) ->  | L59: =IF(AA53="T",AB59,AC59) ->  | N59: 6 | O59: =IF(OR(M_3000sc!D34=0,M_3000sc!D34=""),"",M_3000sc!D34) ->  | P59: =IF(OR($O59="",$O59=0),"",IF($O59>90,VLOOKUP(O59,eventcodes,2,FALSE),HLOOKUP(O59,mens_declare,B56,FALSE))) ->  | R59: =IF(OR(M_3000sc!G34=0,M_3000sc!G34=""),"",M_3000sc!G34) ->  | T59: =IF(AA53="T",AD59,AE59) ->  | AB59: =IF(OR(I59="",I59=0),"",IF(AA53="F","",IF(AA53="T",IF(I59<=X53,"þ",IF(I59<=Y53,"G2",IF(I59<=Z53,"G3","")))))) ->  | AC59: =IF(OR(I59="",I59=0),"",IF(AA53="T","",IF(AA53="F",IF(I59>=X53,"þ",IF(I59>=Y53,"G2",IF(I59>=Z53,"G3","")))))) ->  | AD59: =IF(OR(R59="",R59=0),"",IF(AA53="F","",IF(AA53="T",IF(R59<=X53,"þ",IF(R59<=Y53,"G2",IF(R59<=Z53,"G3","")))))) ->  | AE59: =IF(R59="","",IF(AA53="T","",IF(AA53="F",IF(R59>=X53,"þ",IF(R59>=Y53,"G2",IF(R59>=Z53,"G3","")))))) ->  | AJ59: 59
E60: 7 | F60: =IF(OR(M_3000sc!D26=0,M_3000sc!D26=""),"",M_3000sc!D26) ->  | G60: =IF(OR($F60="",$F60=0),"",IF($F60>90,VLOOKUP(F60,eventcodes,2,FALSE),HLOOKUP(F60,mens_declare,B56,FALSE))) ->  | I60: =IF(OR(M_3000sc!G26=0,M_3000sc!G26=""),"",M_3000sc!G26) ->  | J60: =IF(OR(I60="",I60=0),"",IF(AND(AA53="T",I60<I59),"X",IF(AND(AA53="F",I60>I59),"X",""))) ->  | L60: =IF(AA53="T",AB60,AC60) ->  | N60: 7 | O60: =IF(OR(M_3000sc!D35=0,M_3000sc!D35=""),"",M_3000sc!D35) ->  | P60: =IF(OR($O60="",$O60=0),"",IF($O60>90,VLOOKUP(O60,eventcodes,2,FALSE),HLOOKUP(O60,mens_declare,B56,FALSE))) ->  | R60: =IF(OR(M_3000sc!G35=0,M_3000sc!G35=""),"",M_3000sc!G35) ->  | T60: =IF(AA53="T",AD60,AE60) ->  | AB60: =IF(OR(I60="",I60=0),"",IF(AA53="F","",IF(AA53="T",IF(I60<=X53,"þ",IF(I60<=Y53,"G2",IF(I60<=Z53,"G3","")))))) ->  | AC60: =IF(OR(I60="",I60=0),"",IF(AA53="T","",IF(AA53="F",IF(I60>=X53,"þ",IF(I60>=Y53,"G2",IF(I60>=Z53,"G3","")))))) ->  | AD60: =IF(OR(R60="",R60=0),"",IF(AA53="F","",IF(AA53="T",IF(R60<=X53,"þ",IF(R60<=Y53,"G2",IF(R60<=Z53,"G3","")))))) ->  | AE60: =IF(R60="","",IF(AA53="T","",IF(AA53="F",IF(R60>=X53,"þ",IF(R60>=Y53,"G2",IF(R60>=Z53,"G3","")))))) ->  | AJ60: 60
E61: 8 | F61: =IF(OR(M_3000sc!D27=0,M_3000sc!D27=""),"",M_3000sc!D27) ->  | G61: =IF(OR($F61="",$F61=0),"",IF($F61>90,VLOOKUP(F61,eventcodes,2,FALSE),HLOOKUP(F61,mens_declare,B56,FALSE))) ->  | I61: =IF(OR(M_3000sc!G27=0,M_3000sc!G27=""),"",M_3000sc!G27) ->  | J61: =IF(OR(I61="",I61=0),"",IF(AND(AA53="T",I61<I60),"X",IF(AND(AA53="F",I61>I60),"X",""))) ->  | L61: =IF(AA53="T",AB61,AC61) ->  | N61: 8 | O61: =IF(OR(M_3000sc!D36=0,M_3000sc!D36=""),"",M_3000sc!D36) ->  | P61: =IF(OR($O61="",$O61=0),"",IF($O61>90,VLOOKUP(O61,eventcodes,2,FALSE),HLOOKUP(O61,mens_declare,B56,FALSE))) ->  | R61: =IF(OR(M_3000sc!G36=0,M_3000sc!G36=""),"",M_3000sc!G36) ->  | T61: =IF(AA53="T",AD61,AE61) ->  | AB61: =IF(OR(I61="",I61=0),"",IF(AA53="F","",IF(AA53="T",IF(I61<=X53,"þ",IF(I61<=Y53,"G2",IF(I61<=Z53,"G3","")))))) ->  | AC61: =IF(OR(I61="",I61=0),"",IF(AA53="T","",IF(AA53="F",IF(I61>=X53,"þ",IF(I61>=Y53,"G2",IF(I61>=Z53,"G3","")))))) ->  | AD61: =IF(OR(R61="",R61=0),"",IF(AA53="F","",IF(AA53="T",IF(R61<=X53,"þ",IF(R61<=Y53,"G2",IF(R61<=Z53,"G3","")))))) ->  | AE61: =IF(R61="","",IF(AA53="T","",IF(AA53="F",IF(R61>=X53,"þ",IF(R61>=Y53,"G2",IF(R61>=Z53,"G3","")))))) ->  | AJ61: 61
AJ62: 62
E63: =CONCATENATE(VLOOKUP(A64,mens_handbook,3,FALSE)," A") -> Men's 5000m A | H63: =IF(A64="","",IF(VLOOKUP(A64,Handbook!$A$4:$AI$24,35,FALSE)="Y","Wind=","")) ->  | O63: =CONCATENATE(VLOOKUP(A64,mens_handbook,3,FALSE)," B") -> Men's 5000m B | P63: =CONCATENATE(VLOOKUP(M64,Handbook!$A$4:$C$24,3,FALSE)," A") ->  | Q63: =H63 ->  | V63: =IF($A64="","",VLOOKUP($A64,Handbook!$A$4:$V$24,21,FALSE)) -> 00:13:45.800 | W63: =IF($A64="","",VLOOKUP($A64,Handbook!$A$4:$V$24,22,FALSE)) -> 00:13:45.800 | X63: =IF($A64="","",VLOOKUP($A64,Handbook!$A$4:$W$24,23,FALSE)) -> 00:16:45 | Y63: =IF($A64="","",VLOOKUP($A64,Handbook!$A$4:$X$24,24,FALSE)) -> 00:16:30 | Z63: =IF($A64="","",VLOOKUP($A64,Handbook!$A$4:$Y$24,25,FALSE)) -> 00:16:30 | AA63: =IF($A64="","",VLOOKUP($A64,Handbook!$A$4:$AH$24,34,FALSE)) -> T | AJ63: 63
A64: 21 | C64: =IF(F64="","",IF(F64>10,F64/11,F64)) ->  | D64: =IF(O64="","",IF(O64>10,O64/11,O64)) ->  | E64: 1 | F64: =IF(OR(M_5000m!D20=0,M_5000m!D20=""),"",M_5000m!D20) ->  | G64: =IF(OR($F64="",$F64=0),"",IF($F64>90,VLOOKUP(F64,eventcodes,2,FALSE),HLOOKUP(F64,mens_declare,B66,FALSE))) ->  | H64: =IF(OR($F64="",$F64=0),"",IF($F64>90,"",VLOOKUP(C64,matchday,2,FALSE))) ->  | I64: =IF(OR(M_5000m!G20=0,M_5000m!G20=""),"",M_5000m!G20) ->  | J64: =IF(I64="","",IF(AA63="T",V64,V65)) ->  | L64: =IF(AA63="T",AB64,AC64) ->  | N64: 1 | O64: =IF(OR(M_5000m!D29=0,M_5000m!D29=""),"",M_5000m!D29) ->  | P64: =IF(OR($O64="",$O64=0),"",IF($O64>90,VLOOKUP(O64,eventcodes,2,FALSE),HLOOKUP(O64,mens_declare,B66,FALSE))) ->  | Q64: =IF(OR($O64="",$O64=0),"",IF($O64>90,"",VLOOKUP(D64,matchday,2,FALSE))) ->  | R64: =IF(OR(M_5000m!G29=0,M_5000m!G29=""),"",M_5000m!G29) ->  | T64: =IF(AA63="T",AD64,AE64) ->  | V64: =IF(AA63="F","",IF(I64<V63,"LR",IF(I64=V63,"=LR",IF(I64<W63,"DR",IF(I64=W63,"=DR",""))))) ->  | AB64: =IF(OR(I64=0,I64=""),"",IF(AA63="F","",IF(AA63="T",IF(I64<=X63,"þ",IF(I64<=Y63,"G2",IF(I64<=Z63,"G3","")))))) ->  | AC64: =IF(I64="","",IF(AA63="T","",IF(AA63="F",IF(I64>=X63,"þ",IF(I64>=Y63,"G2",IF(I64>=Z63,"G3","")))))) ->  | AD64: =IF(OR(R64=0,R64=""),"",IF(AA63="F","",IF(AA63="T",IF(R64<=X63,"þ",IF(R64<=Y63,"G2",IF(R64<=Z63,"G3","")))))) ->  | AE64: =IF(R64="","",IF(AA63="T","",IF(AA63="F",IF(R64>=X63,"þ",IF(R64>=Y63,"G2",IF(R64>=Z63,"G3","")))))) ->  | AF64: =C64 ->  | AG64: =IF(F64="","",IF(LEFT(I64,1)="D",0,VLOOKUP(E64,$AQ$4:$AR$40,2,FALSE))) ->  | AH64: =D64 ->  | AI64: =IF(O64="","",IF(LEFT(R64,1)="D",0,VLOOKUP(N64,$AQ$4:$AS$40,3,FALSE))) ->  | AJ64: 64
B65: =VLOOKUP(A64,Handbook!$A$4:$AK$24,37,FALSE) -> 22 | C65: =IF(F65="","",IF(F65>10,F65/11,F65)) ->  | D65: =IF(O65="","",IF(O65>10,O65/11,O65)) ->  | E65: 2 | F65: =IF(OR(M_5000m!D21=0,M_5000m!D21=""),"",M_5000m!D21) ->  | G65: =IF(OR($F65="",$F65=0),"",IF($F65>90,VLOOKUP(F65,eventcodes,2,FALSE),HLOOKUP(F65,mens_declare,B66,FALSE))) ->  | I65: =IF(OR(M_5000m!G21=0,M_5000m!G21=""),"",M_5000m!G21) ->  | J65: =IF(OR(I65="",I65=0),"",IF(AND(AA63="T",I65<I64),"X",IF(AND(AA63="F",I65>I64),"X",""))) ->  | L65: =IF(AA63="T",AB65,AC65) ->  | N65: 2 | O65: =IF(OR(M_5000m!D30=0,M_5000m!D30=""),"",M_5000m!D30) ->  | P65: =IF(OR($O65="",$O65=0),"",IF($O65>90,VLOOKUP(O65,eventcodes,2,FALSE),HLOOKUP(O65,mens_declare,B66,FALSE))) ->  | R65: =IF(OR(M_5000m!G30=0,M_5000m!G30=""),"",M_5000m!G30) ->  | S65: =IF(OR(R65="",R65=0),"",IF(AND(AA63="T",R65<R64),"X",IF(AND(AA63="F",R65>R64),"X",""))) ->  | T65: =IF(AA63="T",AD65,AE65) ->  | V65: =IF(AA63="T","",IF(I64>V63,"LR",IF(I64=V63,"=LR",IF(I64>W63,"DR",IF(I64=W63,"=DR",""))))) ->  | AB65: =IF(OR(I65=0,I65=""),"",IF(AA63="F","",IF(AA63="T",IF(I65<=X63,"þ",IF(I65<=Y63,"G2",IF(I65<=Z63,"G3","")))))) ->  | AC65: =IF(I65="","",IF(AA63="T","",IF(AA63="F",IF(I65>=X63,"þ",IF(I65>=Y63,"G2",IF(I65>=Z63,"G3","")))))) ->  | AD65: =IF(OR(R65=0,R65=""),"",IF(AA63="F","",IF(AA63="T",IF(R65<=X63,"þ",IF(R65<=Y63,"G2",IF(R65<=Z63,"G3","")))))) ->  | AE65: =IF(R65="","",IF(AA63="T","",IF(AA63="F",IF(R65>=X63,"þ",IF(R65>=Y63,"G2",IF(R65>=Z63,"G3","")))))) ->  | AF65: =C65 ->  | AH65: =D65 ->  | AJ65: 65
B66: =VLOOKUP(A64,mens_declare,20,FALSE) -> 9 | E66: 3 | F66: =IF(OR(M_5000m!D22=0,M_5000m!D22=""),"",M_5000m!D22) ->  | G66: =IF(OR($F66="",$F66=0),"",IF($F66>90,VLOOKUP(F66,eventcodes,2,FALSE),HLOOKUP(F66,mens_declare,B66,FALSE))) ->  | I66: =IF(OR(M_5000m!G22=0,M_5000m!G22=""),"",M_5000m!G22) ->  | J66: =IF(OR(I66="",I66=0),"",IF(AND(AA63="T",I66<I65),"X",IF(AND(AA63="F",I66>I65),"X",""))) ->  | L66: =IF(AA63="T",AB66,AC66) ->  | N66: 3 | O66: =IF(OR(M_5000m!D31=0,M_5000m!D31=""),"",M_5000m!D31) ->  | P66: =IF(OR($O66="",$O66=0),"",IF($O66>90,VLOOKUP(O66,eventcodes,2,FALSE),HLOOKUP(O66,mens_declare,B66,FALSE))) ->  | R66: =IF(OR(M_5000m!G31=0,M_5000m!G31=""),"",M_5000m!G31) ->  | S66: =IF(OR(R66="",R66=0),"",IF(AND(AA64="T",R66<R65),"X",IF(AND(AA64="F",R66>R65),"X",""))) ->  | T66: =IF(AA63="T",AD66,AE66) ->  | AB66: =IF(OR(I66=0,I66=""),"",IF(AA63="F","",IF(AA63="T",IF(I66<=X63,"þ",IF(I66<=Y63,"G2",IF(I66<=Z63,"G3","")))))) ->  | AC66: =IF(I66="","",IF(AA63="T","",IF(AA63="F",IF(I66>=X63,"þ",IF(I66>=Y63,"G2",IF(I66>=Z63,"G3","")))))) ->  | AD66: =IF(OR(R66=0,R66=""),"",IF(AA63="F","",IF(AA63="T",IF(R66<=X63,"þ",IF(R66<=Y63,"G2",IF(R66<=Z63,"G3","")))))) ->  | AE66: =IF(R66="","",IF(AA63="T","",IF(AA63="F",IF(R66>=X63,"þ",IF(R66>=Y63,"G2",IF(R66>=Z63,"G3","")))))) ->  | AJ66: 66
E67: 4 | F67: =IF(OR(M_5000m!D23=0,M_5000m!D23=""),"",M_5000m!D23) ->  | G67: =IF(OR($F67="",$F67=0),"",IF($F67>90,VLOOKUP(F67,eventcodes,2,FALSE),HLOOKUP(F67,mens_declare,B66,FALSE))) ->  | I67: =IF(OR(M_5000m!G23=0,M_5000m!G23=""),"",M_5000m!G23) ->  | J67: =IF(OR(I67="",I67=0),"",IF(AND(AA63="T",I67<I66),"X",IF(AND(AA63="F",I67>I66),"X",""))) ->  | L67: =IF(AA63="T",AB67,AC67) ->  | N67: 4 | O67: =IF(OR(M_5000m!D32=0,M_5000m!D32=""),"",M_5000m!D32) ->  | P67: =IF(OR($O67="",$O67=0),"",IF($O67>90,VLOOKUP(O67,eventcodes,2,FALSE),HLOOKUP(O67,mens_declare,B66,FALSE))) ->  | R67: =IF(OR(M_5000m!G32=0,M_5000m!G32=""),"",M_5000m!G32) ->  | T67: =IF(AA63="T",AD67,AE67) ->  | AB67: =IF(OR(I67=0,I67=""),"",IF(AA63="F","",IF(AA63="T",IF(I67<=X63,"þ",IF(I67<=Y63,"G2",IF(I67<=Z63,"G3","")))))) ->  | AC67: =IF(I67="","",IF(AA63="T","",IF(AA63="F",IF(I67>=X63,"þ",IF(I67>=Y63,"G2",IF(I67>=Z63,"G3","")))))) ->  | AD67: =IF(OR(R67=0,R67=""),"",IF(AA63="F","",IF(AA63="T",IF(R67<=X63,"þ",IF(R67<=Y63,"G2",IF(R67<=Z63,"G3","")))))) ->  | AE67: =IF(R67="","",IF(AA63="T","",IF(AA63="F",IF(R67>=X63,"þ",IF(R67>=Y63,"G2",IF(R67>=Z63,"G3","")))))) ->  | AJ67: 67
E68: 5 | F68: =IF(OR(M_5000m!D24=0,M_5000m!D24=""),"",M_5000m!D24) ->  | G68: =IF(OR($F68="",$F68=0),"",IF($F68>90,VLOOKUP(F68,eventcodes,2,FALSE),HLOOKUP(F68,mens_declare,B66,FALSE))) ->  | I68: =IF(OR(M_5000m!G24=0,M_5000m!G24=""),"",M_5000m!G24) ->  | J68: =IF(OR(I68="",I68=0),"",IF(AND(AA63="T",I68<I67),"X",IF(AND(AA63="F",I68>I67),"X",""))) ->  | L68: =IF(AA63="T",AB68,AC68) ->  | N68: 5 | O68: =IF(OR(M_5000m!D33=0,M_5000m!D33=""),"",M_5000m!D33) ->  | P68: =IF(OR($O68="",$O68=0),"",IF($O68>90,VLOOKUP(O68,eventcodes,2,FALSE),HLOOKUP(O68,mens_declare,B66,FALSE))) ->  | R68: =IF(OR(M_5000m!G33=0,M_5000m!G33=""),"",M_5000m!G33) ->  | T68: =IF(AA63="T",AD68,AE68) ->  | AB68: =IF(OR(I68=0,I68=""),"",IF(AA63="F","",IF(AA63="T",IF(I68<=X63,"þ",IF(I68<=Y63,"G2",IF(I68<=Z63,"G3","")))))) ->  | AC68: =IF(I68="","",IF(AA63="T","",IF(AA63="F",IF(I68>=X63,"þ",IF(I68>=Y63,"G2",IF(I68>=Z63,"G3","")))))) ->  | AD68: =IF(OR(R68=0,R68=""),"",IF(AA63="F","",IF(AA63="T",IF(R68<=X63,"þ",IF(R68<=Y63,"G2",IF(R68<=Z63,"G3","")))))) ->  | AE68: =IF(R68="","",IF(AA63="T","",IF(AA63="F",IF(R68>=X63,"þ",IF(R68>=Y63,"G2",IF(R68>=Z63,"G3","")))))) ->  | AJ68: 68
E69: 6 | F69: =IF(OR(M_5000m!D25=0,M_5000m!D25=""),"",M_5000m!D25) ->  | G69: =IF(OR($F69="",$F69=0),"",IF($F69>90,VLOOKUP(F69,eventcodes,2,FALSE),HLOOKUP(F69,mens_declare,B66,FALSE))) ->  | I69: =IF(OR(M_5000m!G25=0,M_5000m!G25=""),"",M_5000m!G25) ->  | J69: =IF(OR(I69="",I69=0),"",IF(AND(AA63="T",I69<I68),"X",IF(AND(AA63="F",I69>I68),"X",""))) ->  | L69: =IF(AA63="T",AB69,AC69) ->  | N69: 6 | O69: =IF(OR(M_5000m!D34=0,M_5000m!D34=""),"",M_5000m!D34) ->  | P69: =IF(OR($O69="",$O69=0),"",IF($O69>90,VLOOKUP(O69,eventcodes,2,FALSE),HLOOKUP(O69,mens_declare,B66,FALSE))) ->  | R69: =IF(OR(M_5000m!G34=0,M_5000m!G34=""),"",M_5000m!G34) ->  | T69: =IF(AA63="T",AD69,AE69) ->  | AB69: =IF(OR(I69=0,I69=""),"",IF(AA63="F","",IF(AA63="T",IF(I69<=X63,"þ",IF(I69<=Y63,"G2",IF(I69<=Z63,"G3","")))))) ->  | AC69: =IF(I69="","",IF(AA63="T","",IF(AA63="F",IF(I69>=X63,"þ",IF(I69>=Y63,"G2",IF(I69>=Z63,"G3","")))))) ->  | AD69: =IF(OR(R69=0,R69=""),"",IF(AA63="F","",IF(AA63="T",IF(R69<=X63,"þ",IF(R69<=Y63,"G2",IF(R69<=Z63,"G3","")))))) ->  | AE69: =IF(R69="","",IF(AA63="T","",IF(AA63="F",IF(R69>=X63,"þ",IF(R69>=Y63,"G2",IF(R69>=Z63,"G3","")))))) ->  | AJ69: 69
E70: 7 | F70: =IF(OR(M_5000m!D26=0,M_5000m!D26=""),"",M_5000m!D26) ->  | G70: =IF(OR($F70="",$F70=0),"",IF($F70>90,VLOOKUP(F70,eventcodes,2,FALSE),HLOOKUP(F70,mens_declare,B66,FALSE))) ->  | I70: =IF(OR(M_5000m!G26=0,M_5000m!G26=""),"",M_5000m!G26) ->  | J70: =IF(OR(I70="",I70=0),"",IF(AND(AA63="T",I70<I69),"X",IF(AND(AA63="F",I70>I69),"X",""))) ->  | L70: =IF(AA63="T",AB70,AC70) ->  | N70: 7 | O70: =IF(OR(M_5000m!D35=0,M_5000m!D35=""),"",M_5000m!D35) ->  | P70: =IF(OR($O70="",$O70=0),"",IF($O70>90,VLOOKUP(O70,eventcodes,2,FALSE),HLOOKUP(O70,mens_declare,B66,FALSE))) ->  | R70: =IF(OR(M_5000m!G35=0,M_5000m!G35=""),"",M_5000m!G35) ->  | T70: =IF(AA63="T",AD70,AE70) ->  | AB70: =IF(OR(I70=0,I70=""),"",IF(AA63="F","",IF(AA63="T",IF(I70<=X63,"þ",IF(I70<=Y63,"G2",IF(I70<=Z63,"G3","")))))) ->  | AC70: =IF(I70="","",IF(AA63="T","",IF(AA63="F",IF(I70>=X63,"þ",IF(I70>=Y63,"G2",IF(I70>=Z63,"G3","")))))) ->  | AD70: =IF(OR(R70=0,R70=""),"",IF(AA63="F","",IF(AA63="T",IF(R70<=X63,"þ",IF(R70<=Y63,"G2",IF(R70<=Z63,"G3","")))))) ->  | AE70: =IF(R70="","",IF(AA63="T","",IF(AA63="F",IF(R70>=X63,"þ",IF(R70>=Y63,"G2",IF(R70>=Z63,"G3","")))))) ->  | AJ70: 70
E71: 8 | F71: =IF(OR(M_5000m!D27=0,M_5000m!D27=""),"",M_5000m!D27) ->  | G71: =IF(OR($F71="",$F71=0),"",IF($F71>90,VLOOKUP(F71,eventcodes,2,FALSE),HLOOKUP(F71,mens_declare,B66,FALSE))) ->  | I71: =IF(OR(M_5000m!G27=0,M_5000m!G27=""),"",M_5000m!G27) ->  | J71: =IF(OR(I71="",I71=0),"",IF(AND(AA63="T",I71<I70),"X",IF(AND(AA63="F",I71>I70),"X",""))) ->  | L71: =IF(AA63="T",AB71,AC71) ->  | N71: 8 | O71: =IF(OR(M_5000m!D36=0,M_5000m!D36=""),"",M_5000m!D36) ->  | P71: =IF(OR($O71="",$O71=0),"",IF($O71>90,VLOOKUP(O71,eventcodes,2,FALSE),HLOOKUP(O71,mens_declare,B66,FALSE))) ->  | R71: =IF(OR(M_5000m!G36=0,M_5000m!G36=""),"",M_5000m!G36) ->  | T71: =IF(AA63="T",AD71,AE71) ->  | AB71: =IF(OR(I71=0,I71=""),"",IF(AA63="F","",IF(AA63="T",IF(I71<=X63,"þ",IF(I71<=Y63,"G2",IF(I71<=Z63,"G3","")))))) ->  | AC71: =IF(I71="","",IF(AA63="T","",IF(AA63="F",IF(I71>=X63,"þ",IF(I71>=Y63,"G2",IF(I71>=Z63,"G3","")))))) ->  | AD71: =IF(OR(R71=0,R71=""),"",IF(AA63="F","",IF(AA63="T",IF(R71<=X63,"þ",IF(R71<=Y63,"G2",IF(R71<=Z63,"G3","")))))) ->  | AE71: =IF(R71="","",IF(AA63="T","",IF(AA63="F",IF(R71>=X63,"þ",IF(R71>=Y63,"G2",IF(R71>=Z63,"G3","")))))) ->  | AJ71: 71
AJ72: 72
E73: =CONCATENATE(VLOOKUP(A74,mens_handbook,3,FALSE)," A") -> Men's 400m Hurdles A | H73: =IF(A74="","",IF(VLOOKUP(A74,Handbook!$A$4:$AI$24,35,FALSE)="Y","Wind=","")) ->  | O73: =CONCATENATE(VLOOKUP(A74,mens_handbook,3,FALSE)," B") -> Men's 400m Hurdles B | P73: =CONCATENATE(VLOOKUP(M74,Handbook!$A$4:$C$24,3,FALSE)," A") ->  | Q73: =H73 ->  | V73: =IF($A74="","",VLOOKUP($A74,Handbook!$A$4:$V$24,21,FALSE)) -> 50.5 | W73: =IF($A74="","",VLOOKUP($A74,Handbook!$A$4:$V$24,22,FALSE)) -> 50.5 | X73: =IF($A74="","",VLOOKUP($A74,Handbook!$A$4:$W$24,23,FALSE)) -> 63 | Y73: =IF($A74="","",VLOOKUP($A74,Handbook!$A$4:$X$24,24,FALSE)) -> 58 | Z73: =IF($A74="","",VLOOKUP($A74,Handbook!$A$4:$Y$24,25,FALSE)) -> 58 | AA73: =IF($A74="","",VLOOKUP($A74,Handbook!$A$4:$AH$24,34,FALSE)) -> T | AJ73: 73
A74: 1 | C74: =IF(F74="","",IF(F74>10,F74/11,F74)) ->  | D74: =IF(O74="","",IF(O74>10,O74/11,O74)) ->  | E74: 1 | G74: =IF($F74="","",IF($F74>90,VLOOKUP(F74,eventcodes,2,FALSE),HLOOKUP(F74,mens_declare,B76,FALSE))) ->  | H74: =IF($F74="","",IF($F74>90,"",VLOOKUP(C74,matchday,2,FALSE))) ->  | J74: =IF(I74="","",IF(AA73="T",V74,V75)) ->  | L74: =IF(AA73="T",AB74,AC74) ->  | N74: 1 | P74: =IF($O74="","",HLOOKUP(O74,mens_declare,B76,FALSE)) ->  | Q74: =IF($O74="","",VLOOKUP(D74,matchday,2,FALSE)) ->  | T74: =IF(AA73="T",AD74,AE74) ->  | V74: =IF(AA73="F","",IF(I74<V73,"LR",IF(I74=V73,"=LR",IF(I74<W73,"DR",IF(I74=W73,"=DR",""))))) -> LR | AB74: =IF(I74="","",IF(AA73="F","",IF(AA73="T",IF(I74<=X73,"þ",IF(I74<=Y73,"G2",IF(I74<=Z73,"G3","")))))) ->  | AC74: =IF(I74="","",IF(AA73="T","",IF(AA73="F",IF(I74>=X73,"þ",IF(I74>=Y73,"G2",IF(I74>=Z73,"G3","")))))) ->  | AD74: =IF(R74="","",IF(AA73="F","",IF(AA73="T",IF(R74<=X73,"þ",IF(R74<=Y73,"G2",IF(R74<=Z73,"G3","")))))) ->  | AE74: =IF(R74="","",IF(AA73="T","",IF(AA73="F",IF(R74>=X73,"þ",IF(R74>=Y73,"G2",IF(R74>=Z73,"G3","")))))) ->  | AF74: =C74 ->  | AG74: =IF(F74="","",IF(LEFT(I74,1)="D",0,VLOOKUP(E74,$AQ$4:$AR$40,2,FALSE))) ->  | AH74: =D74 ->  | AI74: =IF(O74="","",IF(LEFT(R74,1)="D",0,VLOOKUP(N74,$AQ$4:$AS$40,3,FALSE))) ->  | AJ74: 74
B75: =VLOOKUP(A74,Handbook!$A$4:$AK$24,37,FALSE) -> 2 | C75: =IF(F75="","",IF(F75>10,F75/11,F75)) ->  | D75: =IF(O75="","",IF(O75>10,O75/11,O75)) ->  | E75: 2 | G75: =IF($F75="","",HLOOKUP(F75,mens_declare,B76,FALSE)) ->  | H75: =IF($F75="","",VLOOKUP(C75,matchday,2,FALSE)) ->  | J75: =IF(I75="","",IF(AND(AA73="T",I75<I74),"X",IF(AND(AA73="F",I75>I74),"X",""))) ->  | L75: =IF(AA73="T",AB75,AC75) ->  | N75: 2 | P75: =IF($O75="","",HLOOKUP(O75,mens_declare,B76,FALSE)) ->  | S75: =IF(R75="","",IF(AND(AA73="T",R75<R74),"X",IF(AND(AA73="F",R75>R74),"X",""))) ->  | T75: =IF(AA73="T",AD75,AE75) ->  | V75: =IF(AA73="T","",IF(I74>V73,"LR",IF(I74=V73,"=LR",IF(I74>W73,"DR",IF(I74=W73,"=DR",""))))) ->  | AB75: =IF(I75="","",IF(AA73="F","",IF(AA73="T",IF(I75<=X73,"þ",IF(I75<=Y73,"G2",IF(I75<=Z73,"G3","")))))) ->  | AC75: =IF(I75="","",IF(AA73="T","",IF(AA73="F",IF(I75>=X73,"þ",IF(I75>=Y73,"G2",IF(I75>=Z73,"G3","")))))) ->  | AD75: =IF(R75="","",IF(AA73="F","",IF(AA73="T",IF(R75<=X73,"þ",IF(R75<=Y73,"G2",IF(R75<=Z73,"G3","")))))) ->  | AE75: =IF(R75="","",IF(AA73="T","",IF(AA73="F",IF(R75>=X73,"þ",IF(R75>=Y73,"G2",IF(R75>=Z73,"G3","")))))) ->  | AF75: =C75 ->  | AH75: =D75 ->  | AJ75: 75
B76: =VLOOKUP(A74,mens_declare,20,FALSE) -> 10 | E76: 3 | G76: =IF($F76="","",HLOOKUP(F76,mens_declare,B76,FALSE)) ->  | J76: =IF(I76="","",IF(AND(AA73="T",I76<I75),"X",IF(AND(AA73="F",I76>I75),"X",""))) ->  | L76: =IF(AA73="T",AB76,AC76) ->  | N76: 3 | P76: =IF($O76="","",HLOOKUP(O76,mens_declare,B76,FALSE)) ->  | S76: =IF(R76="","",IF(AND(AA73="T",R76<R75),"X",IF(AND(AA73="F",R76>R75),"X",""))) ->  | T76: =IF(AA73="T",AD76,AE76) ->  | AB76: =IF(I76="","",IF(AA73="F","",IF(AA73="T",IF(I76<=X73,"þ",IF(I76<=Y73,"G2",IF(I76<=Z73,"G3","")))))) ->  | AC76: =IF(I76="","",IF(AA73="T","",IF(AA73="F",IF(I76>=X73,"þ",IF(I76>=Y73,"G2",IF(I76>=Z73,"G3","")))))) ->  | AD76: =IF(R76="","",IF(AA73="F","",IF(AA73="T",IF(R76<=X73,"þ",IF(R76<=Y73,"G2",IF(R76<=Z73,"G3","")))))) ->  | AE76: =IF(R76="","",IF(AA73="T","",IF(AA73="F",IF(R76>=X73,"þ",IF(R76>=Y73,"G2",IF(R76>=Z73,"G3","")))))) ->  | AJ76: 76
E77: 4 | G77: =IF($F77="","",HLOOKUP(F77,mens_declare,B76,FALSE)) ->  | J77: =IF(I77="","",IF(AND(AA73="T",I77<I76),"X",IF(AND(AA73="F",I77>I76),"X",""))) ->  | L77: =IF(AA73="T",AB77,AC77) ->  | N77: 4 | P77: =IF($O77="","",HLOOKUP(O77,mens_declare,B76,FALSE)) ->  | S77: =IF(R77="","",IF(AND(AA73="T",R77<R76),"X",IF(AND(AA73="F",R77>R76),"X",""))) ->  | T77: =IF(AA73="T",AD77,AE77) ->  | AB77: =IF(I77="","",IF(AA73="F","",IF(AA73="T",IF(I77<=X73,"þ",IF(I77<=Y73,"G2",IF(I77<=Z73,"G3","")))))) ->  | AC77: =IF(I77="","",IF(AA73="T","",IF(AA73="F",IF(I77>=X73,"þ",IF(I77>=Y73,"G2",IF(I77>=Z73,"G3","")))))) ->  | AD77: =IF(R77="","",IF(AA73="F","",IF(AA73="T",IF(R77<=X73,"þ",IF(R77<=Y73,"G2",IF(R77<=Z73,"G3","")))))) ->  | AE77: =IF(R77="","",IF(AA73="T","",IF(AA73="F",IF(R77>=X73,"þ",IF(R77>=Y73,"G2",IF(R77>=Z73,"G3","")))))) ->  | AJ77: 77
E78: 5 | G78: =IF($F78="","",HLOOKUP(F78,mens_declare,B76,FALSE)) ->  | J78: =IF(I78="","",IF(AND(AA73="T",I78<I77),"X",IF(AND(AA73="F",I78>I77),"X",""))) ->  | L78: =IF(AA73="T",AB78,AC78) ->  | N78: 5 | P78: =IF($O78="","",HLOOKUP(O78,mens_declare,B76,FALSE)) ->  | S78: =IF(R78="","",IF(AND(AA73="T",R78<R77),"X",IF(AND(AA73="F",R78>R77),"X",""))) ->  | T78: =IF(AA73="T",AD78,AE78) ->  | AB78: =IF(I78="","",IF(AA73="F","",IF(AA73="T",IF(I78<=X73,"þ",IF(I78<=Y73,"G2",IF(I78<=Z73,"G3","")))))) ->  | AC78: =IF(I78="","",IF(AA73="T","",IF(AA73="F",IF(I78>=X73,"þ",IF(I78>=Y73,"G2",IF(I78>=Z73,"G3","")))))) ->  | AD78: =IF(R78="","",IF(AA73="F","",IF(AA73="T",IF(R78<=X73,"þ",IF(R78<=Y73,"G2",IF(R78<=Z73,"G3","")))))) ->  | AE78: =IF(R78="","",IF(AA73="T","",IF(AA73="F",IF(R78>=X73,"þ",IF(R78>=Y73,"G2",IF(R78>=Z73,"G3","")))))) ->  | AJ78: 78
E79: 6 | G79: =IF($F79="","",HLOOKUP(F79,mens_declare,B76,FALSE)) ->  | J79: =IF(I79="","",IF(AND(AA73="T",I79<I78),"X",IF(AND(AA73="F",I79>I78),"X",""))) ->  | L79: =IF(AA73="T",AB79,AC79) ->  | N79: 6 | P79: =IF($O79="","",HLOOKUP(O79,mens_declare,B76,FALSE)) ->  | S79: =IF(R79="","",IF(AND(AA73="T",R79<R78),"X",IF(AND(AA73="F",R79>R78),"X",""))) ->  | T79: =IF(AA73="T",AD79,AE79) ->  | AB79: =IF(I79="","",IF(AA73="F","",IF(AA73="T",IF(I79<=X73,"þ",IF(I79<=Y73,"G2",IF(I79<=Z73,"G3","")))))) ->  | AC79: =IF(I79="","",IF(AA73="T","",IF(AA73="F",IF(I79>=X73,"þ",IF(I79>=Y73,"G2",IF(I79>=Z73,"G3","")))))) ->  | AD79: =IF(R79="","",IF(AA73="F","",IF(AA73="T",IF(R79<=X73,"þ",IF(R79<=Y73,"G2",IF(R79<=Z73,"G3","")))))) ->  | AE79: =IF(R79="","",IF(AA73="T","",IF(AA73="F",IF(R79>=X73,"þ",IF(R79>=Y73,"G2",IF(R79>=Z73,"G3","")))))) ->  | AJ79: 79
E80: 7 | G80: =IF($F80="","",HLOOKUP(F80,mens_declare,B76,FALSE)) ->  | J80: =IF(I80="","",IF(AND(AA73="T",I80<I79),"X",IF(AND(AA73="F",I80>I79),"X",""))) ->  | L80: =IF(AA73="T",AB80,AC80) ->  | N80: 7 | P80: =IF($O80="","",HLOOKUP(O80,mens_declare,B76,FALSE)) ->  | S80: =IF(R80="","",IF(AND(AA73="T",R80<R79),"X",IF(AND(AA73="F",R80>R79),"X",""))) ->  | T80: =IF(AA73="T",AD80,AE80) ->  | AB80: =IF(I80="","",IF(AA73="F","",IF(AA73="T",IF(I80<=X73,"þ",IF(I80<=Y73,"G2",IF(I80<=Z73,"G3","")))))) ->  | AC80: =IF(I80="","",IF(AA73="T","",IF(AA73="F",IF(I80>=X73,"þ",IF(I80>=Y73,"G2",IF(I80>=Z73,"G3","")))))) ->  | AD80: =IF(R80="","",IF(AA73="F","",IF(AA73="T",IF(R80<=X73,"þ",IF(R80<=Y73,"G2",IF(R80<=Z73,"G3","")))))) ->  | AE80: =IF(R80="","",IF(AA73="T","",IF(AA73="F",IF(R80>=X73,"þ",IF(R80>=Y73,"G2",IF(R80>=Z73,"G3","")))))) ->  | AJ80: 80
E81: 8 | G81: =IF($F81="","",HLOOKUP(F81,mens_declare,B76,FALSE)) ->  | J81: =IF(I81="","",IF(AND(AA73="T",I81<I80),"X",IF(AND(AA73="F",I81>I80),"X",""))) ->  | L81: =IF(AA73="T",AB81,AC81) ->  | N81: 8 | P81: =IF($O81="","",HLOOKUP(O81,mens_declare,B76,FALSE)) ->  | S81: =IF(R81="","",IF(AND(AA73="T",R81<R80),"X",IF(AND(AA73="F",R81>R80),"X",""))) ->  | T81: =IF(AA73="T",AD81,AE81) ->  | AB81: =IF(I81="","",IF(AA73="F","",IF(AA73="T",IF(I81<=X73,"þ",IF(I81<=Y73,"G2",IF(I81<=Z73,"G3","")))))) ->  | AC81: =IF(I81="","",IF(AA73="T","",IF(AA73="F",IF(I81>=X73,"þ",IF(I81>=Y73,"G2",IF(I81>=Z73,"G3","")))))) ->  | AD81: =IF(R81="","",IF(AA73="F","",IF(AA73="T",IF(R81<=X73,"þ",IF(R81<=Y73,"G2",IF(R81<=Z73,"G3","")))))) ->  | AE81: =IF(R81="","",IF(AA73="T","",IF(AA73="F",IF(R81>=X73,"þ",IF(R81>=Y73,"G2",IF(R81>=Z73,"G3","")))))) ->  | AJ81: 81
AJ82: 82
E83: =CONCATENATE(VLOOKUP(A84,mens_handbook,3,FALSE)," A") -> Men's 110m Hurdles A | H83: =IF(A84="","",IF(VLOOKUP(A84,Handbook!$A$4:$AI$24,35,FALSE)="Y","Wind=","")) -> Wind= | O83: =CONCATENATE(VLOOKUP(A84,mens_handbook,3,FALSE)," B") -> Men's 110m Hurdles B | Q83: =H83 -> Wind= | V83: =IF($A84="","",VLOOKUP($A84,Handbook!$A$4:$V$24,21,FALSE)) -> 14.4 | W83: =IF($A84="","",VLOOKUP($A84,Handbook!$A$4:$V$24,22,FALSE)) -> 14.4 | X83: =IF($A84="","",VLOOKUP($A84,Handbook!$A$4:$W$24,23,FALSE)) -> 18 | Y83: =IF($A84="","",VLOOKUP($A84,Handbook!$A$4:$X$24,24,FALSE)) -> 16 | Z83: =IF($A84="","",VLOOKUP($A84,Handbook!$A$4:$Y$24,25,FALSE)) -> 16 | AA83: =IF($A84="","",VLOOKUP($A84,Handbook!$A$4:$AH$24,34,FALSE)) -> T | AJ83: 83
A84: 6 | C84: =IF(F84="","",IF(F84>10,F84/11,F84)) ->  | D84: =IF(O84="","",IF(O84>10,O84/11,O84)) ->  | E84: 1 | G84: =IF($F84="","",IF($F84>90,VLOOKUP(F84,eventcodes,2,FALSE),HLOOKUP(F84,mens_declare,B86,FALSE))) ->  | H84: =IF($F84="","",IF($F84>90,"",VLOOKUP(C84,matchday,2,FALSE))) ->  | J84: =IF(I84="","",IF(AA83="T",V84,V85)) ->  | L84: =IF(AA83="T",AB84,AC84) ->  | N84: 1 | P84: =IF($O84="","",HLOOKUP(O84,mens_declare,B86,FALSE)) ->  | Q84: =IF($O84="","",VLOOKUP(D84,matchday,2,FALSE)) ->  | T84: =IF(AA83="T",AD84,AE84) ->  | V84: =IF(AA83="F","",IF(I84<V83,"LR",IF(I84=V83,"=LR",IF(I84<W83,"DR",IF(I84=W83,"=DR",""))))) -> LR | AB84: =IF(I84="","",IF(AA83="F","",IF(AA83="T",IF(I84<=X83,"þ",IF(I84<=Y83,"G2",IF(I84<=Z83,"G3","")))))) ->  | AC84: =IF(I84="","",IF(AA83="T","",IF(AA83="F",IF(I84>=X83,"þ",IF(I84>=Y83,"G2",IF(I84>=Z83,"G3","")))))) ->  | AD84: =IF(R84="","",IF(AA83="F","",IF(AA83="T",IF(R84<=X83,"þ",IF(R84<=Y83,"G2",IF(R84<=Z83,"G3","")))))) ->  | AE84: =IF(R84="","",IF(AA83="T","",IF(AA83="F",IF(R84>=X83,"þ",IF(R84>=Y83,"G2",IF(R84>=Z83,"G3","")))))) ->  | AF84: =C84 ->  | AG84: =IF(F84="","",IF(LEFT(I84,1)="D",0,VLOOKUP(E84,$AQ$4:$AR$40,2,FALSE))) ->  | AH84: =D84 ->  | AI84: =IF(O84="","",IF(LEFT(R84,1)="D",0,VLOOKUP(N84,$AQ$4:$AS$40,3,FALSE))) ->  | AJ84: 84
B85: =VLOOKUP(A84,Handbook!$A$4:$AK$24,37,FALSE) -> 7 | C85: =IF(F85="","",IF(F85>10,F85/11,F85)) ->  | D85: =IF(O85="","",IF(O85>10,O85/11,O85)) ->  | E85: 2 | G85: =IF($F85="","",HLOOKUP(F85,mens_declare,B86,FALSE)) ->  | H85: =IF($F85="","",VLOOKUP(C85,matchday,2,FALSE)) ->  | J85: =IF(I85="","",IF(AND(AA83="T",I85<I84),"X",IF(AND(AA83="F",I85>I84),"X",""))) ->  | L85: =IF(AA83="T",AB85,AC85) ->  | N85: 2 | P85: =IF($O85="","",HLOOKUP(O85,mens_declare,B86,FALSE)) ->  | S85: =IF(R85="","",IF(AND(AA83="T",R85<R84),"X",IF(AND(AA83="F",R85>R84),"X",""))) ->  | T85: =IF(AA83="T",AD85,AE85) ->  | V85: =IF(AA83="T","",IF(I84>V83,"LR",IF(I84=V83,"=LR",IF(I84>W83,"DR",IF(I84=W83,"=DR",""))))) ->  | AB85: =IF(I85="","",IF(AA83="F","",IF(AA83="T",IF(I85<=X83,"þ",IF(I85<=Y83,"G2",IF(I85<=Z83,"G3","")))))) ->  | AC85: =IF(I85="","",IF(AA83="T","",IF(AA83="F",IF(I85>=X83,"þ",IF(I85>=Y83,"G2",IF(I85>=Z83,"G3","")))))) ->  | AD85: =IF(R85="","",IF(AA83="F","",IF(AA83="T",IF(R85<=X83,"þ",IF(R85<=Y83,"G2",IF(R85<=Z83,"G3","")))))) ->  | AE85: =IF(R85="","",IF(AA83="T","",IF(AA83="F",IF(R85>=X83,"þ",IF(R85>=Y83,"G2",IF(R85>=Z83,"G3","")))))) ->  | AF85: =C85 ->  | AH85: =D85 ->  | AJ85: 85
B86: =VLOOKUP(A84,mens_declare,20,FALSE) -> 11 | E86: 3 | G86: =IF($F86="","",HLOOKUP(F86,mens_declare,B86,FALSE)) ->  | J86: =IF(I86="","",IF(AND(AA83="T",I86<I85),"X",IF(AND(AA83="F",I86>I85),"X",""))) ->  | L86: =IF(AA83="T",AB86,AC86) ->  | N86: 3 | P86: =IF($O86="","",HLOOKUP(O86,mens_declare,B86,FALSE)) ->  | S86: =IF(R86="","",IF(AND(AA83="T",R86<R85),"X",IF(AND(AA83="F",R86>R85),"X",""))) ->  | T86: =IF(AA83="T",AD86,AE86) ->  | AB86: =IF(I86="","",IF(AA83="F","",IF(AA83="T",IF(I86<=X83,"þ",IF(I86<=Y83,"G2",IF(I86<=Z83,"G3","")))))) ->  | AC86: =IF(I86="","",IF(AA83="T","",IF(AA83="F",IF(I86>=X83,"þ",IF(I86>=Y83,"G2",IF(I86>=Z83,"G3","")))))) ->  | AD86: =IF(R86="","",IF(AA83="F","",IF(AA83="T",IF(R86<=X83,"þ",IF(R86<=Y83,"G2",IF(R86<=Z83,"G3","")))))) ->  | AE86: =IF(R86="","",IF(AA83="T","",IF(AA83="F",IF(R86>=X83,"þ",IF(R86>=Y83,"G2",IF(R86>=Z83,"G3","")))))) ->  | AJ86: 86
E87: 4 | G87: =IF($F87="","",HLOOKUP(F87,mens_declare,B86,FALSE)) ->  | J87: =IF(I87="","",IF(AND(AA83="T",I87<I86),"X",IF(AND(AA83="F",I87>I86),"X",""))) ->  | L87: =IF(AA83="T",AB87,AC87) ->  | N87: 4 | P87: =IF($O87="","",HLOOKUP(O87,mens_declare,B86,FALSE)) ->  | S87: =IF(R87="","",IF(AND(AA83="T",R87<R86),"X",IF(AND(AA83="F",R87>R86),"X",""))) ->  | T87: =IF(AA83="T",AD87,AE87) ->  | AB87: =IF(I87="","",IF(AA83="F","",IF(AA83="T",IF(I87<=X83,"þ",IF(I87<=Y83,"G2",IF(I87<=Z83,"G3","")))))) ->  | AC87: =IF(I87="","",IF(AA83="T","",IF(AA83="F",IF(I87>=X83,"þ",IF(I87>=Y83,"G2",IF(I87>=Z83,"G3","")))))) ->  | AD87: =IF(R87="","",IF(AA83="F","",IF(AA83="T",IF(R87<=X83,"þ",IF(R87<=Y83,"G2",IF(R87<=Z83,"G3","")))))) ->  | AE87: =IF(R87="","",IF(AA83="T","",IF(AA83="F",IF(R87>=X83,"þ",IF(R87>=Y83,"G2",IF(R87>=Z83,"G3","")))))) ->  | AJ87: 87
E88: 5 | G88: =IF($F88="","",HLOOKUP(F88,mens_declare,B86,FALSE)) ->  | J88: =IF(I88="","",IF(AND(AA83="T",I88<I87),"X",IF(AND(AA83="F",I88>I87),"X",""))) ->  | L88: =IF(AA83="T",AB88,AC88) ->  | N88: 5 | P88: =IF($O88="","",HLOOKUP(O88,mens_declare,B86,FALSE)) ->  | S88: =IF(R88="","",IF(AND(AA83="T",R88<R87),"X",IF(AND(AA83="F",R88>R87),"X",""))) ->  | T88: =IF(AA83="T",AD88,AE88) ->  | AB88: =IF(I88="","",IF(AA83="F","",IF(AA83="T",IF(I88<=X83,"þ",IF(I88<=Y83,"G2",IF(I88<=Z83,"G3","")))))) ->  | AC88: =IF(I88="","",IF(AA83="T","",IF(AA83="F",IF(I88>=X83,"þ",IF(I88>=Y83,"G2",IF(I88>=Z83,"G3","")))))) ->  | AD88: =IF(R88="","",IF(AA83="F","",IF(AA83="T",IF(R88<=X83,"þ",IF(R88<=Y83,"G2",IF(R88<=Z83,"G3","")))))) ->  | AE88: =IF(R88="","",IF(AA83="T","",IF(AA83="F",IF(R88>=X83,"þ",IF(R88>=Y83,"G2",IF(R88>=Z83,"G3","")))))) ->  | AJ88: 88
E89: 6 | G89: =IF($F89="","",HLOOKUP(F89,mens_declare,B86,FALSE)) ->  | J89: =IF(I89="","",IF(AND(AA83="T",I89<I88),"X",IF(AND(AA83="F",I89>I88),"X",""))) ->  | L89: =IF(AA83="T",AB89,AC89) ->  | N89: 6 | P89: =IF($O89="","",HLOOKUP(O89,mens_declare,B86,FALSE)) ->  | S89: =IF(R89="","",IF(AND(AA83="T",R89<R88),"X",IF(AND(AA83="F",R89>R88),"X",""))) ->  | T89: =IF(AA83="T",AD89,AE89) ->  | AB89: =IF(I89="","",IF(AA83="F","",IF(AA83="T",IF(I89<=X83,"þ",IF(I89<=Y83,"G2",IF(I89<=Z83,"G3","")))))) ->  | AC89: =IF(I89="","",IF(AA83="T","",IF(AA83="F",IF(I89>=X83,"þ",IF(I89>=Y83,"G2",IF(I89>=Z83,"G3","")))))) ->  | AD89: =IF(R89="","",IF(AA83="F","",IF(AA83="T",IF(R89<=X83,"þ",IF(R89<=Y83,"G2",IF(R89<=Z83,"G3","")))))) ->  | AE89: =IF(R89="","",IF(AA83="T","",IF(AA83="F",IF(R89>=X83,"þ",IF(R89>=Y83,"G2",IF(R89>=Z83,"G3","")))))) ->  | AJ89: 89
E90: 7 | G90: =IF($F90="","",HLOOKUP(F90,mens_declare,B86,FALSE)) ->  | J90: =IF(I90="","",IF(AND(AA83="T",I90<I89),"X",IF(AND(AA83="F",I90>I89),"X",""))) ->  | L90: =IF(AA83="T",AB90,AC90) ->  | N90: 7 | P90: =IF($O90="","",HLOOKUP(O90,mens_declare,B86,FALSE)) ->  | S90: =IF(R90="","",IF(AND(AA83="T",R90<R89),"X",IF(AND(AA83="F",R90>R89),"X",""))) ->  | T90: =IF(AA83="T",AD90,AE90) ->  | AB90: =IF(I90="","",IF(AA83="F","",IF(AA83="T",IF(I90<=X83,"þ",IF(I90<=Y83,"G2",IF(I90<=Z83,"G3","")))))) ->  | AC90: =IF(I90="","",IF(AA83="T","",IF(AA83="F",IF(I90>=X83,"þ",IF(I90>=Y83,"G2",IF(I90>=Z83,"G3","")))))) ->  | AD90: =IF(R90="","",IF(AA83="F","",IF(AA83="T",IF(R90<=X83,"þ",IF(R90<=Y83,"G2",IF(R90<=Z83,"G3","")))))) ->  | AE90: =IF(R90="","",IF(AA83="T","",IF(AA83="F",IF(R90>=X83,"þ",IF(R90>=Y83,"G2",IF(R90>=Z83,"G3","")))))) ->  | AJ90: 90
E91: 8 | G91: =IF($F91="","",HLOOKUP(F91,mens_declare,B86,FALSE)) ->  | J91: =IF(I91="","",IF(AND(AA83="T",I91<I90),"X",IF(AND(AA83="F",I91>I90),"X",""))) ->  | L91: =IF(AA83="T",AB91,AC91) ->  | N91: 8 | P91: =IF($O91="","",HLOOKUP(O91,mens_declare,B86,FALSE)) ->  | S91: =IF(R91="","",IF(AND(AA83="T",R91<R90),"X",IF(AND(AA83="F",R91>R90),"X",""))) ->  | T91: =IF(AA83="T",AD91,AE91) ->  | AB91: =IF(I91="","",IF(AA83="F","",IF(AA83="T",IF(I91<=X83,"þ",IF(I91<=Y83,"G2",IF(I91<=Z83,"G3","")))))) ->  | AC91: =IF(I91="","",IF(AA83="T","",IF(AA83="F",IF(I91>=X83,"þ",IF(I91>=Y83,"G2",IF(I91>=Z83,"G3","")))))) ->  | AD91: =IF(R91="","",IF(AA83="F","",IF(AA83="T",IF(R91<=X83,"þ",IF(R91<=Y83,"G2",IF(R91<=Z83,"G3","")))))) ->  | AE91: =IF(R91="","",IF(AA83="T","",IF(AA83="F",IF(R91>=X83,"þ",IF(R91>=Y83,"G2",IF(R91>=Z83,"G3","")))))) ->  | AJ91: 91
AJ92: 92
C93: =VLOOKUP(A94,Handbook!$A$4:$AK$24,36,FALSE) -> D | E93: =CONCATENATE(VLOOKUP(A94,mens_handbook,3,FALSE)," A") -> Men's Hammer A | H93: =IF(A94="","",IF(VLOOKUP(A94,Handbook!$A$4:$AI$24,35,FALSE)="Y","Wind=","")) ->  | O93: =CONCATENATE(VLOOKUP(A94,mens_handbook,3,FALSE)," B") -> Men's Hammer B | Q93: =H93 ->  | R93: =IF(I93="","",I93) ->  | V93: =IF($A94="","",VLOOKUP($A94,Handbook!$A$4:$V$24,21,FALSE)) -> 72.94 | W93: =IF($A94="","",VLOOKUP($A94,Handbook!$A$4:$V$24,22,FALSE)) -> 72.94 | X93: =IF($A94="","",VLOOKUP($A94,Handbook!$A$4:$W$24,23,FALSE)) -> 26 | Y93: =IF($A94="","",VLOOKUP($A94,Handbook!$A$4:$X$24,24,FALSE)) -> 40 | Z93: =IF($A94="","",VLOOKUP($A94,Handbook!$A$4:$Y$24,25,FALSE)) -> 40 | AA93: =IF($A94="","",VLOOKUP($A94,Handbook!$A$4:$AH$24,34,FALSE)) -> F | AJ93: 93
A94: 11 | C94: =IF(F94="","",IF(F94>10,F94/11,F94)) ->  | D94: =IF(O94="","",IF(O94>10,O94/11,O94)) ->  | E94: ='Mens Hammer'!$E$26 -> 1 | F94: =IF('Mens Hammer'!$I$26=0,"",'Mens Hammer'!$F$26) ->  | G94: =IF(OR($F94="",$F94=0),"",IF($F94>90,VLOOKUP(F94,eventcodes,2,FALSE),HLOOKUP(F94,mens_declare,B96,FALSE))) ->  | H94: =IF(OR($F94="",$F94=0),"",IF($F94>90,"",VLOOKUP(C94,matchday,2,FALSE))) ->  | I94: =IF('Mens Hammer'!$I$26=0,"",'Mens Hammer'!$I$26) ->  | J94: =IF(I94="","",IF(AA93="T",V94,V95)) ->  | L94: =IF(AA93="T",AB94,AC94) ->  | N94: ='Mens Hammer'!$K$26 -> 1 | O94: =IF('Mens Hammer'!$I$26=0,"",'Mens Hammer'!$L$26) ->  | P94: =IF(OR($O94="",$O94=0),"",HLOOKUP(O94,mens_declare,B96,FALSE)) ->  | Q94: =IF(OR($O94="",$O94=0),"",VLOOKUP(D94,matchday,2,FALSE)) ->  | R94: =IF('Mens Hammer'!$I$26=0,"",'Mens Hammer'!$U$26) ->  | T94: =IF(AA93="T",AD94,AE94) ->  | V94: =IF(AA93="F","",IF(I94<V93,"LR",IF(I94=V93,"=LR",IF(I94<W93,"DR",IF(I94=W93,"=DR",""))))) ->  | AB94: =IF(I94="","",IF(AA93="F","",IF(AA93="T",IF(I94<=X93,"þ",IF(I94<=Y93,"G2",IF(I94<=Z93,"G3","")))))) ->  | AC94: =IF(I94="","",IF(AA93="T","",IF(AA93="F",IF(I94>=X93,"þ",IF(I94>=Y93,"G2",IF(I94>=Z93,"G3","")))))) ->  | AD94: =IF(R94="","",IF(AA93="F","",IF(AA93="T",IF(R94<=X93,"þ",IF(R94<=Y93,"G2",IF(R94<=Z93,"G3","")))))) ->  | AE94: =IF(R94="","",IF(AA93="T","",IF(AA93="F",IF(R94>=X93,"þ",IF(R94>=Y93,"G2",IF(R94>=Z93,"G3","")))))) ->  | AF94: =C94 ->  | AG94: =IF(F94="","",IF(LEFT(I94,1)="D",0,VLOOKUP(E94,$AQ$4:$AR$40,2,FALSE))) ->  | AH94: =D94 ->  | AI94: =IF(O94="","",IF(LEFT(R94,1)="D",0,VLOOKUP(N94,$AQ$4:$AS$40,3,FALSE))) ->  | AJ94: 94
B95: =VLOOKUP(A94,Handbook!$A$4:$AK$24,37,FALSE) -> 12 | C95: =IF(F95="","",IF(F95>10,F95/11,F95)) ->  | D95: =IF(O95="","",IF(O95>10,O95/11,O95)) ->  | E95: ='Mens Hammer'!$E$27 -> 2 | F95: =IF('Mens Hammer'!$I$26=0,"",'Mens Hammer'!$F$27) ->  | G95: =IF(OR($F95="",$F95=0),"",IF($F95>90,VLOOKUP(F95,eventcodes,2,FALSE),HLOOKUP(F95,mens_declare,B96,FALSE))) ->  | I95: =IF('Mens Hammer'!$I$26=0,"",'Mens Hammer'!$I$27) ->  | L95: =IF(AA93="T",AB95,AC95) ->  | N95: ='Mens Hammer'!$K$27 -> 2 | O95: =IF('Mens Hammer'!$I$26=0,"",'Mens Hammer'!$L$27) ->  | P95: =IF(OR($O95="",$O95=0),"",HLOOKUP(O95,mens_declare,B96,FALSE)) ->  | R95: =IF('Mens Hammer'!$I$26=0,"",'Mens Hammer'!$U$27) ->  | T95: =IF(AA93="T",AD95,AE95) ->  | V95: =IF(AA93="T","",IF(I94>V93,"LR",IF(I94=V93,"=LR",IF(I94>W93,"DR",IF(I94=W93,"=DR",""))))) -> LR | AB95: =IF(I95="","",IF(AA93="F","",IF(AA93="T",IF(I95<=X93,"þ",IF(I95<=Y93,"G2",IF(I95<=Z93,"G3","")))))) ->  | AC95: =IF(I95="","",IF(AA93="T","",IF(AA93="F",IF(I95>=X93,"þ",IF(I95>=Y93,"G2",IF(I95>=Z93,"G3","")))))) ->  | AD95: =IF(R95="","",IF(AA93="F","",IF(AA93="T",IF(R95<=X93,"þ",IF(R95<=Y93,"G2",IF(R95<=Z93,"G3","")))))) ->  | AE95: =IF(R95="","",IF(AA93="T","",IF(AA93="F",IF(R95>=X93,"þ",IF(R95>=Y93,"G2",IF(R95>=Z93,"G3","")))))) ->  | AF95: =C95 ->  | AH95: =D95 ->  | AJ95: 95
B96: =VLOOKUP(A94,mens_declare,20,FALSE) -> 12 | E96: ='Mens Hammer'!$E$28 -> 3 | F96: =IF('Mens Hammer'!$I$26=0,"",'Mens Hammer'!$F$28) ->  | G96: =IF(OR($F96="",$F96=0),"",IF($F96>90,VLOOKUP(F96,eventcodes,2,FALSE),HLOOKUP(F96,mens_declare,B96,FALSE))) ->  | I96: =IF('Mens Hammer'!$I$26=0,"",'Mens Hammer'!$I$28) ->  | L96: =IF(AA93="T",AB96,AC96) ->  | N96: ='Mens Hammer'!$K$28 -> 3 | O96: =IF('Mens Hammer'!$I$26=0,"",'Mens Hammer'!$L$28) ->  | P96: =IF(OR($O96="",$O96=0),"",HLOOKUP(O96,mens_declare,B96,FALSE)) ->  | R96: =IF('Mens Hammer'!$I$26=0,"",'Mens Hammer'!$U$28) ->  | T96: =IF(AA93="T",AD96,AE96) ->  | AB96: =IF(I96="","",IF(AA93="F","",IF(AA93="T",IF(I96<=X93,"þ",IF(I96<=Y93,"G2",IF(I96<=Z93,"G3","")))))) ->  | AC96: =IF(I96="","",IF(AA93="T","",IF(AA93="F",IF(I96>=X93,"þ",IF(I96>=Y93,"G2",IF(I96>=Z93,"G3","")))))) ->  | AD96: =IF(R96="","",IF(AA93="F","",IF(AA93="T",IF(R96<=X93,"þ",IF(R96<=Y93,"G2",IF(R96<=Z93,"G3","")))))) ->  | AE96: =IF(R96="","",IF(AA93="T","",IF(AA93="F",IF(R96>=X93,"þ",IF(R96>=Y93,"G2",IF(R96>=Z93,"G3","")))))) ->  | AJ96: 96
E97: ='Mens Hammer'!$E$29 -> 4 | F97: =IF('Mens Hammer'!$I$26=0,"",'Mens Hammer'!$F$29) ->  | G97: =IF(OR($F97="",$F97=0),"",IF($F97>90,VLOOKUP(F97,eventcodes,2,FALSE),HLOOKUP(F97,mens_declare,B96,FALSE))) ->  | I97: =IF('Mens Hammer'!$I$26=0,"",'Mens Hammer'!$I$29) ->  | L97: =IF(AA93="T",AB97,AC97) ->  | N97: ='Mens Hammer'!$K$29 -> 4 | O97: =IF('Mens Hammer'!$I$26=0,"",'Mens Hammer'!$L$29) ->  | P97: =IF(OR($O97="",$O97=0),"",HLOOKUP(O97,mens_declare,B96,FALSE)) ->  | R97: =IF('Mens Hammer'!$I$26=0,"",'Mens Hammer'!$U$29) ->  | T97: =IF(AA93="T",AD97,AE97) ->  | AB97: =IF(I97="","",IF(AA93="F","",IF(AA93="T",IF(I97<=X93,"þ",IF(I97<=Y93,"G2",IF(I97<=Z93,"G3","")))))) ->  | AC97: =IF(I97="","",IF(AA93="T","",IF(AA93="F",IF(I97>=X93,"þ",IF(I97>=Y93,"G2",IF(I97>=Z93,"G3","")))))) ->  | AD97: =IF(R97="","",IF(AA93="F","",IF(AA93="T",IF(R97<=X93,"þ",IF(R97<=Y93,"G2",IF(R97<=Z93,"G3","")))))) ->  | AE97: =IF(R97="","",IF(AA93="T","",IF(AA93="F",IF(R97>=X93,"þ",IF(R97>=Y93,"G2",IF(R97>=Z93,"G3","")))))) ->  | AJ97: 97
E98: ='Mens Hammer'!$E$30 -> 5 | F98: =IF('Mens Hammer'!$I$26=0,"",'Mens Hammer'!$F$30) ->  | G98: =IF(OR($F98="",$F98=0),"",IF($F98>90,VLOOKUP(F98,eventcodes,2,FALSE),HLOOKUP(F98,mens_declare,B96,FALSE))) ->  | I98: =IF('Mens Hammer'!$I$26=0,"",'Mens Hammer'!$I$30) ->  | L98: =IF(AA93="T",AB98,AC98) ->  | N98: ='Mens Hammer'!$K$30 -> 5 | O98: =IF('Mens Hammer'!$I$26=0,"",'Mens Hammer'!$L$30) ->  | P98: =IF(OR($O98="",$O98=0),"",HLOOKUP(O98,mens_declare,B96,FALSE)) ->  | R98: =IF('Mens Hammer'!$I$26=0,"",'Mens Hammer'!$U$30) ->  | T98: =IF(AA93="T",AD98,AE98) ->  | AB98: =IF(I98="","",IF(AA93="F","",IF(AA93="T",IF(I98<=X93,"þ",IF(I98<=Y93,"G2",IF(I98<=Z93,"G3","")))))) ->  | AC98: =IF(I98="","",IF(AA93="T","",IF(AA93="F",IF(I98>=X93,"þ",IF(I98>=Y93,"G2",IF(I98>=Z93,"G3","")))))) ->  | AD98: =IF(R98="","",IF(AA93="F","",IF(AA93="T",IF(R98<=X93,"þ",IF(R98<=Y93,"G2",IF(R98<=Z93,"G3","")))))) ->  | AE98: =IF(R98="","",IF(AA93="T","",IF(AA93="F",IF(R98>=X93,"þ",IF(R98>=Y93,"G2",IF(R98>=Z93,"G3","")))))) ->  | AJ98: 98
E99: ='Mens Hammer'!$E$31 -> 6 | F99: =IF('Mens Hammer'!$I$26=0,"",'Mens Hammer'!$F$31) ->  | G99: =IF(OR($F99="",$F99=0),"",IF($F99>90,VLOOKUP(F99,eventcodes,2,FALSE),HLOOKUP(F99,mens_declare,B96,FALSE))) ->  | I99: =IF('Mens Hammer'!$I$26=0,"",'Mens Hammer'!$I$31) ->  | L99: =IF(AA93="T",AB99,AC99) ->  | N99: ='Mens Hammer'!$K$31 -> 6 | O99: =IF('Mens Hammer'!$I$26=0,"",'Mens Hammer'!$L$31) ->  | P99: =IF(OR($O99="",$O99=0),"",HLOOKUP(O99,mens_declare,B96,FALSE)) ->  | R99: =IF('Mens Hammer'!$I$26=0,"",'Mens Hammer'!$U$31) ->  | T99: =IF(AA93="T",AD99,AE99) ->  | AB99: =IF(I99="","",IF(AA93="F","",IF(AA93="T",IF(I99<=X93,"þ",IF(I99<=Y93,"G2",IF(I99<=Z93,"G3","")))))) ->  | AC99: =IF(I99="","",IF(AA93="T","",IF(AA93="F",IF(I99>=X93,"þ",IF(I99>=Y93,"G2",IF(I99>=Z93,"G3","")))))) ->  | AD99: =IF(R99="","",IF(AA93="F","",IF(AA93="T",IF(R99<=X93,"þ",IF(R99<=Y93,"G2",IF(R99<=Z93,"G3","")))))) ->  | AE99: =IF(R99="","",IF(AA93="T","",IF(AA93="F",IF(R99>=X93,"þ",IF(R99>=Y93,"G2",IF(R99>=Z93,"G3","")))))) ->  | AJ99: 99
E100: ='Mens Hammer'!$E$32 -> 7 | F100: =IF('Mens Hammer'!$I$26=0,"",'Mens Hammer'!$F$32) ->  | G100: =IF(OR($F100="",$F100=0),"",IF($F100>90,VLOOKUP(F100,eventcodes,2,FALSE),HLOOKUP(F100,mens_declare,B96,FALSE))) ->  | I100: =IF('Mens Hammer'!$I$26=0,"",'Mens Hammer'!$I$32) ->  | L100: =IF(AA93="T",AB100,AC100) ->  | N100: ='Mens Hammer'!$K$32 -> 7 | O100: =IF('Mens Hammer'!$I$26=0,"",'Mens Hammer'!$L$32) ->  | P100: =IF(OR($O100="",$O100=0),"",HLOOKUP(O100,mens_declare,B96,FALSE)) ->  | R100: =IF('Mens Hammer'!$I$26=0,"",'Mens Hammer'!$U$32) ->  | T100: =IF(AA93="T",AD100,AE100) ->  | AB100: =IF(I100="","",IF(AA93="F","",IF(AA93="T",IF(I100<=X93,"þ",IF(I100<=Y93,"G2",IF(I100<=Z93,"G3","")))))) ->  | AC100: =IF(I100="","",IF(AA93="T","",IF(AA93="F",IF(I100>=X93,"þ",IF(I100>=Y93,"G2",IF(I100>=Z93,"G3","")))))) ->  | AD100: =IF(R100="","",IF(AA93="F","",IF(AA93="T",IF(R100<=X93,"þ",IF(R100<=Y93,"G2",IF(R100<=Z93,"G3","")))))) ->  | AE100: =IF(R100="","",IF(AA93="T","",IF(AA93="F",IF(R100>=X93,"þ",IF(R100>=Y93,"G2",IF(R100>=Z93,"G3","")))))) ->  | AJ100: 100
E101: ='Mens Hammer'!$E$33 -> 8 | F101: =IF('Mens Hammer'!$I$26=0,"",'Mens Hammer'!$F$33) ->  | G101: =IF(OR($F101="",$F101=0),"",IF($F101>90,VLOOKUP(F101,eventcodes,2,FALSE),HLOOKUP(F101,mens_declare,B96,FALSE))) ->  | I101: =IF('Mens Hammer'!$I$26=0,"",'Mens Hammer'!$I$33) ->  | L101: =IF(AA93="T",AB101,AC101) ->  | N101: ='Mens Hammer'!$K$33 -> 8 | O101: =IF('Mens Hammer'!$I$26=0,"",'Mens Hammer'!$L$33) ->  | P101: =IF(OR($O101="",$O101=0),"",HLOOKUP(O101,mens_declare,B96,FALSE)) ->  | R101: =IF('Mens Hammer'!$I$26=0,"",'Mens Hammer'!$U$33) ->  | T101: =IF(AA93="T",AD101,AE101) ->  | AB101: =IF(I101="","",IF(AA93="F","",IF(AA93="T",IF(I101<=X93,"þ",IF(I101<=Y93,"G2",IF(I101<=Z93,"G3","")))))) ->  | AC101: =IF(I101="","",IF(AA93="T","",IF(AA93="F",IF(I101>=X93,"þ",IF(I101>=Y93,"G2",IF(I101>=Z93,"G3","")))))) ->  | AD101: =IF(R101="","",IF(AA93="F","",IF(AA93="T",IF(R101<=X93,"þ",IF(R101<=Y93,"G2",IF(R101<=Z93,"G3","")))))) ->  | AE101: =IF(R101="","",IF(AA93="T","",IF(AA93="F",IF(R101>=X93,"þ",IF(R101>=Y93,"G2",IF(R101>=Z93,"G3","")))))) ->  | AJ101: 101
AJ102: 102
C103: =VLOOKUP(A104,Handbook!$A$4:$AK$24,36,FALSE) -> D | E103: =CONCATENATE(VLOOKUP(A104,mens_handbook,3,FALSE)," A") -> Men's Discus A | H103: =IF(A104="","",IF(VLOOKUP(A104,Handbook!$A$4:$AI$24,35,FALSE)="Y","Wind=","")) ->  | O103: =CONCATENATE(VLOOKUP(A104,mens_handbook,3,FALSE)," B") -> Men's Discus B | Q103: =H103 ->  | R103: =IF(I103="","",I103) ->  | V103: =IF($A104="","",VLOOKUP($A104,Handbook!$A$4:$V$24,21,FALSE)) -> 60.19 | W103: =IF($A104="","",VLOOKUP($A104,Handbook!$A$4:$V$24,22,FALSE)) -> 60.19 | X103: =IF($A104="","",VLOOKUP($A104,Handbook!$A$4:$W$24,23,FALSE)) -> 28 | Y103: =IF($A104="","",VLOOKUP($A104,Handbook!$A$4:$X$24,24,FALSE)) -> 35 | Z103: =IF($A104="","",VLOOKUP($A104,Handbook!$A$4:$Y$24,25,FALSE)) -> 35 | AA103: =IF($A104="","",VLOOKUP($A104,Handbook!$A$4:$AH$24,34,FALSE)) -> F | AJ103: 103
A104: 15 | C104: =IF(F104="","",IF(F104>10,F104/11,F104)) ->  | D104: =IF(O104="","",IF(O104>10,O104/11,O104)) ->  | E104: ='Mens Discus'!$E$26 -> 1 | F104: =IF('Mens Discus'!$I$26=0,"",'Mens Discus'!$F$26) ->  | G104: =IF(OR($F104="",$F104=0),"",IF($F104>90,VLOOKUP(F104,eventcodes,2,FALSE),HLOOKUP(F104,mens_declare,B106,FALSE))) ->  | H104: =IF(OR($F104="",$F104=0),"",IF($F104>90,"",VLOOKUP(C104,matchday,2,FALSE))) ->  | I104: =IF('Mens Discus'!$I$26=0,"",'Mens Discus'!$I$26) ->  | J104: =IF(I104="","",IF(AA103="T",V104,V105)) ->  | L104: =IF(AA103="T",AB104,AC104) ->  | N104: ='Mens Discus'!$K$26 -> 1 | O104: =IF('Mens Discus'!$I$26=0,"",'Mens Discus'!$L$26) ->  | P104: =IF(OR($O104="",$O104=0),"",HLOOKUP(O104,mens_declare,B106,FALSE)) ->  | Q104: =IF(OR($O104="",$O104=0),"",VLOOKUP(D104,matchday,2,FALSE)) ->  | R104: =IF('Mens Discus'!$I$26=0,"",'Mens Discus'!$U$26) ->  | T104: =IF(AA103="T",AD104,AE104) ->  | V104: =IF(AA103="F","",IF(I104<V103,"LR",IF(I104=V103,"=LR",IF(I104<W103,"DR",IF(I104=W103,"=DR",""))))) ->  | AB104: =IF(I104="","",IF(AA103="F","",IF(AA103="T",IF(I104<=X103,"þ",IF(I104<=Y103,"G2",IF(I104<=Z103,"G3","")))))) ->  | AC104: =IF(I104="","",IF(AA103="T","",IF(AA103="F",IF(I104>=X103,"þ",IF(I104>=Y103,"G2",IF(I104>=Z103,"G3","")))))) ->  | AD104: =IF(R104="","",IF(AA103="F","",IF(AA103="T",IF(R104<=X103,"þ",IF(R104<=Y103,"G2",IF(R104<=Z103,"G3","")))))) ->  | AE104: =IF(R104="","",IF(AA103="T","",IF(AA103="F",IF(R104>=X103,"þ",IF(R104>=Y103,"G2",IF(R104>=Z103,"G3","")))))) ->  | AF104: =C104 ->  | AG104: =IF(F104="","",IF(LEFT(I104,1)="D",0,VLOOKUP(E104,$AQ$4:$AR$40,2,FALSE))) ->  | AH104: =D104 ->  | AI104: =IF(O104="","",IF(LEFT(R104,1)="D",0,VLOOKUP(N104,$AQ$4:$AS$40,3,FALSE))) ->  | AJ104: 104
B105: =VLOOKUP(A104,Handbook!$A$4:$AK$24,37,FALSE) -> 16 | C105: =IF(F105="","",IF(F105>10,F105/11,F105)) ->  | D105: =IF(O105="","",IF(O105>10,O105/11,O105)) ->  | E105: ='Mens Discus'!$E$27 -> 2 | F105: =IF('Mens Discus'!$I$26=0,"",'Mens Discus'!$F$27) ->  | G105: =IF(OR($F105="",$F105=0),"",IF($F105>90,VLOOKUP(F105,eventcodes,2,FALSE),HLOOKUP(F105,mens_declare,B106,FALSE))) ->  | I105: =IF('Mens Discus'!$I$26=0,"",'Mens Discus'!$I$27) ->  | L105: =IF(AA103="T",AB105,AC105) ->  | N105: ='Mens Discus'!$K$27 -> 2 | O105: =IF('Mens Discus'!$I$26=0,"",'Mens Discus'!$L$27) ->  | P105: =IF(OR($O105="",$O105=0),"",HLOOKUP(O105,mens_declare,B106,FALSE)) ->  | R105: =IF('Mens Discus'!$I$26=0,"",'Mens Discus'!$U$27) ->  | T105: =IF(AA103="T",AD105,AE105) ->  | V105: =IF(AA103="T","",IF(I104>V103,"LR",IF(I104=V103,"=LR",IF(I104>W103,"DR",IF(I104=W103,"=DR",""))))) -> LR | AB105: =IF(I105="","",IF(AA103="F","",IF(AA103="T",IF(I105<=X103,"þ",IF(I105<=Y103,"G2",IF(I105<=Z103,"G3","")))))) ->  | AC105: =IF(I105="","",IF(AA103="T","",IF(AA103="F",IF(I105>=X103,"þ",IF(I105>=Y103,"G2",IF(I105>=Z103,"G3","")))))) ->  | AD105: =IF(R105="","",IF(AA103="F","",IF(AA103="T",IF(R105<=X103,"þ",IF(R105<=Y103,"G2",IF(R105<=Z103,"G3","")))))) ->  | AE105: =IF(R105="","",IF(AA103="T","",IF(AA103="F",IF(R105>=X103,"þ",IF(R105>=Y103,"G2",IF(R105>=Z103,"G3","")))))) ->  | AF105: =C105 ->  | AH105: =D105 ->  | AJ105: 105
B106: =VLOOKUP(A104,mens_declare,20,FALSE) -> 16 | E106: ='Mens Discus'!$E$28 -> 3 | F106: =IF('Mens Discus'!$I$26=0,"",'Mens Discus'!$F$28) ->  | G106: =IF(OR($F106="",$F106=0),"",IF($F106>90,VLOOKUP(F106,eventcodes,2,FALSE),HLOOKUP(F106,mens_declare,B106,FALSE))) ->  | I106: =IF('Mens Discus'!$I$26=0,"",'Mens Discus'!$I$28) ->  | L106: =IF(AA103="T",AB106,AC106) ->  | N106: ='Mens Discus'!$K$28 -> 3 | O106: =IF('Mens Discus'!$I$26=0,"",'Mens Discus'!$L$28) ->  | P106: =IF(OR($O106="",$O106=0),"",HLOOKUP(O106,mens_declare,B106,FALSE)) ->  | R106: =IF('Mens Discus'!$I$26=0,"",'Mens Discus'!$U$28) ->  | T106: =IF(AA103="T",AD106,AE106) ->  | AB106: =IF(I106="","",IF(AA103="F","",IF(AA103="T",IF(I106<=X103,"þ",IF(I106<=Y103,"G2",IF(I106<=Z103,"G3","")))))) ->  | AC106: =IF(I106="","",IF(AA103="T","",IF(AA103="F",IF(I106>=X103,"þ",IF(I106>=Y103,"G2",IF(I106>=Z103,"G3","")))))) ->  | AD106: =IF(R106="","",IF(AA103="F","",IF(AA103="T",IF(R106<=X103,"þ",IF(R106<=Y103,"G2",IF(R106<=Z103,"G3","")))))) ->  | AE106: =IF(R106="","",IF(AA103="T","",IF(AA103="F",IF(R106>=X103,"þ",IF(R106>=Y103,"G2",IF(R106>=Z103,"G3","")))))) ->  | AJ106: 106
E107: ='Mens Discus'!$E$29 -> 4 | F107: =IF('Mens Discus'!$I$26=0,"",'Mens Discus'!$F$29) ->  | G107: =IF(OR($F107="",$F107=0),"",IF($F107>90,VLOOKUP(F107,eventcodes,2,FALSE),HLOOKUP(F107,mens_declare,B106,FALSE))) ->  | I107: =IF('Mens Discus'!$I$26=0,"",'Mens Discus'!$I$29) ->  | L107: =IF(AA103="T",AB107,AC107) ->  | N107: ='Mens Discus'!$K$29 -> 4 | O107: =IF('Mens Discus'!$I$26=0,"",'Mens Discus'!$L$29) ->  | P107: =IF(OR($O107="",$O107=0),"",HLOOKUP(O107,mens_declare,B106,FALSE)) ->  | R107: =IF('Mens Discus'!$I$26=0,"",'Mens Discus'!$U$29) ->  | T107: =IF(AA103="T",AD107,AE107) ->  | AB107: =IF(I107="","",IF(AA103="F","",IF(AA103="T",IF(I107<=X103,"þ",IF(I107<=Y103,"G2",IF(I107<=Z103,"G3","")))))) ->  | AC107: =IF(I107="","",IF(AA103="T","",IF(AA103="F",IF(I107>=X103,"þ",IF(I107>=Y103,"G2",IF(I107>=Z103,"G3","")))))) ->  | AD107: =IF(R107="","",IF(AA103="F","",IF(AA103="T",IF(R107<=X103,"þ",IF(R107<=Y103,"G2",IF(R107<=Z103,"G3","")))))) ->  | AE107: =IF(R107="","",IF(AA103="T","",IF(AA103="F",IF(R107>=X103,"þ",IF(R107>=Y103,"G2",IF(R107>=Z103,"G3","")))))) ->  | AJ107: 107
E108: ='Mens Discus'!$E$30 -> 5 | F108: =IF('Mens Discus'!$I$26=0,"",'Mens Discus'!$F$30) ->  | G108: =IF(OR($F108="",$F108=0),"",IF($F108>90,VLOOKUP(F108,eventcodes,2,FALSE),HLOOKUP(F108,mens_declare,B106,FALSE))) ->  | I108: =IF('Mens Discus'!$I$26=0,"",'Mens Discus'!$I$30) ->  | L108: =IF(AA103="T",AB108,AC108) ->  | N108: ='Mens Discus'!$K$30 -> 5 | O108: =IF('Mens Discus'!$I$26=0,"",'Mens Discus'!$L$30) ->  | P108: =IF(OR($O108="",$O108=0),"",HLOOKUP(O108,mens_declare,B106,FALSE)) ->  | R108: =IF('Mens Discus'!$I$26=0,"",'Mens Discus'!$U$30) ->  | T108: =IF(AA103="T",AD108,AE108) ->  | AB108: =IF(I108="","",IF(AA103="F","",IF(AA103="T",IF(I108<=X103,"þ",IF(I108<=Y103,"G2",IF(I108<=Z103,"G3","")))))) ->  | AC108: =IF(I108="","",IF(AA103="T","",IF(AA103="F",IF(I108>=X103,"þ",IF(I108>=Y103,"G2",IF(I108>=Z103,"G3","")))))) ->  | AD108: =IF(R108="","",IF(AA103="F","",IF(AA103="T",IF(R108<=X103,"þ",IF(R108<=Y103,"G2",IF(R108<=Z103,"G3","")))))) ->  | AE108: =IF(R108="","",IF(AA103="T","",IF(AA103="F",IF(R108>=X103,"þ",IF(R108>=Y103,"G2",IF(R108>=Z103,"G3","")))))) ->  | AJ108: 108
E109: ='Mens Discus'!$E$31 -> 6 | F109: =IF('Mens Discus'!$I$26=0,"",'Mens Discus'!$F$31) ->  | G109: =IF(OR($F109="",$F109=0),"",IF($F109>90,VLOOKUP(F109,eventcodes,2,FALSE),HLOOKUP(F109,mens_declare,B106,FALSE))) ->  | I109: =IF('Mens Discus'!$I$26=0,"",'Mens Discus'!$I$31) ->  | L109: =IF(AA103="T",AB109,AC109) ->  | N109: ='Mens Discus'!$K$31 -> 6 | O109: =IF('Mens Discus'!$I$26=0,"",'Mens Discus'!$L$31) ->  | P109: =IF(OR($O109="",$O109=0),"",HLOOKUP(O109,mens_declare,B106,FALSE)) ->  | R109: =IF('Mens Discus'!$I$26=0,"",'Mens Discus'!$U$31) ->  | T109: =IF(AA103="T",AD109,AE109) ->  | AB109: =IF(I109="","",IF(AA103="F","",IF(AA103="T",IF(I109<=X103,"þ",IF(I109<=Y103,"G2",IF(I109<=Z103,"G3","")))))) ->  | AC109: =IF(I109="","",IF(AA103="T","",IF(AA103="F",IF(I109>=X103,"þ",IF(I109>=Y103,"G2",IF(I109>=Z103,"G3","")))))) ->  | AD109: =IF(R109="","",IF(AA103="F","",IF(AA103="T",IF(R109<=X103,"þ",IF(R109<=Y103,"G2",IF(R109<=Z103,"G3","")))))) ->  | AE109: =IF(R109="","",IF(AA103="T","",IF(AA103="F",IF(R109>=X103,"þ",IF(R109>=Y103,"G2",IF(R109>=Z103,"G3","")))))) ->  | AJ109: 109
E110: ='Mens Discus'!$E$32 -> 7 | F110: =IF('Mens Discus'!$I$26=0,"",'Mens Discus'!$F$32) ->  | G110: =IF(OR($F110="",$F110=0),"",IF($F110>90,VLOOKUP(F110,eventcodes,2,FALSE),HLOOKUP(F110,mens_declare,B106,FALSE))) ->  | I110: =IF('Mens Discus'!$I$26=0,"",'Mens Discus'!$I$32) ->  | L110: =IF(AA103="T",AB110,AC110) ->  | N110: ='Mens Discus'!$K$32 -> 7 | O110: =IF('Mens Discus'!$I$26=0,"",'Mens Discus'!$L$32) ->  | P110: =IF(OR($O110="",$O110=0),"",HLOOKUP(O110,mens_declare,B106,FALSE)) ->  | R110: =IF('Mens Discus'!$I$26=0,"",'Mens Discus'!$U$32) ->  | T110: =IF(AA103="T",AD110,AE110) ->  | AB110: =IF(I110="","",IF(AA103="F","",IF(AA103="T",IF(I110<=X103,"þ",IF(I110<=Y103,"G2",IF(I110<=Z103,"G3","")))))) ->  | AC110: =IF(I110="","",IF(AA103="T","",IF(AA103="F",IF(I110>=X103,"þ",IF(I110>=Y103,"G2",IF(I110>=Z103,"G3","")))))) ->  | AD110: =IF(R110="","",IF(AA103="F","",IF(AA103="T",IF(R110<=X103,"þ",IF(R110<=Y103,"G2",IF(R110<=Z103,"G3","")))))) ->  | AE110: =IF(R110="","",IF(AA103="T","",IF(AA103="F",IF(R110>=X103,"þ",IF(R110>=Y103,"G2",IF(R110>=Z103,"G3","")))))) ->  | AJ110: 110
E111: ='Mens Discus'!$E$33 -> 8 | F111: =IF('Mens Discus'!$I$26=0,"",'Mens Discus'!$F$33) ->  | G111: =IF(OR($F111="",$F111=0),"",IF($F111>90,VLOOKUP(F111,eventcodes,2,FALSE),HLOOKUP(F111,mens_declare,B106,FALSE))) ->  | I111: =IF('Mens Discus'!$I$26=0,"",'Mens Discus'!$I$33) ->  | L111: =IF(AA103="T",AB111,AC111) ->  | N111: ='Mens Discus'!$K$33 -> 8 | O111: =IF('Mens Discus'!$I$26=0,"",'Mens Discus'!$L$33) ->  | P111: =IF(OR($O111="",$O111=0),"",HLOOKUP(O111,mens_declare,B106,FALSE)) ->  | R111: =IF('Mens Discus'!$I$26=0,"",'Mens Discus'!$U$33) ->  | T111: =IF(AA103="T",AD111,AE111) ->  | AB111: =IF(I111="","",IF(AA103="F","",IF(AA103="T",IF(I111<=X103,"þ",IF(I111<=Y103,"G2",IF(I111<=Z103,"G3","")))))) ->  | AC111: =IF(I111="","",IF(AA103="T","",IF(AA103="F",IF(I111>=X103,"þ",IF(I111>=Y103,"G2",IF(I111>=Z103,"G3","")))))) ->  | AD111: =IF(R111="","",IF(AA103="F","",IF(AA103="T",IF(R111<=X103,"þ",IF(R111<=Y103,"G2",IF(R111<=Z103,"G3","")))))) ->  | AE111: =IF(R111="","",IF(AA103="T","",IF(AA103="F",IF(R111>=X103,"þ",IF(R111>=Y103,"G2",IF(R111>=Z103,"G3","")))))) ->  | AJ111: 111
AJ112: 112
C113: =VLOOKUP(A114,Handbook!$A$4:$AK$24,36,FALSE) -> D | E113: =CONCATENATE(VLOOKUP(A114,mens_handbook,3,FALSE)," A") -> Men's Javelin A | H113: =IF(A114="","",IF(VLOOKUP(A114,Handbook!$A$4:$AI$24,35,FALSE)="Y","Wind=","")) ->  | O113: =CONCATENATE(VLOOKUP(A114,mens_handbook,3,FALSE)," B") -> Men's Javelin B | Q113: =H113 ->  | R113: =IF(I113="","",I113) ->  | V113: =IF($A114="","",VLOOKUP($A114,Handbook!$A$4:$V$24,21,FALSE)) -> 74.72 | W113: =IF($A114="","",VLOOKUP($A114,Handbook!$A$4:$V$24,22,FALSE)) -> 74.72 | X113: =IF($A114="","",VLOOKUP($A114,Handbook!$A$4:$W$24,23,FALSE)) -> 37 | Y113: =IF($A114="","",VLOOKUP($A114,Handbook!$A$4:$X$24,24,FALSE)) -> 50 | Z113: =IF($A114="","",VLOOKUP($A114,Handbook!$A$4:$Y$24,25,FALSE)) -> 50 | AA113: =IF($A114="","",VLOOKUP($A114,Handbook!$A$4:$AH$24,34,FALSE)) -> F | AJ113: 113
A114: 18 | C114: =IF(F114="","",IF(F114>10,F114/11,F114)) ->  | D114: =IF(O114="","",IF(O114>10,O114/11,O114)) ->  | E114: ='Mens Javelin'!$E$26 -> 1 | F114: =IF('Mens Javelin'!$I$26=0,"",'Mens Javelin'!$F$26) ->  | G114: =IF(OR($F114="",$F114=0),"",IF($F114>90,VLOOKUP(F114,eventcodes,2,FALSE),HLOOKUP(F114,mens_declare,B116,FALSE))) ->  | H114: =IF(OR($F114="",$F114=0),"",IF($F114>90,"",VLOOKUP(C114,matchday,2,FALSE))) ->  | I114: =IF('Mens Javelin'!$I$26=0,"",'Mens Javelin'!$I$26) ->  | J114: =IF(I114="","",IF(AA113="T",V114,V115)) ->  | L114: =IF(AA113="T",AB114,AC114) ->  | N114: ='Mens Javelin'!$K$26 -> 1 | O114: =IF('Mens Javelin'!$I$26=0,"",'Mens Javelin'!$L$26) ->  | P114: =IF(OR($O114="",$O114=0),"",HLOOKUP(O114,mens_declare,B116,FALSE)) ->  | Q114: =IF(OR($O114="",$O114=0),"",VLOOKUP(D114,matchday,2,FALSE)) ->  | R114: =IF('Mens Javelin'!$I$26=0,"",'Mens Javelin'!$U$26) ->  | T114: =IF(AA113="T",AD114,AE114) ->  | V114: =IF(AA113="F","",IF(I114<V113,"LR",IF(I114=V113,"=LR",IF(I114<W113,"DR",IF(I114=W113,"=DR",""))))) ->  | AB114: =IF(I114="","",IF(AA113="F","",IF(AA113="T",IF(I114<=X113,"þ",IF(I114<=Y113,"G2",IF(I114<=Z113,"G3","")))))) ->  | AC114: =IF(I114="","",IF(AA113="T","",IF(AA113="F",IF(I114>=X113,"þ",IF(I114>=Y113,"G2",IF(I114>=Z113,"G3","")))))) ->  | AD114: =IF(R114="","",IF(AA113="F","",IF(AA113="T",IF(R114<=X113,"þ",IF(R114<=Y113,"G2",IF(R114<=Z113,"G3","")))))) ->  | AE114: =IF(R114="","",IF(AA113="T","",IF(AA113="F",IF(R114>=X113,"þ",IF(R114>=Y113,"G2",IF(R114>=Z113,"G3","")))))) ->  | AF114: =C114 ->  | AG114: =IF(F114="","",IF(LEFT(I114,1)="D",0,VLOOKUP(E114,$AQ$4:$AR$40,2,FALSE))) ->  | AH114: =D114 ->  | AI114: =IF(O114="","",IF(LEFT(R114,1)="D",0,VLOOKUP(N114,$AQ$4:$AS$40,3,FALSE))) ->  | AJ114: 114
B115: =VLOOKUP(A114,Handbook!$A$4:$AK$24,37,FALSE) -> 19 | C115: =IF(F115="","",IF(F115>10,F115/11,F115)) ->  | D115: =IF(O115="","",IF(O115>10,O115/11,O115)) ->  | E115: ='Mens Javelin'!$E$27 -> 2 | F115: =IF('Mens Javelin'!$I$26=0,"",'Mens Javelin'!$F$27) ->  | G115: =IF(OR($F115="",$F115=0),"",IF($F115>90,VLOOKUP(F115,eventcodes,2,FALSE),HLOOKUP(F115,mens_declare,B116,FALSE))) ->  | I115: =IF('Mens Javelin'!$I$26=0,"",'Mens Javelin'!$I$27) ->  | L115: =IF(AA113="T",AB115,AC115) ->  | N115: ='Mens Javelin'!$K$27 -> 2 | O115: =IF('Mens Javelin'!$I$26=0,"",'Mens Javelin'!$L$27) ->  | P115: =IF(OR($O115="",$O115=0),"",HLOOKUP(O115,mens_declare,B116,FALSE)) ->  | R115: =IF('Mens Javelin'!$I$26=0,"",'Mens Javelin'!$U$27) ->  | T115: =IF(AA113="T",AD115,AE115) ->  | V115: =IF(AA113="T","",IF(I114>V113,"LR",IF(I114=V113,"=LR",IF(I114>W113,"DR",IF(I114=W113,"=DR",""))))) -> LR | AB115: =IF(I115="","",IF(AA113="F","",IF(AA113="T",IF(I115<=X113,"þ",IF(I115<=Y113,"G2",IF(I115<=Z113,"G3","")))))) ->  | AC115: =IF(I115="","",IF(AA113="T","",IF(AA113="F",IF(I115>=X113,"þ",IF(I115>=Y113,"G2",IF(I115>=Z113,"G3","")))))) ->  | AD115: =IF(R115="","",IF(AA113="F","",IF(AA113="T",IF(R115<=X113,"þ",IF(R115<=Y113,"G2",IF(R115<=Z113,"G3","")))))) ->  | AE115: =IF(R115="","",IF(AA113="T","",IF(AA113="F",IF(R115>=X113,"þ",IF(R115>=Y113,"G2",IF(R115>=Z113,"G3","")))))) ->  | AF115: =C115 ->  | AH115: =D115 ->  | AJ115: 115
B116: =VLOOKUP(A114,mens_declare,20,FALSE) -> 19 | E116: ='Mens Javelin'!$E$28 -> 3 | F116: =IF('Mens Javelin'!$I$26=0,"",'Mens Javelin'!$F$28) ->  | G116: =IF(OR($F116="",$F116=0),"",IF($F116>90,VLOOKUP(F116,eventcodes,2,FALSE),HLOOKUP(F116,mens_declare,B116,FALSE))) ->  | I116: =IF('Mens Javelin'!$I$26=0,"",'Mens Javelin'!$I$28) ->  | L116: =IF(AA113="T",AB116,AC116) ->  | N116: ='Mens Javelin'!$K$28 -> 3 | O116: =IF('Mens Javelin'!$I$26=0,"",'Mens Javelin'!$L$28) ->  | P116: =IF(OR($O116="",$O116=0),"",HLOOKUP(O116,mens_declare,B116,FALSE)) ->  | R116: =IF('Mens Javelin'!$I$26=0,"",'Mens Javelin'!$U$28) ->  | T116: =IF(AA113="T",AD116,AE116) ->  | AB116: =IF(I116="","",IF(AA113="F","",IF(AA113="T",IF(I116<=X113,"þ",IF(I116<=Y113,"G2",IF(I116<=Z113,"G3","")))))) ->  | AC116: =IF(I116="","",IF(AA113="T","",IF(AA113="F",IF(I116>=X113,"þ",IF(I116>=Y113,"G2",IF(I116>=Z113,"G3","")))))) ->  | AD116: =IF(R116="","",IF(AA113="F","",IF(AA113="T",IF(R116<=X113,"þ",IF(R116<=Y113,"G2",IF(R116<=Z113,"G3","")))))) ->  | AE116: =IF(R116="","",IF(AA113="T","",IF(AA113="F",IF(R116>=X113,"þ",IF(R116>=Y113,"G2",IF(R116>=Z113,"G3","")))))) ->  | AJ116: 116
E117: ='Mens Javelin'!$E$29 -> 4 | F117: =IF('Mens Javelin'!$I$26=0,"",'Mens Javelin'!$F$29) ->  | G117: =IF(OR($F117="",$F117=0),"",IF($F117>90,VLOOKUP(F117,eventcodes,2,FALSE),HLOOKUP(F117,mens_declare,B116,FALSE))) ->  | I117: =IF('Mens Javelin'!$I$26=0,"",'Mens Javelin'!$I$29) ->  | L117: =IF(AA113="T",AB117,AC117) ->  | N117: ='Mens Javelin'!$K$29 -> 4 | O117: =IF('Mens Javelin'!$I$26=0,"",'Mens Javelin'!$L$29) ->  | P117: =IF(OR($O117="",$O117=0),"",HLOOKUP(O117,mens_declare,B116,FALSE)) ->  | R117: =IF('Mens Javelin'!$I$26=0,"",'Mens Javelin'!$U$29) ->  | T117: =IF(AA113="T",AD117,AE117) ->  | AB117: =IF(I117="","",IF(AA113="F","",IF(AA113="T",IF(I117<=X113,"þ",IF(I117<=Y113,"G2",IF(I117<=Z113,"G3","")))))) ->  | AC117: =IF(I117="","",IF(AA113="T","",IF(AA113="F",IF(I117>=X113,"þ",IF(I117>=Y113,"G2",IF(I117>=Z113,"G3","")))))) ->  | AD117: =IF(R117="","",IF(AA113="F","",IF(AA113="T",IF(R117<=X113,"þ",IF(R117<=Y113,"G2",IF(R117<=Z113,"G3","")))))) ->  | AE117: =IF(R117="","",IF(AA113="T","",IF(AA113="F",IF(R117>=X113,"þ",IF(R117>=Y113,"G2",IF(R117>=Z113,"G3","")))))) ->  | AJ117: 117
E118: ='Mens Javelin'!$E$30 -> 5 | F118: =IF('Mens Javelin'!$I$26=0,"",'Mens Javelin'!$F$30) ->  | G118: =IF(OR($F118="",$F118=0),"",IF($F118>90,VLOOKUP(F118,eventcodes,2,FALSE),HLOOKUP(F118,mens_declare,B116,FALSE))) ->  | I118: =IF('Mens Javelin'!$I$26=0,"",'Mens Javelin'!$I$30) ->  | L118: =IF(AA113="T",AB118,AC118) ->  | N118: ='Mens Javelin'!$K$30 -> 5 | O118: =IF('Mens Javelin'!$I$26=0,"",'Mens Javelin'!$L$30) ->  | P118: =IF(OR($O118="",$O118=0),"",HLOOKUP(O118,mens_declare,B116,FALSE)) ->  | R118: =IF('Mens Javelin'!$I$26=0,"",'Mens Javelin'!$U$30) ->  | T118: =IF(AA113="T",AD118,AE118) ->  | AB118: =IF(I118="","",IF(AA113="F","",IF(AA113="T",IF(I118<=X113,"þ",IF(I118<=Y113,"G2",IF(I118<=Z113,"G3","")))))) ->  | AC118: =IF(I118="","",IF(AA113="T","",IF(AA113="F",IF(I118>=X113,"þ",IF(I118>=Y113,"G2",IF(I118>=Z113,"G3","")))))) ->  | AD118: =IF(R118="","",IF(AA113="F","",IF(AA113="T",IF(R118<=X113,"þ",IF(R118<=Y113,"G2",IF(R118<=Z113,"G3","")))))) ->  | AE118: =IF(R118="","",IF(AA113="T","",IF(AA113="F",IF(R118>=X113,"þ",IF(R118>=Y113,"G2",IF(R118>=Z113,"G3","")))))) ->  | AJ118: 118
E119: ='Mens Javelin'!$E$31 -> 6 | F119: =IF('Mens Javelin'!$I$26=0,"",'Mens Javelin'!$F$31) ->  | G119: =IF(OR($F119="",$F119=0),"",IF($F119>90,VLOOKUP(F119,eventcodes,2,FALSE),HLOOKUP(F119,mens_declare,B116,FALSE))) ->  | I119: =IF('Mens Javelin'!$I$26=0,"",'Mens Javelin'!$I$31) ->  | L119: =IF(AA113="T",AB119,AC119) ->  | N119: ='Mens Javelin'!$K$31 -> 6 | O119: =IF('Mens Javelin'!$I$26=0,"",'Mens Javelin'!$L$31) ->  | P119: =IF(OR($O119="",$O119=0),"",HLOOKUP(O119,mens_declare,B116,FALSE)) ->  | R119: =IF('Mens Javelin'!$I$26=0,"",'Mens Javelin'!$U$31) ->  | T119: =IF(AA113="T",AD119,AE119) ->  | AB119: =IF(I119="","",IF(AA113="F","",IF(AA113="T",IF(I119<=X113,"þ",IF(I119<=Y113,"G2",IF(I119<=Z113,"G3","")))))) ->  | AC119: =IF(I119="","",IF(AA113="T","",IF(AA113="F",IF(I119>=X113,"þ",IF(I119>=Y113,"G2",IF(I119>=Z113,"G3","")))))) ->  | AD119: =IF(R119="","",IF(AA113="F","",IF(AA113="T",IF(R119<=X113,"þ",IF(R119<=Y113,"G2",IF(R119<=Z113,"G3","")))))) ->  | AE119: =IF(R119="","",IF(AA113="T","",IF(AA113="F",IF(R119>=X113,"þ",IF(R119>=Y113,"G2",IF(R119>=Z113,"G3","")))))) ->  | AJ119: 119
E120: ='Mens Javelin'!$E$32 -> 7 | F120: =IF('Mens Javelin'!$I$26=0,"",'Mens Javelin'!$F$32) ->  | G120: =IF(OR($F120="",$F120=0),"",IF($F120>90,VLOOKUP(F120,eventcodes,2,FALSE),HLOOKUP(F120,mens_declare,B116,FALSE))) ->  | I120: =IF('Mens Javelin'!$I$26=0,"",'Mens Javelin'!$I$32) ->  | L120: =IF(AA113="T",AB120,AC120) ->  | N120: ='Mens Javelin'!$K$32 -> 7 | O120: =IF('Mens Javelin'!$I$26=0,"",'Mens Javelin'!$L$32) ->  | P120: =IF(OR($O120="",$O120=0),"",HLOOKUP(O120,mens_declare,B116,FALSE)) ->  | R120: =IF('Mens Javelin'!$I$26=0,"",'Mens Javelin'!$U$32) ->  | T120: =IF(AA113="T",AD120,AE120) ->  | AB120: =IF(I120="","",IF(AA113="F","",IF(AA113="T",IF(I120<=X113,"þ",IF(I120<=Y113,"G2",IF(I120<=Z113,"G3","")))))) ->  | AC120: =IF(I120="","",IF(AA113="T","",IF(AA113="F",IF(I120>=X113,"þ",IF(I120>=Y113,"G2",IF(I120>=Z113,"G3","")))))) ->  | AD120: =IF(R120="","",IF(AA113="F","",IF(AA113="T",IF(R120<=X113,"þ",IF(R120<=Y113,"G2",IF(R120<=Z113,"G3","")))))) ->  | AE120: =IF(R120="","",IF(AA113="T","",IF(AA113="F",IF(R120>=X113,"þ",IF(R120>=Y113,"G2",IF(R120>=Z113,"G3","")))))) ->  | AJ120: 120
E121: ='Mens Javelin'!$E$33 -> 8 | F121: =IF('Mens Javelin'!$I$26=0,"",'Mens Javelin'!$F$33) ->  | G121: =IF(OR($F121="",$F121=0),"",IF($F121>90,VLOOKUP(F121,eventcodes,2,FALSE),HLOOKUP(F121,mens_declare,B116,FALSE))) ->  | I121: =IF('Mens Javelin'!$I$26=0,"",'Mens Javelin'!$I$33) ->  | L121: =IF(AA113="T",AB121,AC121) ->  | N121: ='Mens Javelin'!$K$33 -> 8 | O121: =IF('Mens Javelin'!$I$26=0,"",'Mens Javelin'!$L$33) ->  | P121: =IF(OR($O121="",$O121=0),"",HLOOKUP(O121,mens_declare,B116,FALSE)) ->  | R121: =IF('Mens Javelin'!$I$26=0,"",'Mens Javelin'!$U$33) ->  | T121: =IF(AA113="T",AD121,AE121) ->  | AB121: =IF(I121="","",IF(AA113="F","",IF(AA113="T",IF(I121<=X113,"þ",IF(I121<=Y113,"G2",IF(I121<=Z113,"G3","")))))) ->  | AC121: =IF(I121="","",IF(AA113="T","",IF(AA113="F",IF(I121>=X113,"þ",IF(I121>=Y113,"G2",IF(I121>=Z113,"G3","")))))) ->  | AD121: =IF(R121="","",IF(AA113="F","",IF(AA113="T",IF(R121<=X113,"þ",IF(R121<=Y113,"G2",IF(R121<=Z113,"G3","")))))) ->  | AE121: =IF(R121="","",IF(AA113="T","",IF(AA113="F",IF(R121>=X113,"þ",IF(R121>=Y113,"G2",IF(R121>=Z113,"G3","")))))) ->  | AJ121: 121
AJ122: 122
C123: =VLOOKUP(A124,Handbook!$A$4:$AK$24,36,FALSE) -> D | E123: =CONCATENATE(VLOOKUP(A124,mens_handbook,3,FALSE)," A") -> Men's Shot Putt A | H123: =IF(A124="","",IF(VLOOKUP(A124,Handbook!$A$4:$AI$24,35,FALSE)="Y","Wind=","")) ->  | O123: =CONCATENATE(VLOOKUP(A124,mens_handbook,3,FALSE)," B") -> Men's Shot Putt B | Q123: =H123 ->  | R123: =IF(I123="","",I123) ->  | V123: =IF($A124="","",VLOOKUP($A124,Handbook!$A$4:$V$24,21,FALSE)) -> 18.86 | W123: =IF($A124="","",VLOOKUP($A124,Handbook!$A$4:$V$24,22,FALSE)) -> 18.86 | X123: =IF($A124="","",VLOOKUP($A124,Handbook!$A$4:$W$24,23,FALSE)) -> 10 | Y123: =IF($A124="","",VLOOKUP($A124,Handbook!$A$4:$X$24,24,FALSE)) -> 13 | Z123: =IF($A124="","",VLOOKUP($A124,Handbook!$A$4:$Y$24,25,FALSE)) -> 13 | AA123: =IF($A124="","",VLOOKUP($A124,Handbook!$A$4:$AH$24,34,FALSE)) -> F | AJ123: 123
A124: 17 | C124: =IF(F124="","",IF(F124>10,F124/11,F124)) ->  | D124: =IF(O124="","",IF(O124>10,O124/11,O124)) ->  | E124: ='Mens Shot'!$E$26 -> 1 | F124: =IF('Mens Shot'!$I$26=0,"",'Mens Shot'!$F$26) ->  | G124: =IF(OR($F124="",$F124=0),"",IF($F124>90,VLOOKUP(F124,eventcodes,2,FALSE),HLOOKUP(F124,mens_declare,B126,FALSE))) ->  | H124: =IF(OR($F124="",$F124=0),"",IF($F124>90,"",VLOOKUP(C124,matchday,2,FALSE))) ->  | I124: =IF('Mens Shot'!$I$26=0,"",'Mens Shot'!$I$26) ->  | J124: =IF(I124="","",IF(AA123="T",V124,V125)) ->  | L124: =IF(AA123="T",AB124,AC124) ->  | N124: ='Mens Shot'!$K$26 -> 1 | O124: =IF('Mens Shot'!$I$26=0,"",'Mens Shot'!$L$26) ->  | P124: =IF(OR($O124="",$O124=0),"",HLOOKUP(O124,mens_declare,B126,FALSE)) ->  | Q124: =IF(OR($O124="",$O124=0),"",VLOOKUP(D124,matchday,2,FALSE)) ->  | R124: =IF('Mens Shot'!$I$26=0,"",'Mens Shot'!$U$26) ->  | T124: =IF(AA123="T",AD124,AE124) ->  | V124: =IF(AA123="F","",IF(I124<V123,"LR",IF(I124=V123,"=LR",IF(I124<W123,"DR",IF(I124=W123,"=DR",""))))) ->  | AB124: =IF(I124="","",IF(AA123="F","",IF(AA123="T",IF(I124<=X123,"þ",IF(I124<=Y123,"G2",IF(I124<=Z123,"G3","")))))) ->  | AC124: =IF(I124="","",IF(AA123="T","",IF(AA123="F",IF(I124>=X123,"þ",IF(I124>=Y123,"G2",IF(I124>=Z123,"G3","")))))) ->  | AD124: =IF(R124="","",IF(AA123="F","",IF(AA123="T",IF(R124<=X123,"þ",IF(R124<=Y123,"G2",IF(R124<=Z123,"G3","")))))) ->  | AE124: =IF(R124="","",IF(AA123="T","",IF(AA123="F",IF(R124>=X123,"þ",IF(R124>=Y123,"G2",IF(R124>=Z123,"G3","")))))) ->  | AF124: =C124 ->  | AG124: =IF(F124="","",IF(LEFT(I124,1)="D",0,VLOOKUP(E124,$AQ$4:$AR$40,2,FALSE))) ->  | AH124: =D124 ->  | AI124: =IF(O124="","",IF(LEFT(R124,1)="D",0,VLOOKUP(N124,$AQ$4:$AS$40,3,FALSE))) ->  | AJ124: 124
B125: =VLOOKUP(A124,Handbook!$A$4:$AK$24,37,FALSE) -> 18 | C125: =IF(F125="","",IF(F125>10,F125/11,F125)) ->  | D125: =IF(O125="","",IF(O125>10,O125/11,O125)) ->  | E125: ='Mens Shot'!$E$27 -> 2 | F125: =IF('Mens Shot'!$I$26=0,"",'Mens Shot'!$F$27) ->  | G125: =IF(OR($F125="",$F125=0),"",IF($F125>90,VLOOKUP(F125,eventcodes,2,FALSE),HLOOKUP(F125,mens_declare,B126,FALSE))) ->  | I125: =IF('Mens Shot'!$I$26=0,"",'Mens Shot'!$I$27) ->  | L125: =IF(AA123="T",AB125,AC125) ->  | N125: ='Mens Shot'!$K$27 -> 2 | O125: =IF('Mens Shot'!$I$26=0,"",'Mens Shot'!$L$27) ->  | P125: =IF(OR($O125="",$O125=0),"",HLOOKUP(O125,mens_declare,B126,FALSE)) ->  | R125: =IF('Mens Shot'!$I$26=0,"",'Mens Shot'!$U$27) ->  | T125: =IF(AA123="T",AD125,AE125) ->  | V125: =IF(AA123="T","",IF(I124>V123,"LR",IF(I124=V123,"=LR",IF(I124>W123,"DR",IF(I124=W123,"=DR",""))))) -> LR | AB125: =IF(I125="","",IF(AA123="F","",IF(AA123="T",IF(I125<=X123,"þ",IF(I125<=Y123,"G2",IF(I125<=Z123,"G3","")))))) ->  | AC125: =IF(I125="","",IF(AA123="T","",IF(AA123="F",IF(I125>=X123,"þ",IF(I125>=Y123,"G2",IF(I125>=Z123,"G3","")))))) ->  | AD125: =IF(R125="","",IF(AA123="F","",IF(AA123="T",IF(R125<=X123,"þ",IF(R125<=Y123,"G2",IF(R125<=Z123,"G3","")))))) ->  | AE125: =IF(R125="","",IF(AA123="T","",IF(AA123="F",IF(R125>=X123,"þ",IF(R125>=Y123,"G2",IF(R125>=Z123,"G3","")))))) ->  | AF125: =C125 ->  | AH125: =D125 ->  | AJ125: 125
B126: =VLOOKUP(A124,mens_declare,20,FALSE) -> 18 | E126: ='Mens Shot'!$E$28 -> 3 | F126: =IF('Mens Shot'!$I$26=0,"",'Mens Shot'!$F$28) ->  | G126: =IF(OR($F126="",$F126=0),"",IF($F126>90,VLOOKUP(F126,eventcodes,2,FALSE),HLOOKUP(F126,mens_declare,B126,FALSE))) ->  | I126: =IF('Mens Shot'!$I$26=0,"",'Mens Shot'!$I$28) ->  | L126: =IF(AA123="T",AB126,AC126) ->  | N126: ='Mens Shot'!$K$28 -> 3 | O126: =IF('Mens Shot'!$I$26=0,"",'Mens Shot'!$L$28) ->  | P126: =IF(OR($O126="",$O126=0),"",HLOOKUP(O126,mens_declare,B126,FALSE)) ->  | R126: =IF('Mens Shot'!$I$26=0,"",'Mens Shot'!$U$28) ->  | T126: =IF(AA123="T",AD126,AE126) ->  | AB126: =IF(I126="","",IF(AA123="F","",IF(AA123="T",IF(I126<=X123,"þ",IF(I126<=Y123,"G2",IF(I126<=Z123,"G3","")))))) ->  | AC126: =IF(I126="","",IF(AA123="T","",IF(AA123="F",IF(I126>=X123,"þ",IF(I126>=Y123,"G2",IF(I126>=Z123,"G3","")))))) ->  | AD126: =IF(R126="","",IF(AA123="F","",IF(AA123="T",IF(R126<=X123,"þ",IF(R126<=Y123,"G2",IF(R126<=Z123,"G3","")))))) ->  | AE126: =IF(R126="","",IF(AA123="T","",IF(AA123="F",IF(R126>=X123,"þ",IF(R126>=Y123,"G2",IF(R126>=Z123,"G3","")))))) ->  | AJ126: 126
E127: ='Mens Shot'!$E$29 -> 4 | F127: =IF('Mens Shot'!$I$26=0,"",'Mens Shot'!$F$29) ->  | G127: =IF(OR($F127="",$F127=0),"",IF($F127>90,VLOOKUP(F127,eventcodes,2,FALSE),HLOOKUP(F127,mens_declare,B126,FALSE))) ->  | I127: =IF('Mens Shot'!$I$26=0,"",'Mens Shot'!$I$29) ->  | L127: =IF(AA123="T",AB127,AC127) ->  | N127: ='Mens Shot'!$K$29 -> 4 | O127: =IF('Mens Shot'!$I$26=0,"",'Mens Shot'!$L$29) ->  | P127: =IF(OR($O127="",$O127=0),"",HLOOKUP(O127,mens_declare,B126,FALSE)) ->  | R127: =IF('Mens Shot'!$I$26=0,"",'Mens Shot'!$U$29) ->  | T127: =IF(AA123="T",AD127,AE127) ->  | AB127: =IF(I127="","",IF(AA123="F","",IF(AA123="T",IF(I127<=X123,"þ",IF(I127<=Y123,"G2",IF(I127<=Z123,"G3","")))))) ->  | AC127: =IF(I127="","",IF(AA123="T","",IF(AA123="F",IF(I127>=X123,"þ",IF(I127>=Y123,"G2",IF(I127>=Z123,"G3","")))))) ->  | AD127: =IF(R127="","",IF(AA123="F","",IF(AA123="T",IF(R127<=X123,"þ",IF(R127<=Y123,"G2",IF(R127<=Z123,"G3","")))))) ->  | AE127: =IF(R127="","",IF(AA123="T","",IF(AA123="F",IF(R127>=X123,"þ",IF(R127>=Y123,"G2",IF(R127>=Z123,"G3","")))))) ->  | AJ127: 127
E128: ='Mens Shot'!$E$30 -> 5 | F128: =IF('Mens Shot'!$I$26=0,"",'Mens Shot'!$F$30) ->  | G128: =IF(OR($F128="",$F128=0),"",IF($F128>90,VLOOKUP(F128,eventcodes,2,FALSE),HLOOKUP(F128,mens_declare,B126,FALSE))) ->  | I128: =IF('Mens Shot'!$I$26=0,"",'Mens Shot'!$I$30) ->  | L128: =IF(AA123="T",AB128,AC128) ->  | N128: ='Mens Shot'!$K$30 -> 5 | O128: =IF('Mens Shot'!$I$26=0,"",'Mens Shot'!$L$30) ->  | P128: =IF(OR($O128="",$O128=0),"",HLOOKUP(O128,mens_declare,B126,FALSE)) ->  | R128: =IF('Mens Shot'!$I$26=0,"",'Mens Shot'!$U$30) ->  | T128: =IF(AA123="T",AD128,AE128) ->  | AB128: =IF(I128="","",IF(AA123="F","",IF(AA123="T",IF(I128<=X123,"þ",IF(I128<=Y123,"G2",IF(I128<=Z123,"G3","")))))) ->  | AC128: =IF(I128="","",IF(AA123="T","",IF(AA123="F",IF(I128>=X123,"þ",IF(I128>=Y123,"G2",IF(I128>=Z123,"G3","")))))) ->  | AD128: =IF(R128="","",IF(AA123="F","",IF(AA123="T",IF(R128<=X123,"þ",IF(R128<=Y123,"G2",IF(R128<=Z123,"G3","")))))) ->  | AE128: =IF(R128="","",IF(AA123="T","",IF(AA123="F",IF(R128>=X123,"þ",IF(R128>=Y123,"G2",IF(R128>=Z123,"G3","")))))) ->  | AJ128: 128
E129: ='Mens Shot'!$E$31 -> 6 | F129: =IF('Mens Shot'!$I$26=0,"",'Mens Shot'!$F$31) ->  | G129: =IF(OR($F129="",$F129=0),"",IF($F129>90,VLOOKUP(F129,eventcodes,2,FALSE),HLOOKUP(F129,mens_declare,B126,FALSE))) ->  | I129: =IF('Mens Shot'!$I$26=0,"",'Mens Shot'!$I$31) ->  | L129: =IF(AA123="T",AB129,AC129) ->  | N129: ='Mens Shot'!$K$31 -> 6 | O129: =IF('Mens Shot'!$I$26=0,"",'Mens Shot'!$L$31) ->  | P129: =IF(OR($O129="",$O129=0),"",HLOOKUP(O129,mens_declare,B126,FALSE)) ->  | R129: =IF('Mens Shot'!$I$26=0,"",'Mens Shot'!$U$31) ->  | T129: =IF(AA123="T",AD129,AE129) ->  | AB129: =IF(I129="","",IF(AA123="F","",IF(AA123="T",IF(I129<=X123,"þ",IF(I129<=Y123,"G2",IF(I129<=Z123,"G3","")))))) ->  | AC129: =IF(I129="","",IF(AA123="T","",IF(AA123="F",IF(I129>=X123,"þ",IF(I129>=Y123,"G2",IF(I129>=Z123,"G3","")))))) ->  | AD129: =IF(R129="","",IF(AA123="F","",IF(AA123="T",IF(R129<=X123,"þ",IF(R129<=Y123,"G2",IF(R129<=Z123,"G3","")))))) ->  | AE129: =IF(R129="","",IF(AA123="T","",IF(AA123="F",IF(R129>=X123,"þ",IF(R129>=Y123,"G2",IF(R129>=Z123,"G3","")))))) ->  | AJ129: 129
E130: ='Mens Shot'!$E$32 -> 7 | F130: =IF('Mens Shot'!$I$26=0,"",'Mens Shot'!$F$32) ->  | G130: =IF(OR($F130="",$F130=0),"",IF($F130>90,VLOOKUP(F130,eventcodes,2,FALSE),HLOOKUP(F130,mens_declare,B126,FALSE))) ->  | I130: =IF('Mens Shot'!$I$26=0,"",'Mens Shot'!$I$32) ->  | L130: =IF(AA123="T",AB130,AC130) ->  | N130: ='Mens Shot'!$K$32 -> 7 | O130: =IF('Mens Shot'!$I$26=0,"",'Mens Shot'!$L$32) ->  | P130: =IF(OR($O130="",$O130=0),"",HLOOKUP(O130,mens_declare,B126,FALSE)) ->  | R130: =IF('Mens Shot'!$I$26=0,"",'Mens Shot'!$U$32) ->  | T130: =IF(AA123="T",AD130,AE130) ->  | AB130: =IF(I130="","",IF(AA123="F","",IF(AA123="T",IF(I130<=X123,"þ",IF(I130<=Y123,"G2",IF(I130<=Z123,"G3","")))))) ->  | AC130: =IF(I130="","",IF(AA123="T","",IF(AA123="F",IF(I130>=X123,"þ",IF(I130>=Y123,"G2",IF(I130>=Z123,"G3","")))))) ->  | AD130: =IF(R130="","",IF(AA123="F","",IF(AA123="T",IF(R130<=X123,"þ",IF(R130<=Y123,"G2",IF(R130<=Z123,"G3","")))))) ->  | AE130: =IF(R130="","",IF(AA123="T","",IF(AA123="F",IF(R130>=X123,"þ",IF(R130>=Y123,"G2",IF(R130>=Z123,"G3","")))))) ->  | AJ130: 130
E131: ='Mens Shot'!$E$33 -> 8 | F131: =IF('Mens Shot'!$I$26=0,"",'Mens Shot'!$F$33) ->  | G131: =IF(OR($F131="",$F131=0),"",IF($F131>90,VLOOKUP(F131,eventcodes,2,FALSE),HLOOKUP(F131,mens_declare,B126,FALSE))) ->  | I131: =IF('Mens Shot'!$I$26=0,"",'Mens Shot'!$I$33) ->  | L131: =IF(AA123="T",AB131,AC131) ->  | N131: ='Mens Shot'!$K$33 -> 8 | O131: =IF('Mens Shot'!$I$26=0,"",'Mens Shot'!$L$33) ->  | P131: =IF(OR($O131="",$O131=0),"",HLOOKUP(O131,mens_declare,B126,FALSE)) ->  | R131: =IF('Mens Shot'!$I$26=0,"",'Mens Shot'!$U$33) ->  | T131: =IF(AA123="T",AD131,AE131) ->  | AB131: =IF(I131="","",IF(AA123="F","",IF(AA123="T",IF(I131<=X123,"þ",IF(I131<=Y123,"G2",IF(I131<=Z123,"G3","")))))) ->  | AC131: =IF(I131="","",IF(AA123="T","",IF(AA123="F",IF(I131>=X123,"þ",IF(I131>=Y123,"G2",IF(I131>=Z123,"G3","")))))) ->  | AD131: =IF(R131="","",IF(AA123="F","",IF(AA123="T",IF(R131<=X123,"þ",IF(R131<=Y123,"G2",IF(R131<=Z123,"G3","")))))) ->  | AE131: =IF(R131="","",IF(AA123="T","",IF(AA123="F",IF(R131>=X123,"þ",IF(R131>=Y123,"G2",IF(R131>=Z123,"G3","")))))) ->  | AJ131: 131
AJ132: 132
C133: =VLOOKUP(A134,Handbook!$A$4:$AK$24,36,FALSE) -> D | E133: =CONCATENATE(VLOOKUP(A134,mens_handbook,3,FALSE)," A") -> Men's Long Jump A | H133: =IF(A134="","",IF(VLOOKUP(A134,Handbook!$A$4:$AI$24,35,FALSE)="Y","Wind=","")) ->  | O133: =CONCATENATE(VLOOKUP(A134,mens_handbook,3,FALSE)," B") -> Men's Long Jump B | Q133: =H133 ->  | R133: =IF(I133="","",I133) ->  | V133: =IF($A134="","",VLOOKUP($A134,Handbook!$A$4:$V$24,21,FALSE)) -> 7.6 | W133: =IF($A134="","",VLOOKUP($A134,Handbook!$A$4:$V$24,22,FALSE)) -> 7.6 | X133: =IF($A134="","",VLOOKUP($A134,Handbook!$A$4:$W$24,23,FALSE)) -> 5.8 | Y133: =IF($A134="","",VLOOKUP($A134,Handbook!$A$4:$X$24,24,FALSE)) -> 6.5 | Z133: =IF($A134="","",VLOOKUP($A134,Handbook!$A$4:$Y$24,25,FALSE)) -> 6.5 | AA133: =IF($A134="","",VLOOKUP($A134,Handbook!$A$4:$AH$24,34,FALSE)) -> F | AJ133: 133
A134: 13 | C134: =IF(F134="","",IF(F134>10,F134/11,F134)) ->  | D134: =IF(O134="","",IF(O134>10,O134/11,O134)) ->  | E134: ='Mens LJ'!$E$26 -> 1 | F134: =IF('Mens LJ'!$I$26=0,"",'Mens LJ'!$F$26) ->  | G134: =IF(OR($F134="",$F134=0),"",IF($F134>90,VLOOKUP(F134,eventcodes,2,FALSE),HLOOKUP(F134,mens_declare,B136,FALSE))) ->  | H134: =IF(OR($F134="",$F134=0),"",IF($F134>90,"",VLOOKUP(C134,matchday,2,FALSE))) ->  | I134: =IF('Mens LJ'!$I$26=0,"",'Mens LJ'!$I$26) ->  | J134: =IF(I134="","",IF(AA133="T",V134,V135)) ->  | L134: =IF(AA133="T",AB134,AC134) ->  | N134: ='Mens LJ'!$K$26 -> 1 | O134: =IF('Mens LJ'!$I$26=0,"",'Mens LJ'!$L$26) ->  | P134: =IF(OR($O134="",$O134=0),"",HLOOKUP(O134,mens_declare,B136,FALSE)) ->  | Q134: =IF(OR($O134="",$O134=0),"",VLOOKUP(D134,matchday,2,FALSE)) ->  | R134: =IF('Mens LJ'!$I$26=0,"",'Mens LJ'!$U$26) ->  | T134: =IF(AA133="T",AD134,AE134) ->  | V134: =IF(AA133="F","",IF(I134<V133,"LR",IF(I134=V133,"=LR",IF(I134<W133,"DR",IF(I134=W133,"=DR",""))))) ->  | AB134: =IF(I134="","",IF(AA133="F","",IF(AA133="T",IF(I134<=X133,"þ",IF(I134<=Y133,"G2",IF(I134<=Z133,"G3","")))))) ->  | AC134: =IF(I134="","",IF(AA133="T","",IF(AA133="F",IF(I134>=X133,"þ",IF(I134>=Y133,"G2",IF(I134>=Z133,"G3","")))))) ->  | AD134: =IF(R134="","",IF(AA133="F","",IF(AA133="T",IF(R134<=X133,"þ",IF(R134<=Y133,"G2",IF(R134<=Z133,"G3","")))))) ->  | AE134: =IF(R134="","",IF(AA133="T","",IF(AA133="F",IF(R134>=X133,"þ",IF(R134>=Y133,"G2",IF(R134>=Z133,"G3","")))))) ->  | AF134: =C134 ->  | AG134: =IF(F134="","",IF(LEFT(I134,1)="D",0,VLOOKUP(E134,$AQ$4:$AR$40,2,FALSE))) ->  | AH134: =D134 ->  | AI134: =IF(O134="","",IF(LEFT(R134,1)="D",0,VLOOKUP(N134,$AQ$4:$AS$40,3,FALSE))) ->  | AJ134: 134
B135: =VLOOKUP(A134,Handbook!$A$4:$AK$24,37,FALSE) -> 14 | C135: =IF(F135="","",IF(F135>10,F135/11,F135)) ->  | D135: =IF(O135="","",IF(O135>10,O135/11,O135)) ->  | E135: ='Mens LJ'!$E$27 -> 2 | F135: =IF('Mens LJ'!$I$26=0,"",'Mens LJ'!$F$27) ->  | G135: =IF(OR($F135="",$F135=0),"",IF($F135>90,VLOOKUP(F135,eventcodes,2,FALSE),HLOOKUP(F135,mens_declare,B136,FALSE))) ->  | I135: =IF('Mens LJ'!$I$26=0,"",'Mens LJ'!$I$27) ->  | L135: =IF(AA133="T",AB135,AC135) ->  | N135: ='Mens LJ'!$K$27 -> 2 | O135: =IF('Mens LJ'!$I$26=0,"",'Mens LJ'!$L$27) ->  | P135: =IF(OR($O135="",$O135=0),"",HLOOKUP(O135,mens_declare,B136,FALSE)) ->  | R135: =IF('Mens LJ'!$I$26=0,"",'Mens LJ'!$U$27) ->  | T135: =IF(AA133="T",AD135,AE135) ->  | V135: =IF(AA133="T","",IF(I134>V133,"LR",IF(I134=V133,"=LR",IF(I134>W133,"DR",IF(I134=W133,"=DR",""))))) -> LR | AB135: =IF(I135="","",IF(AA133="F","",IF(AA133="T",IF(I135<=X133,"þ",IF(I135<=Y133,"G2",IF(I135<=Z133,"G3","")))))) ->  | AC135: =IF(I135="","",IF(AA133="T","",IF(AA133="F",IF(I135>=X133,"þ",IF(I135>=Y133,"G2",IF(I135>=Z133,"G3","")))))) ->  | AD135: =IF(R135="","",IF(AA133="F","",IF(AA133="T",IF(R135<=X133,"þ",IF(R135<=Y133,"G2",IF(R135<=Z133,"G3","")))))) ->  | AE135: =IF(R135="","",IF(AA133="T","",IF(AA133="F",IF(R135>=X133,"þ",IF(R135>=Y133,"G2",IF(R135>=Z133,"G3","")))))) ->  | AF135: =C135 ->  | AH135: =D135 ->  | AJ135: 135
B136: =VLOOKUP(A134,mens_declare,20,FALSE) -> 14 | E136: ='Mens LJ'!$E$28 -> 3 | F136: =IF('Mens LJ'!$I$26=0,"",'Mens LJ'!$F$28) ->  | G136: =IF(OR($F136="",$F136=0),"",IF($F136>90,VLOOKUP(F136,eventcodes,2,FALSE),HLOOKUP(F136,mens_declare,B136,FALSE))) ->  | I136: =IF('Mens LJ'!$I$26=0,"",'Mens LJ'!$I$28) ->  | L136: =IF(AA133="T",AB136,AC136) ->  | N136: ='Mens LJ'!$K$28 -> 3 | O136: =IF('Mens LJ'!$I$26=0,"",'Mens LJ'!$L$28) ->  | P136: =IF(OR($O136="",$O136=0),"",HLOOKUP(O136,mens_declare,B136,FALSE)) ->  | R136: =IF('Mens LJ'!$I$26=0,"",'Mens LJ'!$U$28) ->  | T136: =IF(AA133="T",AD136,AE136) ->  | AB136: =IF(I136="","",IF(AA133="F","",IF(AA133="T",IF(I136<=X133,"þ",IF(I136<=Y133,"G2",IF(I136<=Z133,"G3","")))))) ->  | AC136: =IF(I136="","",IF(AA133="T","",IF(AA133="F",IF(I136>=X133,"þ",IF(I136>=Y133,"G2",IF(I136>=Z133,"G3","")))))) ->  | AD136: =IF(R136="","",IF(AA133="F","",IF(AA133="T",IF(R136<=X133,"þ",IF(R136<=Y133,"G2",IF(R136<=Z133,"G3","")))))) ->  | AE136: =IF(R136="","",IF(AA133="T","",IF(AA133="F",IF(R136>=X133,"þ",IF(R136>=Y133,"G2",IF(R136>=Z133,"G3","")))))) ->  | AJ136: 136
E137: ='Mens LJ'!$E$29 -> 4 | F137: =IF('Mens LJ'!$I$26=0,"",'Mens LJ'!$F$29) ->  | G137: =IF(OR($F137="",$F137=0),"",IF($F137>90,VLOOKUP(F137,eventcodes,2,FALSE),HLOOKUP(F137,mens_declare,B136,FALSE))) ->  | I137: =IF('Mens LJ'!$I$26=0,"",'Mens LJ'!$I$29) ->  | L137: =IF(AA133="T",AB137,AC137) ->  | N137: ='Mens LJ'!$K$29 -> 4 | O137: =IF('Mens LJ'!$I$26=0,"",'Mens LJ'!$L$29) ->  | P137: =IF(OR($O137="",$O137=0),"",HLOOKUP(O137,mens_declare,B136,FALSE)) ->  | R137: =IF('Mens LJ'!$I$26=0,"",'Mens LJ'!$U$29) ->  | T137: =IF(AA133="T",AD137,AE137) ->  | AB137: =IF(I137="","",IF(AA133="F","",IF(AA133="T",IF(I137<=X133,"þ",IF(I137<=Y133,"G2",IF(I137<=Z133,"G3","")))))) ->  | AC137: =IF(I137="","",IF(AA133="T","",IF(AA133="F",IF(I137>=X133,"þ",IF(I137>=Y133,"G2",IF(I137>=Z133,"G3","")))))) ->  | AD137: =IF(R137="","",IF(AA133="F","",IF(AA133="T",IF(R137<=X133,"þ",IF(R137<=Y133,"G2",IF(R137<=Z133,"G3","")))))) ->  | AE137: =IF(R137="","",IF(AA133="T","",IF(AA133="F",IF(R137>=X133,"þ",IF(R137>=Y133,"G2",IF(R137>=Z133,"G3","")))))) ->  | AJ137: 137
E138: ='Mens LJ'!$E$30 -> 5 | F138: =IF('Mens LJ'!$I$26=0,"",'Mens LJ'!$F$30) ->  | G138: =IF(OR($F138="",$F138=0),"",IF($F138>90,VLOOKUP(F138,eventcodes,2,FALSE),HLOOKUP(F138,mens_declare,B136,FALSE))) ->  | I138: =IF('Mens LJ'!$I$26=0,"",'Mens LJ'!$I$30) ->  | L138: =IF(AA133="T",AB138,AC138) ->  | N138: ='Mens LJ'!$K$30 -> 5 | O138: =IF('Mens LJ'!$I$26=0,"",'Mens LJ'!$L$30) ->  | P138: =IF(OR($O138="",$O138=0),"",HLOOKUP(O138,mens_declare,B136,FALSE)) ->  | R138: =IF('Mens LJ'!$I$26=0,"",'Mens LJ'!$U$30) ->  | T138: =IF(AA133="T",AD138,AE138) ->  | AB138: =IF(I138="","",IF(AA133="F","",IF(AA133="T",IF(I138<=X133,"þ",IF(I138<=Y133,"G2",IF(I138<=Z133,"G3","")))))) ->  | AC138: =IF(I138="","",IF(AA133="T","",IF(AA133="F",IF(I138>=X133,"þ",IF(I138>=Y133,"G2",IF(I138>=Z133,"G3","")))))) ->  | AD138: =IF(R138="","",IF(AA133="F","",IF(AA133="T",IF(R138<=X133,"þ",IF(R138<=Y133,"G2",IF(R138<=Z133,"G3","")))))) ->  | AE138: =IF(R138="","",IF(AA133="T","",IF(AA133="F",IF(R138>=X133,"þ",IF(R138>=Y133,"G2",IF(R138>=Z133,"G3","")))))) ->  | AJ138: 138
E139: ='Mens LJ'!$E$31 -> 6 | F139: =IF('Mens LJ'!$I$26=0,"",'Mens LJ'!$F$31) ->  | G139: =IF(OR($F139="",$F139=0),"",IF($F139>90,VLOOKUP(F139,eventcodes,2,FALSE),HLOOKUP(F139,mens_declare,B136,FALSE))) ->  | I139: =IF('Mens LJ'!$I$26=0,"",'Mens LJ'!$I$31) ->  | L139: =IF(AA133="T",AB139,AC139) ->  | N139: ='Mens LJ'!$K$31 -> 6 | O139: =IF('Mens LJ'!$I$26=0,"",'Mens LJ'!$L$31) ->  | P139: =IF(OR($O139="",$O139=0),"",HLOOKUP(O139,mens_declare,B136,FALSE)) ->  | R139: =IF('Mens LJ'!$I$26=0,"",'Mens LJ'!$U$31) ->  | T139: =IF(AA133="T",AD139,AE139) ->  | AB139: =IF(I139="","",IF(AA133="F","",IF(AA133="T",IF(I139<=X133,"þ",IF(I139<=Y133,"G2",IF(I139<=Z133,"G3","")))))) ->  | AC139: =IF(I139="","",IF(AA133="T","",IF(AA133="F",IF(I139>=X133,"þ",IF(I139>=Y133,"G2",IF(I139>=Z133,"G3","")))))) ->  | AD139: =IF(R139="","",IF(AA133="F","",IF(AA133="T",IF(R139<=X133,"þ",IF(R139<=Y133,"G2",IF(R139<=Z133,"G3","")))))) ->  | AE139: =IF(R139="","",IF(AA133="T","",IF(AA133="F",IF(R139>=X133,"þ",IF(R139>=Y133,"G2",IF(R139>=Z133,"G3","")))))) ->  | AJ139: 139
E140: ='Mens LJ'!$E$32 -> 7 | F140: =IF('Mens LJ'!$I$26=0,"",'Mens LJ'!$F$32) ->  | G140: =IF(OR($F140="",$F140=0),"",IF($F140>90,VLOOKUP(F140,eventcodes,2,FALSE),HLOOKUP(F140,mens_declare,B136,FALSE))) ->  | I140: =IF('Mens LJ'!$I$26=0,"",'Mens LJ'!$I$32) ->  | L140: =IF(AA133="T",AB140,AC140) ->  | N140: ='Mens LJ'!$K$32 -> 7 | O140: =IF('Mens LJ'!$I$26=0,"",'Mens LJ'!$L$32) ->  | P140: =IF(OR($O140="",$O140=0),"",HLOOKUP(O140,mens_declare,B136,FALSE)) ->  | R140: =IF('Mens LJ'!$I$26=0,"",'Mens LJ'!$U$32) ->  | T140: =IF(AA133="T",AD140,AE140) ->  | AB140: =IF(I140="","",IF(AA133="F","",IF(AA133="T",IF(I140<=X133,"þ",IF(I140<=Y133,"G2",IF(I140<=Z133,"G3","")))))) ->  | AC140: =IF(I140="","",IF(AA133="T","",IF(AA133="F",IF(I140>=X133,"þ",IF(I140>=Y133,"G2",IF(I140>=Z133,"G3","")))))) ->  | AD140: =IF(R140="","",IF(AA133="F","",IF(AA133="T",IF(R140<=X133,"þ",IF(R140<=Y133,"G2",IF(R140<=Z133,"G3","")))))) ->  | AE140: =IF(R140="","",IF(AA133="T","",IF(AA133="F",IF(R140>=X133,"þ",IF(R140>=Y133,"G2",IF(R140>=Z133,"G3","")))))) ->  | AJ140: 140
E141: ='Mens LJ'!$E$33 -> 8 | F141: =IF('Mens LJ'!$I$26=0,"",'Mens LJ'!$F$33) ->  | G141: =IF(OR($F141="",$F141=0),"",IF($F141>90,VLOOKUP(F141,eventcodes,2,FALSE),HLOOKUP(F141,mens_declare,B136,FALSE))) ->  | I141: =IF('Mens LJ'!$I$26=0,"",'Mens LJ'!$I$33) ->  | L141: =IF(AA133="T",AB141,AC141) ->  | N141: ='Mens LJ'!$K$33 -> 8 | O141: =IF('Mens LJ'!$I$26=0,"",'Mens LJ'!$L$33) ->  | P141: =IF(OR($O141="",$O141=0),"",HLOOKUP(O141,mens_declare,B136,FALSE)) ->  | R141: =IF('Mens LJ'!$I$26=0,"",'Mens LJ'!$U$33) ->  | T141: =IF(AA133="T",AD141,AE141) ->  | AB141: =IF(I141="","",IF(AA133="F","",IF(AA133="T",IF(I141<=X133,"þ",IF(I141<=Y133,"G2",IF(I141<=Z133,"G3","")))))) ->  | AC141: =IF(I141="","",IF(AA133="T","",IF(AA133="F",IF(I141>=X133,"þ",IF(I141>=Y133,"G2",IF(I141>=Z133,"G3","")))))) ->  | AD141: =IF(R141="","",IF(AA133="F","",IF(AA133="T",IF(R141<=X133,"þ",IF(R141<=Y133,"G2",IF(R141<=Z133,"G3","")))))) ->  | AE141: =IF(R141="","",IF(AA133="T","",IF(AA133="F",IF(R141>=X133,"þ",IF(R141>=Y133,"G2",IF(R141>=Z133,"G3","")))))) ->  | AJ141: 141
AJ142: 142
C143: =VLOOKUP(A144,Handbook!$A$4:$AK$24,36,FALSE) -> D | E143: =CONCATENATE(VLOOKUP(A144,mens_handbook,3,FALSE)," A") -> Men's Triple Jump A | H143: =IF(A144="","",IF(VLOOKUP(A144,Handbook!$A$4:$AI$24,35,FALSE)="Y","Wind=","")) ->  | O143: =CONCATENATE(VLOOKUP(A144,mens_handbook,3,FALSE)," B") -> Men's Triple Jump B | Q143: =H143 ->  | R143: =IF(I143="","",I143) ->  | V143: =IF($A144="","",VLOOKUP($A144,Handbook!$A$4:$V$24,21,FALSE)) -> 17.43 | W143: =IF($A144="","",VLOOKUP($A144,Handbook!$A$4:$V$24,22,FALSE)) -> 17.43 | X143: =IF($A144="","",VLOOKUP($A144,Handbook!$A$4:$W$24,23,FALSE)) -> 11.8 | Y143: =IF($A144="","",VLOOKUP($A144,Handbook!$A$4:$X$24,24,FALSE)) -> 13 | Z143: =IF($A144="","",VLOOKUP($A144,Handbook!$A$4:$Y$24,25,FALSE)) -> 13 | AA143: =IF($A144="","",VLOOKUP($A144,Handbook!$A$4:$AH$24,34,FALSE)) -> F | AJ143: 143
A144: 16 | C144: =IF(F144="","",IF(F144>10,F144/11,F144)) ->  | D144: =IF(O144="","",IF(O144>10,O144/11,O144)) ->  | E144: ='Mens TJ'!$E$26 -> 1 | F144: =IF('Mens TJ'!$I$26=0,"",'Mens TJ'!$F$26) ->  | G144: =IF(OR($F144="",$F144=0),"",IF($F144>90,VLOOKUP(F144,eventcodes,2,FALSE),HLOOKUP(F144,mens_declare,B146,FALSE))) ->  | H144: =IF(OR($F144="",$F144=0),"",IF($F144>90,"",VLOOKUP(C144,matchday,2,FALSE))) ->  | I144: =IF('Mens TJ'!$I$26=0,"",'Mens TJ'!$I$26) ->  | J144: =IF(I144="","",IF(AA143="T",V144,V145)) ->  | L144: =IF(AA143="T",AB144,AC144) ->  | N144: ='Mens TJ'!$K$26 -> 1 | O144: =IF('Mens TJ'!$I$26=0,"",'Mens TJ'!$L$26) ->  | P144: =IF(OR($O144="",$O144=0),"",HLOOKUP(O144,mens_declare,B146,FALSE)) ->  | Q144: =IF(OR($O144="",$O144=0),"",VLOOKUP(D144,matchday,2,FALSE)) ->  | R144: =IF('Mens TJ'!$I$26=0,"",'Mens TJ'!$U$26) ->  | T144: =IF(AA143="T",AD144,AE144) ->  | V144: =IF(AA143="F","",IF(I144<V143,"LR",IF(I144=V143,"=LR",IF(I144<W143,"DR",IF(I144=W143,"=DR",""))))) ->  | AB144: =IF(I144="","",IF(AA143="F","",IF(AA143="T",IF(I144<=X143,"þ",IF(I144<=Y143,"G2",IF(I144<=Z143,"G3","")))))) ->  | AC144: =IF(I144="","",IF(AA143="T","",IF(AA143="F",IF(I144>=X143,"þ",IF(I144>=Y143,"G2",IF(I144>=Z143,"G3","")))))) ->  | AD144: =IF(R144="","",IF(AA143="F","",IF(AA143="T",IF(R144<=X143,"þ",IF(R144<=Y143,"G2",IF(R144<=Z143,"G3","")))))) ->  | AE144: =IF(R144="","",IF(AA143="T","",IF(AA143="F",IF(R144>=X143,"þ",IF(R144>=Y143,"G2",IF(R144>=Z143,"G3","")))))) ->  | AF144: =C144 ->  | AG144: =IF(F144="","",IF(LEFT(I144,1)="D",0,VLOOKUP(E144,$AQ$4:$AR$40,2,FALSE))) ->  | AH144: =D144 ->  | AI144: =IF(O144="","",IF(LEFT(R144,1)="D",0,VLOOKUP(N144,$AQ$4:$AS$40,3,FALSE))) ->  | AJ144: 144
B145: =VLOOKUP(A144,Handbook!$A$4:$AK$24,37,FALSE) -> 17 | C145: =IF(F145="","",IF(F145>10,F145/11,F145)) ->  | D145: =IF(O145="","",IF(O145>10,O145/11,O145)) ->  | E145: ='Mens TJ'!$E$27 -> 2 | F145: =IF('Mens TJ'!$I$26=0,"",'Mens TJ'!$F$27) ->  | G145: =IF(OR($F145="",$F145=0),"",IF($F145>90,VLOOKUP(F145,eventcodes,2,FALSE),HLOOKUP(F145,mens_declare,B146,FALSE))) ->  | I145: =IF('Mens TJ'!$I$26=0,"",'Mens TJ'!$I$27) ->  | L145: =IF(AA143="T",AB145,AC145) ->  | N145: ='Mens TJ'!$K$27 -> 2 | O145: =IF('Mens TJ'!$I$26=0,"",'Mens TJ'!$L$27) ->  | P145: =IF(OR($O145="",$O145=0),"",HLOOKUP(O145,mens_declare,B146,FALSE)) ->  | R145: =IF('Mens TJ'!$I$26=0,"",'Mens TJ'!$U$27) ->  | T145: =IF(AA143="T",AD145,AE145) ->  | V145: =IF(AA143="T","",IF(I144>V143,"LR",IF(I144=V143,"=LR",IF(I144>W143,"DR",IF(I144=W143,"=DR",""))))) -> LR | AB145: =IF(I145="","",IF(AA143="F","",IF(AA143="T",IF(I145<=X143,"þ",IF(I145<=Y143,"G2",IF(I145<=Z143,"G3","")))))) ->  | AC145: =IF(I145="","",IF(AA143="T","",IF(AA143="F",IF(I145>=X143,"þ",IF(I145>=Y143,"G2",IF(I145>=Z143,"G3","")))))) ->  | AD145: =IF(R145="","",IF(AA143="F","",IF(AA143="T",IF(R145<=X143,"þ",IF(R145<=Y143,"G2",IF(R145<=Z143,"G3","")))))) ->  | AE145: =IF(R145="","",IF(AA143="T","",IF(AA143="F",IF(R145>=X143,"þ",IF(R145>=Y143,"G2",IF(R145>=Z143,"G3","")))))) ->  | AF145: =C145 ->  | AH145: =D145 ->  | AJ145: 145
B146: =VLOOKUP(A144,mens_declare,20,FALSE) -> 17 | E146: ='Mens TJ'!$E$28 -> 3 | F146: =IF('Mens TJ'!$I$26=0,"",'Mens TJ'!$F$28) ->  | G146: =IF(OR($F146="",$F146=0),"",IF($F146>90,VLOOKUP(F146,eventcodes,2,FALSE),HLOOKUP(F146,mens_declare,B146,FALSE))) ->  | I146: =IF('Mens TJ'!$I$26=0,"",'Mens TJ'!$I$28) ->  | L146: =IF(AA143="T",AB146,AC146) ->  | N146: ='Mens TJ'!$K$28 -> 3 | O146: =IF('Mens TJ'!$I$26=0,"",'Mens TJ'!$L$28) ->  | P146: =IF(OR($O146="",$O146=0),"",HLOOKUP(O146,mens_declare,B146,FALSE)) ->  | R146: =IF('Mens TJ'!$I$26=0,"",'Mens TJ'!$U$28) ->  | T146: =IF(AA143="T",AD146,AE146) ->  | AB146: =IF(I146="","",IF(AA143="F","",IF(AA143="T",IF(I146<=X143,"þ",IF(I146<=Y143,"G2",IF(I146<=Z143,"G3","")))))) ->  | AC146: =IF(I146="","",IF(AA143="T","",IF(AA143="F",IF(I146>=X143,"þ",IF(I146>=Y143,"G2",IF(I146>=Z143,"G3","")))))) ->  | AD146: =IF(R146="","",IF(AA143="F","",IF(AA143="T",IF(R146<=X143,"þ",IF(R146<=Y143,"G2",IF(R146<=Z143,"G3","")))))) ->  | AE146: =IF(R146="","",IF(AA143="T","",IF(AA143="F",IF(R146>=X143,"þ",IF(R146>=Y143,"G2",IF(R146>=Z143,"G3","")))))) ->  | AJ146: 146
E147: ='Mens TJ'!$E$29 -> 4 | F147: =IF('Mens TJ'!$I$26=0,"",'Mens TJ'!$F$29) ->  | G147: =IF(OR($F147="",$F147=0),"",IF($F147>90,VLOOKUP(F147,eventcodes,2,FALSE),HLOOKUP(F147,mens_declare,B146,FALSE))) ->  | I147: =IF('Mens TJ'!$I$26=0,"",'Mens TJ'!$I$29) ->  | L147: =IF(AA143="T",AB147,AC147) ->  | N147: ='Mens TJ'!$K$29 -> 4 | O147: =IF('Mens TJ'!$I$26=0,"",'Mens TJ'!$L$29) ->  | P147: =IF(OR($O147="",$O147=0),"",HLOOKUP(O147,mens_declare,B146,FALSE)) ->  | R147: =IF('Mens TJ'!$I$26=0,"",'Mens TJ'!$U$29) ->  | T147: =IF(AA143="T",AD147,AE147) ->  | AB147: =IF(I147="","",IF(AA143="F","",IF(AA143="T",IF(I147<=X143,"þ",IF(I147<=Y143,"G2",IF(I147<=Z143,"G3","")))))) ->  | AC147: =IF(I147="","",IF(AA143="T","",IF(AA143="F",IF(I147>=X143,"þ",IF(I147>=Y143,"G2",IF(I147>=Z143,"G3","")))))) ->  | AD147: =IF(R147="","",IF(AA143="F","",IF(AA143="T",IF(R147<=X143,"þ",IF(R147<=Y143,"G2",IF(R147<=Z143,"G3","")))))) ->  | AE147: =IF(R147="","",IF(AA143="T","",IF(AA143="F",IF(R147>=X143,"þ",IF(R147>=Y143,"G2",IF(R147>=Z143,"G3","")))))) ->  | AJ147: 147
E148: ='Mens TJ'!$E$30 -> 5 | F148: =IF('Mens TJ'!$I$26=0,"",'Mens TJ'!$F$30) ->  | G148: =IF(OR($F148="",$F148=0),"",IF($F148>90,VLOOKUP(F148,eventcodes,2,FALSE),HLOOKUP(F148,mens_declare,B146,FALSE))) ->  | I148: =IF('Mens TJ'!$I$26=0,"",'Mens TJ'!$I$30) ->  | L148: =IF(AA143="T",AB148,AC148) ->  | N148: ='Mens TJ'!$K$30 -> 5 | O148: =IF('Mens TJ'!$I$26=0,"",'Mens TJ'!$L$30) ->  | P148: =IF(OR($O148="",$O148=0),"",HLOOKUP(O148,mens_declare,B146,FALSE)) ->  | R148: =IF('Mens TJ'!$I$26=0,"",'Mens TJ'!$U$30) ->  | T148: =IF(AA143="T",AD148,AE148) ->  | AB148: =IF(I148="","",IF(AA143="F","",IF(AA143="T",IF(I148<=X143,"þ",IF(I148<=Y143,"G2",IF(I148<=Z143,"G3","")))))) ->  | AC148: =IF(I148="","",IF(AA143="T","",IF(AA143="F",IF(I148>=X143,"þ",IF(I148>=Y143,"G2",IF(I148>=Z143,"G3","")))))) ->  | AD148: =IF(R148="","",IF(AA143="F","",IF(AA143="T",IF(R148<=X143,"þ",IF(R148<=Y143,"G2",IF(R148<=Z143,"G3","")))))) ->  | AE148: =IF(R148="","",IF(AA143="T","",IF(AA143="F",IF(R148>=X143,"þ",IF(R148>=Y143,"G2",IF(R148>=Z143,"G3","")))))) ->  | AJ148: 148
E149: ='Mens TJ'!$E$31 -> 6 | F149: =IF('Mens TJ'!$I$26=0,"",'Mens TJ'!$F$31) ->  | G149: =IF(OR($F149="",$F149=0),"",IF($F149>90,VLOOKUP(F149,eventcodes,2,FALSE),HLOOKUP(F149,mens_declare,B146,FALSE))) ->  | I149: =IF('Mens TJ'!$I$26=0,"",'Mens TJ'!$I$31) ->  | L149: =IF(AA143="T",AB149,AC149) ->  | N149: ='Mens TJ'!$K$31 -> 6 | O149: =IF('Mens TJ'!$I$26=0,"",'Mens TJ'!$L$31) ->  | P149: =IF(OR($O149="",$O149=0),"",HLOOKUP(O149,mens_declare,B146,FALSE)) ->  | R149: =IF('Mens TJ'!$I$26=0,"",'Mens TJ'!$U$31) ->  | T149: =IF(AA143="T",AD149,AE149) ->  | AB149: =IF(I149="","",IF(AA143="F","",IF(AA143="T",IF(I149<=X143,"þ",IF(I149<=Y143,"G2",IF(I149<=Z143,"G3","")))))) ->  | AC149: =IF(I149="","",IF(AA143="T","",IF(AA143="F",IF(I149>=X143,"þ",IF(I149>=Y143,"G2",IF(I149>=Z143,"G3","")))))) ->  | AD149: =IF(R149="","",IF(AA143="F","",IF(AA143="T",IF(R149<=X143,"þ",IF(R149<=Y143,"G2",IF(R149<=Z143,"G3","")))))) ->  | AE149: =IF(R149="","",IF(AA143="T","",IF(AA143="F",IF(R149>=X143,"þ",IF(R149>=Y143,"G2",IF(R149>=Z143,"G3","")))))) ->  | AJ149: 149
E150: ='Mens TJ'!$E$32 -> 7 | F150: =IF('Mens TJ'!$I$26=0,"",'Mens TJ'!$F$32) ->  | G150: =IF(OR($F150="",$F150=0),"",IF($F150>90,VLOOKUP(F150,eventcodes,2,FALSE),HLOOKUP(F150,mens_declare,B146,FALSE))) ->  | I150: =IF('Mens TJ'!$I$26=0,"",'Mens TJ'!$I$32) ->  | L150: =IF(AA143="T",AB150,AC150) ->  | N150: ='Mens TJ'!$K$32 -> 7 | O150: =IF('Mens TJ'!$I$26=0,"",'Mens TJ'!$L$32) ->  | P150: =IF(OR($O150="",$O150=0),"",HLOOKUP(O150,mens_declare,B146,FALSE)) ->  | R150: =IF('Mens TJ'!$I$26=0,"",'Mens TJ'!$U$32) ->  | T150: =IF(AA143="T",AD150,AE150) ->  | AB150: =IF(I150="","",IF(AA143="F","",IF(AA143="T",IF(I150<=X143,"þ",IF(I150<=Y143,"G2",IF(I150<=Z143,"G3","")))))) ->  | AC150: =IF(I150="","",IF(AA143="T","",IF(AA143="F",IF(I150>=X143,"þ",IF(I150>=Y143,"G2",IF(I150>=Z143,"G3","")))))) ->  | AD150: =IF(R150="","",IF(AA143="F","",IF(AA143="T",IF(R150<=X143,"þ",IF(R150<=Y143,"G2",IF(R150<=Z143,"G3","")))))) ->  | AE150: =IF(R150="","",IF(AA143="T","",IF(AA143="F",IF(R150>=X143,"þ",IF(R150>=Y143,"G2",IF(R150>=Z143,"G3","")))))) ->  | AJ150: 150
E151: ='Mens TJ'!$E$33 -> 8 | F151: =IF('Mens TJ'!$I$26=0,"",'Mens TJ'!$F$33) ->  | G151: =IF(OR($F151="",$F151=0),"",IF($F151>90,VLOOKUP(F151,eventcodes,2,FALSE),HLOOKUP(F151,mens_declare,B146,FALSE))) ->  | I151: =IF('Mens TJ'!$I$26=0,"",'Mens TJ'!$I$33) ->  | L151: =IF(AA143="T",AB151,AC151) ->  | N151: ='Mens TJ'!$K$33 -> 8 | O151: =IF('Mens TJ'!$I$26=0,"",'Mens TJ'!$L$33) ->  | P151: =IF(OR($O151="",$O151=0),"",HLOOKUP(O151,mens_declare,B146,FALSE)) ->  | R151: =IF('Mens TJ'!$I$26=0,"",'Mens TJ'!$U$33) ->  | T151: =IF(AA143="T",AD151,AE151) ->  | AB151: =IF(I151="","",IF(AA143="F","",IF(AA143="T",IF(I151<=X143,"þ",IF(I151<=Y143,"G2",IF(I151<=Z143,"G3","")))))) ->  | AC151: =IF(I151="","",IF(AA143="T","",IF(AA143="F",IF(I151>=X143,"þ",IF(I151>=Y143,"G2",IF(I151>=Z143,"G3","")))))) ->  | AD151: =IF(R151="","",IF(AA143="F","",IF(AA143="T",IF(R151<=X143,"þ",IF(R151<=Y143,"G2",IF(R151<=Z143,"G3","")))))) ->  | AE151: =IF(R151="","",IF(AA143="T","",IF(AA143="F",IF(R151>=X143,"þ",IF(R151>=Y143,"G2",IF(R151>=Z143,"G3","")))))) ->  | AJ151: 151
AJ152: 152
C153: =VLOOKUP(A154,Handbook!$A$4:$AK$24,36,FALSE) -> H | E153: =CONCATENATE(VLOOKUP(A154,mens_handbook,3,FALSE)," A") -> Men's High Jump A | H153: =IF(A154="","",IF(VLOOKUP(A154,Handbook!$A$4:$AI$24,35,FALSE)="Y","Wind=","")) ->  | O153: =CONCATENATE(VLOOKUP(A154,mens_handbook,3,FALSE)," B") -> Men's High Jump B | Q153: =H153 ->  | R153: =IF(I153="","",I153) ->  | V153: =IF($A154="","",VLOOKUP($A154,Handbook!$A$4:$V$24,21,FALSE)) -> 2.2 | W153: =IF($A154="","",VLOOKUP($A154,Handbook!$A$4:$V$24,22,FALSE)) -> 2.2 | X153: =IF($A154="","",VLOOKUP($A154,Handbook!$A$4:$W$24,23,FALSE)) -> 1.73 | Y153: =IF($A154="","",VLOOKUP($A154,Handbook!$A$4:$X$24,24,FALSE)) -> 1.9 | Z153: =IF($A154="","",VLOOKUP($A154,Handbook!$A$4:$Y$24,25,FALSE)) -> 1.9 | AA153: =IF($A154="","",VLOOKUP($A154,Handbook!$A$4:$AH$24,34,FALSE)) -> F | AJ153: 153
A154: 14 | C154: =IF(F154="","",IF(F154>10,F154/11,F154)) ->  | D154: =IF(O154="","",IF(O154>10,O154/11,O154)) ->  | E154: ='Mens HJ'!$E26 ->  | F154: =IF('Mens HJ'!$I$26=0,"",'Mens HJ'!$F26) ->  | G154: =IF($F154="","",IF($F154>90,VLOOKUP(F154,eventcodes,2,FALSE),HLOOKUP(F154,mens_declare,B156,FALSE))) ->  | H154: =IF($F154="","",IF($F154>90,"",VLOOKUP(C154,matchday,2,FALSE))) ->  | I154: =IF('Mens HJ'!$I$26=0,"",'Mens HJ'!$I26) ->  | J154: =IF(I154="","",IF(AA153="T",V154,V155)) ->  | L154: =IF(AA153="T",AB154,AC154) ->  | N154: ='Mens HJ'!$K26 ->  | O154: =IF('Mens HJ'!$I$26=0,"",'Mens HJ'!$M26) ->  | P154: =IF($O154="","",HLOOKUP(O154,mens_declare,B156,FALSE)) ->  | Q154: =IF($O154="","",VLOOKUP(D154,matchday,2,FALSE)) ->  | R154: =IF('Mens HJ'!$I$26=0,"",'Mens HJ'!$AA26) ->  | T154: =IF(AA153="T",AD154,AE154) ->  | V154: =IF(AA153="F","",IF(I154<V153,"LR",IF(I154=V153,"=LR",IF(I154<W153,"DR",IF(I154=W153,"=DR",""))))) ->  | AB154: =IF(I154="","",IF(AA153="F","",IF(AA153="T",IF(I154<=X153,"þ",IF(I154<=Y153,"G2",IF(I154<=Z153,"G3","")))))) ->  | AC154: =IF(I154="","",IF(AA153="T","",IF(AA153="F",IF(I154>=X153,"þ",IF(I154>=Y153,"G2",IF(I154>=Z153,"G3","")))))) ->  | AD154: =IF(R154="","",IF(AA153="F","",IF(AA153="T",IF(R154<=X153,"þ",IF(R154<=Y153,"G2",IF(R154<=Z153,"G3","")))))) ->  | AE154: =IF(R154="","",IF(AA153="T","",IF(AA153="F",IF(R154>=X153,"þ",IF(R154>=Y153,"G2",IF(R154>=Z153,"G3","")))))) ->  | AF154: =C154 ->  | AG154: =IF(F154="","",IF(LEFT(I154,1)="D",0,VLOOKUP(E154,$AQ$4:$AR$40,2,FALSE))) ->  | AH154: =D154 ->  | AI154: =IF(O154="","",IF(LEFT(R154,1)="D",0,VLOOKUP(N154,$AQ$4:$AS$40,3,FALSE))) ->  | AJ154: 154
B155: =VLOOKUP(A154,Handbook!$A$4:$AK$24,37,FALSE) -> 15 | C155: =IF(F155="","",IF(F155>10,F155/11,F155)) ->  | D155: =IF(O155="","",IF(O155>10,O155/11,O155)) ->  | E155: ='Mens HJ'!$E27 ->  | F155: =IF('Mens HJ'!$I$26=0,"",'Mens HJ'!$F27) ->  | G155: =IF($F155="","",HLOOKUP(F155,mens_declare,B156,FALSE)) ->  | H155: =IF($F155="","",IF($F155=9,"",VLOOKUP(C155,matchday,2,FALSE))) ->  | I155: =IF('Mens HJ'!$I$26=0,"",'Mens HJ'!$I27) ->  | L155: =IF(AA153="T",AB155,AC155) ->  | N155: ='Mens HJ'!$K27 ->  | O155: =IF('Mens HJ'!$I$26=0,"",'Mens HJ'!$M27) ->  | P155: =IF($O155="","",HLOOKUP(O155,mens_declare,B156,FALSE)) ->  | R155: =IF('Mens HJ'!$I$26=0,"",'Mens HJ'!$AA27) ->  | T155: =IF(AA153="T",AD155,AE155) ->  | V155: =IF(AA153="T","",IF(I154>V153,"LR",IF(I154=V153,"=LR",IF(I154>W153,"DR",IF(I154=W153,"=DR",""))))) -> LR | AB155: =IF(I155="","",IF(AA153="F","",IF(AA153="T",IF(I155<=X153,"þ",IF(I155<=Y153,"G2",IF(I155<=Z153,"G3","")))))) ->  | AC155: =IF(I155="","",IF(AA153="T","",IF(AA153="F",IF(I155>=X153,"þ",IF(I155>=Y153,"G2",IF(I155>=Z153,"G3","")))))) ->  | AD155: =IF(R155="","",IF(AA153="F","",IF(AA153="T",IF(R155<=X153,"þ",IF(R155<=Y153,"G2",IF(R155<=Z153,"G3","")))))) ->  | AE155: =IF(R155="","",IF(AA153="T","",IF(AA153="F",IF(R155>=X153,"þ",IF(R155>=Y153,"G2",IF(R155>=Z153,"G3","")))))) ->  | AF155: =C155 ->  | AH155: =D155 ->  | AJ155: 155
B156: =VLOOKUP(A154,mens_declare,20,FALSE) -> 15 | E156: ='Mens HJ'!$E28 ->  | F156: =IF('Mens HJ'!$I$26=0,"",'Mens HJ'!$F28) ->  | G156: =IF($F156="","",HLOOKUP(F156,mens_declare,B156,FALSE)) ->  | I156: =IF('Mens HJ'!$I$26=0,"",'Mens HJ'!$I28) ->  | L156: =IF(AA153="T",AB156,AC156) ->  | N156: ='Mens HJ'!$K28 ->  | O156: =IF('Mens HJ'!$I$26=0,"",'Mens HJ'!$M28) ->  | P156: =IF($O156="","",HLOOKUP(O156,mens_declare,B156,FALSE)) ->  | R156: =IF('Mens HJ'!$I$26=0,"",'Mens HJ'!$AA28) ->  | T156: =IF(AA153="T",AD156,AE156) ->  | AB156: =IF(I156="","",IF(AA153="F","",IF(AA153="T",IF(I156<=X153,"þ",IF(I156<=Y153,"G2",IF(I156<=Z153,"G3","")))))) ->  | AC156: =IF(I156="","",IF(AA153="T","",IF(AA153="F",IF(I156>=X153,"þ",IF(I156>=Y153,"G2",IF(I156>=Z153,"G3","")))))) ->  | AD156: =IF(R156="","",IF(AA153="F","",IF(AA153="T",IF(R156<=X153,"þ",IF(R156<=Y153,"G2",IF(R156<=Z153,"G3","")))))) ->  | AE156: =IF(R156="","",IF(AA153="T","",IF(AA153="F",IF(R156>=X153,"þ",IF(R156>=Y153,"G2",IF(R156>=Z153,"G3","")))))) ->  | AJ156: 156
E157: ='Mens HJ'!$E29 ->  | F157: =IF('Mens HJ'!$I$26=0,"",'Mens HJ'!$F29) ->  | G157: =IF($F157="","",HLOOKUP(F157,mens_declare,B156,FALSE)) ->  | I157: =IF('Mens HJ'!$I$26=0,"",'Mens HJ'!$I29) ->  | L157: =IF(AA153="T",AB157,AC157) ->  | N157: ='Mens HJ'!$K29 ->  | O157: =IF('Mens HJ'!$I$26=0,"",'Mens HJ'!$M29) ->  | P157: =IF($O157="","",HLOOKUP(O157,mens_declare,B156,FALSE)) ->  | R157: =IF('Mens HJ'!$I$26=0,"",'Mens HJ'!$AA29) ->  | T157: =IF(AA153="T",AD157,AE157) ->  | AB157: =IF(I157="","",IF(AA153="F","",IF(AA153="T",IF(I157<=X153,"þ",IF(I157<=Y153,"G2",IF(I157<=Z153,"G3","")))))) ->  | AC157: =IF(I157="","",IF(AA153="T","",IF(AA153="F",IF(I157>=X153,"þ",IF(I157>=Y153,"G2",IF(I157>=Z153,"G3","")))))) ->  | AD157: =IF(R157="","",IF(AA153="F","",IF(AA153="T",IF(R157<=X153,"þ",IF(R157<=Y153,"G2",IF(R157<=Z153,"G3","")))))) ->  | AE157: =IF(R157="","",IF(AA153="T","",IF(AA153="F",IF(R157>=X153,"þ",IF(R157>=Y153,"G2",IF(R157>=Z153,"G3","")))))) ->  | AJ157: 157
E158: ='Mens HJ'!$E30 ->  | F158: =IF('Mens HJ'!$I$26=0,"",'Mens HJ'!$F30) ->  | G158: =IF($F158="","",HLOOKUP(F158,mens_declare,B156,FALSE)) ->  | I158: =IF('Mens HJ'!$I$26=0,"",'Mens HJ'!$I30) ->  | L158: =IF(AA153="T",AB158,AC158) ->  | N158: ='Mens HJ'!$K30 ->  | O158: =IF('Mens HJ'!$I$26=0,"",'Mens HJ'!$M30) ->  | P158: =IF($O158="","",HLOOKUP(O158,mens_declare,B156,FALSE)) ->  | R158: =IF('Mens HJ'!$I$26=0,"",'Mens HJ'!$AA30) ->  | T158: =IF(AA153="T",AD158,AE158) ->  | AB158: =IF(I158="","",IF(AA153="F","",IF(AA153="T",IF(I158<=X153,"þ",IF(I158<=Y153,"G2",IF(I158<=Z153,"G3","")))))) ->  | AC158: =IF(I158="","",IF(AA153="T","",IF(AA153="F",IF(I158>=X153,"þ",IF(I158>=Y153,"G2",IF(I158>=Z153,"G3","")))))) ->  | AD158: =IF(R158="","",IF(AA153="F","",IF(AA153="T",IF(R158<=X153,"þ",IF(R158<=Y153,"G2",IF(R158<=Z153,"G3","")))))) ->  | AE158: =IF(R158="","",IF(AA153="T","",IF(AA153="F",IF(R158>=X153,"þ",IF(R158>=Y153,"G2",IF(R158>=Z153,"G3","")))))) ->  | AJ158: 158
E159: ='Mens HJ'!$E31 ->  | F159: =IF('Mens HJ'!$I$26=0,"",'Mens HJ'!$F31) ->  | G159: =IF($F159="","",HLOOKUP(F159,mens_declare,B156,FALSE)) ->  | I159: =IF('Mens HJ'!$I$26=0,"",'Mens HJ'!$I31) ->  | L159: =IF(AA153="T",AB159,AC159) ->  | N159: ='Mens HJ'!$K31 ->  | O159: =IF('Mens HJ'!$I$26=0,"",'Mens HJ'!$M31) ->  | P159: =IF($O159="","",HLOOKUP(O159,mens_declare,B156,FALSE)) ->  | R159: =IF('Mens HJ'!$I$26=0,"",'Mens HJ'!$AA31) ->  | T159: =IF(AA153="T",AD159,AE159) ->  | AB159: =IF(I159="","",IF(AA153="F","",IF(AA153="T",IF(I159<=X153,"þ",IF(I159<=Y153,"G2",IF(I159<=Z153,"G3","")))))) ->  | AC159: =IF(I159="","",IF(AA153="T","",IF(AA153="F",IF(I159>=X153,"þ",IF(I159>=Y153,"G2",IF(I159>=Z153,"G3","")))))) ->  | AD159: =IF(R159="","",IF(AA153="F","",IF(AA153="T",IF(R159<=X153,"þ",IF(R159<=Y153,"G2",IF(R159<=Z153,"G3","")))))) ->  | AE159: =IF(R159="","",IF(AA153="T","",IF(AA153="F",IF(R159>=X153,"þ",IF(R159>=Y153,"G2",IF(R159>=Z153,"G3","")))))) ->  | AJ159: 159
E160: ='Mens HJ'!$E32 ->  | F160: =IF('Mens HJ'!$I$26=0,"",'Mens HJ'!$F32) ->  | G160: =IF($F160="","",HLOOKUP(F160,mens_declare,B156,FALSE)) ->  | I160: =IF('Mens HJ'!$I$26=0,"",'Mens HJ'!$I32) ->  | L160: =IF(AA153="T",AB160,AC160) ->  | N160: ='Mens HJ'!$K32 ->  | O160: =IF('Mens HJ'!$I$26=0,"",'Mens HJ'!$M32) ->  | P160: =IF($O160="","",HLOOKUP(O160,mens_declare,B156,FALSE)) ->  | R160: =IF('Mens HJ'!$I$26=0,"",'Mens HJ'!$AA32) ->  | T160: =IF(AA153="T",AD160,AE160) ->  | AB160: =IF(I160="","",IF(AA153="F","",IF(AA153="T",IF(I160<=X153,"þ",IF(I160<=Y153,"G2",IF(I160<=Z153,"G3","")))))) ->  | AC160: =IF(I160="","",IF(AA153="T","",IF(AA153="F",IF(I160>=X153,"þ",IF(I160>=Y153,"G2",IF(I160>=Z153,"G3","")))))) ->  | AD160: =IF(R160="","",IF(AA153="F","",IF(AA153="T",IF(R160<=X153,"þ",IF(R160<=Y153,"G2",IF(R160<=Z153,"G3","")))))) ->  | AE160: =IF(R160="","",IF(AA153="T","",IF(AA153="F",IF(R160>=X153,"þ",IF(R160>=Y153,"G2",IF(R160>=Z153,"G3","")))))) ->  | AJ160: 160
E161: ='Mens HJ'!$E33 ->  | F161: =IF('Mens HJ'!$I$26=0,"",'Mens HJ'!$F33) ->  | G161: =IF($F161="","",HLOOKUP(F161,mens_declare,B156,FALSE)) ->  | I161: =IF('Mens HJ'!$I$26=0,"",'Mens HJ'!$I33) ->  | L161: =IF(AA153="T",AB161,AC161) ->  | N161: ='Mens HJ'!$K33 ->  | O161: =IF('Mens HJ'!$I$26=0,"",'Mens HJ'!$M33) ->  | P161: =IF($O161="","",HLOOKUP(O161,mens_declare,B156,FALSE)) ->  | R161: =IF('Mens HJ'!$I$26=0,"",'Mens HJ'!$AA33) ->  | T161: =IF(AA153="T",AD161,AE161) ->  | AB161: =IF(I161="","",IF(AA153="F","",IF(AA153="T",IF(I161<=X153,"þ",IF(I161<=Y153,"G2",IF(I161<=Z153,"G3","")))))) ->  | AC161: =IF(I161="","",IF(AA153="T","",IF(AA153="F",IF(I161>=X153,"þ",IF(I161>=Y153,"G2",IF(I161>=Z153,"G3","")))))) ->  | AD161: =IF(R161="","",IF(AA153="F","",IF(AA153="T",IF(R161<=X153,"þ",IF(R161<=Y153,"G2",IF(R161<=Z153,"G3","")))))) ->  | AE161: =IF(R161="","",IF(AA153="T","",IF(AA153="F",IF(R161>=X153,"þ",IF(R161>=Y153,"G2",IF(R161>=Z153,"G3","")))))) ->  | AJ161: 161
AJ162: 162
C163: =VLOOKUP(A164,Handbook!$A$4:$AK$24,36,FALSE) -> H | E163: =CONCATENATE(VLOOKUP(A164,mens_handbook,3,FALSE)," A") -> Men's Pole Vault A | H163: =IF(A164="","",IF(VLOOKUP(A164,Handbook!$A$4:$AI$24,35,FALSE)="Y","Wind=","")) ->  | O163: =CONCATENATE(VLOOKUP(A164,mens_handbook,3,FALSE)," B") -> Men's Pole Vault B | Q163: =H163 ->  | R163: =IF(I163="","",I163) ->  | V163: =IF($A164="","",VLOOKUP($A164,Handbook!$A$4:$V$24,21,FALSE)) -> 5.3 | W163: =IF($A164="","",VLOOKUP($A164,Handbook!$A$4:$V$24,22,FALSE)) -> 5.15 | X163: =IF($A164="","",VLOOKUP($A164,Handbook!$A$4:$W$24,23,FALSE)) -> 3 | Y163: =IF($A164="","",VLOOKUP($A164,Handbook!$A$4:$X$24,24,FALSE)) -> 3.7 | Z163: =IF($A164="","",VLOOKUP($A164,Handbook!$A$4:$Y$24,25,FALSE)) -> 3.7 | AA163: =IF($A164="","",VLOOKUP($A164,Handbook!$A$4:$AH$24,34,FALSE)) -> F | AJ163: 163
A164: 12 | C164: =IF(F164="","",IF(F164>10,F164/11,F164)) ->  | D164: =IF(O164="","",IF(O164>10,O164/11,O164)) ->  | E164: ='Mens PV'!$E26 ->  | F164: =IF('Mens PV'!$I$26=0,"",'Mens PV'!F26) ->  | G164: =IF($F164="","",IF($F164>90,VLOOKUP(F164,eventcodes,2,FALSE),HLOOKUP(F164,mens_declare,B166,FALSE))) ->  | H164: =IF($F164="","",IF($F164>90,"",VLOOKUP(C164,matchday,2,FALSE))) ->  | I164: =IF('Mens PV'!$I$26=0,"",'Mens PV'!$I26) ->  | J164: =IF(I164="","",IF(AA163="T",V164,V165)) ->  | L164: =IF(AA163="T",AB164,AC164) ->  | N164: ='Mens PV'!$K26 ->  | O164: =IF('Mens PV'!$I$26=0,"",'Mens PV'!$M26) ->  | P164: =IF($O164="","",HLOOKUP(O164,mens_declare,B166,FALSE)) ->  | Q164: =IF($O164="","",VLOOKUP(D164,matchday,2,FALSE)) ->  | R164: =IF('Mens PV'!$I$26=0,"",'Mens PV'!$AA26) ->  | T164: =IF(AA163="T",AD164,AE164) ->  | V164: =IF(AA163="F","",IF(I164<V163,"LR",IF(I164=V163,"=LR",IF(I164<W163,"DR",IF(I164=W163,"=DR",""))))) ->  | AB164: =IF(I164="","",IF(AA163="F","",IF(AA163="T",IF(I164<=X163,"þ",IF(I164<=Y163,"G2",IF(I164<=Z163,"G3","")))))) ->  | AC164: =IF(I164="","",IF(AA163="T","",IF(AA163="F",IF(I164>=X163,"þ",IF(I164>=Y163,"G2",IF(I164>=Z163,"G3","")))))) ->  | AD164: =IF(R164="","",IF(AA163="F","",IF(AA163="T",IF(R164<=X163,"þ",IF(R164<=Y163,"G2",IF(R164<=Z163,"G3","")))))) ->  | AE164: =IF(R164="","",IF(AA163="T","",IF(AA163="F",IF(R164>=X163,"þ",IF(R164>=Y163,"G2",IF(R164>=Z163,"G3","")))))) ->  | AF164: =C164 ->  | AG164: =IF(F164="","",IF(LEFT(I164,1)="D",0,VLOOKUP(E164,$AQ$4:$AR$40,2,FALSE))) ->  | AH164: =D164 ->  | AI164: =IF(O164="","",IF(LEFT(R164,1)="D",0,VLOOKUP(N164,$AQ$4:$AS$40,3,FALSE))) ->  | AJ164: 164
B165: =VLOOKUP(A164,Handbook!$A$4:$AK$24,37,FALSE) -> 13 | C165: =IF(F165="","",IF(F165>10,F165/11,F165)) ->  | D165: =IF(O165="","",IF(O165>10,O165/11,O165)) ->  | E165: ='Mens PV'!$E27 ->  | F165: =IF('Mens PV'!$I$26=0,"",'Mens PV'!F27) ->  | G165: =IF($F165="","",HLOOKUP(F165,mens_declare,B166,FALSE)) ->  | H165: =IF($F165="","",IF($F165=9,"",VLOOKUP(C165,matchday,2,FALSE))) ->  | I165: =IF('Mens PV'!$I$26=0,"",'Mens PV'!$I27) ->  | L165: =IF(AA163="T",AB165,AC165) ->  | N165: ='Mens PV'!$K27 ->  | O165: =IF('Mens PV'!$I$26=0,"",'Mens PV'!$M27) ->  | P165: =IF($O165="","",HLOOKUP(O165,mens_declare,B166,FALSE)) ->  | R165: =IF('Mens PV'!$I$26=0,"",'Mens PV'!$AA27) ->  | T165: =IF(AA163="T",AD165,AE165) ->  | V165: =IF(AA163="T","",IF(I164>V163,"LR",IF(I164=V163,"=LR",IF(I164>W163,"DR",IF(I164=W163,"=DR",""))))) -> LR | AB165: =IF(I165="","",IF(AA163="F","",IF(AA163="T",IF(I165<=X163,"þ",IF(I165<=Y163,"G2",IF(I165<=Z163,"G3","")))))) ->  | AC165: =IF(I165="","",IF(AA163="T","",IF(AA163="F",IF(I165>=X163,"þ",IF(I165>=Y163,"G2",IF(I165>=Z163,"G3","")))))) ->  | AD165: =IF(R165="","",IF(AA163="F","",IF(AA163="T",IF(R165<=X163,"þ",IF(R165<=Y163,"G2",IF(R165<=Z163,"G3","")))))) ->  | AE165: =IF(R165="","",IF(AA163="T","",IF(AA163="F",IF(R165>=X163,"þ",IF(R165>=Y163,"G2",IF(R165>=Z163,"G3","")))))) ->  | AF165: =C165 ->  | AH165: =D165 ->  | AJ165: 165
B166: =VLOOKUP(A164,mens_declare,20,FALSE) -> 13 | E166: ='Mens PV'!$E28 ->  | F166: =IF('Mens PV'!$I$26=0,"",'Mens PV'!F28) ->  | G166: =IF($F166="","",HLOOKUP(F166,mens_declare,B166,FALSE)) ->  | I166: =IF('Mens PV'!$I$26=0,"",'Mens PV'!$I28) ->  | L166: =IF(AA163="T",AB166,AC166) ->  | N166: ='Mens PV'!$K28 ->  | O166: =IF('Mens PV'!$I$26=0,"",'Mens PV'!$M28) ->  | P166: =IF($O166="","",HLOOKUP(O166,mens_declare,B166,FALSE)) ->  | R166: =IF('Mens PV'!$I$26=0,"",'Mens PV'!$AA28) ->  | T166: =IF(AA163="T",AD166,AE166) ->  | AB166: =IF(I166="","",IF(AA163="F","",IF(AA163="T",IF(I166<=X163,"þ",IF(I166<=Y163,"G2",IF(I166<=Z163,"G3","")))))) ->  | AC166: =IF(I166="","",IF(AA163="T","",IF(AA163="F",IF(I166>=X163,"þ",IF(I166>=Y163,"G2",IF(I166>=Z163,"G3","")))))) ->  | AD166: =IF(R166="","",IF(AA163="F","",IF(AA163="T",IF(R166<=X163,"þ",IF(R166<=Y163,"G2",IF(R166<=Z163,"G3","")))))) ->  | AE166: =IF(R166="","",IF(AA163="T","",IF(AA163="F",IF(R166>=X163,"þ",IF(R166>=Y163,"G2",IF(R166>=Z163,"G3","")))))) ->  | AJ166: 166
E167: ='Mens PV'!$E29 ->  | F167: =IF('Mens PV'!$I$26=0,"",'Mens PV'!F29) ->  | G167: =IF($F167="","",HLOOKUP(F167,mens_declare,B166,FALSE)) ->  | I167: =IF('Mens PV'!$I$26=0,"",'Mens PV'!$I29) ->  | L167: =IF(AA163="T",AB167,AC167) ->  | N167: ='Mens PV'!$K29 ->  | O167: =IF('Mens PV'!$I$26=0,"",'Mens PV'!$M29) ->  | P167: =IF($O167="","",HLOOKUP(O167,mens_declare,B166,FALSE)) ->  | R167: =IF('Mens PV'!$I$26=0,"",'Mens PV'!$AA29) ->  | T167: =IF(AA163="T",AD167,AE167) ->  | AB167: =IF(I167="","",IF(AA163="F","",IF(AA163="T",IF(I167<=X163,"þ",IF(I167<=Y163,"G2",IF(I167<=Z163,"G3","")))))) ->  | AC167: =IF(I167="","",IF(AA163="T","",IF(AA163="F",IF(I167>=X163,"þ",IF(I167>=Y163,"G2",IF(I167>=Z163,"G3","")))))) ->  | AD167: =IF(R167="","",IF(AA163="F","",IF(AA163="T",IF(R167<=X163,"þ",IF(R167<=Y163,"G2",IF(R167<=Z163,"G3","")))))) ->  | AE167: =IF(R167="","",IF(AA163="T","",IF(AA163="F",IF(R167>=X163,"þ",IF(R167>=Y163,"G2",IF(R167>=Z163,"G3","")))))) ->  | AJ167: 167
E168: ='Mens PV'!$E30 ->  | F168: =IF('Mens PV'!$I$26=0,"",'Mens PV'!F30) ->  | G168: =IF($F168="","",HLOOKUP(F168,mens_declare,B166,FALSE)) ->  | I168: =IF('Mens PV'!$I$26=0,"",'Mens PV'!$I30) ->  | L168: =IF(AA163="T",AB168,AC168) ->  | N168: ='Mens PV'!$K30 ->  | O168: =IF('Mens PV'!$I$26=0,"",'Mens PV'!$M30) ->  | P168: =IF($O168="","",HLOOKUP(O168,mens_declare,B166,FALSE)) ->  | R168: =IF('Mens PV'!$I$26=0,"",'Mens PV'!$AA30) ->  | T168: =IF(AA163="T",AD168,AE168) ->  | AB168: =IF(I168="","",IF(AA163="F","",IF(AA163="T",IF(I168<=X163,"þ",IF(I168<=Y163,"G2",IF(I168<=Z163,"G3","")))))) ->  | AC168: =IF(I168="","",IF(AA163="T","",IF(AA163="F",IF(I168>=X163,"þ",IF(I168>=Y163,"G2",IF(I168>=Z163,"G3","")))))) ->  | AD168: =IF(R168="","",IF(AA163="F","",IF(AA163="T",IF(R168<=X163,"þ",IF(R168<=Y163,"G2",IF(R168<=Z163,"G3","")))))) ->  | AE168: =IF(R168="","",IF(AA163="T","",IF(AA163="F",IF(R168>=X163,"þ",IF(R168>=Y163,"G2",IF(R168>=Z163,"G3","")))))) ->  | AJ168: 168
E169: ='Mens PV'!$E31 ->  | F169: =IF('Mens PV'!$I$26=0,"",'Mens PV'!F31) ->  | G169: =IF($F169="","",HLOOKUP(F169,mens_declare,B166,FALSE)) ->  | I169: =IF('Mens PV'!$I$26=0,"",'Mens PV'!$I31) ->  | L169: =IF(AA163="T",AB169,AC169) ->  | N169: ='Mens PV'!$K31 ->  | O169: =IF('Mens PV'!$I$26=0,"",'Mens PV'!$M31) ->  | P169: =IF($O169="","",HLOOKUP(O169,mens_declare,B166,FALSE)) ->  | R169: =IF('Mens PV'!$I$26=0,"",'Mens PV'!$AA31) ->  | T169: =IF(AA163="T",AD169,AE169) ->  | AB169: =IF(I169="","",IF(AA163="F","",IF(AA163="T",IF(I169<=X163,"þ",IF(I169<=Y163,"G2",IF(I169<=Z163,"G3","")))))) ->  | AC169: =IF(I169="","",IF(AA163="T","",IF(AA163="F",IF(I169>=X163,"þ",IF(I169>=Y163,"G2",IF(I169>=Z163,"G3","")))))) ->  | AD169: =IF(R169="","",IF(AA163="F","",IF(AA163="T",IF(R169<=X163,"þ",IF(R169<=Y163,"G2",IF(R169<=Z163,"G3","")))))) ->  | AE169: =IF(R169="","",IF(AA163="T","",IF(AA163="F",IF(R169>=X163,"þ",IF(R169>=Y163,"G2",IF(R169>=Z163,"G3","")))))) ->  | AJ169: 169
E170: ='Mens PV'!$E32 ->  | F170: =IF('Mens PV'!$I$26=0,"",'Mens PV'!F32) ->  | G170: =IF($F170="","",HLOOKUP(F170,mens_declare,B166,FALSE)) ->  | I170: =IF('Mens PV'!$I$26=0,"",'Mens PV'!$I32) ->  | L170: =IF(AA163="T",AB170,AC170) ->  | N170: ='Mens PV'!$K32 ->  | O170: =IF('Mens PV'!$I$26=0,"",'Mens PV'!$M32) ->  | P170: =IF($O170="","",HLOOKUP(O170,mens_declare,B166,FALSE)) ->  | R170: =IF('Mens PV'!$I$26=0,"",'Mens PV'!$AA32) ->  | T170: =IF(AA163="T",AD170,AE170) ->  | AB170: =IF(I170="","",IF(AA163="F","",IF(AA163="T",IF(I170<=X163,"þ",IF(I170<=Y163,"G2",IF(I170<=Z163,"G3","")))))) ->  | AC170: =IF(I170="","",IF(AA163="T","",IF(AA163="F",IF(I170>=X163,"þ",IF(I170>=Y163,"G2",IF(I170>=Z163,"G3","")))))) ->  | AD170: =IF(R170="","",IF(AA163="F","",IF(AA163="T",IF(R170<=X163,"þ",IF(R170<=Y163,"G2",IF(R170<=Z163,"G3","")))))) ->  | AE170: =IF(R170="","",IF(AA163="T","",IF(AA163="F",IF(R170>=X163,"þ",IF(R170>=Y163,"G2",IF(R170>=Z163,"G3","")))))) ->  | AJ170: 170
E171: ='Mens PV'!$E33 ->  | F171: =IF('Mens PV'!$I$26=0,"",'Mens PV'!F33) ->  | G171: =IF($F171="","",HLOOKUP(F171,mens_declare,B166,FALSE)) ->  | I171: =IF('Mens PV'!$I$26=0,"",'Mens PV'!$I33) ->  | L171: =IF(AA163="T",AB171,AC171) ->  | N171: ='Mens PV'!$K33 ->  | O171: =IF('Mens PV'!$I$26=0,"",'Mens PV'!$M33) ->  | P171: =IF($O171="","",HLOOKUP(O171,mens_declare,B166,FALSE)) ->  | R171: =IF('Mens PV'!$I$26=0,"",'Mens PV'!$AA33) ->  | T171: =IF(AA163="T",AD171,AE171) ->  | AB171: =IF(I171="","",IF(AA163="F","",IF(AA163="T",IF(I171<=X163,"þ",IF(I171<=Y163,"G2",IF(I171<=Z163,"G3","")))))) ->  | AC171: =IF(I171="","",IF(AA163="T","",IF(AA163="F",IF(I171>=X163,"þ",IF(I171>=Y163,"G2",IF(I171>=Z163,"G3","")))))) ->  | AD171: =IF(R171="","",IF(AA163="F","",IF(AA163="T",IF(R171<=X163,"þ",IF(R171<=Y163,"G2",IF(R171<=Z163,"G3","")))))) ->  | AE171: =IF(R171="","",IF(AA163="T","",IF(AA163="F",IF(R171>=X163,"þ",IF(R171>=Y163,"G2",IF(R171>=Z163,"G3","")))))) ->  | AJ171: 171
AJ172: 172
E173: =VLOOKUP(A174,mens_handbook,3,FALSE) -> Men's 4x100m Relay | V173: =IF($A174="","",VLOOKUP($A174,Handbook!$A$4:$V$24,21,FALSE)) -> 42.3 | W173: =IF($A174="","",VLOOKUP($A174,Handbook!$A$4:$V$24,22,FALSE)) -> 42.3 | X173: =IF($A174="","",VLOOKUP($A174,Handbook!$A$4:$W$24,23,FALSE)) -> 44 | Y173: =IF($A174="","",VLOOKUP($A174,Handbook!$A$4:$X$24,24,FALSE)) -> 44 | Z173: =IF($A174="","",VLOOKUP($A174,Handbook!$A$4:$Y$24,25,FALSE)) -> 44 | AA173: =IF($A174="","",VLOOKUP($A174,Handbook!$A$4:$AH$24,34,FALSE)) -> T | AJ173: 173
A174: 9 | C174: =IF(F174="","",IF(F174>10,F174/11,F174)) ->  | D174: =IF(O174="","",IF(O174>10,O174/11,O174)) ->  | E174: 1 | G174: =IF($F174="","",IF($F174>90,VLOOKUP(F174,eventcodes,2,FALSE),VLOOKUP(C174,matchday,2,FALSE))) ->  | H174: =IF($F174="","",IF($F174>90,"",HLOOKUP($C174,mens_declare,$B176,FALSE))) ->  | I174: =IF($F174="","",IF($F174>90,"",HLOOKUP($C174,mens_declare,$B176+1,FALSE))) ->  | N174: =IF($F174="","",IF($F174>90,"",HLOOKUP($C174,mens_declare,$B176+2,FALSE))) ->  | Q174: =IF($F174="","",IF($F174>90,"",HLOOKUP($C174,mens_declare,$B176+3,FALSE))) ->  | T174: =IF(AA173="T",AD174,AE174) ->  | V174: =IF(AA173="F","",IF(R174<V173,"LR",IF(R174=V173,"=LR",IF(R174<W173,"DR",IF(R174=W173,"=DR",""))))) -> LR | AD174: =IF(R174="","",IF(AA173="F","",IF(AA173="T",IF(R174<=X173,"þ",IF(R174<=Y173,"G2",IF(R174<=Z173,"G3","")))))) ->  | AE174: =IF(R174="","",IF(AA173="T","",IF(AA173="F",IF(R174>=X173,"þ",IF(R174>=Y173,"G2",IF(R174>=Z173,"G3","")))))) ->  | AF174: =C174 ->  | AG174: =IF(F174="","",IF(LEFT(R174,1)="D",0,VLOOKUP(E174,$AQ$4:$AR$40,2,FALSE))) ->  | AH174: =D174 ->  | AI174: =IF(O174="","",IF(LEFT(R174,1)="D",0,VLOOKUP(N174,$AQ$4:$AS$40,3,FALSE))) ->  | AJ174: 174
B175: =VLOOKUP(A174,Handbook!$A$4:$AK$24,37,FALSE) -> 10 | C175: =IF(F175="","",IF(F175>10,F175/11,F175)) ->  | D175: =IF(O175="","",IF(O175>10,O175/11,O175)) ->  | E175: 2 | G175: =IF($F175="","",VLOOKUP(C175,matchday,2,FALSE)) ->  | H175: =IF($F175="","",IF($F175>90,"",HLOOKUP($C175,mens_declare,$B176,FALSE))) ->  | I175: =IF($F175="","",IF($F175>90,"",HLOOKUP($C175,mens_declare,$B176+1,FALSE))) ->  | N175: =IF($F175="","",IF($F175>90,"",HLOOKUP($C175,mens_declare,$B176+2,FALSE))) ->  | Q175: =IF($F175="","",IF($F175>90,"",HLOOKUP($C175,mens_declare,$B176+3,FALSE))) ->  | S175: =IF(R175="","",IF(AND(AA173="T",R175<R174),"X",IF(AND(AA173="F",R175>R174),"X",""))) ->  | T175: =IF(AA173="T",AD175,AE175) ->  | V175: =IF(AA173="T","",IF(R174>V173,"LR",IF(R174=V173,"=LR",IF(R174>W173,"DR",IF(R174=W173,"=DR",""))))) ->  | AD175: =IF(R175="","",IF(AA173="F","",IF(AA173="T",IF(R175<=X173,"þ",IF(R175<=Y173,"G2",IF(R175<=Z173,"G3","")))))) ->  | AE175: =IF(R175="","",IF(AA173="T","",IF(AA173="F",IF(R175>=X173,"þ",IF(R175>=Y173,"G2",IF(R175>=Z173,"G3","")))))) ->  | AF175: =C175 ->  | AH175: =D175 ->  | AJ175: 175
B176: =VLOOKUP(A174,mens_declare,20,FALSE) -> 22 | E176: 3 | H176: =IF($F176="","",IF($F176>90,"",HLOOKUP($C176,mens_declare,$B176,FALSE))) ->  | I176: =IF($F176="","",IF($F176>90,"",HLOOKUP($C176,mens_declare,$B176+1,FALSE))) ->  | N176: =IF($F176="","",IF($F176>90,"",HLOOKUP($C176,mens_declare,$B176+2,FALSE))) ->  | Q176: =IF($F176="","",IF($F176>90,"",HLOOKUP($C176,mens_declare,$B176+3,FALSE))) ->  | S176: =IF(R176="","",IF(AND(AA173="T",R176<R175),"X",IF(AND(AA173="F",R176>R175),"X",""))) ->  | T176: =IF(AA173="T",AD176,AE176) ->  | AD176: =IF(R176="","",IF(AA173="F","",IF(AA173="T",IF(R176<=X173,"þ",IF(R176<=Y173,"G2",IF(R176<=Z173,"G3","")))))) ->  | AE176: =IF(R176="","",IF(AA173="T","",IF(AA173="F",IF(R176>=X173,"þ",IF(R176>=Y173,"G2",IF(R176>=Z173,"G3","")))))) ->  | AJ176: 176
E177: 4 | H177: =IF($F177="","",IF($F177>90,"",HLOOKUP($C177,mens_declare,$B176,FALSE))) ->  | I177: =IF($F177="","",IF($F177>90,"",HLOOKUP($C177,mens_declare,$B176+1,FALSE))) ->  | N177: =IF($F177="","",IF($F177>90,"",HLOOKUP($C177,mens_declare,$B176+2,FALSE))) ->  | Q177: =IF($F177="","",IF($F177>90,"",HLOOKUP($C177,mens_declare,$B176+3,FALSE))) ->  | S177: =IF(R177="","",IF(AND(AA173="T",R177<R176),"X",IF(AND(AA173="F",R177>R176),"X",""))) ->  | T177: =IF(AA173="T",AD177,AE177) ->  | AD177: =IF(R177="","",IF(AA173="F","",IF(AA173="T",IF(R177<=X173,"þ",IF(R177<=Y173,"G2",IF(R177<=Z173,"G3","")))))) ->  | AE177: =IF(R177="","",IF(AA173="T","",IF(AA173="F",IF(R177>=X173,"þ",IF(R177>=Y173,"G2",IF(R177>=Z173,"G3","")))))) ->  | AJ177: 177
E178: 5 | H178: =IF($F178="","",IF($F178>90,"",HLOOKUP($C178,mens_declare,$B176,FALSE))) ->  | I178: =IF($F178="","",IF($F178>90,"",HLOOKUP($C178,mens_declare,$B176+1,FALSE))) ->  | N178: =IF($F178="","",IF($F178>90,"",HLOOKUP($C178,mens_declare,$B176+2,FALSE))) ->  | Q178: =IF($F178="","",IF($F178>90,"",HLOOKUP($C178,mens_declare,$B176+3,FALSE))) ->  | S178: =IF(R178="","",IF(AND(AA173="T",R178<R177),"X",IF(AND(AA173="F",R178>R177),"X",""))) ->  | T178: =IF(AA173="T",AD178,AE178) ->  | AD178: =IF(R178="","",IF(AA173="F","",IF(AA173="T",IF(R178<=X173,"þ",IF(R178<=Y173,"G2",IF(R178<=Z173,"G3","")))))) ->  | AE178: =IF(R178="","",IF(AA173="T","",IF(AA173="F",IF(R178>=X173,"þ",IF(R178>=Y173,"G2",IF(R178>=Z173,"G3","")))))) ->  | AJ178: 178
E179: 6 | H179: =IF($F179="","",IF($F179>90,"",HLOOKUP($C179,mens_declare,$B176,FALSE))) ->  | I179: =IF($F179="","",IF($F179>90,"",HLOOKUP($C179,mens_declare,$B176+1,FALSE))) ->  | N179: =IF($F179="","",IF($F179>90,"",HLOOKUP($C179,mens_declare,$B176+2,FALSE))) ->  | Q179: =IF($F179="","",IF($F179>90,"",HLOOKUP($C179,mens_declare,$B176+3,FALSE))) ->  | S179: =IF(R179="","",IF(AND(AA173="T",R179<R178),"X",IF(AND(AA173="F",R179>R178),"X",""))) ->  | T179: =IF(AA173="T",AD179,AE179) ->  | AD179: =IF(R179="","",IF(AA173="F","",IF(AA173="T",IF(R179<=X173,"þ",IF(R179<=Y173,"G2",IF(R179<=Z173,"G3","")))))) ->  | AE179: =IF(R179="","",IF(AA173="T","",IF(AA173="F",IF(R179>=X173,"þ",IF(R179>=Y173,"G2",IF(R179>=Z173,"G3","")))))) ->  | AJ179: 179
E180: 7 | H180: =IF($F180="","",IF($F180>90,"",HLOOKUP($C180,mens_declare,$B176,FALSE))) ->  | I180: =IF($F180="","",IF($F180>90,"",HLOOKUP($C180,mens_declare,$B176+1,FALSE))) ->  | N180: =IF($F180="","",IF($F180>90,"",HLOOKUP($C180,mens_declare,$B176+2,FALSE))) ->  | Q180: =IF($F180="","",IF($F180>90,"",HLOOKUP($C180,mens_declare,$B176+3,FALSE))) ->  | S180: =IF(R180="","",IF(AND(AA173="T",R180<R179),"X",IF(AND(AA173="F",R180>R179),"X",""))) ->  | T180: =IF(AA173="T",AD180,AE180) ->  | AD180: =IF(R180="","",IF(AA173="F","",IF(AA173="T",IF(R180<=X173,"þ",IF(R180<=Y173,"G2",IF(R180<=Z173,"G3","")))))) ->  | AE180: =IF(R180="","",IF(AA173="T","",IF(AA173="F",IF(R180>=X173,"þ",IF(R180>=Y173,"G2",IF(R180>=Z173,"G3","")))))) ->  | AJ180: 180
E181: 8 | H181: =IF($F181="","",IF($F181>90,"",HLOOKUP($C181,mens_declare,$B176,FALSE))) ->  | I181: =IF($F181="","",IF($F181>90,"",HLOOKUP($C181,mens_declare,$B176+1,FALSE))) ->  | N181: =IF($F181="","",IF($F181>90,"",HLOOKUP($C181,mens_declare,$B176+2,FALSE))) ->  | Q181: =IF($F181="","",IF($F181>90,"",HLOOKUP($C181,mens_declare,$B176+3,FALSE))) ->  | S181: =IF(R181="","",IF(AND(AA173="T",R181<R180),"X",IF(AND(AA173="F",R181>R180),"X",""))) ->  | T181: =IF(AA173="T",AD181,AE181) ->  | AD181: =IF(R181="","",IF(AA173="F","",IF(AA173="T",IF(R181<=X173,"þ",IF(R181<=Y173,"G2",IF(R181<=Z173,"G3","")))))) ->  | AE181: =IF(R181="","",IF(AA173="T","",IF(AA173="F",IF(R181>=X173,"þ",IF(R181>=Y173,"G2",IF(R181>=Z173,"G3","")))))) ->  | AJ181: 181
AJ182: 182
E183: =VLOOKUP(A184,mens_handbook,3,FALSE) -> Men's 4x400m Relay | V183: =IF($A184="","",VLOOKUP($A184,Handbook!$A$4:$V$24,21,FALSE)) -> 00:03:13.400 | W183: =IF($A184="","",VLOOKUP($A184,Handbook!$A$4:$V$24,22,FALSE)) -> 00:03:13.400 | X183: =IF($A184="","",VLOOKUP($A184,Handbook!$A$4:$W$24,23,FALSE)) -> 00:03:26 | Y183: =IF($A184="","",VLOOKUP($A184,Handbook!$A$4:$X$24,24,FALSE)) -> 00:03:26 | Z183: =IF($A184="","",VLOOKUP($A184,Handbook!$A$4:$Y$24,25,FALSE)) -> 00:03:26 | AA183: =IF($A184="","",VLOOKUP($A184,Handbook!$A$4:$AH$24,34,FALSE)) -> T | AJ183: 183
A184: 10 | C184: =IF(F184="","",IF(F184>10,F184/11,F184)) ->  | D184: =IF(O184="","",IF(O184>10,O184/11,O184)) ->  | E184: 1 | G184: =IF($F184="","",IF($F184>90,VLOOKUP(F184,eventcodes,2,FALSE),VLOOKUP(C184,matchday,2,FALSE))) ->  | H184: =IF($F184="","",IF($F184>90,"",HLOOKUP($C184,mens_declare,$B186,FALSE))) ->  | I184: =IF($F184="","",IF($F184>90,"",HLOOKUP($C184,mens_declare,$B186+1,FALSE))) ->  | N184: =IF($F184="","",IF($F184>90,"",HLOOKUP($C184,mens_declare,$B186+2,FALSE))) ->  | Q184: =IF($F184="","",IF($F184>90,"",HLOOKUP($C184,mens_declare,$B186+3,FALSE))) ->  | T184: =IF(AA183="T",AD184,AE184) ->  | V184: =IF(AA183="F","",IF(R184<V183,"LR",IF(R184=V183,"=LR",IF(R184<W183,"DR",IF(R184=W183,"=DR",""))))) -> LR | AD184: =IF(R184="","",IF(AA183="F","",IF(AA183="T",IF(R184<=X183,"þ",IF(R184<=Y183,"G2",IF(R184<=Z183,"G3","")))))) ->  | AE184: =IF(R184="","",IF(AA183="T","",IF(AA183="F",IF(R184>=X183,"þ",IF(R184>=Y183,"G2",IF(R184>=Z183,"G3","")))))) ->  | AF184: =C184 ->  | AG184: =IF(F184="","",IF(LEFT(R184,1)="D",0,VLOOKUP(E184,$AQ$4:$AR$40,2,FALSE))) ->  | AH184: =D184 ->  | AI184: =IF(O184="","",IF(LEFT(R184,1)="D",0,VLOOKUP(N184,$AQ$4:$AS$40,3,FALSE))) ->  | AJ184: 184
B185: =VLOOKUP(A184,Handbook!$A$4:$AK$24,37,FALSE) -> 11 | C185: =IF(F185="","",IF(F185>10,F185/11,F185)) ->  | D185: =IF(O185="","",IF(O185>10,O185/11,O185)) ->  | E185: 2 | G185: =IF($F185="","",VLOOKUP(C185,matchday,2,FALSE)) ->  | H185: =IF($F185="","",IF($F185>90,"",HLOOKUP($C185,mens_declare,$B186,FALSE))) ->  | I185: =IF($F185="","",IF($F185>90,"",HLOOKUP($C185,mens_declare,$B186+1,FALSE))) ->  | N185: =IF($F185="","",IF($F185>90,"",HLOOKUP($C185,mens_declare,$B186+2,FALSE))) ->  | Q185: =IF($F185="","",IF($F185>90,"",HLOOKUP($C185,mens_declare,$B186+3,FALSE))) ->  | S185: =IF(R185="","",IF(AND(AA183="T",R185<R184),"X",IF(AND(AA183="F",R185>R184),"X",""))) ->  | T185: =IF(AA183="T",AD185,AE185) ->  | V185: =IF(AA183="T","",IF(R184>V183,"LR",IF(R184=V183,"=LR",IF(R184>W183,"DR",IF(R184=W183,"=DR",""))))) ->  | AD185: =IF(R185="","",IF(AA183="F","",IF(AA183="T",IF(R185<=X183,"þ",IF(R185<=Y183,"G2",IF(R185<=Z183,"G3","")))))) ->  | AE185: =IF(R185="","",IF(AA183="T","",IF(AA183="F",IF(R185>=X183,"þ",IF(R185>=Y183,"G2",IF(R185>=Z183,"G3","")))))) ->  | AF185: =C185 ->  | AH185: =D185 ->  | AJ185: 185
B186: =VLOOKUP(A184,mens_declare,20,FALSE) -> 26 | E186: 3 | H186: =IF($F186="","",IF($F186>90,"",HLOOKUP($C186,mens_declare,$B186,FALSE))) ->  | I186: =IF($F186="","",IF($F186>90,"",HLOOKUP($C186,mens_declare,$B186+1,FALSE))) ->  | N186: =IF($F186="","",IF($F186>90,"",HLOOKUP($C186,mens_declare,$B186+2,FALSE))) ->  | Q186: =IF($F186="","",IF($F186>90,"",HLOOKUP($C186,mens_declare,$B186+3,FALSE))) ->  | S186: =IF(R186="","",IF(AND(AA183="T",R186<R185),"X",IF(AND(AA183="F",R186>R185),"X",""))) ->  | T186: =IF(AA183="T",AD186,AE186) ->  | AD186: =IF(R186="","",IF(AA183="F","",IF(AA183="T",IF(R186<=X183,"þ",IF(R186<=Y183,"G2",IF(R186<=Z183,"G3","")))))) ->  | AE186: =IF(R186="","",IF(AA183="T","",IF(AA183="F",IF(R186>=X183,"þ",IF(R186>=Y183,"G2",IF(R186>=Z183,"G3","")))))) ->  | AJ186: 186
E187: 4 | H187: =IF($F187="","",IF($F187>90,"",HLOOKUP($C187,mens_declare,$B186,FALSE))) ->  | I187: =IF($F187="","",IF($F187>90,"",HLOOKUP($C187,mens_declare,$B186+1,FALSE))) ->  | N187: =IF($F187="","",IF($F187>90,"",HLOOKUP($C187,mens_declare,$B186+2,FALSE))) ->  | Q187: =IF($F187="","",IF($F187>90,"",HLOOKUP($C187,mens_declare,$B186+3,FALSE))) ->  | S187: =IF(R187="","",IF(AND(AA183="T",R187<R186),"X",IF(AND(AA183="F",R187>R186),"X",""))) ->  | T187: =IF(AA183="T",AD187,AE187) ->  | AD187: =IF(R187="","",IF(AA183="F","",IF(AA183="T",IF(R187<=X183,"þ",IF(R187<=Y183,"G2",IF(R187<=Z183,"G3","")))))) ->  | AE187: =IF(R187="","",IF(AA183="T","",IF(AA183="F",IF(R187>=X183,"þ",IF(R187>=Y183,"G2",IF(R187>=Z183,"G3","")))))) ->  | AJ187: 187
E188: 5 | H188: =IF($F188="","",IF($F188>90,"",HLOOKUP($C188,mens_declare,$B186,FALSE))) ->  | I188: =IF($F188="","",IF($F188>90,"",HLOOKUP($C188,mens_declare,$B186+1,FALSE))) ->  | N188: =IF($F188="","",IF($F188>90,"",HLOOKUP($C188,mens_declare,$B186+2,FALSE))) ->  | Q188: =IF($F188="","",IF($F188>90,"",HLOOKUP($C188,mens_declare,$B186+3,FALSE))) ->  | S188: =IF(R188="","",IF(AND(AA183="T",R188<R187),"X",IF(AND(AA183="F",R188>R187),"X",""))) ->  | T188: =IF(AA183="T",AD188,AE188) ->  | AD188: =IF(R188="","",IF(AA183="F","",IF(AA183="T",IF(R188<=X183,"þ",IF(R188<=Y183,"G2",IF(R188<=Z183,"G3","")))))) ->  | AE188: =IF(R188="","",IF(AA183="T","",IF(AA183="F",IF(R188>=X183,"þ",IF(R188>=Y183,"G2",IF(R188>=Z183,"G3","")))))) ->  | AJ188: 188
E189: 6 | H189: =IF($F189="","",IF($F189>90,"",HLOOKUP($C189,mens_declare,$B186,FALSE))) ->  | I189: =IF($F189="","",IF($F189>90,"",HLOOKUP($C189,mens_declare,$B186+1,FALSE))) ->  | N189: =IF($F189="","",IF($F189>90,"",HLOOKUP($C189,mens_declare,$B186+2,FALSE))) ->  | Q189: =IF($F189="","",IF($F189>90,"",HLOOKUP($C189,mens_declare,$B186+3,FALSE))) ->  | S189: =IF(R189="","",IF(AND(AA183="T",R189<R188),"X",IF(AND(AA183="F",R189>R188),"X",""))) ->  | T189: =IF(AA183="T",AD189,AE189) ->  | AD189: =IF(R189="","",IF(AA183="F","",IF(AA183="T",IF(R189<=X183,"þ",IF(R189<=Y183,"G2",IF(R189<=Z183,"G3","")))))) ->  | AE189: =IF(R189="","",IF(AA183="T","",IF(AA183="F",IF(R189>=X183,"þ",IF(R189>=Y183,"G2",IF(R189>=Z183,"G3","")))))) ->  | AJ189: 189
E190: 7 | H190: =IF($F190="","",IF($F190>90,"",HLOOKUP($C190,mens_declare,$B186,FALSE))) ->  | I190: =IF($F190="","",IF($F190>90,"",HLOOKUP($C190,mens_declare,$B186+1,FALSE))) ->  | N190: =IF($F190="","",IF($F190>90,"",HLOOKUP($C190,mens_declare,$B186+2,FALSE))) ->  | Q190: =IF($F190="","",IF($F190>90,"",HLOOKUP($C190,mens_declare,$B186+3,FALSE))) ->  | S190: =IF(R190="","",IF(AND(AA183="T",R190<R189),"X",IF(AND(AA183="F",R190>R189),"X",""))) ->  | T190: =IF(AA183="T",AD190,AE190) ->  | AD190: =IF(R190="","",IF(AA183="F","",IF(AA183="T",IF(R190<=X183,"þ",IF(R190<=Y183,"G2",IF(R190<=Z183,"G3","")))))) ->  | AE190: =IF(R190="","",IF(AA183="T","",IF(AA183="F",IF(R190>=X183,"þ",IF(R190>=Y183,"G2",IF(R190>=Z183,"G3","")))))) ->  | AJ190: 190
E191: 8 | H191: =IF($F191="","",IF($F191>90,"",HLOOKUP($C191,mens_declare,$B186,FALSE))) ->  | I191: =IF($F191="","",IF($F191>90,"",HLOOKUP($C191,mens_declare,$B186+1,FALSE))) ->  | N191: =IF($F191="","",IF($F191>90,"",HLOOKUP($C191,mens_declare,$B186+2,FALSE))) ->  | Q191: =IF($F191="","",IF($F191>90,"",HLOOKUP($C191,mens_declare,$B186+3,FALSE))) ->  | S191: =IF(R191="","",IF(AND(AA183="T",R191<R190),"X",IF(AND(AA183="F",R191>R190),"X",""))) ->  | T191: =IF(AA183="T",AD191,AE191) ->  | AD191: =IF(R191="","",IF(AA183="F","",IF(AA183="T",IF(R191<=X183,"þ",IF(R191<=Y183,"G2",IF(R191<=Z183,"G3","")))))) ->  | AE191: =IF(R191="","",IF(AA183="T","",IF(AA183="F",IF(R191>=X183,"þ",IF(R191>=Y183,"G2",IF(R191>=Z183,"G3","")))))) ->  | AJ191: 191
F194: MATCH RESULT | H194: League Points | I194: Match | O194: STANDINGS | Q194: League Points | R194: Match
E195: 1 | F195: =IF(AND(Points!$U$24=0,Points!$U$45=0),"",IF(ISERROR(HLOOKUP(E195,Points!$C$46:$R$52,2,FALSE)=TRUE),"",HLOOKUP(E195,Points!$C$46:$R$52,2,FALSE))) ->  | H195: =IF(AND(Points!$U$24=0,Points!$U$45=0),"",IF(ISERROR(HLOOKUP(E195,Points!$C$46:$R$52,7,FALSE)=TRUE),"",HLOOKUP(E195,Points!$C$46:$R$52,7,FALSE))) ->  | I195: =IF(AND(Points!$U$24=0,Points!$U$45=0),"",IF(ISERROR(HLOOKUP(E195,Points!$C$46:$R$52,5,FALSE)=TRUE),"",HLOOKUP(E195,Points!$C$46:$R$52,5,FALSE))) ->  | N195: 1 | O195: =IF(Points!$U$24=0,"",HLOOKUP(N195,Points!$B$54:$R$58,2,FALSE)) ->  | Q195: =IF(Points!$U$24=0,"",HLOOKUP(N195,Points!$B$54:$R$58,3,FALSE)) ->  | R195: =IF(Points!$U$24=0,"",HLOOKUP(N195,Points!$B$54:$R$58,4,FALSE)) -> 
E196: 2 | F196: =IF(AND(Points!$U$24=0,Points!$U$45=0),"",IF(ISERROR(HLOOKUP(E196,Points!$C$46:$R$52,2,FALSE)=TRUE),"",HLOOKUP(E196,Points!$C$46:$R$52,2,FALSE))) ->  | H196: =IF(AND(Points!$U$24=0,Points!$U$45=0),"",IF(ISERROR(HLOOKUP(E196,Points!$C$46:$R$52,7,FALSE)=TRUE),"",HLOOKUP(E196,Points!$C$46:$R$52,7,FALSE))) ->  | I196: =IF(AND(Points!$U$24=0,Points!$U$45=0),"",IF(ISERROR(HLOOKUP(E196,Points!$C$46:$R$52,5,FALSE)=TRUE),"",HLOOKUP(E196,Points!$C$46:$R$52,5,FALSE))) ->  | N196: 2 | O196: =IF(Points!$U$24=0,"",HLOOKUP(N196,Points!$B$54:$R$58,2,FALSE)) ->  | Q196: =IF(Points!$U$24=0,"",HLOOKUP(N196,Points!$B$54:$R$58,3,FALSE)) ->  | R196: =IF(Points!$U$24=0,"",HLOOKUP(N196,Points!$B$54:$R$58,4,FALSE)) -> 
E197: 3 | F197: =IF(AND(Points!$U$24=0,Points!$U$45=0),"",IF(ISERROR(HLOOKUP(E197,Points!$C$46:$R$52,2,FALSE)=TRUE),"",HLOOKUP(E197,Points!$C$46:$R$52,2,FALSE))) ->  | H197: =IF(AND(Points!$U$24=0,Points!$U$45=0),"",IF(ISERROR(HLOOKUP(E197,Points!$C$46:$R$52,7,FALSE)=TRUE),"",HLOOKUP(E197,Points!$C$46:$R$52,7,FALSE))) ->  | I197: =IF(AND(Points!$U$24=0,Points!$U$45=0),"",IF(ISERROR(HLOOKUP(E197,Points!$C$46:$R$52,5,FALSE)=TRUE),"",HLOOKUP(E197,Points!$C$46:$R$52,5,FALSE))) ->  | N197: 3 | O197: =IF(Points!$U$24=0,"",HLOOKUP(N197,Points!$B$54:$R$58,2,FALSE)) ->  | Q197: =IF(Points!$U$24=0,"",HLOOKUP(N197,Points!$B$54:$R$58,3,FALSE)) ->  | R197: =IF(Points!$U$24=0,"",HLOOKUP(N197,Points!$B$54:$R$58,4,FALSE)) -> 
E198: 4 | F198: =IF(AND(Points!$U$24=0,Points!$U$45=0),"",IF(ISERROR(HLOOKUP(E198,Points!$C$46:$R$52,2,FALSE)=TRUE),"",HLOOKUP(E198,Points!$C$46:$R$52,2,FALSE))) ->  | H198: =IF(AND(Points!$U$24=0,Points!$U$45=0),"",IF(ISERROR(HLOOKUP(E198,Points!$C$46:$R$52,7,FALSE)=TRUE),"",HLOOKUP(E198,Points!$C$46:$R$52,7,FALSE))) ->  | I198: =IF(AND(Points!$U$24=0,Points!$U$45=0),"",IF(ISERROR(HLOOKUP(E198,Points!$C$46:$R$52,5,FALSE)=TRUE),"",HLOOKUP(E198,Points!$C$46:$R$52,5,FALSE))) ->  | N198: 4 | O198: =IF(Points!$U$24=0,"",HLOOKUP(N198,Points!$B$54:$R$58,2,FALSE)) ->  | Q198: =IF(Points!$U$24=0,"",HLOOKUP(N198,Points!$B$54:$R$58,3,FALSE)) ->  | R198: =IF(Points!$U$24=0,"",HLOOKUP(N198,Points!$B$54:$R$58,4,FALSE)) -> 
E199: 5 | F199: =IF(AND(Points!$U$24=0,Points!$U$45=0),"",IF(ISERROR(HLOOKUP(E199,Points!$C$46:$R$52,2,FALSE)=TRUE),"",HLOOKUP(E199,Points!$C$46:$R$52,2,FALSE))) ->  | H199: =IF(AND(Points!$U$24=0,Points!$U$45=0),"",IF(ISERROR(HLOOKUP(E199,Points!$C$46:$R$52,7,FALSE)=TRUE),"",HLOOKUP(E199,Points!$C$46:$R$52,7,FALSE))) ->  | I199: =IF(AND(Points!$U$24=0,Points!$U$45=0),"",IF(ISERROR(HLOOKUP(E199,Points!$C$46:$R$52,5,FALSE)=TRUE),"",HLOOKUP(E199,Points!$C$46:$R$52,5,FALSE))) ->  | N199: 5 | O199: =IF(Points!$U$24=0,"",HLOOKUP(N199,Points!$B$54:$R$58,2,FALSE)) ->  | Q199: =IF(Points!$U$24=0,"",HLOOKUP(N199,Points!$B$54:$R$58,3,FALSE)) ->  | R199: =IF(Points!$U$24=0,"",HLOOKUP(N199,Points!$B$54:$R$58,4,FALSE)) -> 
E200: 6 | F200: =IF(AND(Points!$U$24=0,Points!$U$45=0),"",IF(ISERROR(HLOOKUP(E200,Points!$C$46:$R$52,2,FALSE)=TRUE),"",HLOOKUP(E200,Points!$C$46:$R$52,2,FALSE))) ->  | H200: =IF(AND(Points!$U$24=0,Points!$U$45=0),"",IF(ISERROR(HLOOKUP(E200,Points!$C$46:$R$52,7,FALSE)=TRUE),"",HLOOKUP(E200,Points!$C$46:$R$52,7,FALSE))) ->  | I200: =IF(AND(Points!$U$24=0,Points!$U$45=0),"",IF(ISERROR(HLOOKUP(E200,Points!$C$46:$R$52,5,FALSE)=TRUE),"",HLOOKUP(E200,Points!$C$46:$R$52,5,FALSE))) ->  | N200: 6 | O200: =IF(Points!$U$24=0,"",HLOOKUP(N200,Points!$B$54:$R$58,2,FALSE)) ->  | Q200: =IF(Points!$U$24=0,"",HLOOKUP(N200,Points!$B$54:$R$58,3,FALSE)) ->  | R200: =IF(Points!$U$24=0,"",HLOOKUP(N200,Points!$B$54:$R$58,4,FALSE)) -> 
E201: 7 | F201: =IF(AND(Points!$U$24=0,Points!$U$45=0),"",IF(ISERROR(HLOOKUP(E201,Points!$C$46:$R$52,2,FALSE)=TRUE),"",HLOOKUP(E201,Points!$C$46:$R$52,2,FALSE))) ->  | H201: =IF(AND(Points!$U$24=0,Points!$U$45=0),"",IF(ISERROR(HLOOKUP(E201,Points!$C$46:$R$52,7,FALSE)=TRUE),"",HLOOKUP(E201,Points!$C$46:$R$52,7,FALSE))) ->  | I201: =IF(AND(Points!$U$24=0,Points!$U$45=0),"",IF(ISERROR(HLOOKUP(E201,Points!$C$46:$R$52,5,FALSE)=TRUE),"",HLOOKUP(E201,Points!$C$46:$R$52,5,FALSE))) ->  | N201: 7 | O201: =IF(Points!$U$24=0,"",HLOOKUP(N201,Points!$B$54:$R$58,2,FALSE)) ->  | Q201: =IF(Points!$U$24=0,"",HLOOKUP(N201,Points!$B$54:$R$58,3,FALSE)) ->  | R201: =IF(Points!$U$24=0,"",HLOOKUP(N201,Points!$B$54:$R$58,4,FALSE)) -> 
E202: 8 | F202: =IF(AND(Points!$U$24=0,Points!$U$45=0),"",IF(ISERROR(HLOOKUP(E202,Points!$C$46:$R$52,2,FALSE)=TRUE),"",HLOOKUP(E202,Points!$C$46:$R$52,2,FALSE))) ->  | H202: =IF(AND(Points!$U$24=0,Points!$U$45=0),"",IF(ISERROR(HLOOKUP(E202,Points!$C$46:$R$52,7,FALSE)=TRUE),"",HLOOKUP(E202,Points!$C$46:$R$52,7,FALSE))) ->  | I202: =IF(AND(Points!$U$24=0,Points!$U$45=0),"",IF(ISERROR(HLOOKUP(E202,Points!$C$46:$R$52,5,FALSE)=TRUE),"",HLOOKUP(E202,Points!$C$46:$R$52,5,FALSE))) ->  | N202: 8 | O202: =IF(Points!$U$24=0,"",HLOOKUP(N202,Points!$B$54:$R$58,2,FALSE)) ->  | Q202: =IF(Points!$U$24=0,"",HLOOKUP(N202,Points!$B$54:$R$58,3,FALSE)) ->  | R202: =IF(Points!$U$24=0,"",HLOOKUP(N202,Points!$B$54:$R$58,4,FALSE)) -> 
... 9 more rows

Sheet ResultsF
E1: Home | H1: ='Match Day'!I4 -> Northern T&F League | Q1: Home | AB1: Grades | AF1: Points | AM1: Enter Club Letter, Performance and any Wind Readings in the Yellow Boxes. Times for 800m and above should be entered as mm:ss.0 Otherwise use ss.0
E2: =CONCATENATE('Match Day'!I8," ",'Match Day'!I10," - ",'Match Day'!I12) -> Division 4W Match 1 - Litherland | I2: Perf | J2: Record | K2: Wind | L2: AW | O2: ='Match Day'!I6 -> 2014-05-04 | R2: Perf | S2: Wind | T2: AW | U2: Prints | V2: Record | W2: Division | X2: Grade 1 | Y2: Grade 2 | Z2: Grade 3 | AA2: T/F | AB2: A String | AD2: B String | AF2: A String | AH2: B String | AJ2: Row | AL2: Validation | AQ2: Points
E3: =CONCATENATE(VLOOKUP(A4,womens_handbook,3,FALSE)," A") -> Women's 100m A | H3: =IF(A4="","",IF(VLOOKUP(A4,Handbook!$A$4:$AI$24,35,FALSE)="Y","Wind=","")) -> Wind= | O3: =CONCATENATE(VLOOKUP(A4,womens_handbook,3,FALSE)," B") -> Women's 100m B | P3: =CONCATENATE(VLOOKUP(M4,Handbook!$A$4:$C$24,3,FALSE)," A") ->  | Q3: =H3 -> Wind= | V3: =IF($A4="","",VLOOKUP($A4,Handbook!$A$26:$AK$46,21,FALSE)) -> 11.6 | W3: =IF($A4="","",VLOOKUP($A4,Handbook!$A$26:$AK$46,22,FALSE)) -> 11.6 | X3: =IF($A4="","",VLOOKUP($A4,Handbook!$A$26:$AK$46,23,FALSE)) -> 13.2 | Y3: =IF($A4="","",VLOOKUP($A4,Handbook!$A$26:$AK$46,24,FALSE)) -> 13 | Z3: =IF($A4="","",VLOOKUP($A4,Handbook!$A$26:$AK$46,25,FALSE)) -> 13 | AA3: =IF($A4="","",VLOOKUP($A4,Handbook!$A$26:$AK$46,34,FALSE)) -> T | AJ3: 3 | AR3: A | AS3: B
A4: 3 | C4: =IF(F4="","",IF(F4>10,F4/11,F4)) ->  | D4: =IF(O4="","",IF(O4>10,O4/11,O4)) ->  | E4: 1 | G4: =IF($F4="","",IF($F4>90,VLOOKUP(F4,eventcodes,2,FALSE),HLOOKUP(F4,womens_declare,B6,FALSE))) ->  | H4: =IF($F4="","",IF($F4>90,"",VLOOKUP(C4,matchday,2,FALSE))) ->  | J4: =IF(I4="","",IF(AA3="T",V4,V5)) ->  | L4: =IF(AA3="T",AB4,AC4) ->  | N4: 1 | P4: =IF($O4="","",HLOOKUP(O4,womens_declare,B6,FALSE)) ->  | Q4: =IF($O4="","",VLOOKUP(D4,matchday,2,FALSE)) ->  | T4: =IF(AA3="T",AD4,AE4) ->  | V4: =IF(AA3="F","",IF(I4<V3,"LR",IF(I4=V3,"=LR",IF(I4<W3,"DR",IF(I4=W3,"=DR",""))))) -> LR | AB4: =IF(I4="","",IF(AA3="F","",IF(AA3="T",IF(I4<=X3,"þ",IF(I4<=Y3,"G2",IF(I4<=Z3,"G3","")))))) ->  | AC4: =IF(I4="","",IF(AA3="T","",IF(AA3="F",IF(I4>=X3,"þ",IF(I4>=Y3,"G2",IF(I4>=Z3,"G3","")))))) ->  | AD4: =IF(R4="","",IF(AA3="F","",IF(AA3="T",IF(R4<=X3,"þ",IF(R4<=Y3,"G2",IF(R4<=Z3,"G3","")))))) ->  | AE4: =IF(R4="","",IF(AA3="T","",IF(AA3="F",IF(R4>=X3,"þ",IF(R4>=Y3,"G2",IF(R4>=Z3,"G3","")))))) ->  | AF4: =C4 ->  | AG4: =IF(F4="","",IF(LEFT(I4,1)="D",0,VLOOKUP(E4,$AQ$4:$AR$40,2,FALSE))) ->  | AH4: =D4 ->  | AI4: =IF(O4="","",IF(LEFT(R4,1)="D",0,VLOOKUP(N4,$AQ$4:$AS$40,3,FALSE))) ->  | AJ4: 4 | AL4: ='Match Day'!B4 -> 1 | AQ4: Posn | AR4: Points | AS4: Points
B5: =VLOOKUP(A4,Handbook!$A$26:$AK$46,37,FALSE) -> 4 | E5: 2 | G5: =IF($F5="","",HLOOKUP(F5,womens_declare,B6,FALSE)) ->  | H5: =IF($F5="","",VLOOKUP(C5,matchday,2,FALSE)) ->  | J5: =IF(I5="","",IF(AND(AA3="T",I5<I4),"X",IF(AND(AA3="F",I5>I4),"X",""))) ->  | L5: =IF(AA3="T",AB5,AC5) ->  | N5: 2 | P5: =IF($O5="","",HLOOKUP(O5,womens_declare,B6,FALSE)) ->  | S5: =IF(R5="","",IF(AND(AA3="T",R5<R4),"X",IF(AND(AA3="F",R5>R4),"X",""))) ->  | T5: =IF(AA3="T",AD5,AE5) ->  | V5: =IF(AA3="T","",IF(I4>V3,"LR",IF(I4=V3,"=LR",IF(I4>W3,"DR",IF(I4=W3,"=DR",""))))) ->  | AB5: =IF(I5="","",IF(AA3="F","",IF(AA3="T",IF(I5<=X3,"þ",IF(I5<=Y3,"G2",IF(I5<=Z3,"G3","")))))) ->  | AC5: =IF(I5="","",IF(AA3="T","",IF(AA3="F",IF(I5>=X3,"þ",IF(I5>=Y3,"G2",IF(I5>=Z3,"G3","")))))) ->  | AD5: =IF(R5="","",IF(AA3="F","",IF(AA3="T",IF(R5<=X3,"þ",IF(R5<=Y3,"G2",IF(R5<=Z3,"G3","")))))) ->  | AE5: =IF(R5="","",IF(AA3="T","",IF(AA3="F",IF(R5>=X3,"þ",IF(R5>=Y3,"G2",IF(R5>=Z3,"G3","")))))) ->  | AJ5: 5 | AL5: ='Match Day'!B6 -> 2 | AQ5: 1 | AR5: ='Match Day'!C23 -> 10 | AS5: ='Match Day'!D23 -> 8
B6: =VLOOKUP(A4,womens_declare,20,FALSE) -> 3 | E6: 3 | G6: =IF($F6="","",HLOOKUP(F6,womens_declare,B6,FALSE)) ->  | J6: =IF(I6="","",IF(AND(AA3="T",I6<I5),"X",IF(AND(AA3="F",I6>I5),"X",""))) ->  | L6: =IF(AA3="T",AB6,AC6) ->  | N6: 3 | P6: =IF($O6="","",HLOOKUP(O6,womens_declare,B6,FALSE)) ->  | S6: =IF(R6="","",IF(AND(AA3="T",R6<R5),"X",IF(AND(AA3="F",R6>R5),"X",""))) ->  | T6: =IF(AA3="T",AD6,AE6) ->  | AB6: =IF(I6="","",IF(AA3="F","",IF(AA3="T",IF(I6<=X3,"þ",IF(I6<=Y3,"G2",IF(I6<=Z3,"G3","")))))) ->  | AC6: =IF(I6="","",IF(AA3="T","",IF(AA3="F",IF(I6>=X3,"þ",IF(I6>=Y3,"G2",IF(I6>=Z3,"G3","")))))) ->  | AD6: =IF(R6="","",IF(AA3="F","",IF(AA3="T",IF(R6<=X3,"þ",IF(R6<=Y3,"G2",IF(R6<=Z3,"G3","")))))) ->  | AE6: =IF(R6="","",IF(AA3="T","",IF(AA3="F",IF(R6>=X3,"þ",IF(R6>=Y3,"G2",IF(R6>=Z3,"G3","")))))) ->  | AJ6: 6 | AL6: ='Match Day'!B8 -> 3 | AQ6: 2 | AR6: ='Match Day'!C24 -> 8 | AS6: ='Match Day'!D24 -> 6
E7: 4 | G7: =IF($F7="","",HLOOKUP(F7,womens_declare,B6,FALSE)) ->  | J7: =IF(I7="","",IF(AND(AA3="T",I7<I6),"X",IF(AND(AA3="F",I7>I6),"X",""))) ->  | L7: =IF(AA3="T",AB7,AC7) ->  | N7: 4 | P7: =IF($O7="","",HLOOKUP(O7,womens_declare,B6,FALSE)) ->  | S7: =IF(R7="","",IF(AND(AA3="T",R7<R6),"X",IF(AND(AA3="F",R7>R6),"X",""))) ->  | T7: =IF(AA3="T",AD7,AE7) ->  | AB7: =IF(I7="","",IF(AA3="F","",IF(AA3="T",IF(I7<=X3,"þ",IF(I7<=Y3,"G2",IF(I7<=Z3,"G3","")))))) ->  | AC7: =IF(I7="","",IF(AA3="T","",IF(AA3="F",IF(I7>=X3,"þ",IF(I7>=Y3,"G2",IF(I7>=Z3,"G3","")))))) ->  | AD7: =IF(R7="","",IF(AA3="F","",IF(AA3="T",IF(R7<=X3,"þ",IF(R7<=Y3,"G2",IF(R7<=Z3,"G3","")))))) ->  | AE7: =IF(R7="","",IF(AA3="T","",IF(AA3="F",IF(R7>=X3,"þ",IF(R7>=Y3,"G2",IF(R7>=Z3,"G3","")))))) ->  | AJ7: 7 | AL7: ='Match Day'!B10 -> 4 | AQ7: 3 | AR7: ='Match Day'!C25 -> 7 | AS7: ='Match Day'!D25 -> 5
E8: 5 | G8: =IF($F8="","",HLOOKUP(F8,womens_declare,B6,FALSE)) ->  | J8: =IF(I8="","",IF(AND(AA3="T",I8<I7),"X",IF(AND(AA3="F",I8>I7),"X",""))) ->  | L8: =IF(AA3="T",AB8,AC8) ->  | N8: 5 | P8: =IF($O8="","",HLOOKUP(O8,womens_declare,B6,FALSE)) ->  | S8: =IF(R8="","",IF(AND(AA3="T",R8<R7),"X",IF(AND(AA3="F",R8>R7),"X",""))) ->  | T8: =IF(AA3="T",AD8,AE8) ->  | AB8: =IF(I8="","",IF(AA3="F","",IF(AA3="T",IF(I8<=X3,"þ",IF(I8<=Y3,"G2",IF(I8<=Z3,"G3","")))))) ->  | AC8: =IF(I8="","",IF(AA3="T","",IF(AA3="F",IF(I8>=X3,"þ",IF(I8>=Y3,"G2",IF(I8>=Z3,"G3","")))))) ->  | AD8: =IF(R8="","",IF(AA3="F","",IF(AA3="T",IF(R8<=X3,"þ",IF(R8<=Y3,"G2",IF(R8<=Z3,"G3","")))))) ->  | AE8: =IF(R8="","",IF(AA3="T","",IF(AA3="F",IF(R8>=X3,"þ",IF(R8>=Y3,"G2",IF(R8>=Z3,"G3","")))))) ->  | AJ8: 8 | AL8: ='Match Day'!B12 -> 5 | AQ8: 4 | AR8: ='Match Day'!C26 -> 6 | AS8: ='Match Day'!D26 -> 4
E9: 6 | G9: =IF($F9="","",HLOOKUP(F9,womens_declare,B6,FALSE)) ->  | J9: =IF(I9="","",IF(AND(AA3="T",I9<I8),"X",IF(AND(AA3="F",I9>I8),"X",""))) ->  | L9: =IF(AA3="T",AB9,AC9) ->  | N9: 6 | P9: =IF($O9="","",HLOOKUP(O9,womens_declare,B6,FALSE)) ->  | S9: =IF(R9="","",IF(AND(AA3="T",R9<R8),"X",IF(AND(AA3="F",R9>R8),"X",""))) ->  | T9: =IF(AA3="T",AD9,AE9) ->  | AB9: =IF(I9="","",IF(AA3="F","",IF(AA3="T",IF(I9<=X3,"þ",IF(I9<=Y3,"G2",IF(I9<=Z3,"G3","")))))) ->  | AC9: =IF(I9="","",IF(AA3="T","",IF(AA3="F",IF(I9>=X3,"þ",IF(I9>=Y3,"G2",IF(I9>=Z3,"G3","")))))) ->  | AD9: =IF(R9="","",IF(AA3="F","",IF(AA3="T",IF(R9<=X3,"þ",IF(R9<=Y3,"G2",IF(R9<=Z3,"G3","")))))) ->  | AE9: =IF(R9="","",IF(AA3="T","",IF(AA3="F",IF(R9>=X3,"þ",IF(R9>=Y3,"G2",IF(R9>=Z3,"G3","")))))) ->  | AJ9: 9 | AL9: ='Match Day'!B14 -> 6 | AQ9: 5 | AR9: ='Match Day'!C27 -> 5 | AS9: ='Match Day'!D27 -> 3
E10: 7 | G10: =IF($F10="","",HLOOKUP(F10,womens_declare,B6,FALSE)) ->  | J10: =IF(I10="","",IF(AND(AA3="T",I10<I9),"X",IF(AND(AA3="F",I10>I9),"X",""))) ->  | L10: =IF(AA3="T",AB10,AC10) ->  | N10: 7 | P10: =IF($O10="","",HLOOKUP(O10,womens_declare,B6,FALSE)) ->  | S10: =IF(R10="","",IF(AND(AA3="T",R10<R9),"X",IF(AND(AA3="F",R10>R9),"X",""))) ->  | T10: =IF(AA3="T",AD10,AE10) ->  | AB10: =IF(I10="","",IF(AA3="F","",IF(AA3="T",IF(I10<=X3,"þ",IF(I10<=Y3,"G2",IF(I10<=Z3,"G3","")))))) ->  | AC10: =IF(I10="","",IF(AA3="T","",IF(AA3="F",IF(I10>=X3,"þ",IF(I10>=Y3,"G2",IF(I10>=Z3,"G3","")))))) ->  | AD10: =IF(R10="","",IF(AA3="F","",IF(AA3="T",IF(R10<=X3,"þ",IF(R10<=Y3,"G2",IF(R10<=Z3,"G3","")))))) ->  | AE10: =IF(R10="","",IF(AA3="T","",IF(AA3="F",IF(R10>=X3,"þ",IF(R10>=Y3,"G2",IF(R10>=Z3,"G3","")))))) ->  | AJ10: 10 | AL10: ='Match Day'!B16 -> 7 | AQ10: 6 | AR10: ='Match Day'!C28 -> 4 | AS10: ='Match Day'!D28 -> 2
E11: 8 | G11: =IF($F11="","",HLOOKUP(F11,womens_declare,B6,FALSE)) ->  | J11: =IF(I11="","",IF(AND(AA3="T",I11<I10),"X",IF(AND(AA3="F",I11>I10),"X",""))) ->  | L11: =IF(AA3="T",AB11,AC11) ->  | N11: 8 | P11: =IF($O11="","",HLOOKUP(O11,womens_declare,B6,FALSE)) ->  | S11: =IF(R11="","",IF(AND(AA3="T",R11<R10),"X",IF(AND(AA3="F",R11>R10),"X",""))) ->  | T11: =IF(AA3="T",AD11,AE11) ->  | AB11: =IF(I11="","",IF(AA3="F","",IF(AA3="T",IF(I11<=X3,"þ",IF(I11<=Y3,"G2",IF(I11<=Z3,"G3","")))))) ->  | AC11: =IF(I11="","",IF(AA3="T","",IF(AA3="F",IF(I11>=X3,"þ",IF(I11>=Y3,"G2",IF(I11>=Z3,"G3","")))))) ->  | AD11: =IF(R11="","",IF(AA3="F","",IF(AA3="T",IF(R11<=X3,"þ",IF(R11<=Y3,"G2",IF(R11<=Z3,"G3","")))))) ->  | AE11: =IF(R11="","",IF(AA3="T","",IF(AA3="F",IF(R11>=X3,"þ",IF(R11>=Y3,"G2",IF(R11>=Z3,"G3","")))))) ->  | AJ11: 11 | AL11: ='Match Day'!B18 -> 8 | AQ11: 7 | AR11: ='Match Day'!C29 -> 3 | AS11: ='Match Day'!D29 -> 1
AJ12: 12 | AL12: =AL4*11 -> 11 | AQ12: 8 | AR12: ='Match Day'!C30 -> 0 | AS12: ='Match Day'!D30 -> 0 | AT12: =SUM(AR5:AR12) -> 43 | AU12: =SUM(AS5:AS12) -> 29
E13: =CONCATENATE(VLOOKUP(A14,womens_handbook,3,FALSE)," A") -> Women's 200m A | H13: =IF(A14="","",IF(VLOOKUP(A14,Handbook!$A$4:$AI$24,35,FALSE)="Y","Wind=","")) -> Wind= | O13: =CONCATENATE(VLOOKUP(A14,womens_handbook,3,FALSE)," B") -> Women's 200m B | P13: =CONCATENATE(VLOOKUP(M14,Handbook!$A$4:$C$24,3,FALSE)," A") ->  | Q13: =H13 -> Wind= | V13: =IF($A14="","",VLOOKUP($A14,Handbook!$A$26:$AK$46,21,FALSE)) -> 23.3 | W13: =IF($A14="","",VLOOKUP($A14,Handbook!$A$26:$AK$46,22,FALSE)) -> 23.3 | X13: =IF($A14="","",VLOOKUP($A14,Handbook!$A$26:$AK$46,23,FALSE)) -> 27 | Y13: =IF($A14="","",VLOOKUP($A14,Handbook!$A$26:$AK$46,24,FALSE)) -> 27 | Z13: =IF($A14="","",VLOOKUP($A14,Handbook!$A$26:$AK$46,25,FALSE)) -> 27 | AA13: =IF($A14="","",VLOOKUP($A14,Handbook!$A$26:$AK$46,34,FALSE)) -> T | AJ13: 13 | AL13: =AL5*11 -> 22 | AQ13: 1= | AR13: =SUM($AR$5:AR6)/2 -> 9 | AS13: =SUM($AS$5:AS6)/2 -> 7
A14: 7 | C14: =IF(F14="","",IF(F14>10,F14/11,F14)) ->  | D14: =IF(O14="","",IF(O14>10,O14/11,O14)) ->  | E14: 1 | G14: =IF($F14="","",IF($F14>90,VLOOKUP(F14,eventcodes,2,FALSE),HLOOKUP(F14,womens_declare,B16,FALSE))) ->  | H14: =IF($F14="","",IF($F14>90,"",VLOOKUP(C14,matchday,2,FALSE))) ->  | J14: =IF(I14="","",IF(AA13="T",V14,V15)) ->  | L14: =IF(AA13="T",AB14,AC14) ->  | N14: 1 | P14: =IF($O14="","",HLOOKUP(O14,womens_declare,B16,FALSE)) ->  | Q14: =IF($O14="","",VLOOKUP(D14,matchday,2,FALSE)) ->  | T14: =IF(AA13="T",AD14,AE14) ->  | V14: =IF(AA13="F","",IF(I14<V13,"LR",IF(I14=V13,"=LR",IF(I14<W13,"DR",IF(I14=W13,"=DR",""))))) -> LR | AB14: =IF(I14="","",IF(AA13="F","",IF(AA13="T",IF(I14<=X13,"þ",IF(I14<=Y13,"G2",IF(I14<=Z13,"G3","")))))) ->  | AC14: =IF(I14="","",IF(AA13="T","",IF(AA13="F",IF(I14>=X13,"þ",IF(I14>=Y13,"G2",IF(I14>=Z13,"G3","")))))) ->  | AD14: =IF(R14="","",IF(AA13="F","",IF(AA13="T",IF(R14<=X13,"þ",IF(R14<=Y13,"G2",IF(R14<=Z13,"G3","")))))) ->  | AE14: =IF(R14="","",IF(AA13="T","",IF(AA13="F",IF(R14>=X13,"þ",IF(R14>=Y13,"G2",IF(R14>=Z13,"G3","")))))) ->  | AF14: =C14 ->  | AG14: =IF(F14="","",IF(LEFT(I14,1)="D",0,VLOOKUP(E14,$AQ$4:$AR$40,2,FALSE))) ->  | AH14: =D14 ->  | AI14: =IF(O14="","",IF(LEFT(R14,1)="D",0,VLOOKUP(N14,$AQ$4:$AS$40,3,FALSE))) ->  | AJ14: 14 | AL14: =AL6*11 -> 33 | AQ14: 1== | AR14: =SUM($AR$5:AR7)/3 -> 8.333333333 | AS14: =SUM($AS$5:AS7)/3 -> 6.333333333
B15: =VLOOKUP(A14,Handbook!$A$26:$AK$46,37,FALSE) -> 8 | E15: 2 | G15: =IF($F15="","",HLOOKUP(F15,womens_declare,B16,FALSE)) ->  | H15: =IF($F15="","",VLOOKUP(C15,matchday,2,FALSE)) ->  | J15: =IF(I15="","",IF(AND(AA13="T",I15<I14),"X",IF(AND(AA13="F",I15>I14),"X",""))) ->  | L15: =IF(AA13="T",AB15,AC15) ->  | N15: 2 | P15: =IF($O15="","",HLOOKUP(O15,womens_declare,B16,FALSE)) ->  | S15: =IF(R15="","",IF(AND(AA13="T",R15<R14),"X",IF(AND(AA13="F",R15>R14),"X",""))) ->  | T15: =IF(AA13="T",AD15,AE15) ->  | V15: =IF(AA13="T","",IF(I14>V13,"LR",IF(I14=V13,"=LR",IF(I14>W13,"DR",IF(I14=W13,"=DR",""))))) ->  | AB15: =IF(I15="","",IF(AA13="F","",IF(AA13="T",IF(I15<=X13,"þ",IF(I15<=Y13,"G2",IF(I15<=Z13,"G3","")))))) ->  | AC15: =IF(I15="","",IF(AA13="T","",IF(AA13="F",IF(I15>=X13,"þ",IF(I15>=Y13,"G2",IF(I15>=Z13,"G3","")))))) ->  | AD15: =IF(R15="","",IF(AA13="F","",IF(AA13="T",IF(R15<=X13,"þ",IF(R15<=Y13,"G2",IF(R15<=Z13,"G3","")))))) ->  | AE15: =IF(R15="","",IF(AA13="T","",IF(AA13="F",IF(R15>=X13,"þ",IF(R15>=Y13,"G2",IF(R15>=Z13,"G3","")))))) ->  | AJ15: 15 | AL15: 44 | AQ15: 1=== | AR15: =SUM($AR$5:AR8)/4 -> 7.75 | AS15: =SUM($AS$5:AS8)/4 -> 5.75
B16: =VLOOKUP(A14,womens_declare,20,FALSE) -> 4 | E16: 3 | G16: =IF($F16="","",HLOOKUP(F16,womens_declare,B16,FALSE)) ->  | J16: =IF(I16="","",IF(AND(AA13="T",I16<I15),"X",IF(AND(AA13="F",I16>I15),"X",""))) ->  | L16: =IF(AA13="T",AB16,AC16) ->  | N16: 3 | P16: =IF($O16="","",HLOOKUP(O16,womens_declare,B16,FALSE)) ->  | S16: =IF(R16="","",IF(AND(AA13="T",R16<R15),"X",IF(AND(AA13="F",R16>R15),"X",""))) ->  | T16: =IF(AA13="T",AD16,AE16) ->  | AB16: =IF(I16="","",IF(AA13="F","",IF(AA13="T",IF(I16<=X13,"þ",IF(I16<=Y13,"G2",IF(I16<=Z13,"G3","")))))) ->  | AC16: =IF(I16="","",IF(AA13="T","",IF(AA13="F",IF(I16>=X13,"þ",IF(I16>=Y13,"G2",IF(I16>=Z13,"G3","")))))) ->  | AD16: =IF(R16="","",IF(AA13="F","",IF(AA13="T",IF(R16<=X13,"þ",IF(R16<=Y13,"G2",IF(R16<=Z13,"G3","")))))) ->  | AE16: =IF(R16="","",IF(AA13="T","",IF(AA13="F",IF(R16>=X13,"þ",IF(R16>=Y13,"G2",IF(R16>=Z13,"G3","")))))) ->  | AJ16: 16 | AL16: 55 | AQ16: 1==== | AR16: =SUM($AR$5:AR9)/5 -> 7.2 | AS16: =SUM($AS$5:AS9)/5 -> 5.2
E17: 4 | G17: =IF($F17="","",HLOOKUP(F17,womens_declare,B16,FALSE)) ->  | J17: =IF(I17="","",IF(AND(AA13="T",I17<I16),"X",IF(AND(AA13="F",I17>I16),"X",""))) ->  | L17: =IF(AA13="T",AB17,AC17) ->  | N17: 4 | P17: =IF($O17="","",HLOOKUP(O17,womens_declare,B16,FALSE)) ->  | S17: =IF(R17="","",IF(AND(AA13="T",R17<R16),"X",IF(AND(AA13="F",R17>R16),"X",""))) ->  | T17: =IF(AA13="T",AD17,AE17) ->  | AB17: =IF(I17="","",IF(AA13="F","",IF(AA13="T",IF(I17<=X13,"þ",IF(I17<=Y13,"G2",IF(I17<=Z13,"G3","")))))) ->  | AC17: =IF(I17="","",IF(AA13="T","",IF(AA13="F",IF(I17>=X13,"þ",IF(I17>=Y13,"G2",IF(I17>=Z13,"G3","")))))) ->  | AD17: =IF(R17="","",IF(AA13="F","",IF(AA13="T",IF(R17<=X13,"þ",IF(R17<=Y13,"G2",IF(R17<=Z13,"G3","")))))) ->  | AE17: =IF(R17="","",IF(AA13="T","",IF(AA13="F",IF(R17>=X13,"þ",IF(R17>=Y13,"G2",IF(R17>=Z13,"G3","")))))) ->  | AJ17: 17 | AL17: 66 | AQ17: 1===== | AR17: =SUM($AR$5:AR10)/6 -> 6.666666667 | AS17: =SUM($AS$5:AS10)/6 -> 4.666666667
E18: 5 | G18: =IF($F18="","",HLOOKUP(F18,womens_declare,B16,FALSE)) ->  | J18: =IF(I18="","",IF(AND(AA13="T",I18<I17),"X",IF(AND(AA13="F",I18>I17),"X",""))) ->  | L18: =IF(AA13="T",AB18,AC18) ->  | N18: 5 | P18: =IF($O18="","",HLOOKUP(O18,womens_declare,B16,FALSE)) ->  | S18: =IF(R18="","",IF(AND(AA13="T",R18<R17),"X",IF(AND(AA13="F",R18>R17),"X",""))) ->  | T18: =IF(AA13="T",AD18,AE18) ->  | AB18: =IF(I18="","",IF(AA13="F","",IF(AA13="T",IF(I18<=X13,"þ",IF(I18<=Y13,"G2",IF(I18<=Z13,"G3","")))))) ->  | AC18: =IF(I18="","",IF(AA13="T","",IF(AA13="F",IF(I18>=X13,"þ",IF(I18>=Y13,"G2",IF(I18>=Z13,"G3","")))))) ->  | AD18: =IF(R18="","",IF(AA13="F","",IF(AA13="T",IF(R18<=X13,"þ",IF(R18<=Y13,"G2",IF(R18<=Z13,"G3","")))))) ->  | AE18: =IF(R18="","",IF(AA13="T","",IF(AA13="F",IF(R18>=X13,"þ",IF(R18>=Y13,"G2",IF(R18>=Z13,"G3","")))))) ->  | AJ18: 18 | AL18: 77 | AQ18: 1====== | AR18: =SUM($AR$5:AR11)/7 -> 6.142857143 | AS18: =SUM($AS$5:AS11)/7 -> 4.142857143
E19: 6 | G19: =IF($F19="","",HLOOKUP(F19,womens_declare,B16,FALSE)) ->  | J19: =IF(I19="","",IF(AND(AA13="T",I19<I18),"X",IF(AND(AA13="F",I19>I18),"X",""))) ->  | L19: =IF(AA13="T",AB19,AC19) ->  | N19: 6 | P19: =IF($O19="","",HLOOKUP(O19,womens_declare,B16,FALSE)) ->  | S19: =IF(R19="","",IF(AND(AA13="T",R19<R18),"X",IF(AND(AA13="F",R19>R18),"X",""))) ->  | T19: =IF(AA13="T",AD19,AE19) ->  | AB19: =IF(I19="","",IF(AA13="F","",IF(AA13="T",IF(I19<=X13,"þ",IF(I19<=Y13,"G2",IF(I19<=Z13,"G3","")))))) ->  | AC19: =IF(I19="","",IF(AA13="T","",IF(AA13="F",IF(I19>=X13,"þ",IF(I19>=Y13,"G2",IF(I19>=Z13,"G3","")))))) ->  | AD19: =IF(R19="","",IF(AA13="F","",IF(AA13="T",IF(R19<=X13,"þ",IF(R19<=Y13,"G2",IF(R19<=Z13,"G3","")))))) ->  | AE19: =IF(R19="","",IF(AA13="T","",IF(AA13="F",IF(R19>=X13,"þ",IF(R19>=Y13,"G2",IF(R19>=Z13,"G3","")))))) ->  | AJ19: 19 | AL19: 88 | AQ19: 1======= | AR19: =SUM($AR$5:AR12)/8 -> 5.375 | AS19: =SUM($AS$5:AS12)/8 -> 3.625
E20: 7 | G20: =IF($F20="","",HLOOKUP(F20,womens_declare,B16,FALSE)) ->  | J20: =IF(I20="","",IF(AND(AA13="T",I20<I19),"X",IF(AND(AA13="F",I20>I19),"X",""))) ->  | L20: =IF(AA13="T",AB20,AC20) ->  | N20: 7 | P20: =IF($O20="","",HLOOKUP(O20,womens_declare,B16,FALSE)) ->  | S20: =IF(R20="","",IF(AND(AA13="T",R20<R19),"X",IF(AND(AA13="F",R20>R19),"X",""))) ->  | T20: =IF(AA13="T",AD20,AE20) ->  | AB20: =IF(I20="","",IF(AA13="F","",IF(AA13="T",IF(I20<=X13,"þ",IF(I20<=Y13,"G2",IF(I20<=Z13,"G3","")))))) ->  | AC20: =IF(I20="","",IF(AA13="T","",IF(AA13="F",IF(I20>=X13,"þ",IF(I20>=Y13,"G2",IF(I20>=Z13,"G3","")))))) ->  | AD20: =IF(R20="","",IF(AA13="F","",IF(AA13="T",IF(R20<=X13,"þ",IF(R20<=Y13,"G2",IF(R20<=Z13,"G3","")))))) ->  | AE20: =IF(R20="","",IF(AA13="T","",IF(AA13="F",IF(R20>=X13,"þ",IF(R20>=Y13,"G2",IF(R20>=Z13,"G3","")))))) ->  | AJ20: 20 | AL20: 99 | AQ20: 2= | AR20: =SUM($AR$6:AR7)/2 -> 7.5 | AS20: =SUM($AS$6:AS7)/2 -> 5.5
E21: 8 | G21: =IF($F21="","",HLOOKUP(F21,womens_declare,B16,FALSE)) ->  | J21: =IF(I21="","",IF(AND(AA13="T",I21<I20),"X",IF(AND(AA13="F",I21>I20),"X",""))) ->  | L21: =IF(AA13="T",AB21,AC21) ->  | N21: 8 | P21: =IF($O21="","",HLOOKUP(O21,womens_declare,B16,FALSE)) ->  | S21: =IF(R21="","",IF(AND(AA13="T",R21<R20),"X",IF(AND(AA13="F",R21>R20),"X",""))) ->  | T21: =IF(AA13="T",AD21,AE21) ->  | AB21: =IF(I21="","",IF(AA13="F","",IF(AA13="T",IF(I21<=X13,"þ",IF(I21<=Y13,"G2",IF(I21<=Z13,"G3","")))))) ->  | AC21: =IF(I21="","",IF(AA13="T","",IF(AA13="F",IF(I21>=X13,"þ",IF(I21>=Y13,"G2",IF(I21>=Z13,"G3","")))))) ->  | AD21: =IF(R21="","",IF(AA13="F","",IF(AA13="T",IF(R21<=X13,"þ",IF(R21<=Y13,"G2",IF(R21<=Z13,"G3","")))))) ->  | AE21: =IF(R21="","",IF(AA13="T","",IF(AA13="F",IF(R21>=X13,"þ",IF(R21>=Y13,"G2",IF(R21>=Z13,"G3","")))))) ->  | AJ21: 21 | AL21: 97 | AQ21: 2== | AR21: =SUM($AR$6:AR8)/3 -> 7 | AS21: =SUM($AS$6:AS8)/3 -> 5
AJ22: 22 | AL22: 98 | AQ22: 2=== | AR22: =SUM($AR$6:AR9)/4 -> 6.5 | AS22: =SUM($AS$6:AS9)/4 -> 4.5
E23: =CONCATENATE(VLOOKUP(A24,womens_handbook,3,FALSE)," A") -> Women's 400m A | H23: =IF(A24="","",IF(VLOOKUP(A24,Handbook!$A$4:$AI$24,35,FALSE)="Y","Wind=","")) ->  | O23: =CONCATENATE(VLOOKUP(A24,womens_handbook,3,FALSE)," B") -> Women's 400m B | Q23: =H23 ->  | V23: =IF($A24="","",VLOOKUP($A24,Handbook!$A$26:$AK$46,21,FALSE)) -> 53.7 | W23: =IF($A24="","",VLOOKUP($A24,Handbook!$A$26:$AK$46,22,FALSE)) -> 53.7 | X23: =IF($A24="","",VLOOKUP($A24,Handbook!$A$26:$AK$46,23,FALSE)) -> 64 | Y23: =IF($A24="","",VLOOKUP($A24,Handbook!$A$26:$AK$46,24,FALSE)) -> 62 | Z23: =IF($A24="","",VLOOKUP($A24,Handbook!$A$26:$AK$46,25,FALSE)) -> 62 | AA23: =IF($A24="","",VLOOKUP($A24,Handbook!$A$26:$AK$46,34,FALSE)) -> T | AJ23: 23 | AL23: 96 | AQ23: 2==== | AR23: =SUM($AR$6:AR10)/5 -> 6 | AS23: =SUM($AS$6:AS10)/5 -> 4
A24: 4 | C24: =IF(F24="","",IF(F24>10,F24/11,F24)) ->  | D24: =IF(O24="","",IF(O24>10,O24/11,O24)) ->  | E24: 1 | G24: =IF($F24="","",IF($F24>90,VLOOKUP(F24,eventcodes,2,FALSE),HLOOKUP(F24,womens_declare,B26,FALSE))) ->  | H24: =IF($F24="","",IF($F24>90,"",VLOOKUP(C24,matchday,2,FALSE))) ->  | J24: =IF(I24="","",IF(AA23="T",V24,V25)) ->  | L24: =IF(AA23="T",AB24,AC24) ->  | N24: 1 | P24: =IF($O24="","",HLOOKUP(O24,womens_declare,B26,FALSE)) ->  | Q24: =IF($O24="","",VLOOKUP(D24,matchday,2,FALSE)) ->  | T24: =IF(AA23="T",AD24,AE24) ->  | V24: =IF(AA23="F","",IF(I24<V23,"LR",IF(I24=V23,"=LR",IF(I24<W23,"DR",IF(I24=W23,"=DR",""))))) -> LR | AB24: =IF(I24="","",IF(AA23="F","",IF(AA23="T",IF(I24<=X23,"þ",IF(I24<=Y23,"G2",IF(I24<=Z23,"G3","")))))) ->  | AC24: =IF(I24="","",IF(AA23="T","",IF(AA23="F",IF(I24>=X23,"þ",IF(I24>=Y23,"G2",IF(I24>=Z23,"G3","")))))) ->  | AD24: =IF(R24="","",IF(AA23="F","",IF(AA23="T",IF(R24<=X23,"þ",IF(R24<=Y23,"G2",IF(R24<=Z23,"G3","")))))) ->  | AE24: =IF(R24="","",IF(AA23="T","",IF(AA23="F",IF(R24>=X23,"þ",IF(R24>=Y23,"G2",IF(R24>=Z23,"G3","")))))) ->  | AF24: =C24 ->  | AG24: =IF(F24="","",IF(LEFT(I24,1)="D",0,VLOOKUP(E24,$AQ$4:$AR$40,2,FALSE))) ->  | AH24: =D24 ->  | AI24: =IF(O24="","",IF(LEFT(R24,1)="D",0,VLOOKUP(N24,$AQ$4:$AS$40,3,FALSE))) ->  | AJ24: 24 | AL24: Events Not Held Codes | AQ24: 2===== | AR24: =SUM($AR$6:AR11)/6 -> 5.5 | AS24: =SUM($AS$6:AS11)/6 -> 3.5
B25: =VLOOKUP(A24,Handbook!$A$26:$AK$46,37,FALSE) -> 5 | E25: 2 | G25: =IF($F25="","",HLOOKUP(F25,womens_declare,B26,FALSE)) ->  | H25: =IF($F25="","",VLOOKUP(C25,matchday,2,FALSE)) ->  | J25: =IF(I25="","",IF(AND(AA23="T",I25<I24),"X",IF(AND(AA23="F",I25>I24),"X",""))) ->  | L25: =IF(AA23="T",AB25,AC25) ->  | N25: 2 | P25: =IF($O25="","",HLOOKUP(O25,womens_declare,B26,FALSE)) ->  | S25: =IF(R25="","",IF(AND(AA23="T",R25<R24),"X",IF(AND(AA23="F",R25>R24),"X",""))) ->  | T25: =IF(AA23="T",AD25,AE25) ->  | V25: =IF(AA23="T","",IF(I24>V23,"LR",IF(I24=V23,"=LR",IF(I24>W23,"DR",IF(I24=W23,"=DR",""))))) ->  | AB25: =IF(I25="","",IF(AA23="F","",IF(AA23="T",IF(I25<=X23,"þ",IF(I25<=Y23,"G2",IF(I25<=Z23,"G3","")))))) ->  | AC25: =IF(I25="","",IF(AA23="T","",IF(AA23="F",IF(I25>=X23,"þ",IF(I25>=Y23,"G2",IF(I25>=Z23,"G3","")))))) ->  | AD25: =IF(R25="","",IF(AA23="F","",IF(AA23="T",IF(R25<=X23,"þ",IF(R25<=Y23,"G2",IF(R25<=Z23,"G3","")))))) ->  | AE25: =IF(R25="","",IF(AA23="T","",IF(AA23="F",IF(R25>=X23,"þ",IF(R25>=Y23,"G2",IF(R25>=Z23,"G3","")))))) ->  | AJ25: 25 | AK25: 97 | AL25: Open Heights Not Cleared | AQ25: 2====== | AR25: =SUM($AR$6:AR12)/7 -> 4.714285714 | AS25: =SUM($AS$6:AS12)/7 -> 3
B26: =VLOOKUP(A24,womens_declare,20,FALSE) -> 5 | E26: 3 | G26: =IF($F26="","",HLOOKUP(F26,womens_declare,B26,FALSE)) ->  | J26: =IF(I26="","",IF(AND(AA23="T",I26<I25),"X",IF(AND(AA23="F",I26>I25),"X",""))) ->  | L26: =IF(AA23="T",AB26,AC26) ->  | N26: 3 | P26: =IF($O26="","",HLOOKUP(O26,womens_declare,B26,FALSE)) ->  | S26: =IF(R26="","",IF(AND(AA23="T",R26<R25),"X",IF(AND(AA23="F",R26>R25),"X",""))) ->  | T26: =IF(AA23="T",AD26,AE26) ->  | AB26: =IF(I26="","",IF(AA23="F","",IF(AA23="T",IF(I26<=X23,"þ",IF(I26<=Y23,"G2",IF(I26<=Z23,"G3","")))))) ->  | AC26: =IF(I26="","",IF(AA23="T","",IF(AA23="F",IF(I26>=X23,"þ",IF(I26>=Y23,"G2",IF(I26>=Z23,"G3","")))))) ->  | AD26: =IF(R26="","",IF(AA23="F","",IF(AA23="T",IF(R26<=X23,"þ",IF(R26<=Y23,"G2",IF(R26<=Z23,"G3","")))))) ->  | AE26: =IF(R26="","",IF(AA23="T","",IF(AA23="F",IF(R26>=X23,"þ",IF(R26>=Y23,"G2",IF(R26>=Z23,"G3","")))))) ->  | AJ26: 26 | AK26: 98 | AL26: No Valid Performances | AQ26: 3= | AR26: =SUM($AR$7:AR8)/2 -> 6.5 | AS26: =SUM($AS$7:AS8)/2 -> 4.5
E27: 4 | G27: =IF($F27="","",HLOOKUP(F27,womens_declare,B26,FALSE)) ->  | J27: =IF(I27="","",IF(AND(AA23="T",I27<I26),"X",IF(AND(AA23="F",I27>I26),"X",""))) ->  | L27: =IF(AA23="T",AB27,AC27) ->  | N27: 4 | P27: =IF($O27="","",HLOOKUP(O27,womens_declare,B26,FALSE)) ->  | S27: =IF(R27="","",IF(AND(AA23="T",R27<R26),"X",IF(AND(AA23="F",R27>R26),"X",""))) ->  | T27: =IF(AA23="T",AD27,AE27) ->  | AB27: =IF(I27="","",IF(AA23="F","",IF(AA23="T",IF(I27<=X23,"þ",IF(I27<=Y23,"G2",IF(I27<=Z23,"G3","")))))) ->  | AC27: =IF(I27="","",IF(AA23="T","",IF(AA23="F",IF(I27>=X23,"þ",IF(I27>=Y23,"G2",IF(I27>=Z23,"G3","")))))) ->  | AD27: =IF(R27="","",IF(AA23="F","",IF(AA23="T",IF(R27<=X23,"þ",IF(R27<=Y23,"G2",IF(R27<=Z23,"G3","")))))) ->  | AE27: =IF(R27="","",IF(AA23="T","",IF(AA23="F",IF(R27>=X23,"þ",IF(R27>=Y23,"G2",IF(R27>=Z23,"G3","")))))) ->  | AJ27: 27 | AK27: 99 | AL27: Event Cancelled | AQ27: 3== | AR27: =SUM($AR$7:AR9)/3 -> 6 | AS27: =SUM($AS$7:AS9)/3 -> 4
E28: 5 | G28: =IF($F28="","",HLOOKUP(F28,womens_declare,B26,FALSE)) ->  | J28: =IF(I28="","",IF(AND(AA23="T",I28<I27),"X",IF(AND(AA23="F",I28>I27),"X",""))) ->  | L28: =IF(AA23="T",AB28,AC28) ->  | N28: 5 | P28: =IF($O28="","",HLOOKUP(O28,womens_declare,B26,FALSE)) ->  | S28: =IF(R28="","",IF(AND(AA23="T",R28<R27),"X",IF(AND(AA23="F",R28>R27),"X",""))) ->  | T28: =IF(AA23="T",AD28,AE28) ->  | AB28: =IF(I28="","",IF(AA23="F","",IF(AA23="T",IF(I28<=X23,"þ",IF(I28<=Y23,"G2",IF(I28<=Z23,"G3","")))))) ->  | AC28: =IF(I28="","",IF(AA23="T","",IF(AA23="F",IF(I28>=X23,"þ",IF(I28>=Y23,"G2",IF(I28>=Z23,"G3","")))))) ->  | AD28: =IF(R28="","",IF(AA23="F","",IF(AA23="T",IF(R28<=X23,"þ",IF(R28<=Y23,"G2",IF(R28<=Z23,"G3","")))))) ->  | AE28: =IF(R28="","",IF(AA23="T","",IF(AA23="F",IF(R28>=X23,"þ",IF(R28>=Y23,"G2",IF(R28>=Z23,"G3","")))))) ->  | AJ28: 28 | AK28: 96 | AL28: No Competitors Entered | AQ28: 3=== | AR28: =SUM($AR$7:AR10)/4 -> 5.5 | AS28: =SUM($AS$7:AS10)/4 -> 3.5
E29: 6 | G29: =IF($F29="","",HLOOKUP(F29,womens_declare,B26,FALSE)) ->  | J29: =IF(I29="","",IF(AND(AA23="T",I29<I28),"X",IF(AND(AA23="F",I29>I28),"X",""))) ->  | L29: =IF(AA23="T",AB29,AC29) ->  | N29: 6 | P29: =IF($O29="","",HLOOKUP(O29,womens_declare,B26,FALSE)) ->  | S29: =IF(R29="","",IF(AND(AA23="T",R29<R28),"X",IF(AND(AA23="F",R29>R28),"X",""))) ->  | T29: =IF(AA23="T",AD29,AE29) ->  | AB29: =IF(I29="","",IF(AA23="F","",IF(AA23="T",IF(I29<=X23,"þ",IF(I29<=Y23,"G2",IF(I29<=Z23,"G3","")))))) ->  | AC29: =IF(I29="","",IF(AA23="T","",IF(AA23="F",IF(I29>=X23,"þ",IF(I29>=Y23,"G2",IF(I29>=Z23,"G3","")))))) ->  | AD29: =IF(R29="","",IF(AA23="F","",IF(AA23="T",IF(R29<=X23,"þ",IF(R29<=Y23,"G2",IF(R29<=Z23,"G3","")))))) ->  | AE29: =IF(R29="","",IF(AA23="T","",IF(AA23="F",IF(R29>=X23,"þ",IF(R29>=Y23,"G2",IF(R29>=Z23,"G3","")))))) ->  | AJ29: 29 | AQ29: 3==== | AR29: =SUM($AR$7:AR11)/5 -> 5 | AS29: =SUM($AS$7:AS11)/5 -> 3
E30: 7 | G30: =IF($F30="","",HLOOKUP(F30,womens_declare,B26,FALSE)) ->  | J30: =IF(I30="","",IF(AND(AA23="T",I30<I29),"X",IF(AND(AA23="F",I30>I29),"X",""))) ->  | L30: =IF(AA23="T",AB30,AC30) ->  | N30: 7 | P30: =IF($O30="","",HLOOKUP(O30,womens_declare,B26,FALSE)) ->  | S30: =IF(R30="","",IF(AND(AA23="T",R30<R29),"X",IF(AND(AA23="F",R30>R29),"X",""))) ->  | T30: =IF(AA23="T",AD30,AE30) ->  | AB30: =IF(I30="","",IF(AA23="F","",IF(AA23="T",IF(I30<=X23,"þ",IF(I30<=Y23,"G2",IF(I30<=Z23,"G3","")))))) ->  | AC30: =IF(I30="","",IF(AA23="T","",IF(AA23="F",IF(I30>=X23,"þ",IF(I30>=Y23,"G2",IF(I30>=Z23,"G3","")))))) ->  | AD30: =IF(R30="","",IF(AA23="F","",IF(AA23="T",IF(R30<=X23,"þ",IF(R30<=Y23,"G2",IF(R30<=Z23,"G3","")))))) ->  | AE30: =IF(R30="","",IF(AA23="T","",IF(AA23="F",IF(R30>=X23,"þ",IF(R30>=Y23,"G2",IF(R30>=Z23,"G3","")))))) ->  | AJ30: 30 | AQ30: 3===== | AR30: =SUM($AR$7:AR12)/6 -> 4.166666667 | AS30: =SUM($AS$7:AS12)/6 -> 2.5
E31: 8 | G31: =IF($F31="","",HLOOKUP(F31,womens_declare,B26,FALSE)) ->  | J31: =IF(I31="","",IF(AND(AA23="T",I31<I30),"X",IF(AND(AA23="F",I31>I30),"X",""))) ->  | L31: =IF(AA23="T",AB31,AC31) ->  | N31: 8 | P31: =IF($O31="","",HLOOKUP(O31,womens_declare,B26,FALSE)) ->  | S31: =IF(R31="","",IF(AND(AA23="T",R31<R30),"X",IF(AND(AA23="F",R31>R30),"X",""))) ->  | T31: =IF(AA23="T",AD31,AE31) ->  | AB31: =IF(I31="","",IF(AA23="F","",IF(AA23="T",IF(I31<=X23,"þ",IF(I31<=Y23,"G2",IF(I31<=Z23,"G3","")))))) ->  | AC31: =IF(I31="","",IF(AA23="T","",IF(AA23="F",IF(I31>=X23,"þ",IF(I31>=Y23,"G2",IF(I31>=Z23,"G3","")))))) ->  | AD31: =IF(R31="","",IF(AA23="F","",IF(AA23="T",IF(R31<=X23,"þ",IF(R31<=Y23,"G2",IF(R31<=Z23,"G3","")))))) ->  | AE31: =IF(R31="","",IF(AA23="T","",IF(AA23="F",IF(R31>=X23,"þ",IF(R31>=Y23,"G2",IF(R31>=Z23,"G3","")))))) ->  | AJ31: 31 | AQ31: 4= | AR31: =SUM($AR$8:AR9)/2 -> 5.5 | AS31: =SUM($AS$8:AS9)/2 -> 3.5
AJ32: 32 | AQ32: 4== | AR32: =SUM($AR$8:AR10)/3 -> 5 | AS32: =SUM($AS$8:AS10)/3 -> 3
E33: =CONCATENATE(VLOOKUP(A34,womens_handbook,3,FALSE)," A") -> Women's 800m A | H33: =IF(A34="","",IF(VLOOKUP(A34,Handbook!$A$4:$AI$24,35,FALSE)="Y","Wind=","")) ->  | O33: =CONCATENATE(VLOOKUP(A34,womens_handbook,3,FALSE)," B") -> Women's 800m B | P33: =CONCATENATE(VLOOKUP(M34,Handbook!$A$4:$C$24,3,FALSE)," A") ->  | Q33: =H33 ->  | V33: =IF($A34="","",VLOOKUP($A34,Handbook!$A$26:$AK$46,21,FALSE)) -> 00:02:04.300 | W33: =IF($A34="","",VLOOKUP($A34,Handbook!$A$26:$AK$46,22,FALSE)) -> 00:02:04.300 | X33: =IF($A34="","",VLOOKUP($A34,Handbook!$A$26:$AK$46,23,FALSE)) -> 00:02:27 | Y33: =IF($A34="","",VLOOKUP($A34,Handbook!$A$26:$AK$46,24,FALSE)) -> 00:02:25 | Z33: =IF($A34="","",VLOOKUP($A34,Handbook!$A$26:$AK$46,25,FALSE)) -> 00:02:25 | AA33: =IF($A34="","",VLOOKUP($A34,Handbook!$A$26:$AK$46,34,FALSE)) -> T | AJ33: 33 | AQ33: 4=== | AR33: =SUM($AR$8:AR11)/4 -> 4.5 | AS33: =SUM($AS$8:AS11)/4 -> 2.5
A34: 2 | C34: =IF(F34="","",IF(F34>10,F34/11,F34)) ->  | D34: =IF(O34="","",IF(O34>10,O34/11,O34)) ->  | E34: 1 | G34: =IF($F34="","",IF($F34>90,VLOOKUP(F34,eventcodes,2,FALSE),HLOOKUP(F34,womens_declare,B36,FALSE))) ->  | H34: =IF($F34="","",IF($F34>90,"",VLOOKUP(C34,matchday,2,FALSE))) ->  | J34: =IF(I34="","",IF(AA33="T",V34,V35)) ->  | L34: =IF(AA33="T",AB34,AC34) ->  | N34: 1 | P34: =IF($O34="","",HLOOKUP(O34,womens_declare,B36,FALSE)) ->  | Q34: =IF($O34="","",VLOOKUP(D34,matchday,2,FALSE)) ->  | T34: =IF(AA33="T",AD34,AE34) ->  | V34: =IF(AA33="F","",IF(I34<V33,"LR",IF(I34=V33,"=LR",IF(I34<W33,"DR",IF(I34=W33,"=DR",""))))) -> LR | AB34: =IF(I34="","",IF(AA33="F","",IF(AA33="T",IF(I34<=X33,"þ",IF(I34<=Y33,"G2",IF(I34<=Z33,"G3","")))))) ->  | AC34: =IF(I34="","",IF(AA33="T","",IF(AA33="F",IF(I34>=X33,"þ",IF(I34>=Y33,"G2",IF(I34>=Z33,"G3","")))))) ->  | AD34: =IF(R34="","",IF(AA33="F","",IF(AA33="T",IF(R34<=X33,"þ",IF(R34<=Y33,"G2",IF(R34<=Z33,"G3","")))))) ->  | AE34: =IF(R34="","",IF(AA33="T","",IF(AA33="F",IF(R34>=X33,"þ",IF(R34>=Y33,"G2",IF(R34>=Z33,"G3","")))))) ->  | AF34: =C34 ->  | AG34: =IF(F34="","",IF(LEFT(I34,1)="D",0,VLOOKUP(E34,$AQ$4:$AR$40,2,FALSE))) ->  | AH34: =D34 ->  | AI34: =IF(O34="","",IF(LEFT(R34,1)="D",0,VLOOKUP(N34,$AQ$4:$AS$40,3,FALSE))) ->  | AJ34: 34 | AQ34: 4==== | AR34: =SUM($AR$8:AR12)/5 -> 3.6 | AS34: =SUM($AS$8:AS12)/5 -> 2
B35: =VLOOKUP(A34,Handbook!$A$26:$AK$46,37,FALSE) -> 3 | E35: 2 | G35: =IF($F35="","",HLOOKUP(F35,womens_declare,B36,FALSE)) ->  | H35: =IF($F35="","",VLOOKUP(C35,matchday,2,FALSE)) ->  | J35: =IF(I35="","",IF(AND(AA33="T",I35<I34),"X",IF(AND(AA33="F",I35>I34),"X",""))) ->  | L35: =IF(AA33="T",AB35,AC35) ->  | N35: 2 | P35: =IF($O35="","",HLOOKUP(O35,womens_declare,B36,FALSE)) ->  | S35: =IF(R35="","",IF(AND(AA33="T",R35<R34),"X",IF(AND(AA33="F",R35>R34),"X",""))) ->  | T35: =IF(AA33="T",AD35,AE35) ->  | V35: =IF(AA33="T","",IF(I34>V33,"LR",IF(I34=V33,"=LR",IF(I34>W33,"DR",IF(I34=W33,"=DR",""))))) ->  | AB35: =IF(I35="","",IF(AA33="F","",IF(AA33="T",IF(I35<=X33,"þ",IF(I35<=Y33,"G2",IF(I35<=Z33,"G3","")))))) ->  | AC35: =IF(I35="","",IF(AA33="T","",IF(AA33="F",IF(I35>=X33,"þ",IF(I35>=Y33,"G2",IF(I35>=Z33,"G3","")))))) ->  | AD35: =IF(R35="","",IF(AA33="F","",IF(AA33="T",IF(R35<=X33,"þ",IF(R35<=Y33,"G2",IF(R35<=Z33,"G3","")))))) ->  | AE35: =IF(R35="","",IF(AA33="T","",IF(AA33="F",IF(R35>=X33,"þ",IF(R35>=Y33,"G2",IF(R35>=Z33,"G3","")))))) ->  | AJ35: 35 | AQ35: 5= | AR35: =SUM($AR$9:AR10)/2 -> 4.5 | AS35: =SUM($AS$9:AS10)/2 -> 2.5
B36: =VLOOKUP(A34,womens_declare,20,FALSE) -> 6 | E36: 3 | G36: =IF($F36="","",HLOOKUP(F36,womens_declare,B36,FALSE)) ->  | J36: =IF(I36="","",IF(AND(AA33="T",I36<I35),"X",IF(AND(AA33="F",I36>I35),"X",""))) ->  | L36: =IF(AA33="T",AB36,AC36) ->  | N36: 3 | P36: =IF($O36="","",HLOOKUP(O36,womens_declare,B36,FALSE)) ->  | S36: =IF(R36="","",IF(AND(AA33="T",R36<R35),"X",IF(AND(AA33="F",R36>R35),"X",""))) ->  | T36: =IF(AA33="T",AD36,AE36) ->  | AB36: =IF(I36="","",IF(AA33="F","",IF(AA33="T",IF(I36<=X33,"þ",IF(I36<=Y33,"G2",IF(I36<=Z33,"G3","")))))) ->  | AC36: =IF(I36="","",IF(AA33="T","",IF(AA33="F",IF(I36>=X33,"þ",IF(I36>=Y33,"G2",IF(I36>=Z33,"G3","")))))) ->  | AD36: =IF(R36="","",IF(AA33="F","",IF(AA33="T",IF(R36<=X33,"þ",IF(R36<=Y33,"G2",IF(R36<=Z33,"G3","")))))) ->  | AE36: =IF(R36="","",IF(AA33="T","",IF(AA33="F",IF(R36>=X33,"þ",IF(R36>=Y33,"G2",IF(R36>=Z33,"G3","")))))) ->  | AJ36: 36 | AQ36: 5== | AR36: =SUM($AR$9:AR11)/3 -> 4 | AS36: =SUM($AS$9:AS11)/3 -> 2
E37: 4 | G37: =IF($F37="","",HLOOKUP(F37,womens_declare,B36,FALSE)) ->  | J37: =IF(I37="","",IF(AND(AA33="T",I37<I36),"X",IF(AND(AA33="F",I37>I36),"X",""))) ->  | L37: =IF(AA33="T",AB37,AC37) ->  | N37: 4 | P37: =IF($O37="","",HLOOKUP(O37,womens_declare,B36,FALSE)) ->  | S37: =IF(R37="","",IF(AND(AA33="T",R37<R36),"X",IF(AND(AA33="F",R37>R36),"X",""))) ->  | T37: =IF(AA33="T",AD37,AE37) ->  | AB37: =IF(I37="","",IF(AA33="F","",IF(AA33="T",IF(I37<=X33,"þ",IF(I37<=Y33,"G2",IF(I37<=Z33,"G3","")))))) ->  | AC37: =IF(I37="","",IF(AA33="T","",IF(AA33="F",IF(I37>=X33,"þ",IF(I37>=Y33,"G2",IF(I37>=Z33,"G3","")))))) ->  | AD37: =IF(R37="","",IF(AA33="F","",IF(AA33="T",IF(R37<=X33,"þ",IF(R37<=Y33,"G2",IF(R37<=Z33,"G3","")))))) ->  | AE37: =IF(R37="","",IF(AA33="T","",IF(AA33="F",IF(R37>=X33,"þ",IF(R37>=Y33,"G2",IF(R37>=Z33,"G3","")))))) ->  | AJ37: 37 | AQ37: 5=== | AR37: =SUM($AR$9:AR12)/4 -> 3 | AS37: =SUM($AS$9:AS12)/4 -> 1.5
E38: 5 | G38: =IF($F38="","",HLOOKUP(F38,womens_declare,B36,FALSE)) ->  | J38: =IF(I38="","",IF(AND(AA33="T",I38<I37),"X",IF(AND(AA33="F",I38>I37),"X",""))) ->  | L38: =IF(AA33="T",AB38,AC38) ->  | N38: 5 | P38: =IF($O38="","",HLOOKUP(O38,womens_declare,B36,FALSE)) ->  | S38: =IF(R38="","",IF(AND(AA33="T",R38<R37),"X",IF(AND(AA33="F",R38>R37),"X",""))) ->  | T38: =IF(AA33="T",AD38,AE38) ->  | AB38: =IF(I38="","",IF(AA33="F","",IF(AA33="T",IF(I38<=X33,"þ",IF(I38<=Y33,"G2",IF(I38<=Z33,"G3","")))))) ->  | AC38: =IF(I38="","",IF(AA33="T","",IF(AA33="F",IF(I38>=X33,"þ",IF(I38>=Y33,"G2",IF(I38>=Z33,"G3","")))))) ->  | AD38: =IF(R38="","",IF(AA33="F","",IF(AA33="T",IF(R38<=X33,"þ",IF(R38<=Y33,"G2",IF(R38<=Z33,"G3","")))))) ->  | AE38: =IF(R38="","",IF(AA33="T","",IF(AA33="F",IF(R38>=X33,"þ",IF(R38>=Y33,"G2",IF(R38>=Z33,"G3","")))))) ->  | AJ38: 38 | AQ38: 6= | AR38: =SUM($AR$10:AR11)/2 -> 3.5 | AS38: =SUM($AS$10:AS11)/2 -> 1.5
E39: 6 | G39: =IF($F39="","",HLOOKUP(F39,womens_declare,B36,FALSE)) ->  | J39: =IF(I39="","",IF(AND(AA33="T",I39<I38),"X",IF(AND(AA33="F",I39>I38),"X",""))) ->  | L39: =IF(AA33="T",AB39,AC39) ->  | N39: 6 | P39: =IF($O39="","",HLOOKUP(O39,womens_declare,B36,FALSE)) ->  | S39: =IF(R39="","",IF(AND(AA33="T",R39<R38),"X",IF(AND(AA33="F",R39>R38),"X",""))) ->  | T39: =IF(AA33="T",AD39,AE39) ->  | AB39: =IF(I39="","",IF(AA33="F","",IF(AA33="T",IF(I39<=X33,"þ",IF(I39<=Y33,"G2",IF(I39<=Z33,"G3","")))))) ->  | AC39: =IF(I39="","",IF(AA33="T","",IF(AA33="F",IF(I39>=X33,"þ",IF(I39>=Y33,"G2",IF(I39>=Z33,"G3","")))))) ->  | AD39: =IF(R39="","",IF(AA33="F","",IF(AA33="T",IF(R39<=X33,"þ",IF(R39<=Y33,"G2",IF(R39<=Z33,"G3","")))))) ->  | AE39: =IF(R39="","",IF(AA33="T","",IF(AA33="F",IF(R39>=X33,"þ",IF(R39>=Y33,"G2",IF(R39>=Z33,"G3","")))))) ->  | AJ39: 39 | AQ39: 6== | AR39: =SUM($AR$10:AR12)/3 -> 2.333333333 | AS39: =SUM($AS$10:AS12)/3 -> 1
E40: 7 | G40: =IF($F40="","",HLOOKUP(F40,womens_declare,B36,FALSE)) ->  | J40: =IF(I40="","",IF(AND(AA33="T",I40<I39),"X",IF(AND(AA33="F",I40>I39),"X",""))) ->  | L40: =IF(AA33="T",AB40,AC40) ->  | N40: 7 | P40: =IF($O40="","",HLOOKUP(O40,womens_declare,B36,FALSE)) ->  | S40: =IF(R40="","",IF(AND(AA33="T",R40<R39),"X",IF(AND(AA33="F",R40>R39),"X",""))) ->  | T40: =IF(AA33="T",AD40,AE40) ->  | AB40: =IF(I40="","",IF(AA33="F","",IF(AA33="T",IF(I40<=X33,"þ",IF(I40<=Y33,"G2",IF(I40<=Z33,"G3","")))))) ->  | AC40: =IF(I40="","",IF(AA33="T","",IF(AA33="F",IF(I40>=X33,"þ",IF(I40>=Y33,"G2",IF(I40>=Z33,"G3","")))))) ->  | AD40: =IF(R40="","",IF(AA33="F","",IF(AA33="T",IF(R40<=X33,"þ",IF(R40<=Y33,"G2",IF(R40<=Z33,"G3","")))))) ->  | AE40: =IF(R40="","",IF(AA33="T","",IF(AA33="F",IF(R40>=X33,"þ",IF(R40>=Y33,"G2",IF(R40>=Z33,"G3","")))))) ->  | AJ40: 40 | AQ40: 7= | AR40: =SUM($AR$11:AR12)/2 -> 1.5 | AS40: =SUM($AS$11:AS12)/2 -> 0.5
E41: 8 | G41: =IF($F41="","",HLOOKUP(F41,womens_declare,B36,FALSE)) ->  | J41: =IF(I41="","",IF(AND(AA33="T",I41<I40),"X",IF(AND(AA33="F",I41>I40),"X",""))) ->  | L41: =IF(AA33="T",AB41,AC41) ->  | N41: 8 | P41: =IF($O41="","",HLOOKUP(O41,womens_declare,B36,FALSE)) ->  | S41: =IF(R41="","",IF(AND(AA33="T",R41<R40),"X",IF(AND(AA33="F",R41>R40),"X",""))) ->  | T41: =IF(AA33="T",AD41,AE41) ->  | AB41: =IF(I41="","",IF(AA33="F","",IF(AA33="T",IF(I41<=X33,"þ",IF(I41<=Y33,"G2",IF(I41<=Z33,"G3","")))))) ->  | AC41: =IF(I41="","",IF(AA33="T","",IF(AA33="F",IF(I41>=X33,"þ",IF(I41>=Y33,"G2",IF(I41>=Z33,"G3","")))))) ->  | AD41: =IF(R41="","",IF(AA33="F","",IF(AA33="T",IF(R41<=X33,"þ",IF(R41<=Y33,"G2",IF(R41<=Z33,"G3","")))))) ->  | AE41: =IF(R41="","",IF(AA33="T","",IF(AA33="F",IF(R41>=X33,"þ",IF(R41>=Y33,"G2",IF(R41>=Z33,"G3","")))))) ->  | AJ41: 41
AJ42: 42
E43: =CONCATENATE(VLOOKUP(A44,womens_handbook,3,FALSE)," A") -> Women's 1500m A | H43: =IF(A44="","",IF(VLOOKUP(A44,Handbook!$A$4:$AI$24,35,FALSE)="Y","Wind=","")) ->  | O43: =CONCATENATE(VLOOKUP(A44,womens_handbook,3,FALSE)," B") -> Women's 1500m B | P43: =CONCATENATE(VLOOKUP(M44,Handbook!$A$4:$C$24,3,FALSE)," A") ->  | Q43: =H43 ->  | V43: =IF($A44="","",VLOOKUP($A44,Handbook!$A$26:$AK$46,21,FALSE)) -> 00:04:07.600 | W43: =IF($A44="","",VLOOKUP($A44,Handbook!$A$26:$AK$46,22,FALSE)) -> 00:04:07.600 | X43: =IF($A44="","",VLOOKUP($A44,Handbook!$A$26:$AK$46,23,FALSE)) -> 00:05:05 | Y43: =IF($A44="","",VLOOKUP($A44,Handbook!$A$26:$AK$46,24,FALSE)) -> 00:05:00 | Z43: =IF($A44="","",VLOOKUP($A44,Handbook!$A$26:$AK$46,25,FALSE)) -> 00:05:00 | AA43: =IF($A44="","",VLOOKUP($A44,Handbook!$A$26:$AK$46,34,FALSE)) -> T | AJ43: 43
A44: 8 | C44: =IF(F44="","",IF(F44>10,F44/11,F44)) ->  | D44: =IF(O44="","",IF(O44>10,O44/11,O44)) ->  | E44: 1 | F44: =IF(OR(F_1500m!D20=0,F_1500m!D20=""),"",F_1500m!D20) ->  | G44: =IF(OR($F44="",$F44=0),"",IF($F44>90,VLOOKUP(F44,eventcodes,2,FALSE),HLOOKUP(F44,womens_declare,B46,FALSE))) ->  | H44: =IF(OR($F44="",$F44=0),"",IF($F44>90,"",VLOOKUP(C44,matchday,2,FALSE))) ->  | I44: =IF(OR(F_1500m!G20=0,F_1500m!G20=""),"",F_1500m!G20) ->  | J44: =IF(OR(I44="",I44=0),"",IF(AA43="T",V44,V45)) ->  | L44: =IF(AA43="T",AB44,AC44) ->  | N44: 1 | O44: =IF(OR(F_1500m!D29=0,F_1500m!D29=""),"",F_1500m!D29) ->  | P44: =IF(OR($O44="",$O44=0),"",IF($O44>90,VLOOKUP(O44,eventcodes,2,FALSE),HLOOKUP(O44,womens_declare,B46,FALSE))) ->  | Q44: =IF(OR($O44="",$O44=0),"",IF($O44>90,"",VLOOKUP(D44,matchday,2,FALSE))) ->  | R44: =IF(OR(F_1500m!G29=0,F_1500m!G29=""),"",F_1500m!G29) ->  | T44: =IF(AA43="T",AD44,AE44) ->  | V44: =IF(AA43="F","",IF(I44<V43,"LR",IF(I44=V43,"=LR",IF(I44<W43,"DR",IF(I44=W43,"=DR",""))))) ->  | AB44: =IF(OR(I44="",I44=0),"",IF(AA43="F","",IF(AA43="T",IF(I44<=X43,"þ",IF(I44<=Y43,"G2",IF(I44<=Z43,"G3","")))))) ->  | AC44: =IF(OR(I44="",I44=0),"",IF(AA43="T","",IF(AA43="F",IF(I44>=X43,"þ",IF(I44>=Y43,"G2",IF(I44>=Z43,"G3","")))))) ->  | AD44: =IF(OR(R44="",R44=0),"",IF(AA43="F","",IF(AA43="T",IF(R44<=X43,"þ",IF(R44<=Y43,"G2",IF(R44<=Z43,"G3","")))))) ->  | AE44: =IF(R44="","",IF(AA43="T","",IF(AA43="F",IF(R44>=X43,"þ",IF(R44>=Y43,"G2",IF(R44>=Z43,"G3","")))))) ->  | AF44: =C44 ->  | AG44: =IF(F44="","",IF(LEFT(I44,1)="D",0,VLOOKUP(E44,$AQ$4:$AR$40,2,FALSE))) ->  | AH44: =D44 ->  | AI44: =IF(O44="","",IF(LEFT(R44,1)="D",0,VLOOKUP(N44,$AQ$4:$AS$40,3,FALSE))) ->  | AJ44: 44
B45: =VLOOKUP(A44,Handbook!$A$26:$AK$46,37,FALSE) -> 9 | E45: 2 | F45: =IF(OR(F_1500m!D21=0,F_1500m!D21=""),"",F_1500m!D21) ->  | G45: =IF(OR($F45="",$F45=0),"",IF($F45>90,VLOOKUP(F45,eventcodes,2,FALSE),HLOOKUP(F45,womens_declare,B46,FALSE))) ->  | I45: =IF(OR(F_1500m!G21=0,F_1500m!G21=""),"",F_1500m!G21) ->  | J45: =IF(OR(I45="",I45=0),"",IF(AND(AA43="T",I45<I44),"X",IF(AND(AA43="F",I45>I44),"X",""))) ->  | L45: =IF(AA43="T",AB45,AC45) ->  | N45: 2 | O45: =IF(OR(F_1500m!D30=0,F_1500m!D30=""),"",F_1500m!D30) ->  | P45: =IF(OR($O45="",$O45=0),"",IF($O45>90,VLOOKUP(O45,eventcodes,2,FALSE),HLOOKUP(O45,womens_declare,B46,FALSE))) ->  | R45: =IF(OR(F_1500m!G30=0,F_1500m!G30=""),"",F_1500m!G30) ->  | S45: =IF(OR(R45="",R45=0),"",IF(AND(AA43="T",R45<R44),"X",IF(AND(AA43="F",R45>R44),"X",""))) ->  | T45: =IF(AA43="T",AD45,AE45) ->  | V45: =IF(AA43="T","",IF(I44>V43,"LR",IF(I44=V43,"=LR",IF(I44>W43,"DR",IF(I44=W43,"=DR",""))))) ->  | AB45: =IF(OR(I45="",I45=0),"",IF(AA43="F","",IF(AA43="T",IF(I45<=X43,"þ",IF(I45<=Y43,"G2",IF(I45<=Z43,"G3","")))))) ->  | AC45: =IF(OR(I45="",I45=0),"",IF(AA43="T","",IF(AA43="F",IF(I45>=X43,"þ",IF(I45>=Y43,"G2",IF(I45>=Z43,"G3","")))))) ->  | AD45: =IF(OR(R45="",R45=0),"",IF(AA43="F","",IF(AA43="T",IF(R45<=X43,"þ",IF(R45<=Y43,"G2",IF(R45<=Z43,"G3","")))))) ->  | AE45: =IF(R45="","",IF(AA43="T","",IF(AA43="F",IF(R45>=X43,"þ",IF(R45>=Y43,"G2",IF(R45>=Z43,"G3","")))))) ->  | AJ45: 45
B46: =VLOOKUP(A44,womens_declare,20,FALSE) -> 7 | E46: 3 | F46: =IF(OR(F_1500m!D22=0,F_1500m!D22=""),"",F_1500m!D22) ->  | G46: =IF(OR($F46="",$F46=0),"",IF($F46>90,VLOOKUP(F46,eventcodes,2,FALSE),HLOOKUP(F46,womens_declare,B46,FALSE))) ->  | I46: =IF(OR(F_1500m!G22=0,F_1500m!G22=""),"",F_1500m!G22) ->  | J46: =IF(OR(I46="",I46=0),"",IF(AND(AA43="T",I46<I45),"X",IF(AND(AA43="F",I46>I45),"X",""))) ->  | L46: =IF(AA43="T",AB46,AC46) ->  | N46: 3 | O46: =IF(OR(F_1500m!D31=0,F_1500m!D31=""),"",F_1500m!D31) ->  | P46: =IF(OR($O46="",$O46=0),"",IF($O46>90,VLOOKUP(O46,eventcodes,2,FALSE),HLOOKUP(O46,womens_declare,B46,FALSE))) ->  | R46: =IF(OR(F_1500m!G31=0,F_1500m!G31=""),"",F_1500m!G31) ->  | S46: =IF(OR(R46="",R46=0),"",IF(AND(AA44="T",R46<R45),"X",IF(AND(AA44="F",R46>R45),"X",""))) ->  | T46: =IF(AA43="T",AD46,AE46) ->  | AB46: =IF(OR(I46="",I46=0),"",IF(AA43="F","",IF(AA43="T",IF(I46<=X43,"þ",IF(I46<=Y43,"G2",IF(I46<=Z43,"G3","")))))) ->  | AC46: =IF(OR(I46="",I46=0),"",IF(AA43="T","",IF(AA43="F",IF(I46>=X43,"þ",IF(I46>=Y43,"G2",IF(I46>=Z43,"G3","")))))) ->  | AD46: =IF(OR(R46="",R46=0),"",IF(AA43="F","",IF(AA43="T",IF(R46<=X43,"þ",IF(R46<=Y43,"G2",IF(R46<=Z43,"G3","")))))) ->  | AE46: =IF(R46="","",IF(AA43="T","",IF(AA43="F",IF(R46>=X43,"þ",IF(R46>=Y43,"G2",IF(R46>=Z43,"G3","")))))) ->  | AJ46: 46
E47: 4 | F47: =IF(OR(F_1500m!D23=0,F_1500m!D23=""),"",F_1500m!D23) ->  | G47: =IF(OR($F47="",$F47=0),"",IF($F47>90,VLOOKUP(F47,eventcodes,2,FALSE),HLOOKUP(F47,womens_declare,B46,FALSE))) ->  | I47: =IF(OR(F_1500m!G23=0,F_1500m!G23=""),"",F_1500m!G23) ->  | J47: =IF(OR(I47="",I47=0),"",IF(AND(AA43="T",I47<I46),"X",IF(AND(AA43="F",I47>I46),"X",""))) ->  | L47: =IF(AA43="T",AB47,AC47) ->  | N47: 4 | O47: =IF(OR(F_1500m!D32=0,F_1500m!D32=""),"",F_1500m!D32) ->  | P47: =IF(OR($O47="",$O47=0),"",IF($O47>90,VLOOKUP(O47,eventcodes,2,FALSE),HLOOKUP(O47,womens_declare,B46,FALSE))) ->  | R47: =IF(OR(F_1500m!G32=0,F_1500m!G32=""),"",F_1500m!G32) ->  | T47: =IF(AA43="T",AD47,AE47) ->  | AB47: =IF(OR(I47="",I47=0),"",IF(AA43="F","",IF(AA43="T",IF(I47<=X43,"þ",IF(I47<=Y43,"G2",IF(I47<=Z43,"G3","")))))) ->  | AC47: =IF(OR(I47="",I47=0),"",IF(AA43="T","",IF(AA43="F",IF(I47>=X43,"þ",IF(I47>=Y43,"G2",IF(I47>=Z43,"G3","")))))) ->  | AD47: =IF(OR(R47="",R47=0),"",IF(AA43="F","",IF(AA43="T",IF(R47<=X43,"þ",IF(R47<=Y43,"G2",IF(R47<=Z43,"G3","")))))) ->  | AE47: =IF(R47="","",IF(AA43="T","",IF(AA43="F",IF(R47>=X43,"þ",IF(R47>=Y43,"G2",IF(R47>=Z43,"G3","")))))) ->  | AJ47: 47
E48: 5 | F48: =IF(OR(F_1500m!D24=0,F_1500m!D24=""),"",F_1500m!D24) ->  | G48: =IF(OR($F48="",$F48=0),"",IF($F48>90,VLOOKUP(F48,eventcodes,2,FALSE),HLOOKUP(F48,womens_declare,B46,FALSE))) ->  | I48: =IF(OR(F_1500m!G24=0,F_1500m!G24=""),"",F_1500m!G24) ->  | J48: =IF(OR(I48="",I48=0),"",IF(AND(AA43="T",I48<I47),"X",IF(AND(AA43="F",I48>I47),"X",""))) ->  | L48: =IF(AA43="T",AB48,AC48) ->  | N48: 5 | O48: =IF(OR(F_1500m!D33=0,F_1500m!D33=""),"",F_1500m!D33) ->  | P48: =IF(OR($O48="",$O48=0),"",IF($O48>90,VLOOKUP(O48,eventcodes,2,FALSE),HLOOKUP(O48,womens_declare,B46,FALSE))) ->  | R48: =IF(OR(F_1500m!G33=0,F_1500m!G33=""),"",F_1500m!G33) ->  | T48: =IF(AA43="T",AD48,AE48) ->  | AB48: =IF(OR(I48="",I48=0),"",IF(AA43="F","",IF(AA43="T",IF(I48<=X43,"þ",IF(I48<=Y43,"G2",IF(I48<=Z43,"G3","")))))) ->  | AC48: =IF(OR(I48="",I48=0),"",IF(AA43="T","",IF(AA43="F",IF(I48>=X43,"þ",IF(I48>=Y43,"G2",IF(I48>=Z43,"G3","")))))) ->  | AD48: =IF(OR(R48="",R48=0),"",IF(AA43="F","",IF(AA43="T",IF(R48<=X43,"þ",IF(R48<=Y43,"G2",IF(R48<=Z43,"G3","")))))) ->  | AE48: =IF(R48="","",IF(AA43="T","",IF(AA43="F",IF(R48>=X43,"þ",IF(R48>=Y43,"G2",IF(R48>=Z43,"G3","")))))) ->  | AJ48: 48
E49: 6 | F49: =IF(OR(F_1500m!D25=0,F_1500m!D25=""),"",F_1500m!D25) ->  | G49: =IF(OR($F49="",$F49=0),"",IF($F49>90,VLOOKUP(F49,eventcodes,2,FALSE),HLOOKUP(F49,womens_declare,B46,FALSE))) ->  | I49: =IF(OR(F_1500m!G25=0,F_1500m!G25=""),"",F_1500m!G25) ->  | J49: =IF(OR(I49="",I49=0),"",IF(AND(AA43="T",I49<I48),"X",IF(AND(AA43="F",I49>I48),"X",""))) ->  | L49: =IF(AA43="T",AB49,AC49) ->  | N49: 6 | O49: =IF(OR(F_1500m!D34=0,F_1500m!D34=""),"",F_1500m!D34) ->  | P49: =IF(OR($O49="",$O49=0),"",IF($O49>90,VLOOKUP(O49,eventcodes,2,FALSE),HLOOKUP(O49,womens_declare,B46,FALSE))) ->  | R49: =IF(OR(F_1500m!G34=0,F_1500m!G34=""),"",F_1500m!G34) ->  | T49: =IF(AA43="T",AD49,AE49) ->  | AB49: =IF(OR(I49="",I49=0),"",IF(AA43="F","",IF(AA43="T",IF(I49<=X43,"þ",IF(I49<=Y43,"G2",IF(I49<=Z43,"G3","")))))) ->  | AC49: =IF(OR(I49="",I49=0),"",IF(AA43="T","",IF(AA43="F",IF(I49>=X43,"þ",IF(I49>=Y43,"G2",IF(I49>=Z43,"G3","")))))) ->  | AD49: =IF(OR(R49="",R49=0),"",IF(AA43="F","",IF(AA43="T",IF(R49<=X43,"þ",IF(R49<=Y43,"G2",IF(R49<=Z43,"G3","")))))) ->  | AE49: =IF(R49="","",IF(AA43="T","",IF(AA43="F",IF(R49>=X43,"þ",IF(R49>=Y43,"G2",IF(R49>=Z43,"G3","")))))) ->  | AJ49: 49
E50: 7 | F50: =IF(OR(F_1500m!D26=0,F_1500m!D26=""),"",F_1500m!D26) ->  | G50: =IF(OR($F50="",$F50=0),"",IF($F50>90,VLOOKUP(F50,eventcodes,2,FALSE),HLOOKUP(F50,womens_declare,B46,FALSE))) ->  | I50: =IF(OR(F_1500m!G26=0,F_1500m!G26=""),"",F_1500m!G26) ->  | J50: =IF(OR(I50="",I50=0),"",IF(AND(AA43="T",I50<I49),"X",IF(AND(AA43="F",I50>I49),"X",""))) ->  | L50: =IF(AA43="T",AB50,AC50) ->  | N50: 7 | O50: =IF(OR(F_1500m!D35=0,F_1500m!D35=""),"",F_1500m!D35) ->  | P50: =IF(OR($O50="",$O50=0),"",IF($O50>90,VLOOKUP(O50,eventcodes,2,FALSE),HLOOKUP(O50,womens_declare,B46,FALSE))) ->  | R50: =IF(OR(F_1500m!G35=0,F_1500m!G35=""),"",F_1500m!G35) ->  | T50: =IF(AA43="T",AD50,AE50) ->  | AB50: =IF(OR(I50="",I50=0),"",IF(AA43="F","",IF(AA43="T",IF(I50<=X43,"þ",IF(I50<=Y43,"G2",IF(I50<=Z43,"G3","")))))) ->  | AC50: =IF(OR(I50="",I50=0),"",IF(AA43="T","",IF(AA43="F",IF(I50>=X43,"þ",IF(I50>=Y43,"G2",IF(I50>=Z43,"G3","")))))) ->  | AD50: =IF(OR(R50="",R50=0),"",IF(AA43="F","",IF(AA43="T",IF(R50<=X43,"þ",IF(R50<=Y43,"G2",IF(R50<=Z43,"G3","")))))) ->  | AE50: =IF(R50="","",IF(AA43="T","",IF(AA43="F",IF(R50>=X43,"þ",IF(R50>=Y43,"G2",IF(R50>=Z43,"G3","")))))) ->  | AJ50: 50
E51: 8 | F51: =IF(OR(F_1500m!D27=0,F_1500m!D27=""),"",F_1500m!D27) ->  | G51: =IF(OR($F51="",$F51=0),"",IF($F51>90,VLOOKUP(F51,eventcodes,2,FALSE),HLOOKUP(F51,womens_declare,B46,FALSE))) ->  | I51: =IF(OR(F_1500m!G27=0,F_1500m!G27=""),"",F_1500m!G27) ->  | J51: =IF(OR(I51="",I51=0),"",IF(AND(AA43="T",I51<I50),"X",IF(AND(AA43="F",I51>I50),"X",""))) ->  | L51: =IF(AA43="T",AB51,AC51) ->  | N51: 8 | O51: =IF(OR(F_1500m!D36=0,F_1500m!D36=""),"",F_1500m!D36) ->  | P51: =IF(OR($O51="",$O51=0),"",IF($O51>90,VLOOKUP(O51,eventcodes,2,FALSE),HLOOKUP(O51,womens_declare,B46,FALSE))) ->  | R51: =IF(OR(F_1500m!G36=0,F_1500m!G36=""),"",F_1500m!G36) ->  | T51: =IF(AA43="T",AD51,AE51) ->  | AB51: =IF(OR(I51="",I51=0),"",IF(AA43="F","",IF(AA43="T",IF(I51<=X43,"þ",IF(I51<=Y43,"G2",IF(I51<=Z43,"G3","")))))) ->  | AC51: =IF(OR(I51="",I51=0),"",IF(AA43="T","",IF(AA43="F",IF(I51>=X43,"þ",IF(I51>=Y43,"G2",IF(I51>=Z43,"G3","")))))) ->  | AD51: =IF(OR(R51="",R51=0),"",IF(AA43="F","",IF(AA43="T",IF(R51<=X43,"þ",IF(R51<=Y43,"G2",IF(R51<=Z43,"G3","")))))) ->  | AE51: =IF(R51="","",IF(AA43="T","",IF(AA43="F",IF(R51>=X43,"þ",IF(R51>=Y43,"G2",IF(R51>=Z43,"G3","")))))) ->  | AJ51: 51
AJ52: 52
E53: =CONCATENATE(VLOOKUP(A54,womens_handbook,3,FALSE)," A") -> Women's 1500m S/Chase A | H53: =IF(A54="","",IF(VLOOKUP(A54,Handbook!$A$4:$AI$24,35,FALSE)="Y","Wind=","")) ->  | O53: =CONCATENATE(VLOOKUP(A54,womens_handbook,3,FALSE)," B") -> Women's 1500m S/Chase B | Q53: =H53 ->  | V53: =IF($A54="","",VLOOKUP($A54,Handbook!$A$26:$AK$46,21,FALSE)) -> - | W53: =IF($A54="","",VLOOKUP($A54,Handbook!$A$26:$AK$46,22,FALSE)) -> - | X53: =IF($A54="","",VLOOKUP($A54,Handbook!$A$26:$AK$46,23,FALSE)) -> 00:07:00 | Y53: =IF($A54="","",VLOOKUP($A54,Handbook!$A$26:$AK$46,24,FALSE)) -> 00:10:00 | Z53: =IF($A54="","",VLOOKUP($A54,Handbook!$A$26:$AK$46,25,FALSE)) -> 00:10:00 | AA53: =IF($A54="","",VLOOKUP($A54,Handbook!$A$26:$AK$46,34,FALSE)) -> T | AJ53: 53
A54: 5 | C54: =IF(F54="","",IF(F54>10,F54/11,F54)) ->  | D54: =IF(O54="","",IF(O54>10,O54/11,O54)) ->  | E54: 1 | G54: =IF($F54="","",IF($F54>90,VLOOKUP(F54,eventcodes,2,FALSE),HLOOKUP(F54,womens_declare,B56,FALSE))) ->  | H54: =IF($F54="","",IF($F54>90,"",VLOOKUP(C54,matchday,2,FALSE))) ->  | J54: =IF(I54="","",IF(AA53="T",V54,V55)) ->  | L54: =IF(AA53="T",AB54,AC54) ->  | N54: 1 | P54: =IF($O54="","",HLOOKUP(O54,womens_declare,B56,FALSE)) ->  | Q54: =IF($O54="","",VLOOKUP(D54,matchday,2,FALSE)) ->  | T54: =IF(AA53="T",AD54,AE54) ->  | V54: =IF(AA53="F","",IF(I54<V53,"LR",IF(I54=V53,"=LR",IF(I54<W53,"DR",IF(I54=W53,"=DR",""))))) -> LR | AB54: =IF(OR(I54="",I54=0),"",IF(AA53="F","",IF(AA53="T",IF(I54<=X53,"þ",IF(I54<=Y53,"G2",IF(I54<=Z53,"G3","")))))) ->  | AC54: =IF(OR(I54="",I54=0),"",IF(AA53="T","",IF(AA53="F",IF(I54>=X53,"þ",IF(I54>=Y53,"G2",IF(I54>=Z53,"G3","")))))) ->  | AD54: =IF(OR(R54="",R54=0),"",IF(AA53="F","",IF(AA53="T",IF(R54<=X53,"þ",IF(R54<=Y53,"G2",IF(R54<=Z53,"G3","")))))) ->  | AE54: =IF(R54="","",IF(AA53="T","",IF(AA53="F",IF(R54>=X53,"þ",IF(R54>=Y53,"G2",IF(R54>=Z53,"G3","")))))) ->  | AF54: =C54 ->  | AG54: =IF(F54="","",IF(LEFT(I54,1)="D",0,VLOOKUP(E54,$AQ$4:$AR$40,2,FALSE))) ->  | AH54: =D54 ->  | AI54: =IF(O54="","",IF(LEFT(R54,1)="D",0,VLOOKUP(N54,$AQ$4:$AS$40,3,FALSE))) ->  | AJ54: 54
B55: =VLOOKUP(A54,Handbook!$A$26:$AK$46,37,FALSE) -> 6 | E55: 2 | G55: =IF($F55="","",HLOOKUP(F55,womens_declare,B56,FALSE)) ->  | H55: =IF($F55="","",VLOOKUP(C55,matchday,2,FALSE)) ->  | J55: =IF(I55="","",IF(AND(AA53="T",I55<I54),"X",IF(AND(AA53="F",I55>I54),"X",""))) ->  | L55: =IF(AA53="T",AB55,AC55) ->  | N55: 2 | P55: =IF($O55="","",HLOOKUP(O55,womens_declare,B56,FALSE)) ->  | S55: =IF(R55="","",IF(AND(AA53="T",R55<R54),"X",IF(AND(AA53="F",R55>R54),"X",""))) ->  | T55: =IF(AA53="T",AD55,AE55) ->  | V55: =IF(AA53="T","",IF(I54>V53,"LR",IF(I54=V53,"=LR",IF(I54>W53,"DR",IF(I54=W53,"=DR",""))))) ->  | AB55: =IF(OR(I55="",I55=0),"",IF(AA53="F","",IF(AA53="T",IF(I55<=X53,"þ",IF(I55<=Y53,"G2",IF(I55<=Z53,"G3","")))))) ->  | AC55: =IF(OR(I55="",I55=0),"",IF(AA53="T","",IF(AA53="F",IF(I55>=X53,"þ",IF(I55>=Y53,"G2",IF(I55>=Z53,"G3","")))))) ->  | AD55: =IF(OR(R55="",R55=0),"",IF(AA53="F","",IF(AA53="T",IF(R55<=X53,"þ",IF(R55<=Y53,"G2",IF(R55<=Z53,"G3","")))))) ->  | AE55: =IF(R55="","",IF(AA53="T","",IF(AA53="F",IF(R55>=X53,"þ",IF(R55>=Y53,"G2",IF(R55>=Z53,"G3","")))))) ->  | AJ55: 55
B56: =VLOOKUP(A54,womens_declare,20,FALSE) -> 8 | E56: 3 | G56: =IF($F56="","",HLOOKUP(F56,womens_declare,B56,FALSE)) ->  | J56: =IF(I56="","",IF(AND(AA53="T",I56<I55),"X",IF(AND(AA53="F",I56>I55),"X",""))) ->  | L56: =IF(AA53="T",AB56,AC56) ->  | N56: 3 | P56: =IF($O56="","",HLOOKUP(O56,womens_declare,B56,FALSE)) ->  | S56: =IF(R56="","",IF(AND(AA53="T",R56<R55),"X",IF(AND(AA53="F",R56>R55),"X",""))) ->  | T56: =IF(AA53="T",AD56,AE56) ->  | AB56: =IF(OR(I56="",I56=0),"",IF(AA53="F","",IF(AA53="T",IF(I56<=X53,"þ",IF(I56<=Y53,"G2",IF(I56<=Z53,"G3","")))))) ->  | AC56: =IF(OR(I56="",I56=0),"",IF(AA53="T","",IF(AA53="F",IF(I56>=X53,"þ",IF(I56>=Y53,"G2",IF(I56>=Z53,"G3","")))))) ->  | AD56: =IF(OR(R56="",R56=0),"",IF(AA53="F","",IF(AA53="T",IF(R56<=X53,"þ",IF(R56<=Y53,"G2",IF(R56<=Z53,"G3","")))))) ->  | AE56: =IF(R56="","",IF(AA53="T","",IF(AA53="F",IF(R56>=X53,"þ",IF(R56>=Y53,"G2",IF(R56>=Z53,"G3","")))))) ->  | AJ56: 56
E57: 4 | G57: =IF($F57="","",HLOOKUP(F57,womens_declare,B56,FALSE)) ->  | J57: =IF(I57="","",IF(AND(AA53="T",I57<I56),"X",IF(AND(AA53="F",I57>I56),"X",""))) ->  | L57: =IF(AA53="T",AB57,AC57) ->  | N57: 4 | P57: =IF($O57="","",HLOOKUP(O57,womens_declare,B56,FALSE)) ->  | S57: =IF(R57="","",IF(AND(AA53="T",R57<R56),"X",IF(AND(AA53="F",R57>R56),"X",""))) ->  | T57: =IF(AA53="T",AD57,AE57) ->  | AB57: =IF(OR(I57="",I57=0),"",IF(AA53="F","",IF(AA53="T",IF(I57<=X53,"þ",IF(I57<=Y53,"G2",IF(I57<=Z53,"G3","")))))) ->  | AC57: =IF(OR(I57="",I57=0),"",IF(AA53="T","",IF(AA53="F",IF(I57>=X53,"þ",IF(I57>=Y53,"G2",IF(I57>=Z53,"G3","")))))) ->  | AD57: =IF(OR(R57="",R57=0),"",IF(AA53="F","",IF(AA53="T",IF(R57<=X53,"þ",IF(R57<=Y53,"G2",IF(R57<=Z53,"G3","")))))) ->  | AE57: =IF(R57="","",IF(AA53="T","",IF(AA53="F",IF(R57>=X53,"þ",IF(R57>=Y53,"G2",IF(R57>=Z53,"G3","")))))) ->  | AJ57: 57
E58: 5 | G58: =IF($F58="","",HLOOKUP(F58,womens_declare,B56,FALSE)) ->  | J58: =IF(I58="","",IF(AND(AA53="T",I58<I57),"X",IF(AND(AA53="F",I58>I57),"X",""))) ->  | L58: =IF(AA53="T",AB58,AC58) ->  | N58: 5 | P58: =IF($O58="","",HLOOKUP(O58,womens_declare,B56,FALSE)) ->  | S58: =IF(R58="","",IF(AND(AA53="T",R58<R57),"X",IF(AND(AA53="F",R58>R57),"X",""))) ->  | T58: =IF(AA53="T",AD58,AE58) ->  | AB58: =IF(OR(I58="",I58=0),"",IF(AA53="F","",IF(AA53="T",IF(I58<=X53,"þ",IF(I58<=Y53,"G2",IF(I58<=Z53,"G3","")))))) ->  | AC58: =IF(OR(I58="",I58=0),"",IF(AA53="T","",IF(AA53="F",IF(I58>=X53,"þ",IF(I58>=Y53,"G2",IF(I58>=Z53,"G3","")))))) ->  | AD58: =IF(OR(R58="",R58=0),"",IF(AA53="F","",IF(AA53="T",IF(R58<=X53,"þ",IF(R58<=Y53,"G2",IF(R58<=Z53,"G3","")))))) ->  | AE58: =IF(R58="","",IF(AA53="T","",IF(AA53="F",IF(R58>=X53,"þ",IF(R58>=Y53,"G2",IF(R58>=Z53,"G3","")))))) ->  | AJ58: 58
E59: 6 | G59: =IF($F59="","",HLOOKUP(F59,womens_declare,B56,FALSE)) ->  | J59: =IF(I59="","",IF(AND(AA53="T",I59<I58),"X",IF(AND(AA53="F",I59>I58),"X",""))) ->  | L59: =IF(AA53="T",AB59,AC59) ->  | N59: 6 | P59: =IF($O59="","",HLOOKUP(O59,womens_declare,B56,FALSE)) ->  | S59: =IF(R59="","",IF(AND(AA53="T",R59<R58),"X",IF(AND(AA53="F",R59>R58),"X",""))) ->  | T59: =IF(AA53="T",AD59,AE59) ->  | AB59: =IF(OR(I59="",I59=0),"",IF(AA53="F","",IF(AA53="T",IF(I59<=X53,"þ",IF(I59<=Y53,"G2",IF(I59<=Z53,"G3","")))))) ->  | AC59: =IF(OR(I59="",I59=0),"",IF(AA53="T","",IF(AA53="F",IF(I59>=X53,"þ",IF(I59>=Y53,"G2",IF(I59>=Z53,"G3","")))))) ->  | AD59: =IF(OR(R59="",R59=0),"",IF(AA53="F","",IF(AA53="T",IF(R59<=X53,"þ",IF(R59<=Y53,"G2",IF(R59<=Z53,"G3","")))))) ->  | AE59: =IF(R59="","",IF(AA53="T","",IF(AA53="F",IF(R59>=X53,"þ",IF(R59>=Y53,"G2",IF(R59>=Z53,"G3","")))))) ->  | AJ59: 59
E60: 7 | G60: =IF($F60="","",HLOOKUP(F60,womens_declare,B56,FALSE)) ->  | J60: =IF(I60="","",IF(AND(AA53="T",I60<I59),"X",IF(AND(AA53="F",I60>I59),"X",""))) ->  | L60: =IF(AA53="T",AB60,AC60) ->  | N60: 7 | P60: =IF($O60="","",HLOOKUP(O60,womens_declare,B56,FALSE)) ->  | S60: =IF(R60="","",IF(AND(AA53="T",R60<R59),"X",IF(AND(AA53="F",R60>R59),"X",""))) ->  | T60: =IF(AA53="T",AD60,AE60) ->  | AB60: =IF(OR(I60="",I60=0),"",IF(AA53="F","",IF(AA53="T",IF(I60<=X53,"þ",IF(I60<=Y53,"G2",IF(I60<=Z53,"G3","")))))) ->  | AC60: =IF(OR(I60="",I60=0),"",IF(AA53="T","",IF(AA53="F",IF(I60>=X53,"þ",IF(I60>=Y53,"G2",IF(I60>=Z53,"G3","")))))) ->  | AD60: =IF(OR(R60="",R60=0),"",IF(AA53="F","",IF(AA53="T",IF(R60<=X53,"þ",IF(R60<=Y53,"G2",IF(R60<=Z53,"G3","")))))) ->  | AE60: =IF(R60="","",IF(AA53="T","",IF(AA53="F",IF(R60>=X53,"þ",IF(R60>=Y53,"G2",IF(R60>=Z53,"G3","")))))) ->  | AJ60: 60
E61: 8 | G61: =IF($F61="","",HLOOKUP(F61,womens_declare,B56,FALSE)) ->  | J61: =IF(I61="","",IF(AND(AA53="T",I61<I60),"X",IF(AND(AA53="F",I61>I60),"X",""))) ->  | L61: =IF(AA53="T",AB61,AC61) ->  | N61: 8 | P61: =IF($O61="","",HLOOKUP(O61,womens_declare,B56,FALSE)) ->  | S61: =IF(R61="","",IF(AND(AA53="T",R61<R60),"X",IF(AND(AA53="F",R61>R60),"X",""))) ->  | T61: =IF(AA53="T",AD61,AE61) ->  | AB61: =IF(OR(I61="",I61=0),"",IF(AA53="F","",IF(AA53="T",IF(I61<=X53,"þ",IF(I61<=Y53,"G2",IF(I61<=Z53,"G3","")))))) ->  | AC61: =IF(OR(I61="",I61=0),"",IF(AA53="T","",IF(AA53="F",IF(I61>=X53,"þ",IF(I61>=Y53,"G2",IF(I61>=Z53,"G3","")))))) ->  | AD61: =IF(OR(R61="",R61=0),"",IF(AA53="F","",IF(AA53="T",IF(R61<=X53,"þ",IF(R61<=Y53,"G2",IF(R61<=Z53,"G3","")))))) ->  | AE61: =IF(R61="","",IF(AA53="T","",IF(AA53="F",IF(R61>=X53,"þ",IF(R61>=Y53,"G2",IF(R61>=Z53,"G3","")))))) ->  | AJ61: 61
AJ62: 62
E63: =CONCATENATE(VLOOKUP(A64,womens_handbook,3,FALSE)," A") -> Women's 3000m A | H63: =IF(A64="","",IF(VLOOKUP(A64,Handbook!$A$4:$AI$24,35,FALSE)="Y","Wind=","")) ->  | O63: =CONCATENATE(VLOOKUP(A64,womens_handbook,3,FALSE)," B") -> Women's 3000m B | P63: =CONCATENATE(VLOOKUP(M64,Handbook!$A$4:$C$24,3,FALSE)," A") ->  | Q63: =H63 ->  | V63: =IF($A64="","",VLOOKUP($A64,Handbook!$A$26:$AK$46,21,FALSE)) -> 00:09:25 | W63: =IF($A64="","",VLOOKUP($A64,Handbook!$A$26:$AK$46,22,FALSE)) -> 00:09:25 | X63: =IF($A64="","",VLOOKUP($A64,Handbook!$A$26:$AK$46,23,FALSE)) -> 00:11:30 | Y63: =IF($A64="","",VLOOKUP($A64,Handbook!$A$26:$AK$46,24,FALSE)) -> 00:11:00 | Z63: =IF($A64="","",VLOOKUP($A64,Handbook!$A$26:$AK$46,25,FALSE)) -> 00:11:00 | AA63: =IF($A64="","",VLOOKUP($A64,Handbook!$A$26:$AK$46,34,FALSE)) -> T | AJ63: 63
A64: 21 | C64: =IF(F64="","",IF(F64>10,F64/11,F64)) ->  | D64: =IF(O64="","",IF(O64>10,O64/11,O64)) ->  | E64: 1 | F64: =IF(OR(F_3000m!D20=0,F_3000m!D20=""),"",F_3000m!D20) ->  | G64: =IF(OR($F64="",$F64=0),"",IF($F64>90,VLOOKUP(F64,eventcodes,2,FALSE),HLOOKUP(F64,womens_declare,B66,FALSE))) ->  | H64: =IF(OR($F64="",$F64=0),"",IF($F64>90,"",VLOOKUP(C64,matchday,2,FALSE))) ->  | I64: =IF(OR(F_3000m!G20=0,F_3000m!G20=""),"",F_3000m!G20) ->  | J64: =IF(OR(I64="",I64=0),"",IF(AA63="T",V64,V65)) ->  | L64: =IF(AA63="T",AB64,AC64) ->  | N64: 1 | O64: =IF(OR(F_3000m!D29=0,F_3000m!D29=""),"",F_3000m!D29) ->  | P64: =IF(OR($O64="",$O64=0),"",IF($O64>90,VLOOKUP(O64,eventcodes,2,FALSE),HLOOKUP(O64,womens_declare,B66,FALSE))) ->  | Q64: =IF(OR($O64="",$O64=0),"",IF($O64>90,"",VLOOKUP(D64,matchday,2,FALSE))) ->  | R64: =IF(OR(F_3000m!G29=0,F_3000m!G29=""),"",F_3000m!G29) ->  | T64: =IF(AA63="T",AD64,AE64) ->  | V64: =IF(AA63="F","",IF(I64<V63,"LR",IF(I64=V63,"=LR",IF(I64<W63,"DR",IF(I64=W63,"=DR",""))))) ->  | AB64: =IF(OR(I64="",I64=0),"",IF(AA63="F","",IF(AA63="T",IF(I64<=X63,"þ",IF(I64<=Y63,"G2",IF(I64<=Z63,"G3","")))))) ->  | AC64: =IF(OR(I64="",I64=0),"",IF(AA63="T","",IF(AA63="F",IF(I64>=X63,"þ",IF(I64>=Y63,"G2",IF(I64>=Z63,"G3","")))))) ->  | AD64: =IF(OR(R64="",R64=0),"",IF(AA63="F","",IF(AA63="T",IF(R64<=X63,"þ",IF(R64<=Y63,"G2",IF(R64<=Z63,"G3","")))))) ->  | AE64: =IF(R64="","",IF(AA63="T","",IF(AA63="F",IF(R64>=X63,"þ",IF(R64>=Y63,"G2",IF(R64>=Z63,"G3","")))))) ->  | AF64: =C64 ->  | AG64: =IF(F64="","",IF(LEFT(I64,1)="D",0,VLOOKUP(E64,$AQ$4:$AR$40,2,FALSE))) ->  | AH64: =D64 ->  | AI64: =IF(O64="","",IF(LEFT(R64,1)="D",0,VLOOKUP(N64,$AQ$4:$AS$40,3,FALSE))) ->  | AJ64: 64
B65: =VLOOKUP(A64,Handbook!$A$26:$AK$46,37,FALSE) -> 22 | E65: 2 | F65: =IF(OR(F_3000m!D21=0,F_3000m!D21=""),"",F_3000m!D21) ->  | G65: =IF(OR($F65="",$F65=0),"",IF($F65>90,VLOOKUP(F65,eventcodes,2,FALSE),HLOOKUP(F65,womens_declare,B66,FALSE))) ->  | I65: =IF(OR(F_3000m!G21=0,F_3000m!G21=""),"",F_3000m!G21) ->  | J65: =IF(OR(I65="",I65=0),"",IF(AND(AA63="T",I65<I64),"X",IF(AND(AA63="F",I65>I64),"X",""))) ->  | L65: =IF(AA63="T",AB65,AC65) ->  | N65: 2 | O65: =IF(OR(F_3000m!D30=0,F_3000m!D30=""),"",F_3000m!D30) ->  | P65: =IF(OR($O65="",$O65=0),"",IF($O65>90,VLOOKUP(O65,eventcodes,2,FALSE),HLOOKUP(O65,womens_declare,B66,FALSE))) ->  | R65: =IF(OR(F_3000m!G30=0,F_3000m!G30=""),"",F_3000m!G30) ->  | S65: =IF(OR(R65="",R65=0),"",IF(AND(AA63="T",R65<R64),"X",IF(AND(AA63="F",R65>R64),"X",""))) ->  | T65: =IF(AA63="T",AD65,AE65) ->  | V65: =IF(AA63="T","",IF(I64>V63,"LR",IF(I64=V63,"=LR",IF(I64>W63,"DR",IF(I64=W63,"=DR",""))))) ->  | AB65: =IF(OR(I65="",I65=0),"",IF(AA63="F","",IF(AA63="T",IF(I65<=X63,"þ",IF(I65<=Y63,"G2",IF(I65<=Z63,"G3","")))))) ->  | AC65: =IF(OR(I65="",I65=0),"",IF(AA63="T","",IF(AA63="F",IF(I65>=X63,"þ",IF(I65>=Y63,"G2",IF(I65>=Z63,"G3","")))))) ->  | AD65: =IF(OR(R65="",R65=0),"",IF(AA63="F","",IF(AA63="T",IF(R65<=X63,"þ",IF(R65<=Y63,"G2",IF(R65<=Z63,"G3","")))))) ->  | AE65: =IF(R65="","",IF(AA63="T","",IF(AA63="F",IF(R65>=X63,"þ",IF(R65>=Y63,"G2",IF(R65>=Z63,"G3","")))))) ->  | AJ65: 65
B66: =VLOOKUP(A64,womens_declare,20,FALSE) -> 9 | E66: 3 | F66: =IF(OR(F_3000m!D22=0,F_3000m!D22=""),"",F_3000m!D22) ->  | G66: =IF(OR($F66="",$F66=0),"",IF($F66>90,VLOOKUP(F66,eventcodes,2,FALSE),HLOOKUP(F66,womens_declare,B66,FALSE))) ->  | I66: =IF(OR(F_3000m!G22=0,F_3000m!G22=""),"",F_3000m!G22) ->  | J66: =IF(OR(I66="",I66=0),"",IF(AND(AA63="T",I66<I65),"X",IF(AND(AA63="F",I66>I65),"X",""))) ->  | L66: =IF(AA63="T",AB66,AC66) ->  | N66: 3 | O66: =IF(OR(F_3000m!D31=0,F_3000m!D31=""),"",F_3000m!D31) ->  | P66: =IF(OR($O66="",$O66=0),"",IF($O66>90,VLOOKUP(O66,eventcodes,2,FALSE),HLOOKUP(O66,womens_declare,B66,FALSE))) ->  | R66: =IF(OR(F_3000m!G31=0,F_3000m!G31=""),"",F_3000m!G31) ->  | S66: =IF(OR(R66="",R66=0),"",IF(AND(AA64="T",R66<R65),"X",IF(AND(AA64="F",R66>R65),"X",""))) ->  | T66: =IF(AA63="T",AD66,AE66) ->  | AB66: =IF(OR(I66="",I66=0),"",IF(AA63="F","",IF(AA63="T",IF(I66<=X63,"þ",IF(I66<=Y63,"G2",IF(I66<=Z63,"G3","")))))) ->  | AC66: =IF(OR(I66="",I66=0),"",IF(AA63="T","",IF(AA63="F",IF(I66>=X63,"þ",IF(I66>=Y63,"G2",IF(I66>=Z63,"G3","")))))) ->  | AD66: =IF(OR(R66="",R66=0),"",IF(AA63="F","",IF(AA63="T",IF(R66<=X63,"þ",IF(R66<=Y63,"G2",IF(R66<=Z63,"G3","")))))) ->  | AE66: =IF(R66="","",IF(AA63="T","",IF(AA63="F",IF(R66>=X63,"þ",IF(R66>=Y63,"G2",IF(R66>=Z63,"G3","")))))) ->  | AJ66: 66
E67: 4 | F67: =IF(OR(F_3000m!D23=0,F_3000m!D23=""),"",F_3000m!D23) ->  | G67: =IF(OR($F67="",$F67=0),"",IF($F67>90,VLOOKUP(F67,eventcodes,2,FALSE),HLOOKUP(F67,womens_declare,B66,FALSE))) ->  | I67: =IF(OR(F_3000m!G23=0,F_3000m!G23=""),"",F_3000m!G23) ->  | J67: =IF(OR(I67="",I67=0),"",IF(AND(AA63="T",I67<I66),"X",IF(AND(AA63="F",I67>I66),"X",""))) ->  | L67: =IF(AA63="T",AB67,AC67) ->  | N67: 4 | O67: =IF(OR(F_3000m!D32=0,F_3000m!D32=""),"",F_3000m!D32) ->  | P67: =IF(OR($O67="",$O67=0),"",IF($O67>90,VLOOKUP(O67,eventcodes,2,FALSE),HLOOKUP(O67,womens_declare,B66,FALSE))) ->  | R67: =IF(OR(F_3000m!G32=0,F_3000m!G32=""),"",F_3000m!G32) ->  | T67: =IF(AA63="T",AD67,AE67) ->  | AB67: =IF(OR(I67="",I67=0),"",IF(AA63="F","",IF(AA63="T",IF(I67<=X63,"þ",IF(I67<=Y63,"G2",IF(I67<=Z63,"G3","")))))) ->  | AC67: =IF(OR(I67="",I67=0),"",IF(AA63="T","",IF(AA63="F",IF(I67>=X63,"þ",IF(I67>=Y63,"G2",IF(I67>=Z63,"G3","")))))) ->  | AD67: =IF(OR(R67="",R67=0),"",IF(AA63="F","",IF(AA63="T",IF(R67<=X63,"þ",IF(R67<=Y63,"G2",IF(R67<=Z63,"G3","")))))) ->  | AE67: =IF(R67="","",IF(AA63="T","",IF(AA63="F",IF(R67>=X63,"þ",IF(R67>=Y63,"G2",IF(R67>=Z63,"G3","")))))) ->  | AJ67: 67
E68: 5 | F68: =IF(OR(F_3000m!D24=0,F_3000m!D24=""),"",F_3000m!D24) ->  | G68: =IF(OR($F68="",$F68=0),"",IF($F68>90,VLOOKUP(F68,eventcodes,2,FALSE),HLOOKUP(F68,womens_declare,B66,FALSE))) ->  | I68: =IF(OR(F_3000m!G24=0,F_3000m!G24=""),"",F_3000m!G24) ->  | J68: =IF(OR(I68="",I68=0),"",IF(AND(AA63="T",I68<I67),"X",IF(AND(AA63="F",I68>I67),"X",""))) ->  | L68: =IF(AA63="T",AB68,AC68) ->  | N68: 5 | O68: =IF(OR(F_3000m!D33=0,F_3000m!D33=""),"",F_3000m!D33) ->  | P68: =IF(OR($O68="",$O68=0),"",IF($O68>90,VLOOKUP(O68,eventcodes,2,FALSE),HLOOKUP(O68,womens_declare,B66,FALSE))) ->  | R68: =IF(OR(F_3000m!G33=0,F_3000m!G33=""),"",F_3000m!G33) ->  | T68: =IF(AA63="T",AD68,AE68) ->  | AB68: =IF(OR(I68="",I68=0),"",IF(AA63="F","",IF(AA63="T",IF(I68<=X63,"þ",IF(I68<=Y63,"G2",IF(I68<=Z63,"G3","")))))) ->  | AC68: =IF(OR(I68="",I68=0),"",IF(AA63="T","",IF(AA63="F",IF(I68>=X63,"þ",IF(I68>=Y63,"G2",IF(I68>=Z63,"G3","")))))) ->  | AD68: =IF(OR(R68="",R68=0),"",IF(AA63="F","",IF(AA63="T",IF(R68<=X63,"þ",IF(R68<=Y63,"G2",IF(R68<=Z63,"G3","")))))) ->  | AE68: =IF(R68="","",IF(AA63="T","",IF(AA63="F",IF(R68>=X63,"þ",IF(R68>=Y63,"G2",IF(R68>=Z63,"G3","")))))) ->  | AJ68: 68
E69: 6 | F69: =IF(OR(F_3000m!D25=0,F_3000m!D25=""),"",F_3000m!D25) ->  | G69: =IF(OR($F69="",$F69=0),"",IF($F69>90,VLOOKUP(F69,eventcodes,2,FALSE),HLOOKUP(F69,womens_declare,B66,FALSE))) ->  | I69: =IF(OR(F_3000m!G25=0,F_3000m!G25=""),"",F_3000m!G25) ->  | J69: =IF(OR(I69="",I69=0),"",IF(AND(AA63="T",I69<I68),"X",IF(AND(AA63="F",I69>I68),"X",""))) ->  | L69: =IF(AA63="T",AB69,AC69) ->  | N69: 6 | O69: =IF(OR(F_3000m!D34=0,F_3000m!D34=""),"",F_3000m!D34) ->  | P69: =IF(OR($O69="",$O69=0),"",IF($O69>90,VLOOKUP(O69,eventcodes,2,FALSE),HLOOKUP(O69,womens_declare,B66,FALSE))) ->  | R69: =IF(OR(F_3000m!G34=0,F_3000m!G34=""),"",F_3000m!G34) ->  | T69: =IF(AA63="T",AD69,AE69) ->  | AB69: =IF(OR(I69="",I69=0),"",IF(AA63="F","",IF(AA63="T",IF(I69<=X63,"þ",IF(I69<=Y63,"G2",IF(I69<=Z63,"G3","")))))) ->  | AC69: =IF(OR(I69="",I69=0),"",IF(AA63="T","",IF(AA63="F",IF(I69>=X63,"þ",IF(I69>=Y63,"G2",IF(I69>=Z63,"G3","")))))) ->  | AD69: =IF(OR(R69="",R69=0),"",IF(AA63="F","",IF(AA63="T",IF(R69<=X63,"þ",IF(R69<=Y63,"G2",IF(R69<=Z63,"G3","")))))) ->  | AE69: =IF(R69="","",IF(AA63="T","",IF(AA63="F",IF(R69>=X63,"þ",IF(R69>=Y63,"G2",IF(R69>=Z63,"G3","")))))) ->  | AJ69: 69
E70: 7 | F70: =IF(OR(F_3000m!D26=0,F_3000m!D26=""),"",F_3000m!D26) ->  | G70: =IF(OR($F70="",$F70=0),"",IF($F70>90,VLOOKUP(F70,eventcodes,2,FALSE),HLOOKUP(F70,womens_declare,B66,FALSE))) ->  | I70: =IF(OR(F_3000m!G26=0,F_3000m!G26=""),"",F_3000m!G26) ->  | J70: =IF(OR(I70="",I70=0),"",IF(AND(AA63="T",I70<I69),"X",IF(AND(AA63="F",I70>I69),"X",""))) ->  | L70: =IF(AA63="T",AB70,AC70) ->  | N70: 7 | O70: =IF(OR(F_3000m!D35=0,F_3000m!D35=""),"",F_3000m!D35) ->  | P70: =IF(OR($O70="",$O70=0),"",IF($O70>90,VLOOKUP(O70,eventcodes,2,FALSE),HLOOKUP(O70,womens_declare,B66,FALSE))) ->  | R70: =IF(OR(F_3000m!G35=0,F_3000m!G35=""),"",F_3000m!G35) ->  | T70: =IF(AA63="T",AD70,AE70) ->  | AB70: =IF(OR(I70="",I70=0),"",IF(AA63="F","",IF(AA63="T",IF(I70<=X63,"þ",IF(I70<=Y63,"G2",IF(I70<=Z63,"G3","")))))) ->  | AC70: =IF(OR(I70="",I70=0),"",IF(AA63="T","",IF(AA63="F",IF(I70>=X63,"þ",IF(I70>=Y63,"G2",IF(I70>=Z63,"G3","")))))) ->  | AD70: =IF(OR(R70="",R70=0),"",IF(AA63="F","",IF(AA63="T",IF(R70<=X63,"þ",IF(R70<=Y63,"G2",IF(R70<=Z63,"G3","")))))) ->  | AE70: =IF(R70="","",IF(AA63="T","",IF(AA63="F",IF(R70>=X63,"þ",IF(R70>=Y63,"G2",IF(R70>=Z63,"G3","")))))) ->  | AJ70: 70
E71: 8 | F71: =IF(OR(F_3000m!D27=0,F_3000m!D27=""),"",F_3000m!D27) ->  | G71: =IF(OR($F71="",$F71=0),"",IF($F71>90,VLOOKUP(F71,eventcodes,2,FALSE),HLOOKUP(F71,womens_declare,B66,FALSE))) ->  | I71: =IF(OR(F_3000m!G27=0,F_3000m!G27=""),"",F_3000m!G27) ->  | J71: =IF(OR(I71="",I71=0),"",IF(AND(AA63="T",I71<I70),"X",IF(AND(AA63="F",I71>I70),"X",""))) ->  | L71: =IF(AA63="T",AB71,AC71) ->  | N71: 8 | O71: =IF(OR(F_3000m!D36=0,F_3000m!D36=""),"",F_3000m!D36) ->  | P71: =IF(OR($O71="",$O71=0),"",IF($O71>90,VLOOKUP(O71,eventcodes,2,FALSE),HLOOKUP(O71,womens_declare,B66,FALSE))) ->  | R71: =IF(OR(F_3000m!G36=0,F_3000m!G36=""),"",F_3000m!G36) ->  | T71: =IF(AA63="T",AD71,AE71) ->  | AB71: =IF(OR(I71="",I71=0),"",IF(AA63="F","",IF(AA63="T",IF(I71<=X63,"þ",IF(I71<=Y63,"G2",IF(I71<=Z63,"G3","")))))) ->  | AC71: =IF(OR(I71="",I71=0),"",IF(AA63="T","",IF(AA63="F",IF(I71>=X63,"þ",IF(I71>=Y63,"G2",IF(I71>=Z63,"G3","")))))) ->  | AD71: =IF(OR(R71="",R71=0),"",IF(AA63="F","",IF(AA63="T",IF(R71<=X63,"þ",IF(R71<=Y63,"G2",IF(R71<=Z63,"G3","")))))) ->  | AE71: =IF(R71="","",IF(AA63="T","",IF(AA63="F",IF(R71>=X63,"þ",IF(R71>=Y63,"G2",IF(R71>=Z63,"G3","")))))) ->  | AJ71: 71
AJ72: 72
E73: =CONCATENATE(VLOOKUP(A74,womens_handbook,3,FALSE)," A") -> Women's 400m Hurdles A | H73: =IF(A74="","",IF(VLOOKUP(A74,Handbook!$A$4:$AI$24,35,FALSE)="Y","Wind=","")) ->  | O73: =CONCATENATE(VLOOKUP(A74,womens_handbook,3,FALSE)," B") -> Women's 400m Hurdles B | P73: =CONCATENATE(VLOOKUP(M74,Handbook!$A$4:$C$24,3,FALSE)," A") ->  | Q73: =H73 ->  | V73: =IF($A74="","",VLOOKUP($A74,Handbook!$A$26:$AK$46,21,FALSE)) -> 58.8 | W73: =IF($A74="","",VLOOKUP($A74,Handbook!$A$26:$AK$46,22,FALSE)) -> 58.8 | X73: =IF($A74="","",VLOOKUP($A74,Handbook!$A$26:$AK$46,23,FALSE)) -> 74 | Y73: =IF($A74="","",VLOOKUP($A74,Handbook!$A$26:$AK$46,24,FALSE)) -> 70 | Z73: =IF($A74="","",VLOOKUP($A74,Handbook!$A$26:$AK$46,25,FALSE)) -> 70 | AA73: =IF($A74="","",VLOOKUP($A74,Handbook!$A$26:$AK$46,34,FALSE)) -> T | AJ73: 73
A74: 1 | C74: =IF(F74="","",IF(F74>10,F74/11,F74)) ->  | D74: =IF(O74="","",IF(O74>10,O74/11,O74)) ->  | E74: 1 | G74: =IF($F74="","",IF($F74>90,VLOOKUP(F74,eventcodes,2,FALSE),HLOOKUP(F74,womens_declare,B76,FALSE))) ->  | H74: =IF($F74="","",IF($F74>90,"",VLOOKUP(C74,matchday,2,FALSE))) ->  | J74: =IF(I74="","",IF(AA73="T",V74,V75)) ->  | L74: =IF(AA73="T",AB74,AC74) ->  | N74: 1 | P74: =IF($O74="","",HLOOKUP(O74,womens_declare,B76,FALSE)) ->  | Q74: =IF($O74="","",VLOOKUP(D74,matchday,2,FALSE)) ->  | T74: =IF(AA73="T",AD74,AE74) ->  | V74: =IF(AA73="F","",IF(I74<V73,"LR",IF(I74=V73,"=LR",IF(I74<W73,"DR",IF(I74=W73,"=DR",""))))) -> LR | AB74: =IF(I74="","",IF(AA73="F","",IF(AA73="T",IF(I74<=X73,"þ",IF(I74<=Y73,"G2",IF(I74<=Z73,"G3","")))))) ->  | AC74: =IF(I74="","",IF(AA73="T","",IF(AA73="F",IF(I74>=X73,"þ",IF(I74>=Y73,"G2",IF(I74>=Z73,"G3","")))))) ->  | AD74: =IF(R74="","",IF(AA73="F","",IF(AA73="T",IF(R74<=X73,"þ",IF(R74<=Y73,"G2",IF(R74<=Z73,"G3","")))))) ->  | AE74: =IF(R74="","",IF(AA73="T","",IF(AA73="F",IF(R74>=X73,"þ",IF(R74>=Y73,"G2",IF(R74>=Z73,"G3","")))))) ->  | AF74: =C74 ->  | AG74: =IF(F74="","",IF(LEFT(I74,1)="D",0,VLOOKUP(E74,$AQ$4:$AR$40,2,FALSE))) ->  | AH74: =D74 ->  | AI74: =IF(O74="","",IF(LEFT(R74,1)="D",0,VLOOKUP(N74,$AQ$4:$AS$40,3,FALSE))) ->  | AJ74: 74
B75: =VLOOKUP(A74,Handbook!$A$26:$AK$46,37,FALSE) -> 2 | E75: 2 | G75: =IF($F75="","",HLOOKUP(F75,womens_declare,B76,FALSE)) ->  | H75: =IF($F75="","",VLOOKUP(C75,matchday,2,FALSE)) ->  | J75: =IF(I75="","",IF(AND(AA73="T",I75<I74),"X",IF(AND(AA73="F",I75>I74),"X",""))) ->  | L75: =IF(AA73="T",AB75,AC75) ->  | N75: 2 | P75: =IF($O75="","",HLOOKUP(O75,womens_declare,B76,FALSE)) ->  | S75: =IF(R75="","",IF(AND(AA73="T",R75<R74),"X",IF(AND(AA73="F",R75>R74),"X",""))) ->  | T75: =IF(AA73="T",AD75,AE75) ->  | V75: =IF(AA73="T","",IF(I74>V73,"LR",IF(I74=V73,"=LR",IF(I74>W73,"DR",IF(I74=W73,"=DR",""))))) ->  | AB75: =IF(I75="","",IF(AA73="F","",IF(AA73="T",IF(I75<=X73,"þ",IF(I75<=Y73,"G2",IF(I75<=Z73,"G3","")))))) ->  | AC75: =IF(I75="","",IF(AA73="T","",IF(AA73="F",IF(I75>=X73,"þ",IF(I75>=Y73,"G2",IF(I75>=Z73,"G3","")))))) ->  | AD75: =IF(R75="","",IF(AA73="F","",IF(AA73="T",IF(R75<=X73,"þ",IF(R75<=Y73,"G2",IF(R75<=Z73,"G3","")))))) ->  | AE75: =IF(R75="","",IF(AA73="T","",IF(AA73="F",IF(R75>=X73,"þ",IF(R75>=Y73,"G2",IF(R75>=Z73,"G3","")))))) ->  | AJ75: 75
B76: =VLOOKUP(A74,womens_declare,20,FALSE) -> 10 | E76: 3 | G76: =IF($F76="","",HLOOKUP(F76,womens_declare,B76,FALSE)) ->  | J76: =IF(I76="","",IF(AND(AA73="T",I76<I75),"X",IF(AND(AA73="F",I76>I75),"X",""))) ->  | L76: =IF(AA73="T",AB76,AC76) ->  | N76: 3 | P76: =IF($O76="","",HLOOKUP(O76,womens_declare,B76,FALSE)) ->  | S76: =IF(R76="","",IF(AND(AA73="T",R76<R75),"X",IF(AND(AA73="F",R76>R75),"X",""))) ->  | T76: =IF(AA73="T",AD76,AE76) ->  | AB76: =IF(I76="","",IF(AA73="F","",IF(AA73="T",IF(I76<=X73,"þ",IF(I76<=Y73,"G2",IF(I76<=Z73,"G3","")))))) ->  | AC76: =IF(I76="","",IF(AA73="T","",IF(AA73="F",IF(I76>=X73,"þ",IF(I76>=Y73,"G2",IF(I76>=Z73,"G3","")))))) ->  | AD76: =IF(R76="","",IF(AA73="F","",IF(AA73="T",IF(R76<=X73,"þ",IF(R76<=Y73,"G2",IF(R76<=Z73,"G3","")))))) ->  | AE76: =IF(R76="","",IF(AA73="T","",IF(AA73="F",IF(R76>=X73,"þ",IF(R76>=Y73,"G2",IF(R76>=Z73,"G3","")))))) ->  | AJ76: 76
E77: 4 | G77: =IF($F77="","",HLOOKUP(F77,womens_declare,B76,FALSE)) ->  | J77: =IF(I77="","",IF(AND(AA73="T",I77<I76),"X",IF(AND(AA73="F",I77>I76),"X",""))) ->  | L77: =IF(AA73="T",AB77,AC77) ->  | N77: 4 | P77: =IF($O77="","",HLOOKUP(O77,womens_declare,B76,FALSE)) ->  | S77: =IF(R77="","",IF(AND(AA73="T",R77<R76),"X",IF(AND(AA73="F",R77>R76),"X",""))) ->  | T77: =IF(AA73="T",AD77,AE77) ->  | AB77: =IF(I77="","",IF(AA73="F","",IF(AA73="T",IF(I77<=X73,"þ",IF(I77<=Y73,"G2",IF(I77<=Z73,"G3","")))))) ->  | AC77: =IF(I77="","",IF(AA73="T","",IF(AA73="F",IF(I77>=X73,"þ",IF(I77>=Y73,"G2",IF(I77>=Z73,"G3","")))))) ->  | AD77: =IF(R77="","",IF(AA73="F","",IF(AA73="T",IF(R77<=X73,"þ",IF(R77<=Y73,"G2",IF(R77<=Z73,"G3","")))))) ->  | AE77: =IF(R77="","",IF(AA73="T","",IF(AA73="F",IF(R77>=X73,"þ",IF(R77>=Y73,"G2",IF(R77>=Z73,"G3","")))))) ->  | AJ77: 77
E78: 5 | G78: =IF($F78="","",HLOOKUP(F78,womens_declare,B76,FALSE)) ->  | J78: =IF(I78="","",IF(AND(AA73="T",I78<I77),"X",IF(AND(AA73="F",I78>I77),"X",""))) ->  | L78: =IF(AA73="T",AB78,AC78) ->  | N78: 5 | P78: =IF($O78="","",HLOOKUP(O78,womens_declare,B76,FALSE)) ->  | S78: =IF(R78="","",IF(AND(AA73="T",R78<R77),"X",IF(AND(AA73="F",R78>R77),"X",""))) ->  | T78: =IF(AA73="T",AD78,AE78) ->  | AB78: =IF(I78="","",IF(AA73="F","",IF(AA73="T",IF(I78<=X73,"þ",IF(I78<=Y73,"G2",IF(I78<=Z73,"G3","")))))) ->  | AC78: =IF(I78="","",IF(AA73="T","",IF(AA73="F",IF(I78>=X73,"þ",IF(I78>=Y73,"G2",IF(I78>=Z73,"G3","")))))) ->  | AD78: =IF(R78="","",IF(AA73="F","",IF(AA73="T",IF(R78<=X73,"þ",IF(R78<=Y73,"G2",IF(R78<=Z73,"G3","")))))) ->  | AE78: =IF(R78="","",IF(AA73="T","",IF(AA73="F",IF(R78>=X73,"þ",IF(R78>=Y73,"G2",IF(R78>=Z73,"G3","")))))) ->  | AJ78: 78
E79: 6 | G79: =IF($F79="","",HLOOKUP(F79,womens_declare,B76,FALSE)) ->  | J79: =IF(I79="","",IF(AND(AA73="T",I79<I78),"X",IF(AND(AA73="F",I79>I78),"X",""))) ->  | L79: =IF(AA73="T",AB79,AC79) ->  | N79: 6 | P79: =IF($O79="","",HLOOKUP(O79,womens_declare,B76,FALSE)) ->  | S79: =IF(R79="","",IF(AND(AA73="T",R79<R78),"X",IF(AND(AA73="F",R79>R78),"X",""))) ->  | T79: =IF(AA73="T",AD79,AE79) ->  | AB79: =IF(I79="","",IF(AA73="F","",IF(AA73="T",IF(I79<=X73,"þ",IF(I79<=Y73,"G2",IF(I79<=Z73,"G3","")))))) ->  | AC79: =IF(I79="","",IF(AA73="T","",IF(AA73="F",IF(I79>=X73,"þ",IF(I79>=Y73,"G2",IF(I79>=Z73,"G3","")))))) ->  | AD79: =IF(R79="","",IF(AA73="F","",IF(AA73="T",IF(R79<=X73,"þ",IF(R79<=Y73,"G2",IF(R79<=Z73,"G3","")))))) ->  | AE79: =IF(R79="","",IF(AA73="T","",IF(AA73="F",IF(R79>=X73,"þ",IF(R79>=Y73,"G2",IF(R79>=Z73,"G3","")))))) ->  | AJ79: 79
E80: 7 | G80: =IF($F80="","",HLOOKUP(F80,womens_declare,B76,FALSE)) ->  | J80: =IF(I80="","",IF(AND(AA73="T",I80<I79),"X",IF(AND(AA73="F",I80>I79),"X",""))) ->  | L80: =IF(AA73="T",AB80,AC80) ->  | N80: 7 | P80: =IF($O80="","",HLOOKUP(O80,womens_declare,B76,FALSE)) ->  | S80: =IF(R80="","",IF(AND(AA73="T",R80<R79),"X",IF(AND(AA73="F",R80>R79),"X",""))) ->  | T80: =IF(AA73="T",AD80,AE80) ->  | AB80: =IF(I80="","",IF(AA73="F","",IF(AA73="T",IF(I80<=X73,"þ",IF(I80<=Y73,"G2",IF(I80<=Z73,"G3","")))))) ->  | AC80: =IF(I80="","",IF(AA73="T","",IF(AA73="F",IF(I80>=X73,"þ",IF(I80>=Y73,"G2",IF(I80>=Z73,"G3","")))))) ->  | AD80: =IF(R80="","",IF(AA73="F","",IF(AA73="T",IF(R80<=X73,"þ",IF(R80<=Y73,"G2",IF(R80<=Z73,"G3","")))))) ->  | AE80: =IF(R80="","",IF(AA73="T","",IF(AA73="F",IF(R80>=X73,"þ",IF(R80>=Y73,"G2",IF(R80>=Z73,"G3","")))))) ->  | AJ80: 80
E81: 8 | G81: =IF($F81="","",HLOOKUP(F81,womens_declare,B76,FALSE)) ->  | J81: =IF(I81="","",IF(AND(AA73="T",I81<I80),"X",IF(AND(AA73="F",I81>I80),"X",""))) ->  | L81: =IF(AA73="T",AB81,AC81) ->  | N81: 8 | P81: =IF($O81="","",HLOOKUP(O81,womens_declare,B76,FALSE)) ->  | S81: =IF(R81="","",IF(AND(AA73="T",R81<R80),"X",IF(AND(AA73="F",R81>R80),"X",""))) ->  | T81: =IF(AA73="T",AD81,AE81) ->  | AB81: =IF(I81="","",IF(AA73="F","",IF(AA73="T",IF(I81<=X73,"þ",IF(I81<=Y73,"G2",IF(I81<=Z73,"G3","")))))) ->  | AC81: =IF(I81="","",IF(AA73="T","",IF(AA73="F",IF(I81>=X73,"þ",IF(I81>=Y73,"G2",IF(I81>=Z73,"G3","")))))) ->  | AD81: =IF(R81="","",IF(AA73="F","",IF(AA73="T",IF(R81<=X73,"þ",IF(R81<=Y73,"G2",IF(R81<=Z73,"G3","")))))) ->  | AE81: =IF(R81="","",IF(AA73="T","",IF(AA73="F",IF(R81>=X73,"þ",IF(R81>=Y73,"G2",IF(R81>=Z73,"G3","")))))) ->  | AJ81: 81
AJ82: 82
E83: =CONCATENATE(VLOOKUP(A84,womens_handbook,3,FALSE)," A") -> Women's 100m Hurdles A | H83: =IF(A84="","",IF(VLOOKUP(A84,Handbook!$A$4:$AI$24,35,FALSE)="Y","Wind=","")) -> Wind= | O83: =CONCATENATE(VLOOKUP(A84,womens_handbook,3,FALSE)," B") -> Women's 100m Hurdles B | Q83: =H83 -> Wind= | V83: =IF($A84="","",VLOOKUP($A84,Handbook!$A$26:$AK$46,21,FALSE)) -> 12.5 | W83: =IF($A84="","",VLOOKUP($A84,Handbook!$A$26:$AK$46,22,FALSE)) -> 12.5 | X83: =IF($A84="","",VLOOKUP($A84,Handbook!$A$26:$AK$46,23,FALSE)) -> 18 | Y83: =IF($A84="","",VLOOKUP($A84,Handbook!$A$26:$AK$46,24,FALSE)) -> 16.5 | Z83: =IF($A84="","",VLOOKUP($A84,Handbook!$A$26:$AK$46,25,FALSE)) -> 16.5 | AA83: =IF($A84="","",VLOOKUP($A84,Handbook!$A$26:$AK$46,34,FALSE)) -> T | AJ83: 83
A84: 6 | C84: =IF(F84="","",IF(F84>10,F84/11,F84)) ->  | D84: =IF(O84="","",IF(O84>10,O84/11,O84)) ->  | E84: 1 | G84: =IF($F84="","",IF($F84>90,VLOOKUP(F84,eventcodes,2,FALSE),HLOOKUP(F84,womens_declare,B86,FALSE))) ->  | H84: =IF($F84="","",IF($F84>90,"",VLOOKUP(C84,matchday,2,FALSE))) ->  | J84: =IF(I84="","",IF(AA83="T",V84,V85)) ->  | L84: =IF(AA83="T",AB84,AC84) ->  | N84: 1 | P84: =IF($O84="","",HLOOKUP(O84,womens_declare,B86,FALSE)) ->  | Q84: =IF($O84="","",VLOOKUP(D84,matchday,2,FALSE)) ->  | T84: =IF(AA83="T",AD84,AE84) ->  | V84: =IF(AA83="F","",IF(I84<V83,"LR",IF(I84=V83,"=LR",IF(I84<W83,"DR",IF(I84=W83,"=DR",""))))) -> LR | AB84: =IF(I84="","",IF(AA83="F","",IF(AA83="T",IF(I84<=X83,"þ",IF(I84<=Y83,"G2",IF(I84<=Z83,"G3","")))))) ->  | AC84: =IF(I84="","",IF(AA83="T","",IF(AA83="F",IF(I84>=X83,"þ",IF(I84>=Y83,"G2",IF(I84>=Z83,"G3","")))))) ->  | AD84: =IF(R84="","",IF(AA83="F","",IF(AA83="T",IF(R84<=X83,"þ",IF(R84<=Y83,"G2",IF(R84<=Z83,"G3","")))))) ->  | AE84: =IF(R84="","",IF(AA83="T","",IF(AA83="F",IF(R84>=X83,"þ",IF(R84>=Y83,"G2",IF(R84>=Z83,"G3","")))))) ->  | AF84: =C84 ->  | AG84: =IF(F84="","",IF(LEFT(I84,1)="D",0,VLOOKUP(E84,$AQ$4:$AR$40,2,FALSE))) ->  | AH84: =D84 ->  | AI84: =IF(O84="","",IF(LEFT(R84,1)="D",0,VLOOKUP(N84,$AQ$4:$AS$40,3,FALSE))) ->  | AJ84: 84
B85: =VLOOKUP(A84,Handbook!$A$26:$AK$46,37,FALSE) -> 7 | E85: 2 | G85: =IF($F85="","",HLOOKUP(F85,womens_declare,B86,FALSE)) ->  | H85: =IF($F85="","",VLOOKUP(C85,matchday,2,FALSE)) ->  | J85: =IF(I85="","",IF(AND(AA83="T",I85<I84),"X",IF(AND(AA83="F",I85>I84),"X",""))) ->  | L85: =IF(AA83="T",AB85,AC85) ->  | N85: 2 | P85: =IF($O85="","",HLOOKUP(O85,womens_declare,B86,FALSE)) ->  | S85: =IF(R85="","",IF(AND(AA83="T",R85<R84),"X",IF(AND(AA83="F",R85>R84),"X",""))) ->  | T85: =IF(AA83="T",AD85,AE85) ->  | V85: =IF(AA83="T","",IF(I84>V83,"LR",IF(I84=V83,"=LR",IF(I84>W83,"DR",IF(I84=W83,"=DR",""))))) ->  | AB85: =IF(I85="","",IF(AA83="F","",IF(AA83="T",IF(I85<=X83,"þ",IF(I85<=Y83,"G2",IF(I85<=Z83,"G3","")))))) ->  | AC85: =IF(I85="","",IF(AA83="T","",IF(AA83="F",IF(I85>=X83,"þ",IF(I85>=Y83,"G2",IF(I85>=Z83,"G3","")))))) ->  | AD85: =IF(R85="","",IF(AA83="F","",IF(AA83="T",IF(R85<=X83,"þ",IF(R85<=Y83,"G2",IF(R85<=Z83,"G3","")))))) ->  | AE85: =IF(R85="","",IF(AA83="T","",IF(AA83="F",IF(R85>=X83,"þ",IF(R85>=Y83,"G2",IF(R85>=Z83,"G3","")))))) ->  | AJ85: 85
B86: =VLOOKUP(A84,womens_declare,20,FALSE) -> 11 | E86: 3 | G86: =IF($F86="","",HLOOKUP(F86,womens_declare,B86,FALSE)) ->  | J86: =IF(I86="","",IF(AND(AA83="T",I86<I85),"X",IF(AND(AA83="F",I86>I85),"X",""))) ->  | L86: =IF(AA83="T",AB86,AC86) ->  | N86: 3 | P86: =IF($O86="","",HLOOKUP(O86,womens_declare,B86,FALSE)) ->  | S86: =IF(R86="","",IF(AND(AA83="T",R86<R85),"X",IF(AND(AA83="F",R86>R85),"X",""))) ->  | T86: =IF(AA83="T",AD86,AE86) ->  | AB86: =IF(I86="","",IF(AA83="F","",IF(AA83="T",IF(I86<=X83,"þ",IF(I86<=Y83,"G2",IF(I86<=Z83,"G3","")))))) ->  | AC86: =IF(I86="","",IF(AA83="T","",IF(AA83="F",IF(I86>=X83,"þ",IF(I86>=Y83,"G2",IF(I86>=Z83,"G3","")))))) ->  | AD86: =IF(R86="","",IF(AA83="F","",IF(AA83="T",IF(R86<=X83,"þ",IF(R86<=Y83,"G2",IF(R86<=Z83,"G3","")))))) ->  | AE86: =IF(R86="","",IF(AA83="T","",IF(AA83="F",IF(R86>=X83,"þ",IF(R86>=Y83,"G2",IF(R86>=Z83,"G3","")))))) ->  | AJ86: 86
E87: 4 | G87: =IF($F87="","",HLOOKUP(F87,womens_declare,B86,FALSE)) ->  | J87: =IF(I87="","",IF(AND(AA83="T",I87<I86),"X",IF(AND(AA83="F",I87>I86),"X",""))) ->  | L87: =IF(AA83="T",AB87,AC87) ->  | N87: 4 | P87: =IF($O87="","",HLOOKUP(O87,womens_declare,B86,FALSE)) ->  | S87: =IF(R87="","",IF(AND(AA83="T",R87<R86),"X",IF(AND(AA83="F",R87>R86),"X",""))) ->  | T87: =IF(AA83="T",AD87,AE87) ->  | AB87: =IF(I87="","",IF(AA83="F","",IF(AA83="T",IF(I87<=X83,"þ",IF(I87<=Y83,"G2",IF(I87<=Z83,"G3","")))))) ->  | AC87: =IF(I87="","",IF(AA83="T","",IF(AA83="F",IF(I87>=X83,"þ",IF(I87>=Y83,"G2",IF(I87>=Z83,"G3","")))))) ->  | AD87: =IF(R87="","",IF(AA83="F","",IF(AA83="T",IF(R87<=X83,"þ",IF(R87<=Y83,"G2",IF(R87<=Z83,"G3","")))))) ->  | AE87: =IF(R87="","",IF(AA83="T","",IF(AA83="F",IF(R87>=X83,"þ",IF(R87>=Y83,"G2",IF(R87>=Z83,"G3","")))))) ->  | AJ87: 87
E88: 5 | G88: =IF($F88="","",HLOOKUP(F88,womens_declare,B86,FALSE)) ->  | J88: =IF(I88="","",IF(AND(AA83="T",I88<I87),"X",IF(AND(AA83="F",I88>I87),"X",""))) ->  | L88: =IF(AA83="T",AB88,AC88) ->  | N88: 5 | P88: =IF($O88="","",HLOOKUP(O88,womens_declare,B86,FALSE)) ->  | S88: =IF(R88="","",IF(AND(AA83="T",R88<R87),"X",IF(AND(AA83="F",R88>R87),"X",""))) ->  | T88: =IF(AA83="T",AD88,AE88) ->  | AB88: =IF(I88="","",IF(AA83="F","",IF(AA83="T",IF(I88<=X83,"þ",IF(I88<=Y83,"G2",IF(I88<=Z83,"G3","")))))) ->  | AC88: =IF(I88="","",IF(AA83="T","",IF(AA83="F",IF(I88>=X83,"þ",IF(I88>=Y83,"G2",IF(I88>=Z83,"G3","")))))) ->  | AD88: =IF(R88="","",IF(AA83="F","",IF(AA83="T",IF(R88<=X83,"þ",IF(R88<=Y83,"G2",IF(R88<=Z83,"G3","")))))) ->  | AE88: =IF(R88="","",IF(AA83="T","",IF(AA83="F",IF(R88>=X83,"þ",IF(R88>=Y83,"G2",IF(R88>=Z83,"G3","")))))) ->  | AJ88: 88
E89: 6 | G89: =IF($F89="","",HLOOKUP(F89,womens_declare,B86,FALSE)) ->  | J89: =IF(I89="","",IF(AND(AA83="T",I89<I88),"X",IF(AND(AA83="F",I89>I88),"X",""))) ->  | L89: =IF(AA83="T",AB89,AC89) ->  | N89: 6 | P89: =IF($O89="","",HLOOKUP(O89,womens_declare,B86,FALSE)) ->  | S89: =IF(R89="","",IF(AND(AA83="T",R89<R88),"X",IF(AND(AA83="F",R89>R88),"X",""))) ->  | T89: =IF(AA83="T",AD89,AE89) ->  | AB89: =IF(I89="","",IF(AA83="F","",IF(AA83="T",IF(I89<=X83,"þ",IF(I89<=Y83,"G2",IF(I89<=Z83,"G3","")))))) ->  | AC89: =IF(I89="","",IF(AA83="T","",IF(AA83="F",IF(I89>=X83,"þ",IF(I89>=Y83,"G2",IF(I89>=Z83,"G3","")))))) ->  | AD89: =IF(R89="","",IF(AA83="F","",IF(AA83="T",IF(R89<=X83,"þ",IF(R89<=Y83,"G2",IF(R89<=Z83,"G3","")))))) ->  | AE89: =IF(R89="","",IF(AA83="T","",IF(AA83="F",IF(R89>=X83,"þ",IF(R89>=Y83,"G2",IF(R89>=Z83,"G3","")))))) ->  | AJ89: 89
E90: 7 | G90: =IF($F90="","",HLOOKUP(F90,womens_declare,B86,FALSE)) ->  | J90: =IF(I90="","",IF(AND(AA83="T",I90<I89),"X",IF(AND(AA83="F",I90>I89),"X",""))) ->  | L90: =IF(AA83="T",AB90,AC90) ->  | N90: 7 | P90: =IF($O90="","",HLOOKUP(O90,womens_declare,B86,FALSE)) ->  | S90: =IF(R90="","",IF(AND(AA83="T",R90<R89),"X",IF(AND(AA83="F",R90>R89),"X",""))) ->  | T90: =IF(AA83="T",AD90,AE90) ->  | AB90: =IF(I90="","",IF(AA83="F","",IF(AA83="T",IF(I90<=X83,"þ",IF(I90<=Y83,"G2",IF(I90<=Z83,"G3","")))))) ->  | AC90: =IF(I90="","",IF(AA83="T","",IF(AA83="F",IF(I90>=X83,"þ",IF(I90>=Y83,"G2",IF(I90>=Z83,"G3","")))))) ->  | AD90: =IF(R90="","",IF(AA83="F","",IF(AA83="T",IF(R90<=X83,"þ",IF(R90<=Y83,"G2",IF(R90<=Z83,"G3","")))))) ->  | AE90: =IF(R90="","",IF(AA83="T","",IF(AA83="F",IF(R90>=X83,"þ",IF(R90>=Y83,"G2",IF(R90>=Z83,"G3","")))))) ->  | AJ90: 90
E91: 8 | G91: =IF($F91="","",HLOOKUP(F91,womens_declare,B86,FALSE)) ->  | J91: =IF(I91="","",IF(AND(AA83="T",I91<I90),"X",IF(AND(AA83="F",I91>I90),"X",""))) ->  | L91: =IF(AA83="T",AB91,AC91) ->  | N91: 8 | P91: =IF($O91="","",HLOOKUP(O91,womens_declare,B86,FALSE)) ->  | S91: =IF(R91="","",IF(AND(AA83="T",R91<R90),"X",IF(AND(AA83="F",R91>R90),"X",""))) ->  | T91: =IF(AA83="T",AD91,AE91) ->  | AB91: =IF(I91="","",IF(AA83="F","",IF(AA83="T",IF(I91<=X83,"þ",IF(I91<=Y83,"G2",IF(I91<=Z83,"G3","")))))) ->  | AC91: =IF(I91="","",IF(AA83="T","",IF(AA83="F",IF(I91>=X83,"þ",IF(I91>=Y83,"G2",IF(I91>=Z83,"G3","")))))) ->  | AD91: =IF(R91="","",IF(AA83="F","",IF(AA83="T",IF(R91<=X83,"þ",IF(R91<=Y83,"G2",IF(R91<=Z83,"G3","")))))) ->  | AE91: =IF(R91="","",IF(AA83="T","",IF(AA83="F",IF(R91>=X83,"þ",IF(R91>=Y83,"G2",IF(R91>=Z83,"G3","")))))) ->  | AJ91: 91
AJ92: 92
C93: =VLOOKUP(A94,Handbook!$A$4:$AK$24,36,FALSE) -> D | E93: =CONCATENATE(VLOOKUP(A94,womens_handbook,3,FALSE)," A") -> Women's Hammer A | H93: =IF(A94="","",IF(VLOOKUP(A94,Handbook!$A$4:$AI$24,35,FALSE)="Y","Wind=","")) ->  | O93: =CONCATENATE(VLOOKUP(A94,womens_handbook,3,FALSE)," B") -> Women's Hammer B | Q93: =H93 ->  | R93: =IF(I93="","",I93) ->  | V93: =IF($A94="","",VLOOKUP($A94,Handbook!$A$26:$AK$46,21,FALSE)) -> 64.93 | W93: =IF($A94="","",VLOOKUP($A94,Handbook!$A$26:$AK$46,22,FALSE)) -> 64.93 | X93: =IF($A94="","",VLOOKUP($A94,Handbook!$A$26:$AK$46,23,FALSE)) -> 25 | Y93: =IF($A94="","",VLOOKUP($A94,Handbook!$A$26:$AK$46,24,FALSE)) -> 30 | Z93: =IF($A94="","",VLOOKUP($A94,Handbook!$A$26:$AK$46,25,FALSE)) -> 30 | AA93: =IF($A94="","",VLOOKUP($A94,Handbook!$A$26:$AK$46,34,FALSE)) -> F | AJ93: 93
A94: 11 | C94: =IF(F94="","",IF(F94>10,F94/11,F94)) ->  | D94: =IF(O94="","",IF(O94>10,O94/11,O94)) ->  | E94: ='Womens Hammer'!$E$26 -> 1 | F94: =IF('Womens Hammer'!$I$26=0,"",'Womens Hammer'!$F$26) ->  | G94: =IF(OR($F94="",$F94=0),"",IF($F94>90,VLOOKUP(F94,eventcodes,2,FALSE),HLOOKUP(F94,womens_declare,B96,FALSE))) ->  | H94: =IF(OR($F94="",$F94=0),"",IF($F94>90,"",VLOOKUP(C94,matchday,2,FALSE))) ->  | I94: =IF('Womens Hammer'!$I$26=0,"",'Womens Hammer'!$I$26) ->  | J94: =IF(I94="","",IF(AA93="T",V94,V95)) ->  | L94: =IF(AA93="T",AB94,AC94) ->  | N94: ='Womens Hammer'!$K$26 -> 1 | O94: =IF('Womens Hammer'!$I$26=0,"",'Womens Hammer'!$L$26) ->  | P94: =IF(OR($O94="",$O94=0),"",HLOOKUP(O94,womens_declare,B96,FALSE)) ->  | Q94: =IF(OR($O94="",$O94=0),"",VLOOKUP(D94,matchday,2,FALSE)) ->  | R94: =IF('Womens Hammer'!$I$26=0,"",'Womens Hammer'!$U$26) ->  | T94: =IF(AA93="T",AD94,AE94) ->  | V94: =IF(AA93="F","",IF(I94<V93,"LR",IF(I94=V93,"=LR",IF(I94<W93,"DR",IF(I94=W93,"=DR",""))))) ->  | AB94: =IF(I94="","",IF(AA93="F","",IF(AA93="T",IF(I94<=X93,"þ",IF(I94<=Y93,"G2",IF(I94<=Z93,"G3","")))))) ->  | AC94: =IF(I94="","",IF(AA93="T","",IF(AA93="F",IF(I94>=X93,"þ",IF(I94>=Y93,"G2",IF(I94>=Z93,"G3","")))))) ->  | AD94: =IF(R94="","",IF(AA93="F","",IF(AA93="T",IF(R94<=X93,"þ",IF(R94<=Y93,"G2",IF(R94<=Z93,"G3","")))))) ->  | AE94: =IF(R94="","",IF(AA93="T","",IF(AA93="F",IF(R94>=X93,"þ",IF(R94>=Y93,"G2",IF(R94>=Z93,"G3","")))))) ->  | AF94: =C94 ->  | AG94: =IF(F94="","",IF(LEFT(I94,1)="D",0,VLOOKUP(E94,$AQ$4:$AR$40,2,FALSE))) ->  | AH94: =D94 ->  | AI94: =IF(O94="","",IF(LEFT(R94,1)="D",0,VLOOKUP(N94,$AQ$4:$AS$40,3,FALSE))) ->  | AJ94: 94
B95: =VLOOKUP(A94,Handbook!$A$4:$AK$24,37,FALSE) -> 12 | C95: =IF(F95="","",IF(F95>10,F95/11,F95)) ->  | D95: =IF(O95="","",IF(O95>10,O95/11,O95)) ->  | E95: ='Womens Hammer'!$E$27 -> 2 | F95: =IF('Womens Hammer'!$I$26=0,"",'Womens Hammer'!$F$27) ->  | G95: =IF(OR($F95="",$F95=0),"",IF($F95>90,VLOOKUP(F95,eventcodes,2,FALSE),HLOOKUP(F95,womens_declare,B96,FALSE))) ->  | I95: =IF('Womens Hammer'!$I$26=0,"",'Womens Hammer'!$I$27) ->  | L95: =IF(AA93="T",AB95,AC95) ->  | N95: ='Womens Hammer'!$K$27 -> 2 | O95: =IF('Womens Hammer'!$I$26=0,"",'Womens Hammer'!$L$27) ->  | P95: =IF(OR($O95="",$O95=0),"",HLOOKUP(O95,womens_declare,B96,FALSE)) ->  | R95: =IF('Womens Hammer'!$I$26=0,"",'Womens Hammer'!$U$27) ->  | T95: =IF(AA93="T",AD95,AE95) ->  | V95: =IF(AA93="T","",IF(I94>V93,"LR",IF(I94=V93,"=LR",IF(I94>W93,"DR",IF(I94=W93,"=DR",""))))) -> LR | AB95: =IF(I95="","",IF(AA93="F","",IF(AA93="T",IF(I95<=X93,"þ",IF(I95<=Y93,"G2",IF(I95<=Z93,"G3","")))))) ->  | AC95: =IF(I95="","",IF(AA93="T","",IF(AA93="F",IF(I95>=X93,"þ",IF(I95>=Y93,"G2",IF(I95>=Z93,"G3","")))))) ->  | AD95: =IF(R95="","",IF(AA93="F","",IF(AA93="T",IF(R95<=X93,"þ",IF(R95<=Y93,"G2",IF(R95<=Z93,"G3","")))))) ->  | AE95: =IF(R95="","",IF(AA93="T","",IF(AA93="F",IF(R95>=X93,"þ",IF(R95>=Y93,"G2",IF(R95>=Z93,"G3","")))))) ->  | AJ95: 95
B96: =VLOOKUP(A94,'Declarations (M)'!$A$3:$T$31,20,FALSE) -> 12 | E96: ='Womens Hammer'!$E$28 -> 3 | F96: =IF('Womens Hammer'!$I$26=0,"",'Womens Hammer'!$F$28) ->  | G96: =IF(OR($F96="",$F96=0),"",IF($F96>90,VLOOKUP(F96,eventcodes,2,FALSE),HLOOKUP(F96,womens_declare,B96,FALSE))) ->  | I96: =IF('Womens Hammer'!$I$26=0,"",'Womens Hammer'!$I$28) ->  | L96: =IF(AA93="T",AB96,AC96) ->  | N96: ='Womens Hammer'!$K$28 -> 3 | O96: =IF('Womens Hammer'!$I$26=0,"",'Womens Hammer'!$L$28) ->  | P96: =IF(OR($O96="",$O96=0),"",HLOOKUP(O96,womens_declare,B96,FALSE)) ->  | R96: =IF('Womens Hammer'!$I$26=0,"",'Womens Hammer'!$U$28) ->  | T96: =IF(AA93="T",AD96,AE96) ->  | AB96: =IF(I96="","",IF(AA93="F","",IF(AA93="T",IF(I96<=X93,"þ",IF(I96<=Y93,"G2",IF(I96<=Z93,"G3","")))))) ->  | AC96: =IF(I96="","",IF(AA93="T","",IF(AA93="F",IF(I96>=X93,"þ",IF(I96>=Y93,"G2",IF(I96>=Z93,"G3","")))))) ->  | AD96: =IF(R96="","",IF(AA93="F","",IF(AA93="T",IF(R96<=X93,"þ",IF(R96<=Y93,"G2",IF(R96<=Z93,"G3","")))))) ->  | AE96: =IF(R96="","",IF(AA93="T","",IF(AA93="F",IF(R96>=X93,"þ",IF(R96>=Y93,"G2",IF(R96>=Z93,"G3","")))))) ->  | AJ96: 96
E97: ='Womens Hammer'!$E$29 -> 4 | F97: =IF('Womens Hammer'!$I$26=0,"",'Womens Hammer'!$F$29) ->  | G97: =IF(OR($F97="",$F97=0),"",IF($F97>90,VLOOKUP(F97,eventcodes,2,FALSE),HLOOKUP(F97,womens_declare,B96,FALSE))) ->  | I97: =IF('Womens Hammer'!$I$26=0,"",'Womens Hammer'!$I$29) ->  | L97: =IF(AA93="T",AB97,AC97) ->  | N97: ='Womens Hammer'!$K$29 -> 4 | O97: =IF('Womens Hammer'!$I$26=0,"",'Womens Hammer'!$L$29) ->  | P97: =IF(OR($O97="",$O97=0),"",HLOOKUP(O97,womens_declare,B96,FALSE)) ->  | R97: =IF('Womens Hammer'!$I$26=0,"",'Womens Hammer'!$U$29) ->  | T97: =IF(AA93="T",AD97,AE97) ->  | AB97: =IF(I97="","",IF(AA93="F","",IF(AA93="T",IF(I97<=X93,"þ",IF(I97<=Y93,"G2",IF(I97<=Z93,"G3","")))))) ->  | AC97: =IF(I97="","",IF(AA93="T","",IF(AA93="F",IF(I97>=X93,"þ",IF(I97>=Y93,"G2",IF(I97>=Z93,"G3","")))))) ->  | AD97: =IF(R97="","",IF(AA93="F","",IF(AA93="T",IF(R97<=X93,"þ",IF(R97<=Y93,"G2",IF(R97<=Z93,"G3","")))))) ->  | AE97: =IF(R97="","",IF(AA93="T","",IF(AA93="F",IF(R97>=X93,"þ",IF(R97>=Y93,"G2",IF(R97>=Z93,"G3","")))))) ->  | AJ97: 97
E98: ='Womens Hammer'!$E$30 -> 5 | F98: =IF('Womens Hammer'!$I$26=0,"",'Womens Hammer'!$F$30) ->  | G98: =IF(OR($F98="",$F98=0),"",IF($F98>90,VLOOKUP(F98,eventcodes,2,FALSE),HLOOKUP(F98,womens_declare,B96,FALSE))) ->  | I98: =IF('Womens Hammer'!$I$26=0,"",'Womens Hammer'!$I$30) ->  | L98: =IF(AA93="T",AB98,AC98) ->  | N98: ='Womens Hammer'!$K$30 -> 5 | O98: =IF('Womens Hammer'!$I$26=0,"",'Womens Hammer'!$L$30) ->  | P98: =IF(OR($O98="",$O98=0),"",HLOOKUP(O98,womens_declare,B96,FALSE)) ->  | R98: =IF('Womens Hammer'!$I$26=0,"",'Womens Hammer'!$U$30) ->  | T98: =IF(AA93="T",AD98,AE98) ->  | AB98: =IF(I98="","",IF(AA93="F","",IF(AA93="T",IF(I98<=X93,"þ",IF(I98<=Y93,"G2",IF(I98<=Z93,"G3","")))))) ->  | AC98: =IF(I98="","",IF(AA93="T","",IF(AA93="F",IF(I98>=X93,"þ",IF(I98>=Y93,"G2",IF(I98>=Z93,"G3","")))))) ->  | AD98: =IF(R98="","",IF(AA93="F","",IF(AA93="T",IF(R98<=X93,"þ",IF(R98<=Y93,"G2",IF(R98<=Z93,"G3","")))))) ->  | AE98: =IF(R98="","",IF(AA93="T","",IF(AA93="F",IF(R98>=X93,"þ",IF(R98>=Y93,"G2",IF(R98>=Z93,"G3","")))))) ->  | AJ98: 98
E99: ='Womens Hammer'!$E$31 -> 6 | F99: =IF('Womens Hammer'!$I$26=0,"",'Womens Hammer'!$F$31) ->  | G99: =IF(OR($F99="",$F99=0),"",IF($F99>90,VLOOKUP(F99,eventcodes,2,FALSE),HLOOKUP(F99,womens_declare,B96,FALSE))) ->  | I99: =IF('Womens Hammer'!$I$26=0,"",'Womens Hammer'!$I$31) ->  | L99: =IF(AA93="T",AB99,AC99) ->  | N99: ='Womens Hammer'!$K$31 -> 6 | O99: =IF('Womens Hammer'!$I$26=0,"",'Womens Hammer'!$L$31) ->  | P99: =IF(OR($O99="",$O99=0),"",HLOOKUP(O99,womens_declare,B96,FALSE)) ->  | R99: =IF('Womens Hammer'!$I$26=0,"",'Womens Hammer'!$U$31) ->  | T99: =IF(AA93="T",AD99,AE99) ->  | AB99: =IF(I99="","",IF(AA93="F","",IF(AA93="T",IF(I99<=X93,"þ",IF(I99<=Y93,"G2",IF(I99<=Z93,"G3","")))))) ->  | AC99: =IF(I99="","",IF(AA93="T","",IF(AA93="F",IF(I99>=X93,"þ",IF(I99>=Y93,"G2",IF(I99>=Z93,"G3","")))))) ->  | AD99: =IF(R99="","",IF(AA93="F","",IF(AA93="T",IF(R99<=X93,"þ",IF(R99<=Y93,"G2",IF(R99<=Z93,"G3","")))))) ->  | AE99: =IF(R99="","",IF(AA93="T","",IF(AA93="F",IF(R99>=X93,"þ",IF(R99>=Y93,"G2",IF(R99>=Z93,"G3","")))))) ->  | AJ99: 99
E100: ='Womens Hammer'!$E$32 -> 7 | F100: =IF('Womens Hammer'!$I$26=0,"",'Womens Hammer'!$F$32) ->  | G100: =IF(OR($F100="",$F100=0),"",IF($F100>90,VLOOKUP(F100,eventcodes,2,FALSE),HLOOKUP(F100,womens_declare,B96,FALSE))) ->  | I100: =IF('Womens Hammer'!$I$26=0,"",'Womens Hammer'!$I$32) ->  | L100: =IF(AA93="T",AB100,AC100) ->  | N100: ='Womens Hammer'!$K$32 -> 7 | O100: =IF('Womens Hammer'!$I$26=0,"",'Womens Hammer'!$L$32) ->  | P100: =IF(OR($O100="",$O100=0),"",HLOOKUP(O100,womens_declare,B96,FALSE)) ->  | R100: =IF('Womens Hammer'!$I$26=0,"",'Womens Hammer'!$U$32) ->  | T100: =IF(AA93="T",AD100,AE100) ->  | AB100: =IF(I100="","",IF(AA93="F","",IF(AA93="T",IF(I100<=X93,"þ",IF(I100<=Y93,"G2",IF(I100<=Z93,"G3","")))))) ->  | AC100: =IF(I100="","",IF(AA93="T","",IF(AA93="F",IF(I100>=X93,"þ",IF(I100>=Y93,"G2",IF(I100>=Z93,"G3","")))))) ->  | AD100: =IF(R100="","",IF(AA93="F","",IF(AA93="T",IF(R100<=X93,"þ",IF(R100<=Y93,"G2",IF(R100<=Z93,"G3","")))))) ->  | AE100: =IF(R100="","",IF(AA93="T","",IF(AA93="F",IF(R100>=X93,"þ",IF(R100>=Y93,"G2",IF(R100>=Z93,"G3","")))))) ->  | AJ100: 100
E101: ='Womens Hammer'!$E$33 -> 8 | F101: =IF('Womens Hammer'!$I$26=0,"",'Womens Hammer'!$F$33) ->  | G101: =IF(OR($F101="",$F101=0),"",IF($F101>90,VLOOKUP(F101,eventcodes,2,FALSE),HLOOKUP(F101,womens_declare,B96,FALSE))) ->  | I101: =IF('Womens Hammer'!$I$26=0,"",'Womens Hammer'!$I$33) ->  | L101: =IF(AA93="T",AB101,AC101) ->  | N101: ='Womens Hammer'!$K$33 -> 8 | O101: =IF('Womens Hammer'!$I$26=0,"",'Womens Hammer'!$L$33) ->  | P101: =IF(OR($O101="",$O101=0),"",HLOOKUP(O101,womens_declare,B96,FALSE)) ->  | R101: =IF('Womens Hammer'!$I$26=0,"",'Womens Hammer'!$U$33) ->  | T101: =IF(AA93="T",AD101,AE101) ->  | AB101: =IF(I101="","",IF(AA93="F","",IF(AA93="T",IF(I101<=X93,"þ",IF(I101<=Y93,"G2",IF(I101<=Z93,"G3","")))))) ->  | AC101: =IF(I101="","",IF(AA93="T","",IF(AA93="F",IF(I101>=X93,"þ",IF(I101>=Y93,"G2",IF(I101>=Z93,"G3","")))))) ->  | AD101: =IF(R101="","",IF(AA93="F","",IF(AA93="T",IF(R101<=X93,"þ",IF(R101<=Y93,"G2",IF(R101<=Z93,"G3","")))))) ->  | AE101: =IF(R101="","",IF(AA93="T","",IF(AA93="F",IF(R101>=X93,"þ",IF(R101>=Y93,"G2",IF(R101>=Z93,"G3","")))))) ->  | AJ101: 101
AJ102: 102
C103: =VLOOKUP(A104,Handbook!$A$4:$AK$24,36,FALSE) -> D | E103: =CONCATENATE(VLOOKUP(A104,womens_handbook,3,FALSE)," A") -> Women's Discus A | H103: =IF(A104="","",IF(VLOOKUP(A104,Handbook!$A$4:$AI$24,35,FALSE)="Y","Wind=","")) ->  | O103: =CONCATENATE(VLOOKUP(A104,womens_handbook,3,FALSE)," B") -> Women's Discus B | Q103: =H103 ->  | R103: =IF(I103="","",I103) ->  | V103: =IF($A104="","",VLOOKUP($A104,Handbook!$A$26:$AK$46,21,FALSE)) -> 54.96 | W103: =IF($A104="","",VLOOKUP($A104,Handbook!$A$26:$AK$46,22,FALSE)) -> 54.96 | X103: =IF($A104="","",VLOOKUP($A104,Handbook!$A$26:$AK$46,23,FALSE)) -> 25 | Y103: =IF($A104="","",VLOOKUP($A104,Handbook!$A$26:$AK$46,24,FALSE)) -> 30 | Z103: =IF($A104="","",VLOOKUP($A104,Handbook!$A$26:$AK$46,25,FALSE)) -> 30 | AA103: =IF($A104="","",VLOOKUP($A104,Handbook!$A$26:$AK$46,34,FALSE)) -> F | AJ103: 103
A104: 15 | C104: =IF(F104="","",IF(F104>10,F104/11,F104)) ->  | D104: =IF(O104="","",IF(O104>10,O104/11,O104)) ->  | E104: ='Womens Discus'!$E$26 -> 1 | F104: =IF('Womens Discus'!$I$26=0,"",'Womens Discus'!$F$26) ->  | G104: =IF(OR($F104="",$F104=0),"",IF($F104>90,VLOOKUP(F104,eventcodes,2,FALSE),HLOOKUP(F104,womens_declare,B106,FALSE))) ->  | H104: =IF(OR($F104="",$F104=0),"",IF($F104>90,"",VLOOKUP(C104,matchday,2,FALSE))) ->  | I104: =IF('Womens Discus'!$I$26=0,"",'Womens Discus'!$I$26) ->  | J104: =IF(I104="","",IF(AA103="T",V104,V105)) ->  | L104: =IF(AA103="T",AB104,AC104) ->  | N104: ='Womens Discus'!$K$26 -> 1 | O104: =IF('Womens Discus'!$I$26=0,"",'Womens Discus'!$L$26) ->  | P104: =IF(OR($O104="",$O104=0),"",HLOOKUP(O104,womens_declare,B106,FALSE)) ->  | Q104: =IF(OR($O104="",$O104=0),"",VLOOKUP(D104,matchday,2,FALSE)) ->  | R104: =IF('Womens Discus'!$I$26=0,"",'Womens Discus'!$U$26) ->  | T104: =IF(AA103="T",AD104,AE104) ->  | V104: =IF(AA103="F","",IF(I104<V103,"LR",IF(I104=V103,"=LR",IF(I104<W103,"DR",IF(I104=W103,"=DR",""))))) ->  | AB104: =IF(I104="","",IF(AA103="F","",IF(AA103="T",IF(I104<=X103,"þ",IF(I104<=Y103,"G2",IF(I104<=Z103,"G3","")))))) ->  | AC104: =IF(I104="","",IF(AA103="T","",IF(AA103="F",IF(I104>=X103,"þ",IF(I104>=Y103,"G2",IF(I104>=Z103,"G3","")))))) ->  | AD104: =IF(R104="","",IF(AA103="F","",IF(AA103="T",IF(R104<=X103,"þ",IF(R104<=Y103,"G2",IF(R104<=Z103,"G3","")))))) ->  | AE104: =IF(R104="","",IF(AA103="T","",IF(AA103="F",IF(R104>=X103,"þ",IF(R104>=Y103,"G2",IF(R104>=Z103,"G3","")))))) ->  | AF104: =C104 ->  | AG104: =IF(F104="","",IF(LEFT(I104,1)="D",0,VLOOKUP(E104,$AQ$4:$AR$40,2,FALSE))) ->  | AH104: =D104 ->  | AI104: =IF(O104="","",IF(LEFT(R104,1)="D",0,VLOOKUP(N104,$AQ$4:$AS$40,3,FALSE))) ->  | AJ104: 104
B105: =VLOOKUP(A104,Handbook!$A$4:$AK$24,37,FALSE) -> 16 | C105: =IF(F105="","",IF(F105>10,F105/11,F105)) ->  | D105: =IF(O105="","",IF(O105>10,O105/11,O105)) ->  | E105: ='Womens Discus'!$E$27 -> 2 | F105: =IF('Womens Discus'!$I$26=0,"",'Womens Discus'!$F$27) ->  | G105: =IF(OR($F105="",$F105=0),"",IF($F105>90,VLOOKUP(F105,eventcodes,2,FALSE),HLOOKUP(F105,womens_declare,B106,FALSE))) ->  | I105: =IF('Womens Discus'!$I$26=0,"",'Womens Discus'!$I$27) ->  | L105: =IF(AA103="T",AB105,AC105) ->  | N105: ='Womens Discus'!$K$27 -> 2 | O105: =IF('Womens Discus'!$I$26=0,"",'Womens Discus'!$L$27) ->  | P105: =IF(OR($O105="",$O105=0),"",HLOOKUP(O105,womens_declare,B106,FALSE)) ->  | R105: =IF('Womens Discus'!$I$26=0,"",'Womens Discus'!$U$27) ->  | T105: =IF(AA103="T",AD105,AE105) ->  | V105: =IF(AA103="T","",IF(I104>V103,"LR",IF(I104=V103,"=LR",IF(I104>W103,"DR",IF(I104=W103,"=DR",""))))) -> LR | AB105: =IF(I105="","",IF(AA103="F","",IF(AA103="T",IF(I105<=X103,"þ",IF(I105<=Y103,"G2",IF(I105<=Z103,"G3","")))))) ->  | AC105: =IF(I105="","",IF(AA103="T","",IF(AA103="F",IF(I105>=X103,"þ",IF(I105>=Y103,"G2",IF(I105>=Z103,"G3","")))))) ->  | AD105: =IF(R105="","",IF(AA103="F","",IF(AA103="T",IF(R105<=X103,"þ",IF(R105<=Y103,"G2",IF(R105<=Z103,"G3","")))))) ->  | AE105: =IF(R105="","",IF(AA103="T","",IF(AA103="F",IF(R105>=X103,"þ",IF(R105>=Y103,"G2",IF(R105>=Z103,"G3","")))))) ->  | AJ105: 105
B106: =VLOOKUP(A104,'Declarations (M)'!$A$3:$T$31,20,FALSE) -> 16 | E106: ='Womens Discus'!$E$28 -> 3 | F106: =IF('Womens Discus'!$I$26=0,"",'Womens Discus'!$F$28) ->  | G106: =IF(OR($F106="",$F106=0),"",IF($F106>90,VLOOKUP(F106,eventcodes,2,FALSE),HLOOKUP(F106,womens_declare,B106,FALSE))) ->  | I106: =IF('Womens Discus'!$I$26=0,"",'Womens Discus'!$I$28) ->  | L106: =IF(AA103="T",AB106,AC106) ->  | N106: ='Womens Discus'!$K$28 -> 3 | O106: =IF('Womens Discus'!$I$26=0,"",'Womens Discus'!$L$28) ->  | P106: =IF(OR($O106="",$O106=0),"",HLOOKUP(O106,womens_declare,B106,FALSE)) ->  | R106: =IF('Womens Discus'!$I$26=0,"",'Womens Discus'!$U$28) ->  | T106: =IF(AA103="T",AD106,AE106) ->  | AB106: =IF(I106="","",IF(AA103="F","",IF(AA103="T",IF(I106<=X103,"þ",IF(I106<=Y103,"G2",IF(I106<=Z103,"G3","")))))) ->  | AC106: =IF(I106="","",IF(AA103="T","",IF(AA103="F",IF(I106>=X103,"þ",IF(I106>=Y103,"G2",IF(I106>=Z103,"G3","")))))) ->  | AD106: =IF(R106="","",IF(AA103="F","",IF(AA103="T",IF(R106<=X103,"þ",IF(R106<=Y103,"G2",IF(R106<=Z103,"G3","")))))) ->  | AE106: =IF(R106="","",IF(AA103="T","",IF(AA103="F",IF(R106>=X103,"þ",IF(R106>=Y103,"G2",IF(R106>=Z103,"G3","")))))) ->  | AJ106: 106
E107: ='Womens Discus'!$E$29 -> 4 | F107: =IF('Womens Discus'!$I$26=0,"",'Womens Discus'!$F$29) ->  | G107: =IF(OR($F107="",$F107=0),"",IF($F107>90,VLOOKUP(F107,eventcodes,2,FALSE),HLOOKUP(F107,womens_declare,B106,FALSE))) ->  | I107: =IF('Womens Discus'!$I$26=0,"",'Womens Discus'!$I$29) ->  | L107: =IF(AA103="T",AB107,AC107) ->  | N107: ='Womens Discus'!$K$29 -> 4 | O107: =IF('Womens Discus'!$I$26=0,"",'Womens Discus'!$L$29) ->  | P107: =IF(OR($O107="",$O107=0),"",HLOOKUP(O107,womens_declare,B106,FALSE)) ->  | R107: =IF('Womens Discus'!$I$26=0,"",'Womens Discus'!$U$29) ->  | T107: =IF(AA103="T",AD107,AE107) ->  | AB107: =IF(I107="","",IF(AA103="F","",IF(AA103="T",IF(I107<=X103,"þ",IF(I107<=Y103,"G2",IF(I107<=Z103,"G3","")))))) ->  | AC107: =IF(I107="","",IF(AA103="T","",IF(AA103="F",IF(I107>=X103,"þ",IF(I107>=Y103,"G2",IF(I107>=Z103,"G3","")))))) ->  | AD107: =IF(R107="","",IF(AA103="F","",IF(AA103="T",IF(R107<=X103,"þ",IF(R107<=Y103,"G2",IF(R107<=Z103,"G3","")))))) ->  | AE107: =IF(R107="","",IF(AA103="T","",IF(AA103="F",IF(R107>=X103,"þ",IF(R107>=Y103,"G2",IF(R107>=Z103,"G3","")))))) ->  | AJ107: 107
